Workbook

Sheet Peixe 50% PB Farelo
B2: Processo | C2: 59511.000102/2026-55
B3: Responsável | C3: JHONES DE LIMA VIEIRA
B4: Área de Origem | C4: 14ª GTR
B5: Data da pesquisa | C5: Janeiro/2026 - Fevereiro/2026
B7: ITEM: | C7: Ração farelada para peixe onívoro 50% PB – Proteína Bruta Mín.: 50%, granulometria pó. Data de validade não inferior a 6 meses. | G7: UNIDADE DE MEDIDA: | H7: kg | I7: QUANTIDADE: | J7: =300*25 -> 7500 | M7: Tabela auxiliar de metodologias para exclusão de preços | U7: Automática (menor CV)
B8: LICITAÇÕES ANTERIORES | M8: Licitações Anteriores - Outliers | U8: =M18 -> Outliers
B9: Órgão | C9: Edital/Ano - Nº do Lote / Item | D9: Quantidade | E9: Valor Unitário | F9: Data | G9: índice de atualização (nome) | H9: Variação acumulada do índice (%) | I9: Preço unitário atualizado | J9: Utilizar? (Sim/Não) | M9: Utilizar? | S9: Por critério do(a) analista | U9: =N18 -> Grupos - Todos
B10: 14ª SR - Fortaleza/CE | C10: Edital 90007/2024 - Item 1 | D10: 141 | E10: 6.4 | F10: 2025-01-02 | G10: IPA-EP-DI Suprimentos agropecuários | H10: =(I10/E10)-1 -> 0.01654095744 | I10: =IF(ISBLANK(E10),"",E10*(1+(INDEX('índice de atualização'!B:B,MATCH(G10,'índice de atualização'!B:B,0)+COUNTA('índice de atualização'!B:B)-1)-INDEX('índice de atualização'!B:B,MATCH(TEXT(F10,"MM/AAAA"),'índice de atualização'!A:A,0)))/INDEX('índice de atualização'!B:B,MATCH(TEXT(F10,"MM/AAAA"),'índice de atualização'!A:A,0)))) -> 6.505862128 | J10: =IF(ISNUMBER(I10),IF($J$33<>$S$9,M10,S10),"") -> Sim | M10: =IF(ISNUMBER(I10),IF(OR(I10<_xlfn.QUARTILE.INC($I$10:$I$29,1)-1.5*(_xlfn.QUARTILE.INC($I$10:I29,3)-_xlfn.QUARTILE.INC($I$10:$I$29,1)),I10>_xlfn.QUARTILE.INC($I$10:$I$29,3)+1.5*(_xlfn.QUARTILE.INC($I$10:$I$29,3)-_xlfn.QUARTILE.INC($I$10:$I$29,1))),"Não","Sim"),"") -> Sim | U10: =O18 -> Grupos - Sem o maior
B11: 14ª SR - Fortaleza/CE | C11: Edital 90007/2024 - Item 9 | D11: 25 | E11: 6.38 | F11: 2025-02-18 | G11: IPA-EP-DI Suprimentos agropecuários | H11: =(I11/E11)-1 -> 0.0004507242601 | I11: =IF(ISBLANK(E11),"",E11*(1+(INDEX('índice de atualização'!B:B,MATCH(G11,'índice de atualização'!B:B,0)+COUNTA('índice de atualização'!B:B)-1)-INDEX('índice de atualização'!B:B,MATCH(TEXT(F11,"MM/AAAA"),'índice de atualização'!A:A,0)))/INDEX('índice de atualização'!B:B,MATCH(TEXT(F11,"MM/AAAA"),'índice de atualização'!A:A,0)))) -> 6.382875621 | J11: =IF(ISNUMBER(I11),IF($J$33<>$S$8,M11,S11),"") -> Sim | M11: =IF(ISNUMBER(I11),IF(OR(I11<_xlfn.QUARTILE.INC($I$10:$I$29,1)-1.5*(_xlfn.QUARTILE.INC($I$10:I30,3)-_xlfn.QUARTILE.INC($I$10:$I$29,1)),I11>_xlfn.QUARTILE.INC($I$10:$I$29,3)+1.5*(_xlfn.QUARTILE.INC($I$10:$I$29,3)-_xlfn.QUARTILE.INC($I$10:$I$29,1))),"Não","Sim"),"") -> Sim | U11: =P18 -> Grupos - Sem o menor
B12: 4ª SR - Aracaju/SE | C12: Edital 90002/2025 - Item 1 | D12: 8000 | E12: 7.86 | F12: 2025-07-11 | G12: IPA-EP-DI Suprimentos agropecuários | H12: -0.02236834839 | I12: =IF(ISBLANK(E12),"",E12*(1+(INDEX('índice de atualização'!B:B,MATCH(G12,'índice de atualização'!B:B,0)+COUNTA('índice de atualização'!B:B)-1)-INDEX('índice de atualização'!B:B,MATCH(TEXT(F12,"MM/AAAA"),'índice de atualização'!A:A,0)))/INDEX('índice de atualização'!B:B,MATCH(TEXT(F12,"MM/AAAA"),'índice de atualização'!A:A,0)))) -> 7.684184782 | J12: Sim | M12: =IF(ISNUMBER(I12),IF(OR(I12<_xlfn.QUARTILE.INC($I$10:$I$29,1)-1.5*(_xlfn.QUARTILE.INC($I$10:I31,3)-_xlfn.QUARTILE.INC($I$10:$I$29,1)),I12>_xlfn.QUARTILE.INC($I$10:$I$29,3)+1.5*(_xlfn.QUARTILE.INC($I$10:$I$29,3)-_xlfn.QUARTILE.INC($I$10:$I$29,1))),"Não","Sim"),"") -> Sim | N12: =$M$12 -> Sim | O12: =$M$12 -> Sim | P12: =$M$12 -> Sim | Q12: =$M$12 -> Sim | R12: =$M$12 -> Sim | U12: =Q18 -> Grupos - Sem o maior e sem o menor
I13: =IF(ISBLANK(E13),"",E13*(1+(INDEX('índice de atualização'!B:B,MATCH(G13,'índice de atualização'!B:B,0)+COUNTA('índice de atualização'!B:B)-1)-INDEX('índice de atualização'!B:B,MATCH(TEXT(F13,"MM/AAAA"),'índice de atualização'!A:A,0)))/INDEX('índice de atualização'!B:B,MATCH(TEXT(F13,"MM/AAAA"),'índice de atualização'!A:A,0)))) ->  | M13: =IF(ISNUMBER(I13),IF(OR(I13<_xlfn.QUARTILE.INC($I$10:$I$29,1)-1.5*(_xlfn.QUARTILE.INC($I$10:I32,3)-_xlfn.QUARTILE.INC($I$10:$I$29,1)),I13>_xlfn.QUARTILE.INC($I$10:$I$29,3)+1.5*(_xlfn.QUARTILE.INC($I$10:$I$29,3)-_xlfn.QUARTILE.INC($I$10:$I$29,1))),"Não","Sim"),"") ->  | N13: =$M$13 ->  | O13: =$M$13 ->  | P13: =$M$13 ->  | Q13: =$M$13 ->  | R13: =$M$13 ->  | U13: =R18 -> Grupos - Sem os dois maiores
I14: =IF(ISBLANK(E14),"",E14*(1+(INDEX('índice de atualização'!B:B,MATCH(G14,'índice de atualização'!B:B,0)+COUNTA('índice de atualização'!B:B)-1)-INDEX('índice de atualização'!B:B,MATCH(TEXT(F14,"MM/AAAA"),'índice de atualização'!A:A,0)))/INDEX('índice de atualização'!B:B,MATCH(TEXT(F14,"MM/AAAA"),'índice de atualização'!A:A,0)))) ->  | M14: =IF(ISNUMBER(I14),IF(OR(I14<_xlfn.QUARTILE.INC($I$10:$I$29,1)-1.5*(_xlfn.QUARTILE.INC($I$10:I33,3)-_xlfn.QUARTILE.INC($I$10:$I$29,1)),I14>_xlfn.QUARTILE.INC($I$10:$I$29,3)+1.5*(_xlfn.QUARTILE.INC($I$10:$I$29,3)-_xlfn.QUARTILE.INC($I$10:$I$29,1))),"Não","Sim"),"") ->  | N14: =$M$14 ->  | O14: =$M$14 ->  | P14: =$M$14 ->  | Q14: =$M$14 ->  | R14: =$M$14 ->  | U14: =S18 -> Por critério do(a) analista
M15: =IF(ISNUMBER(I15),IF(OR(I15<_xlfn.QUARTILE.INC($I$10:$I$29,1)-1.5*(_xlfn.QUARTILE.INC($I$10:I36,3)-_xlfn.QUARTILE.INC($I$10:$I$29,1)),I15>_xlfn.QUARTILE.INC($I$10:$I$29,3)+1.5*(_xlfn.QUARTILE.INC($I$10:$I$29,3)-_xlfn.QUARTILE.INC($I$10:$I$29,1))),"Não","Sim"),"") ->  | N15: =$M$15 ->  | O15: =$M$15 ->  | P15: =$M$15 ->  | Q15: =$M$15 ->  | R15: =$M$15 -> 
M16: =IF(ISNUMBER(I16),IF(OR(I16<_xlfn.QUARTILE.INC($I$10:$I$29,1)-1.5*(_xlfn.QUARTILE.INC($I$10:I39,3)-_xlfn.QUARTILE.INC($I$10:$I$29,1)),I16>_xlfn.QUARTILE.INC($I$10:$I$29,3)+1.5*(_xlfn.QUARTILE.INC($I$10:$I$29,3)-_xlfn.QUARTILE.INC($I$10:$I$29,1))),"Não","Sim"),"") ->  | N16: =$M$16 ->  | O16: =$M$16 ->  | P16: =$M$16 ->  | Q16: =$M$16 ->  | R16: =$M$16 -> 
B17: COTAÇÕES DE MERCADO | M17: Cotações
B18: Empresa | H18: Data | I18: Preço Unitário | J18: Utilizar? (Sim/Não) | M18: Outliers | N18: Grupos - Todos | O18: Grupos - Sem o maior | P18: Grupos - Sem o menor | Q18: Grupos - Sem o maior e sem o menor | R18: Grupos - Sem os dois maiores | S18: Por critério do(a) analista
B19: Samaria Rações LTDA | H19: 2026-02-09 | I19: =160/25 -> 6.4 | J19: =IF(ISNUMBER(I19),IF($J$33=$M$18,M19,IF($J$33=$N$18,N19,IF($J$33=$O$18,O19,IF($J$33=$P$18,P19,IF($J$33=$Q$18,Q19,IF($J$33=$R$18,R19,IF($J$33=$S$18,S19,""))))))),"") -> Sim | M19: =IF(ISNUMBER(I19),IF(OR(I19<_xlfn.QUARTILE.INC($I$10:$I$29,1)-1.5*(_xlfn.QUARTILE.INC($I$10:I40,3)-_xlfn.QUARTILE.INC($I$10:$I$29,1)),I19>_xlfn.QUARTILE.INC($I$10:$I$29,3)+1.5*(_xlfn.QUARTILE.INC($I$10:$I$29,3)-_xlfn.QUARTILE.INC($I$10:$I$29,1))),"Não","Sim"),"") -> Sim | N19: =IF(ISNUMBER(I19),"Sim","") -> Sim | O19: =IF(ISNUMBER(I19),IF(_xlfn.RANK.EQ(I19,$I$19:$I$29)=1,"Não","Sim"),"") -> Sim | P19: =IF(ISNUMBER(I19),IF(_xlfn.RANK.EQ(I19,$I$19:$I$29)=COUNT($I$19:$I$29),"Não","Sim"),"") -> Não | Q19: =IF(O19="","",IF(AND(O19="Sim",P19="Sim"),"Sim","Não")) -> Não | R19: =IF(ISNUMBER(I19),IF(_xlfn.RANK.EQ(I19,$I$19:$I$29)<=2,"Não","Sim"),"") -> Sim
B20: Integral Mix Agroindustria | H20: 2026-02-07 | I20: =174.52/25 -> 6.9808 | J20: Sim | M20: =IF(ISNUMBER(I20),IF(OR(I20<_xlfn.QUARTILE.INC($I$10:$I$29,1)-1.5*(_xlfn.QUARTILE.INC($I$10:I40,3)-_xlfn.QUARTILE.INC($I$10:$I$29,1)),I20>_xlfn.QUARTILE.INC($I$10:$I$29,3)+1.5*(_xlfn.QUARTILE.INC($I$10:$I$29,3)-_xlfn.QUARTILE.INC($I$10:$I$29,1))),"Não","Sim"),"") -> Sim | N20: Sim | O20: Sim | P20: Sim | Q20: =IF(O20="","",IF(AND(O20="Sim",P20="Sim"),"Sim","Não")) -> Sim | R20: Não
B21: Comercial do Carmo ME | H21: 2026-02-12 | I21: =216/25 -> 8.64 | J21: Não | M21: =IF(ISNUMBER(I21),IF(OR(I21<_xlfn.QUARTILE.INC($I$10:$I$29,1)-1.5*(_xlfn.QUARTILE.INC($I$10:I40,3)-_xlfn.QUARTILE.INC($I$10:$I$29,1)),I21>_xlfn.QUARTILE.INC($I$10:$I$29,3)+1.5*(_xlfn.QUARTILE.INC($I$10:$I$29,3)-_xlfn.QUARTILE.INC($I$10:$I$29,1))),"Não","Sim"),"") -> Sim | N21: Sim | O21: Não | P21: Sim | Q21: Não | R21: Não
M22: =IF(ISNUMBER(I22),IF(OR(I22<_xlfn.QUARTILE.INC($I$10:$I$29,1)-1.5*(_xlfn.QUARTILE.INC($I$10:I40,3)-_xlfn.QUARTILE.INC($I$10:$I$29,1)),I22>_xlfn.QUARTILE.INC($I$10:$I$29,3)+1.5*(_xlfn.QUARTILE.INC($I$10:$I$29,3)-_xlfn.QUARTILE.INC($I$10:$I$29,1))),"Não","Sim"),"") -> 
M23: =IF(ISNUMBER(I23),IF(OR(I23<_xlfn.QUARTILE.INC($I$10:$I$29,1)-1.5*(_xlfn.QUARTILE.INC($I$10:I41,3)-_xlfn.QUARTILE.INC($I$10:$I$29,1)),I23>_xlfn.QUARTILE.INC($I$10:$I$29,3)+1.5*(_xlfn.QUARTILE.INC($I$10:$I$29,3)-_xlfn.QUARTILE.INC($I$10:$I$29,1))),"Não","Sim"),"") -> 
M24: =IF(ISNUMBER(I24),IF(OR(I24<_xlfn.QUARTILE.INC($I$10:$I$29,1)-1.5*(_xlfn.QUARTILE.INC($I$10:I42,3)-_xlfn.QUARTILE.INC($I$10:$I$29,1)),I24>_xlfn.QUARTILE.INC($I$10:$I$29,3)+1.5*(_xlfn.QUARTILE.INC($I$10:$I$29,3)-_xlfn.QUARTILE.INC($I$10:$I$29,1))),"Não","Sim"),"") -> 
M25: =IF(ISNUMBER(I25),IF(OR(I25<_xlfn.QUARTILE.INC($I$10:$I$29,1)-1.5*(_xlfn.QUARTILE.INC($I$10:I40,3)-_xlfn.QUARTILE.INC($I$10:$I$29,1)),I25>_xlfn.QUARTILE.INC($I$10:$I$29,3)+1.5*(_xlfn.QUARTILE.INC($I$10:$I$29,3)-_xlfn.QUARTILE.INC($I$10:$I$29,1))),"Não","Sim"),"") -> 
M26: =IF(ISNUMBER(I26),IF(OR(I26<_xlfn.QUARTILE.INC($I$10:$I$29,1)-1.5*(_xlfn.QUARTILE.INC($I$10:I40,3)-_xlfn.QUARTILE.INC($I$10:$I$29,1)),I26>_xlfn.QUARTILE.INC($I$10:$I$29,3)+1.5*(_xlfn.QUARTILE.INC($I$10:$I$29,3)-_xlfn.QUARTILE.INC($I$10:$I$29,1))),"Não","Sim"),"") -> 
M27: =IF(ISNUMBER(I27),IF(OR(I27<_xlfn.QUARTILE.INC($I$10:$I$29,1)-1.5*(_xlfn.QUARTILE.INC($I$10:I40,3)-_xlfn.QUARTILE.INC($I$10:$I$29,1)),I27>_xlfn.QUARTILE.INC($I$10:$I$29,3)+1.5*(_xlfn.QUARTILE.INC($I$10:$I$29,3)-_xlfn.QUARTILE.INC($I$10:$I$29,1))),"Não","Sim"),"") -> 
M28: =IF(ISNUMBER(I28),IF(OR(I28<_xlfn.QUARTILE.INC($I$10:$I$29,1)-1.5*(_xlfn.QUARTILE.INC($I$10:I40,3)-_xlfn.QUARTILE.INC($I$10:$I$29,1)),I28>_xlfn.QUARTILE.INC($I$10:$I$29,3)+1.5*(_xlfn.QUARTILE.INC($I$10:$I$29,3)-_xlfn.QUARTILE.INC($I$10:$I$29,1))),"Não","Sim"),"") -> 
M29: =IF(ISNUMBER(I29),IF(OR(I29<_xlfn.QUARTILE.INC($I$10:$I$29,1)-1.5*(_xlfn.QUARTILE.INC($I$10:I40,3)-_xlfn.QUARTILE.INC($I$10:$I$29,1)),I29>_xlfn.QUARTILE.INC($I$10:$I$29,3)+1.5*(_xlfn.QUARTILE.INC($I$10:$I$29,3)-_xlfn.QUARTILE.INC($I$10:$I$29,1))),"Não","Sim"),"") -> 
B30: Observações: | I30: CV: | J30: =IF($J$33="","Selecione metodologia para exclusão de preços",IF(COUNTIF($J$10:$J$29,"Sim")<3,"N/D (são necessários pelo menos 3 preços)",_xlfn.STDEV.S(IF($J$10:$J$29="Sim",$I$10:$I$29))/AVERAGE(IF($J$10:$J$29="Sim",$I$10:$I$29)))) -> 0.08181020151 | L30: Média (Cotações) | M30: =IF(COUNTIF(M19:M29,"Sim")<3,"N/D (são necessários pelo menos 3 preços)",AVERAGE(IF(M19:M29="Sim",$I19:$I29))) -> 7.340266667 | N30: =IF(COUNTIF(N19:N29,"Sim")<3,"N/D (são necessários pelo menos 3 preços)",AVERAGE(IF(N19:N29="Sim",$I19:$I29))) -> 7.340266667 | O30: =IF(COUNTIF(O19:O29,"Sim")<3,"N/D (são necessários pelo menos 3 preços)",AVERAGE(IF(O19:O29="Sim",$I19:$I29))) -> N/D (são necessários pelo menos 3 preços) | P30: =IF(COUNTIF(P19:P29,"Sim")<3,"N/D (são necessários pelo menos 3 preços)",AVERAGE(IF(P19:P29="Sim",$I19:$I29))) -> N/D (são necessários pelo menos 3 preços) | Q30: =IF(COUNTIF(Q19:Q29,"Sim")<3,"N/D (são necessários pelo menos 3 preços)",AVERAGE(IF(Q19:Q29="Sim",$I19:$I29))) -> N/D (são necessários pelo menos 3 preços) | R30: =IF(COUNTIF(R19:R29,"Sim")<3,"N/D (são necessários pelo menos 3 preços)",AVERAGE(IF(R19:R29="Sim",$I19:$I29))) -> N/D (são necessários pelo menos 3 preços) | S30: =IF(COUNTIF(S19:S29,"Sim")<3,"N/D (são necessários pelo menos 3 preços)",AVERAGE(IF(S19:S29="Sim",$I19:$I29))) -> N/D (são necessários pelo menos 3 preços)
I31: Média: | J31: =IF($J$33="","Selecione metodologia para exclusão de preços",AVERAGE(IF($J$10:$J$29="Sim",$I$10:$I$29))) -> 6.790744506 | L31: Mediana (Cotações) | M31: =IF(COUNTIF(M19:M29,"Sim")<3,"N/D (são necessários pelo menos 3 preços)",MEDIAN(IF(M19:M29="Sim",$I19:$I29))) -> 6.9808 | N31: =IF(COUNTIF(N19:N29,"Sim")<3,"N/D (são necessários pelo menos 3 preços)",MEDIAN(IF(N19:N29="Sim",$I19:$I29))) -> 6.9808 | O31: =IF(COUNTIF(O19:O29,"Sim")<3,"N/D (são necessários pelo menos 3 preços)",MEDIAN(IF(O19:O29="Sim",$I19:$I29))) -> N/D (são necessários pelo menos 3 preços) | P31: =IF(COUNTIF(P19:P29,"Sim")<3,"N/D (são necessários pelo menos 3 preços)",MEDIAN(IF(P19:P29="Sim",$I19:$I29))) -> N/D (são necessários pelo menos 3 preços) | Q31: =IF(COUNTIF(Q19:Q29,"Sim")<3,"N/D (são necessários pelo menos 3 preços)",MEDIAN(IF(Q19:Q29="Sim",$I19:$I29))) -> N/D (são necessários pelo menos 3 preços) | R31: =IF(COUNTIF(R19:R29,"Sim")<3,"N/D (são necessários pelo menos 3 preços)",MEDIAN(IF(R19:R29="Sim",$I19:$I29))) -> N/D (são necessários pelo menos 3 preços) | S31: =IF(COUNTIF(S19:S29,"Sim")<3,"N/D (são necessários pelo menos 3 preços)",MEDIAN(IF(S19:S29="Sim",$I19:$I29))) -> N/D (são necessários pelo menos 3 preços)
I32: Mediana: | J32: =IF($J$33="","Selecione metodologia para exclusão de preços",MEDIAN(IF($J$10:$J$29="Sim",$I$10:$I$29))) -> 6.505862128 | L32: CV (Cotações) | M32: =IF(COUNTIF(M19:M29,"Sim")<3,"N/D (são necessários pelo menos 3 preços)",_xlfn.STDEV.S(IF(M19:M29="Sim",$I19:$I29))/AVERAGE(IF(M19:M29="Sim",$I19:$I29))) -> 0.1583674826 | N32: =IF(COUNTIF(N19:N29,"Sim")<3,"N/D (são necessários pelo menos 3 preços)",_xlfn.STDEV.S(IF(N19:N29="Sim",$I19:$I29))/AVERAGE(IF(N19:N29="Sim",$I19:$I29))) -> 0.1583674826 | O32: =IF(COUNTIF(O19:O29,"Sim")<3,"N/D (são necessários pelo menos 3 preços)",_xlfn.STDEV.S(IF(O19:O29="Sim",$I19:$I29))/AVERAGE(IF(O19:O29="Sim",$I19:$I29))) -> N/D (são necessários pelo menos 3 preços) | P32: =IF(COUNTIF(P19:P29,"Sim")<3,"N/D (são necessários pelo menos 3 preços)",_xlfn.STDEV.S(IF(P19:P29="Sim",$I19:$I29))/AVERAGE(IF(P19:P29="Sim",$I19:$I29))) -> N/D (são necessários pelo menos 3 preços) | Q32: =IF(COUNTIF(Q19:Q29,"Sim")<3,"N/D (são necessários pelo menos 3 preços)",_xlfn.STDEV.S(IF(Q19:Q29="Sim",$I19:$I29))/AVERAGE(IF(Q19:Q29="Sim",$I19:$I29))) -> N/D (são necessários pelo menos 3 preços) | R32: =IF(COUNTIF(R19:R29,"Sim")<3,"N/D (são necessários pelo menos 3 preços)",_xlfn.STDEV.S(IF(R19:R29="Sim",$I19:$I29))/AVERAGE(IF(R19:R29="Sim",$I19:$I29))) -> N/D (são necessários pelo menos 3 preços) | S32: =IF(COUNTIF(S19:S29,"Sim")<3,"N/D (são necessários pelo menos 3 preços)",_xlfn.STDEV.S(IF(S19:S29="Sim",$I19:$I29))/AVERAGE(IF(S19:S29="Sim",$I19:$I29))) -> N/D (são necessários pelo menos 3 preços)
B33: Metodologia de exclusão de preços adotada: | J33: =IF(M38="",INDEX(M18:S18,MATCH(MIN(M35:S35),M35:S35,0)),M38) -> Grupos - Sem o maior | L33: Média | M33: =IF(SUM(COUNTIF($M$10:$M$16,"Sim")) + SUM(COUNTIF(M19:M29,"Sim")) < 3, "N/D (são necessários pelo menos 3 preços)", IFERROR(AVERAGE(_xlfn._xlws.FILTER($I$10:$I$16,$M$10:$M$16="Sim"), _xlfn._xlws.FILTER($I$19:$I$29,M19:M29="Sim")),M30)) -> 7.098953755 | N33: =IF(SUM(COUNTIF($M$10:$M$16,"Sim")) + SUM(COUNTIF(N19:N29,"Sim")) < 3, "N/D (são necessários pelo menos 3 preços)", IFERROR(AVERAGE(_xlfn._xlws.FILTER($I$10:$I$16,$M$10:$M$16="Sim"), _xlfn._xlws.FILTER($I$19:$I$29,N19:N29="Sim")),N30)) -> 7.098953755 | O33: =IF(SUM(COUNTIF($M$10:$M$16,"Sim")) + SUM(COUNTIF(O19:O29,"Sim")) < 3, "N/D (são necessários pelo menos 3 preços)", IFERROR(AVERAGE(_xlfn._xlws.FILTER($I$10:$I$16,$M$10:$M$16="Sim"), _xlfn._xlws.FILTER($I$19:$I$29,O19:O29="Sim")),O30)) -> 6.790744506 | P33: =IF(SUM(COUNTIF($M$10:$M$16,"Sim")) + SUM(COUNTIF(P19:P29,"Sim")) < 3, "N/D (são necessários pelo menos 3 preços)", IFERROR(AVERAGE(_xlfn._xlws.FILTER($I$10:$I$16,$M$10:$M$16="Sim"), _xlfn._xlws.FILTER($I$19:$I$29,P19:P29="Sim")),P30)) -> 7.238744506 | Q33: =IF(SUM(COUNTIF($M$10:$M$16,"Sim")) + SUM(COUNTIF(Q19:Q29,"Sim")) < 3, "N/D (são necessários pelo menos 3 preços)", IFERROR(AVERAGE(_xlfn._xlws.FILTER($I$10:$I$16,$M$10:$M$16="Sim"), _xlfn._xlws.FILTER($I$19:$I$29,Q19:Q29="Sim")),Q30)) -> 6.888430633 | R33: =IF(SUM(COUNTIF($M$10:$M$16,"Sim")) + SUM(COUNTIF(R19:R29,"Sim")) < 3, "N/D (são necessários pelo menos 3 preços)", IFERROR(AVERAGE(_xlfn._xlws.FILTER($I$10:$I$16,$M$10:$M$16="Sim"), _xlfn._xlws.FILTER($I$19:$I$29,R19:R29="Sim")),R30)) -> 6.743230633 | S33: =IF(SUM(COUNTIF($S$10:$S$16,"Sim")) + SUM(COUNTIF(S19:S29,"Sim")) < 3, "N/D (são necessários pelo menos 3 preços)", IFERROR(AVERAGE(_xlfn._xlws.FILTER($I$10:$I$16,$S$10:$S$16="Sim"), _xlfn._xlws.FILTER($I$19:$I$29,S19:S29="Sim")),S30)) -> N/D (são necessários pelo menos 3 preços)
L34: Mediana | M34: =IF(SUM(COUNTIF($M$10:$M$16,"Sim")) + SUM(COUNTIF(M19:M29,"Sim")) < 3, "N/D (são necessários pelo menos 3 preços)", IFERROR(MEDIAN(_xlfn._xlws.FILTER($I$10:$I$16,$M$10:$M$16="Sim"), _xlfn._xlws.FILTER($I$19:$I$29,M19:M29="Sim")),M30)) -> 6.743331064 | N34: =IF(SUM(COUNTIF($M$10:$M$16,"Sim")) + SUM(COUNTIF(N19:N29,"Sim")) < 3, "N/D (são necessários pelo menos 3 preços)", IFERROR(MEDIAN(_xlfn._xlws.FILTER($I$10:$I$16,$M$10:$M$16="Sim"), _xlfn._xlws.FILTER($I$19:$I$29,N19:N29="Sim")),N30)) -> 6.743331064 | O34: =IF(SUM(COUNTIF($M$10:$M$16,"Sim")) + SUM(COUNTIF(O19:O29,"Sim")) < 3, "N/D (são necessários pelo menos 3 preços)", IFERROR(MEDIAN(_xlfn._xlws.FILTER($I$10:$I$16,$M$10:$M$16="Sim"), _xlfn._xlws.FILTER($I$19:$I$29,O19:O29="Sim")),O30)) -> 6.505862128 | P34: =IF(SUM(COUNTIF($M$10:$M$16,"Sim")) + SUM(COUNTIF(P19:P29,"Sim")) < 3, "N/D (são necessários pelo menos 3 preços)", IFERROR(MEDIAN(_xlfn._xlws.FILTER($I$10:$I$16,$M$10:$M$16="Sim"), _xlfn._xlws.FILTER($I$19:$I$29,P19:P29="Sim")),P30)) -> 6.9808 | Q34: =IF(SUM(COUNTIF($M$10:$M$16,"Sim")) + SUM(COUNTIF(Q19:Q29,"Sim")) < 3, "N/D (são necessários pelo menos 3 preços)", IFERROR(MEDIAN(_xlfn._xlws.FILTER($I$10:$I$16,$M$10:$M$16="Sim"), _xlfn._xlws.FILTER($I$19:$I$29,Q19:Q29="Sim")),Q30)) -> 6.743331064 | R34: =IF(SUM(COUNTIF($M$10:$M$16,"Sim")) + SUM(COUNTIF(R19:R29,"Sim")) < 3, "N/D (são necessários pelo menos 3 preços)", IFERROR(MEDIAN(_xlfn._xlws.FILTER($I$10:$I$16,$M$10:$M$16="Sim"), _xlfn._xlws.FILTER($I$19:$I$29,R19:R29="Sim")),R30)) -> 6.452931064 | S34: =IF(SUM(COUNTIF($S$10:$S$16,"Sim")) + SUM(COUNTIF(S19:S29,"Sim")) < 3, "N/D (são necessários pelo menos 3 preços)", IFERROR(MEDIAN(_xlfn._xlws.FILTER($I$10:$I$16,$S$10:$S$16="Sim"), _xlfn._xlws.FILTER($I$19:$I$29,S19:S29="Sim")),S30)) -> N/D (são necessários pelo menos 3 preços)
L35: CV | M35: =IF(SUM(COUNTIF($M$10:$M$16,"Sim")) + SUM(COUNTIF(M19:M29,"Sim")) < 3, "N/D (são necessários pelo menos 3 preços)", IFERROR(ROUND(_xlfn.STDEV.S(_xlfn._xlws.FILTER($I$10:$I$16,$M$10:$M$16="Sim"), _xlfn._xlws.FILTER($I$19:$I$29,M19:M29="Sim")) / AVERAGE(_xlfn._xlws.FILTER($I$10:$I$16,$M$10:$M$16="Sim"), _xlfn._xlws.FILTER($I$19:$I$29,M19:M29="Sim")),4),M32) ) -> 0.1273 | N35: =IF(SUM(COUNTIF($M$10:$M$16,"Sim")) + SUM(COUNTIF(N19:N29,"Sim")) < 3, "N/D (são necessários pelo menos 3 preços)", IFERROR(ROUND(_xlfn.STDEV.S(_xlfn._xlws.FILTER($I$10:$I$16,$M$10:$M$16="Sim"), _xlfn._xlws.FILTER($I$19:$I$29,N19:N29="Sim")) / AVERAGE(_xlfn._xlws.FILTER($I$10:$I$16,$M$10:$M$16="Sim"), _xlfn._xlws.FILTER($I$19:$I$29,N19:N29="Sim")),4),N32) ) -> 0.1273 | O35: =IF(SUM(COUNTIF($M$10:$M$16,"Sim")) + SUM(COUNTIF(O19:O29,"Sim")) < 3, "N/D (são necessários pelo menos 3 preços)", IFERROR(ROUND(_xlfn.STDEV.S(_xlfn._xlws.FILTER($I$10:$I$16,$M$10:$M$16="Sim"), _xlfn._xlws.FILTER($I$19:$I$29,O19:O29="Sim")) / AVERAGE(_xlfn._xlws.FILTER($I$10:$I$16,$M$10:$M$16="Sim"), _xlfn._xlws.FILTER($I$19:$I$29,O19:O29="Sim")),4),O32) ) -> 0.0818 | P35: =IF(SUM(COUNTIF($M$10:$M$16,"Sim")) + SUM(COUNTIF(P19:P29,"Sim")) < 3, "N/D (são necessários pelo menos 3 preços)", IFERROR(ROUND(_xlfn.STDEV.S(_xlfn._xlws.FILTER($I$10:$I$16,$M$10:$M$16="Sim"), _xlfn._xlws.FILTER($I$19:$I$29,P19:P29="Sim")) / AVERAGE(_xlfn._xlws.FILTER($I$10:$I$16,$M$10:$M$16="Sim"), _xlfn._xlws.FILTER($I$19:$I$29,P19:P29="Sim")),4),P32) ) -> 0.1292 | Q35: =IF(SUM(COUNTIF($M$10:$M$16,"Sim")) + SUM(COUNTIF(Q19:Q29,"Sim")) < 3, "N/D (são necessários pelo menos 3 preços)", IFERROR(ROUND(_xlfn.STDEV.S(_xlfn._xlws.FILTER($I$10:$I$16,$M$10:$M$16="Sim"), _xlfn._xlws.FILTER($I$19:$I$29,Q19:Q29="Sim")) / AVERAGE(_xlfn._xlws.FILTER($I$10:$I$16,$M$10:$M$16="Sim"), _xlfn._xlws.FILTER($I$19:$I$29,Q19:Q29="Sim")),4),Q32) ) -> 0.0856 | R35: =IF(SUM(COUNTIF($M$10:$M$16,"Sim")) + SUM(COUNTIF(R19:R29,"Sim")) < 3, "N/D (são necessários pelo menos 3 preços)", IFERROR(ROUND(_xlfn.STDEV.S(_xlfn._xlws.FILTER($I$10:$I$16,$M$10:$M$16="Sim"), _xlfn._xlws.FILTER($I$19:$I$29,R19:R29="Sim")) / AVERAGE(_xlfn._xlws.FILTER($I$10:$I$16,$M$10:$M$16="Sim"), _xlfn._xlws.FILTER($I$19:$I$29,R19:R29="Sim")),4),R32) ) -> 0.0934 | S35: =IF(SUM(COUNTIF($S$10:$S$16,"Sim")) + SUM(COUNTIF(S19:S29,"Sim")) < 3, "N/D (são necessários pelo menos 3 preços)", IFERROR(_xlfn.STDEV.S(_xlfn._xlws.FILTER($I$10:$I$16,$S$10:$S$16="Sim"), _xlfn._xlws.FILTER($I$19:$I$29,S19:S29="Sim")) / AVERAGE(_xlfn._xlws.FILTER($I$10:$I$16,$S$10:$S$16="Sim"), _xlfn._xlws.FILTER($I$19:$I$29,S19:S29="Sim")),S32) ) -> N/D (são necessários pelo menos 3 preços)
B36: PREÇO UNITÁRIO ESTIMADO ADOTADO: | J36: =IF($J$33="","Selecione metodologia para exclusão de preços",MIN(J31:J32)) -> 6.505862128 | L36: Metodologia sugerida: | M36: =IF($M$35=MIN($M$35,$N$35:$R$35),M8,"Grupos - "&INDEX({"Todos";"Sem o maior";"Sem o menor";"Sem o maior e Sem o menor";"Sem os dois maiores"},MATCH(MIN($N$35:$R$35),$N$35:$R$35,0))) -> Grupos - Sem o maior
L37: Preço estimado sugerido: | M37: =IF($M$36=M8,SMALL($M$33:$M$34,1),MIN(INDEX($N$34:$R$34, MATCH(MIN($N$35:$R$35), $N$35:$R$35, 0)),INDEX($N$33:$R$33, MATCH(MIN($N$35:$R$35), $N$35:$R$35, 0)))) -> 6.505862128
L38: Metodologia a adotar: | M38: =IF(INDEX(L18:S18,N38)=0,"",INDEX(L18:S18,N38)) ->  | N38: 1

Sheet Peixe 45% 1,2 mm
B2: Processo | C2: ='Peixe 50% PB Farelo'!C2 -> 59511.000102/2026-55
B3: Responsável | C3: ='Peixe 50% PB Farelo'!C3 -> JHONES DE LIMA VIEIRA
B4: Área de Origem | C4: ='Peixe 50% PB Farelo'!C4 -> 14ª GTR
B5: Data da pesquisa | C5: ='Peixe 50% PB Farelo'!C5 -> Janeiro/2026 - Fevereiro/2026
B7: ITEM: | C7: Ração extrusada para peixe onívoro 45% PB – Proteína Bruta Mín.: 45%, granulometria 1,2 mm. Data de validade não inferior a 6 meses. | G7: UNIDADE DE MEDIDA: | H7: ='Peixe 50% PB Farelo'!H7 -> kg | I7: QUANTIDADE: | J7: =600*25 -> 15000 | M7: Tabela auxiliar de metodologias para exclusão de preços | U7: Automática (menor CV)
B8: LICITAÇÕES ANTERIORES | M8: Licitações Anteriores - Outliers | U8: =M18 -> Outliers
B9: Órgão | C9: Edital/Ano - Nº do Lote / Item | D9: Quantidade | E9: Valor Unitário | F9: Data | G9: índice de atualização (nome) | H9: Variação acumulada do índice (%) | I9: Preço unitário atualizado | J9: Utilizar? (Sim/Não) | M9: Utilizar? | S9: Por critério do(a) analista | U9: =N18 -> Grupos - Todos
B10: 14ª SR - Fortaleza/CE | C10: Edital 90007/2024 - Item 2 | D10: 824 | E10: 8.4 | F10: 2025-01-02 | G10: IPA-EP-DI Suprimentos agropecuários | H10: =(I10/E10)-1 -> 0.01654095744 | I10: =IF(ISBLANK(E10),"",E10*(1+(INDEX('índice de atualização'!B:B,MATCH(G10,'índice de atualização'!B:B,0)+COUNTA('índice de atualização'!B:B)-1)-INDEX('índice de atualização'!B:B,MATCH(TEXT(F10,"MM/AAAA"),'índice de atualização'!A:A,0)))/INDEX('índice de atualização'!B:B,MATCH(TEXT(F10,"MM/AAAA"),'índice de atualização'!A:A,0)))) -> 8.538944043 | J10: =IF(ISNUMBER(I10),IF($J$33<>$S$9,M10,S10),"") -> Sim | M10: =IF(ISNUMBER(I10),IF(OR(I10<_xlfn.QUARTILE.INC($I$10:$I$29,1)-1.5*(_xlfn.QUARTILE.INC($I$10:I29,3)-_xlfn.QUARTILE.INC($I$10:$I$29,1)),I10>_xlfn.QUARTILE.INC($I$10:$I$29,3)+1.5*(_xlfn.QUARTILE.INC($I$10:$I$29,3)-_xlfn.QUARTILE.INC($I$10:$I$29,1))),"Não","Sim"),"") -> Sim | U10: =O18 -> Grupos - Sem o maior
B11: 14ª SR - Fortaleza/CE | C11: Edital 90007/2024 - Item 10 | D11: 25 | E11: 6.38 | F11: 2025-02-18 | G11: IPA-EP-DI Suprimentos agropecuários | H11: =(I11/E11)-1 -> 0.0004507242601 | I11: =IF(ISBLANK(E11),"",E11*(1+(INDEX('índice de atualização'!B:B,MATCH(G11,'índice de atualização'!B:B,0)+COUNTA('índice de atualização'!B:B)-1)-INDEX('índice de atualização'!B:B,MATCH(TEXT(F11,"MM/AAAA"),'índice de atualização'!A:A,0)))/INDEX('índice de atualização'!B:B,MATCH(TEXT(F11,"MM/AAAA"),'índice de atualização'!A:A,0)))) -> 6.382875621 | J11: =IF(ISNUMBER(I11),IF($J$33<>$S$8,M11,S11),"") -> Sim | M11: =IF(ISNUMBER(I11),IF(OR(I11<_xlfn.QUARTILE.INC($I$10:$I$29,1)-1.5*(_xlfn.QUARTILE.INC($I$10:I30,3)-_xlfn.QUARTILE.INC($I$10:$I$29,1)),I11>_xlfn.QUARTILE.INC($I$10:$I$29,3)+1.5*(_xlfn.QUARTILE.INC($I$10:$I$29,3)-_xlfn.QUARTILE.INC($I$10:$I$29,1))),"Não","Sim"),"") -> Sim | U11: =P18 -> Grupos - Sem o menor
B12: 4ª SR - Aracaju/SE | C12: Edital 90002/2025 - Item 2 | D12: 4000 | E12: 7.9 | F12: 2025-07-11 | G12: IPA-EP-DI Suprimentos agropecuários | H12: =(I12/E12)-1 -> -0.02236834839 | I12: =IF(ISBLANK(E12),"",E12*(1+(INDEX('índice de atualização'!B:B,MATCH(G12,'índice de atualização'!B:B,0)+COUNTA('índice de atualização'!B:B)-1)-INDEX('índice de atualização'!B:B,MATCH(TEXT(F12,"MM/AAAA"),'índice de atualização'!A:A,0)))/INDEX('índice de atualização'!B:B,MATCH(TEXT(F12,"MM/AAAA"),'índice de atualização'!A:A,0)))) -> 7.723290048 | J12: Sim | M12: =IF(ISNUMBER(I12),IF(OR(I12<_xlfn.QUARTILE.INC($I$10:$I$29,1)-1.5*(_xlfn.QUARTILE.INC($I$10:I31,3)-_xlfn.QUARTILE.INC($I$10:$I$29,1)),I12>_xlfn.QUARTILE.INC($I$10:$I$29,3)+1.5*(_xlfn.QUARTILE.INC($I$10:$I$29,3)-_xlfn.QUARTILE.INC($I$10:$I$29,1))),"Não","Sim"),"") -> Sim | N12: =$M$12 -> Sim | O12: =$M$12 -> Sim | P12: =$M$12 -> Sim | Q12: =$M$12 -> Sim | R12: =$M$12 -> Sim | U12: =Q18 -> Grupos - Sem o maior e sem o menor
I13: =IF(ISBLANK(E13),"",E13*(1+(INDEX('índice de atualização'!B:B,MATCH(G13,'índice de atualização'!B:B,0)+COUNTA('índice de atualização'!B:B)-1)-INDEX('índice de atualização'!B:B,MATCH(TEXT(F13,"MM/AAAA"),'índice de atualização'!A:A,0)))/INDEX('índice de atualização'!B:B,MATCH(TEXT(F13,"MM/AAAA"),'índice de atualização'!A:A,0)))) ->  | M13: =IF(ISNUMBER(I13),IF(OR(I13<_xlfn.QUARTILE.INC($I$10:$I$29,1)-1.5*(_xlfn.QUARTILE.INC($I$10:I32,3)-_xlfn.QUARTILE.INC($I$10:$I$29,1)),I13>_xlfn.QUARTILE.INC($I$10:$I$29,3)+1.5*(_xlfn.QUARTILE.INC($I$10:$I$29,3)-_xlfn.QUARTILE.INC($I$10:$I$29,1))),"Não","Sim"),"") ->  | N13: =$M$13 ->  | O13: =$M$13 ->  | P13: =$M$13 ->  | Q13: =$M$13 ->  | R13: =$M$13 ->  | U13: =R18 -> Grupos - Sem os dois maiores
I14: =IF(ISBLANK(E14),"",E14*(1+(INDEX('índice de atualização'!B:B,MATCH(G14,'índice de atualização'!B:B,0)+COUNTA('índice de atualização'!B:B)-1)-INDEX('índice de atualização'!B:B,MATCH(TEXT(F14,"MM/AAAA"),'índice de atualização'!A:A,0)))/INDEX('índice de atualização'!B:B,MATCH(TEXT(F14,"MM/AAAA"),'índice de atualização'!A:A,0)))) ->  | M14: =IF(ISNUMBER(I14),IF(OR(I14<_xlfn.QUARTILE.INC($I$10:$I$29,1)-1.5*(_xlfn.QUARTILE.INC($I$10:I33,3)-_xlfn.QUARTILE.INC($I$10:$I$29,1)),I14>_xlfn.QUARTILE.INC($I$10:$I$29,3)+1.5*(_xlfn.QUARTILE.INC($I$10:$I$29,3)-_xlfn.QUARTILE.INC($I$10:$I$29,1))),"Não","Sim"),"") ->  | N14: =$M$14 ->  | O14: =$M$14 ->  | P14: =$M$14 ->  | Q14: =$M$14 ->  | R14: =$M$14 ->  | U14: =S18 -> Por critério do(a) analista
I15: =IF(ISBLANK(E15),"",E15*(1+(INDEX('índice de atualização'!B:B,MATCH(G15,'índice de atualização'!B:B,0)+COUNTA('índice de atualização'!B:B)-1)-INDEX('índice de atualização'!B:B,MATCH(TEXT(F15,"MM/AAAA"),'índice de atualização'!A:A,0)))/INDEX('índice de atualização'!B:B,MATCH(TEXT(F15,"MM/AAAA"),'índice de atualização'!A:A,0)))) ->  | M15: =IF(ISNUMBER(I15),IF(OR(I15<_xlfn.QUARTILE.INC($I$10:$I$29,1)-1.5*(_xlfn.QUARTILE.INC($I$10:I36,3)-_xlfn.QUARTILE.INC($I$10:$I$29,1)),I15>_xlfn.QUARTILE.INC($I$10:$I$29,3)+1.5*(_xlfn.QUARTILE.INC($I$10:$I$29,3)-_xlfn.QUARTILE.INC($I$10:$I$29,1))),"Não","Sim"),"") ->  | N15: =$M$15 ->  | O15: =$M$15 ->  | P15: =$M$15 ->  | Q15: =$M$15 ->  | R15: =$M$15 -> 
M16: =IF(ISNUMBER(I16),IF(OR(I16<_xlfn.QUARTILE.INC($I$10:$I$29,1)-1.5*(_xlfn.QUARTILE.INC($I$10:I39,3)-_xlfn.QUARTILE.INC($I$10:$I$29,1)),I16>_xlfn.QUARTILE.INC($I$10:$I$29,3)+1.5*(_xlfn.QUARTILE.INC($I$10:$I$29,3)-_xlfn.QUARTILE.INC($I$10:$I$29,1))),"Não","Sim"),"") ->  | N16: =$M$16 ->  | O16: =$M$16 ->  | P16: =$M$16 ->  | Q16: =$M$16 ->  | R16: =$M$16 -> 
B17: COTAÇÕES DE MERCADO | M17: Cotações
B18: Empresa | H18: Data | I18: Preço Unitário | J18: Utilizar? (Sim/Não) | M18: Outliers | N18: Grupos - Todos | O18: Grupos - Sem o maior | P18: Grupos - Sem o menor | Q18: Grupos - Sem o maior e sem o menor | R18: Grupos - Sem os dois maiores | S18: Por critério do(a) analista
B19: Samaria Rações LTDA | H19: 2026-02-09 | I19: =210/25 -> 8.4 | J19: =IF(ISNUMBER(I19),IF($J$33=$M$18,M19,IF($J$33=$N$18,N19,IF($J$33=$O$18,O19,IF($J$33=$P$18,P19,IF($J$33=$Q$18,Q19,IF($J$33=$R$18,R19,IF($J$33=$S$18,S19,""))))))),"") -> Sim | M19: =IF(ISNUMBER(I19),IF(OR(I19<_xlfn.QUARTILE.INC($I$10:$I$29,1)-1.5*(_xlfn.QUARTILE.INC($I$10:I40,3)-_xlfn.QUARTILE.INC($I$10:$I$29,1)),I19>_xlfn.QUARTILE.INC($I$10:$I$29,3)+1.5*(_xlfn.QUARTILE.INC($I$10:$I$29,3)-_xlfn.QUARTILE.INC($I$10:$I$29,1))),"Não","Sim"),"") -> Sim | N19: =IF(ISNUMBER(I19),"Sim","") -> Sim | O19: =IF(ISNUMBER(I19),IF(_xlfn.RANK.EQ(I19,$I$19:$I$29)=1,"Não","Sim"),"") -> Sim | P19: =IF(ISNUMBER(I19),IF(_xlfn.RANK.EQ(I19,$I$19:$I$29)=COUNT($I$19:$I$29),"Não","Sim"),"") -> Sim | Q19: =IF(O19="","",IF(AND(O19="Sim",P19="Sim"),"Sim","Não")) -> Sim | R19: =IF(ISNUMBER(I19),IF(_xlfn.RANK.EQ(I19,$I$19:$I$29)<=2,"Não","Sim"),"") -> Não
B20: Integral Mix Agroindustria | H20: 2026-02-07 | I20: =182.78/25 -> 7.3112 | J20: Sim | M20: =IF(ISNUMBER(I20),IF(OR(I20<_xlfn.QUARTILE.INC($I$10:$I$29,1)-1.5*(_xlfn.QUARTILE.INC($I$10:I40,3)-_xlfn.QUARTILE.INC($I$10:$I$29,1)),I20>_xlfn.QUARTILE.INC($I$10:$I$29,3)+1.5*(_xlfn.QUARTILE.INC($I$10:$I$29,3)-_xlfn.QUARTILE.INC($I$10:$I$29,1))),"Não","Sim"),"") -> Sim | N20: Sim | O20: Sim | P20: Não | Q20: =IF(O20="","",IF(AND(O20="Sim",P20="Sim"),"Sim","Não")) -> Não | R20: Sim
B21: Comercial do Carmo ME | H21: 2026-02-12 | I21: =283/25 -> 11.32 | J21: Não | M21: =IF(ISNUMBER(I21),IF(OR(I21<_xlfn.QUARTILE.INC($I$10:$I$29,1)-1.5*(_xlfn.QUARTILE.INC($I$10:I40,3)-_xlfn.QUARTILE.INC($I$10:$I$29,1)),I21>_xlfn.QUARTILE.INC($I$10:$I$29,3)+1.5*(_xlfn.QUARTILE.INC($I$10:$I$29,3)-_xlfn.QUARTILE.INC($I$10:$I$29,1))),"Não","Sim"),"") -> Não | N21: Sim | O21: Não | P21: Sim | Q21: Não | R21: Não
M22: =IF(ISNUMBER(I22),IF(OR(I22<_xlfn.QUARTILE.INC($I$10:$I$29,1)-1.5*(_xlfn.QUARTILE.INC($I$10:I40,3)-_xlfn.QUARTILE.INC($I$10:$I$29,1)),I22>_xlfn.QUARTILE.INC($I$10:$I$29,3)+1.5*(_xlfn.QUARTILE.INC($I$10:$I$29,3)-_xlfn.QUARTILE.INC($I$10:$I$29,1))),"Não","Sim"),"") -> 
M23: =IF(ISNUMBER(I23),IF(OR(I23<_xlfn.QUARTILE.INC($I$10:$I$29,1)-1.5*(_xlfn.QUARTILE.INC($I$10:I41,3)-_xlfn.QUARTILE.INC($I$10:$I$29,1)),I23>_xlfn.QUARTILE.INC($I$10:$I$29,3)+1.5*(_xlfn.QUARTILE.INC($I$10:$I$29,3)-_xlfn.QUARTILE.INC($I$10:$I$29,1))),"Não","Sim"),"") -> 
M24: =IF(ISNUMBER(I24),IF(OR(I24<_xlfn.QUARTILE.INC($I$10:$I$29,1)-1.5*(_xlfn.QUARTILE.INC($I$10:I42,3)-_xlfn.QUARTILE.INC($I$10:$I$29,1)),I24>_xlfn.QUARTILE.INC($I$10:$I$29,3)+1.5*(_xlfn.QUARTILE.INC($I$10:$I$29,3)-_xlfn.QUARTILE.INC($I$10:$I$29,1))),"Não","Sim"),"") -> 
M25: =IF(ISNUMBER(I25),IF(OR(I25<_xlfn.QUARTILE.INC($I$10:$I$29,1)-1.5*(_xlfn.QUARTILE.INC($I$10:I40,3)-_xlfn.QUARTILE.INC($I$10:$I$29,1)),I25>_xlfn.QUARTILE.INC($I$10:$I$29,3)+1.5*(_xlfn.QUARTILE.INC($I$10:$I$29,3)-_xlfn.QUARTILE.INC($I$10:$I$29,1))),"Não","Sim"),"") -> 
M26: =IF(ISNUMBER(I26),IF(OR(I26<_xlfn.QUARTILE.INC($I$10:$I$29,1)-1.5*(_xlfn.QUARTILE.INC($I$10:I40,3)-_xlfn.QUARTILE.INC($I$10:$I$29,1)),I26>_xlfn.QUARTILE.INC($I$10:$I$29,3)+1.5*(_xlfn.QUARTILE.INC($I$10:$I$29,3)-_xlfn.QUARTILE.INC($I$10:$I$29,1))),"Não","Sim"),"") -> 
M27: =IF(ISNUMBER(I27),IF(OR(I27<_xlfn.QUARTILE.INC($I$10:$I$29,1)-1.5*(_xlfn.QUARTILE.INC($I$10:I40,3)-_xlfn.QUARTILE.INC($I$10:$I$29,1)),I27>_xlfn.QUARTILE.INC($I$10:$I$29,3)+1.5*(_xlfn.QUARTILE.INC($I$10:$I$29,3)-_xlfn.QUARTILE.INC($I$10:$I$29,1))),"Não","Sim"),"") -> 
M28: =IF(ISNUMBER(I28),IF(OR(I28<_xlfn.QUARTILE.INC($I$10:$I$29,1)-1.5*(_xlfn.QUARTILE.INC($I$10:I40,3)-_xlfn.QUARTILE.INC($I$10:$I$29,1)),I28>_xlfn.QUARTILE.INC($I$10:$I$29,3)+1.5*(_xlfn.QUARTILE.INC($I$10:$I$29,3)-_xlfn.QUARTILE.INC($I$10:$I$29,1))),"Não","Sim"),"") -> 
M29: =IF(ISNUMBER(I29),IF(OR(I29<_xlfn.QUARTILE.INC($I$10:$I$29,1)-1.5*(_xlfn.QUARTILE.INC($I$10:I40,3)-_xlfn.QUARTILE.INC($I$10:$I$29,1)),I29>_xlfn.QUARTILE.INC($I$10:$I$29,3)+1.5*(_xlfn.QUARTILE.INC($I$10:$I$29,3)-_xlfn.QUARTILE.INC($I$10:$I$29,1))),"Não","Sim"),"") -> 
B30: Observações: | I30: CV: | J30: =IF($J$33="","Selecione metodologia para exclusão de preços",IF(COUNTIF($J$10:$J$29,"Sim")<3,"N/D (são necessários pelo menos 3 preços)",_xlfn.STDEV.S(IF($J$10:$J$29="Sim",$I$10:$I$29))/AVERAGE(IF($J$10:$J$29="Sim",$I$10:$I$29)))) -> 0.1143173227 | L30: Média (Cotações) | M30: =IF(COUNTIF(M19:M29,"Sim")<3,"N/D (são necessários pelo menos 3 preços)",AVERAGE(IF(M19:M29="Sim",$I19:$I29))) -> N/D (são necessários pelo menos 3 preços) | N30: =IF(COUNTIF(N19:N29,"Sim")<3,"N/D (são necessários pelo menos 3 preços)",AVERAGE(IF(N19:N29="Sim",$I19:$I29))) -> 9.0104 | O30: =IF(COUNTIF(O19:O29,"Sim")<3,"N/D (são necessários pelo menos 3 preços)",AVERAGE(IF(O19:O29="Sim",$I19:$I29))) -> N/D (são necessários pelo menos 3 preços) | P30: =IF(COUNTIF(P19:P29,"Sim")<3,"N/D (são necessários pelo menos 3 preços)",AVERAGE(IF(P19:P29="Sim",$I19:$I29))) -> N/D (são necessários pelo menos 3 preços) | Q30: =IF(COUNTIF(Q19:Q29,"Sim")<3,"N/D (são necessários pelo menos 3 preços)",AVERAGE(IF(Q19:Q29="Sim",$I19:$I29))) -> N/D (são necessários pelo menos 3 preços) | R30: =IF(COUNTIF(R19:R29,"Sim")<3,"N/D (são necessários pelo menos 3 preços)",AVERAGE(IF(R19:R29="Sim",$I19:$I29))) -> N/D (são necessários pelo menos 3 preços) | S30: =IF(COUNTIF(S19:S29,"Sim")<3,"N/D (são necessários pelo menos 3 preços)",AVERAGE(IF(S19:S29="Sim",$I19:$I29))) -> N/D (são necessários pelo menos 3 preços)
I31: Média: | J31: =IF($J$33="","Selecione metodologia para exclusão de preços",AVERAGE(IF($J$10:$J$29="Sim",$I$10:$I$29))) -> 7.671261942 | L31: Mediana (Cotações) | M31: =IF(COUNTIF(M19:M29,"Sim")<3,"N/D (são necessários pelo menos 3 preços)",MEDIAN(IF(M19:M29="Sim",$I19:$I29))) -> N/D (são necessários pelo menos 3 preços) | N31: =IF(COUNTIF(N19:N29,"Sim")<3,"N/D (são necessários pelo menos 3 preços)",MEDIAN(IF(N19:N29="Sim",$I19:$I29))) -> 8.4 | O31: =IF(COUNTIF(O19:O29,"Sim")<3,"N/D (são necessários pelo menos 3 preços)",MEDIAN(IF(O19:O29="Sim",$I19:$I29))) -> N/D (são necessários pelo menos 3 preços) | P31: =IF(COUNTIF(P19:P29,"Sim")<3,"N/D (são necessários pelo menos 3 preços)",MEDIAN(IF(P19:P29="Sim",$I19:$I29))) -> N/D (são necessários pelo menos 3 preços) | Q31: =IF(COUNTIF(Q19:Q29,"Sim")<3,"N/D (são necessários pelo menos 3 preços)",MEDIAN(IF(Q19:Q29="Sim",$I19:$I29))) -> N/D (são necessários pelo menos 3 preços) | R31: =IF(COUNTIF(R19:R29,"Sim")<3,"N/D (são necessários pelo menos 3 preços)",MEDIAN(IF(R19:R29="Sim",$I19:$I29))) -> N/D (são necessários pelo menos 3 preços) | S31: =IF(COUNTIF(S19:S29,"Sim")<3,"N/D (são necessários pelo menos 3 preços)",MEDIAN(IF(S19:S29="Sim",$I19:$I29))) -> N/D (são necessários pelo menos 3 preços)
I32: Mediana: | J32: =IF($J$33="","Selecione metodologia para exclusão de preços",MEDIAN(IF($J$10:$J$29="Sim",$I$10:$I$29))) -> 7.723290048 | L32: CV (Cotações) | M32: =IF(COUNTIF(M19:M29,"Sim")<3,"N/D (são necessários pelo menos 3 preços)",_xlfn.STDEV.S(IF(M19:M29="Sim",$I19:$I29))/AVERAGE(IF(M19:M29="Sim",$I19:$I29))) -> N/D (são necessários pelo menos 3 preços) | N32: =IF(COUNTIF(N19:N29,"Sim")<3,"N/D (são necessários pelo menos 3 preços)",_xlfn.STDEV.S(IF(N19:N29="Sim",$I19:$I29))/AVERAGE(IF(N19:N29="Sim",$I19:$I29))) -> 0.2300602895 | O32: =IF(COUNTIF(O19:O29,"Sim")<3,"N/D (são necessários pelo menos 3 preços)",_xlfn.STDEV.S(IF(O19:O29="Sim",$I19:$I29))/AVERAGE(IF(O19:O29="Sim",$I19:$I29))) -> N/D (são necessários pelo menos 3 preços) | P32: =IF(COUNTIF(P19:P29,"Sim")<3,"N/D (são necessários pelo menos 3 preços)",_xlfn.STDEV.S(IF(P19:P29="Sim",$I19:$I29))/AVERAGE(IF(P19:P29="Sim",$I19:$I29))) -> N/D (são necessários pelo menos 3 preços) | Q32: =IF(COUNTIF(Q19:Q29,"Sim")<3,"N/D (são necessários pelo menos 3 preços)",_xlfn.STDEV.S(IF(Q19:Q29="Sim",$I19:$I29))/AVERAGE(IF(Q19:Q29="Sim",$I19:$I29))) -> N/D (são necessários pelo menos 3 preços) | R32: =IF(COUNTIF(R19:R29,"Sim")<3,"N/D (são necessários pelo menos 3 preços)",_xlfn.STDEV.S(IF(R19:R29="Sim",$I19:$I29))/AVERAGE(IF(R19:R29="Sim",$I19:$I29))) -> N/D (são necessários pelo menos 3 preços) | S32: =IF(COUNTIF(S19:S29,"Sim")<3,"N/D (são necessários pelo menos 3 preços)",_xlfn.STDEV.S(IF(S19:S29="Sim",$I19:$I29))/AVERAGE(IF(S19:S29="Sim",$I19:$I29))) -> N/D (são necessários pelo menos 3 preços)
B33: Metodologia de exclusão de preços adotada: | J33: =IF(M38="",INDEX(M18:S18,MATCH(MIN(M35:S35),M35:S35,0)),M38) -> Outliers | L33: Média | M33: =IF(SUM(COUNTIF($M$10:$M$16,"Sim")) + SUM(COUNTIF(M19:M29,"Sim")) < 3, "N/D (são necessários pelo menos 3 preços)", IFERROR(AVERAGE(_xlfn._xlws.FILTER($I$10:$I$16,$M$10:$M$16="Sim"), _xlfn._xlws.FILTER($I$19:$I$29,M19:M29="Sim")),M30)) -> 7.671261942 | N33: =IF(SUM(COUNTIF($M$10:$M$16,"Sim")) + SUM(COUNTIF(N19:N29,"Sim")) < 3, "N/D (são necessários pelo menos 3 preços)", IFERROR(AVERAGE(_xlfn._xlws.FILTER($I$10:$I$16,$M$10:$M$16="Sim"), _xlfn._xlws.FILTER($I$19:$I$29,N19:N29="Sim")),N30)) -> 8.279384952 | O33: =IF(SUM(COUNTIF($M$10:$M$16,"Sim")) + SUM(COUNTIF(O19:O29,"Sim")) < 3, "N/D (são necessários pelo menos 3 preços)", IFERROR(AVERAGE(_xlfn._xlws.FILTER($I$10:$I$16,$M$10:$M$16="Sim"), _xlfn._xlws.FILTER($I$19:$I$29,O19:O29="Sim")),O30)) -> 7.671261942 | P33: =IF(SUM(COUNTIF($M$10:$M$16,"Sim")) + SUM(COUNTIF(P19:P29,"Sim")) < 3, "N/D (são necessários pelo menos 3 preços)", IFERROR(AVERAGE(_xlfn._xlws.FILTER($I$10:$I$16,$M$10:$M$16="Sim"), _xlfn._xlws.FILTER($I$19:$I$29,P19:P29="Sim")),P30)) -> 8.473021942 | Q33: =IF(SUM(COUNTIF($M$10:$M$16,"Sim")) + SUM(COUNTIF(Q19:Q29,"Sim")) < 3, "N/D (são necessários pelo menos 3 preços)", IFERROR(AVERAGE(_xlfn._xlws.FILTER($I$10:$I$16,$M$10:$M$16="Sim"), _xlfn._xlws.FILTER($I$19:$I$29,Q19:Q29="Sim")),Q30)) -> 7.761277428 | R33: =IF(SUM(COUNTIF($M$10:$M$16,"Sim")) + SUM(COUNTIF(R19:R29,"Sim")) < 3, "N/D (são necessários pelo menos 3 preços)", IFERROR(AVERAGE(_xlfn._xlws.FILTER($I$10:$I$16,$M$10:$M$16="Sim"), _xlfn._xlws.FILTER($I$19:$I$29,R19:R29="Sim")),R30)) -> 7.489077428 | S33: =IF(SUM(COUNTIF($S$10:$S$16,"Sim")) + SUM(COUNTIF(S19:S29,"Sim")) < 3, "N/D (são necessários pelo menos 3 preços)", IFERROR(AVERAGE(_xlfn._xlws.FILTER($I$10:$I$16,$S$10:$S$16="Sim"), _xlfn._xlws.FILTER($I$19:$I$29,S19:S29="Sim")),S30)) -> N/D (são necessários pelo menos 3 preços)
L34: Mediana | M34: =IF(SUM(COUNTIF($M$10:$M$16,"Sim")) + SUM(COUNTIF(M19:M29,"Sim")) < 3, "N/D (são necessários pelo menos 3 preços)", IFERROR(MEDIAN(_xlfn._xlws.FILTER($I$10:$I$16,$M$10:$M$16="Sim"), _xlfn._xlws.FILTER($I$19:$I$29,M19:M29="Sim")),M30)) -> 7.723290048 | N34: =IF(SUM(COUNTIF($M$10:$M$16,"Sim")) + SUM(COUNTIF(N19:N29,"Sim")) < 3, "N/D (são necessários pelo menos 3 preços)", IFERROR(MEDIAN(_xlfn._xlws.FILTER($I$10:$I$16,$M$10:$M$16="Sim"), _xlfn._xlws.FILTER($I$19:$I$29,N19:N29="Sim")),N30)) -> 8.061645024 | O34: =IF(SUM(COUNTIF($M$10:$M$16,"Sim")) + SUM(COUNTIF(O19:O29,"Sim")) < 3, "N/D (são necessários pelo menos 3 preços)", IFERROR(MEDIAN(_xlfn._xlws.FILTER($I$10:$I$16,$M$10:$M$16="Sim"), _xlfn._xlws.FILTER($I$19:$I$29,O19:O29="Sim")),O30)) -> 7.723290048 | P34: =IF(SUM(COUNTIF($M$10:$M$16,"Sim")) + SUM(COUNTIF(P19:P29,"Sim")) < 3, "N/D (são necessários pelo menos 3 preços)", IFERROR(MEDIAN(_xlfn._xlws.FILTER($I$10:$I$16,$M$10:$M$16="Sim"), _xlfn._xlws.FILTER($I$19:$I$29,P19:P29="Sim")),P30)) -> 8.4 | Q34: =IF(SUM(COUNTIF($M$10:$M$16,"Sim")) + SUM(COUNTIF(Q19:Q29,"Sim")) < 3, "N/D (são necessários pelo menos 3 preços)", IFERROR(MEDIAN(_xlfn._xlws.FILTER($I$10:$I$16,$M$10:$M$16="Sim"), _xlfn._xlws.FILTER($I$19:$I$29,Q19:Q29="Sim")),Q30)) -> 8.061645024 | R34: =IF(SUM(COUNTIF($M$10:$M$16,"Sim")) + SUM(COUNTIF(R19:R29,"Sim")) < 3, "N/D (são necessários pelo menos 3 preços)", IFERROR(MEDIAN(_xlfn._xlws.FILTER($I$10:$I$16,$M$10:$M$16="Sim"), _xlfn._xlws.FILTER($I$19:$I$29,R19:R29="Sim")),R30)) -> 7.517245024 | S34: =IF(SUM(COUNTIF($S$10:$S$16,"Sim")) + SUM(COUNTIF(S19:S29,"Sim")) < 3, "N/D (são necessários pelo menos 3 preços)", IFERROR(MEDIAN(_xlfn._xlws.FILTER($I$10:$I$16,$S$10:$S$16="Sim"), _xlfn._xlws.FILTER($I$19:$I$29,S19:S29="Sim")),S30)) -> N/D (são necessários pelo menos 3 preços)
L35: CV | M35: =IF(SUM(COUNTIF($M$10:$M$16,"Sim")) + SUM(COUNTIF(M19:M29,"Sim")) < 3, "N/D (são necessários pelo menos 3 preços)", IFERROR(ROUND(_xlfn.STDEV.S(_xlfn._xlws.FILTER($I$10:$I$16,$M$10:$M$16="Sim"), _xlfn._xlws.FILTER($I$19:$I$29,M19:M29="Sim")) / AVERAGE(_xlfn._xlws.FILTER($I$10:$I$16,$M$10:$M$16="Sim"), _xlfn._xlws.FILTER($I$19:$I$29,M19:M29="Sim")),4),M32) ) -> 0.1143 | N35: =IF(SUM(COUNTIF($M$10:$M$16,"Sim")) + SUM(COUNTIF(N19:N29,"Sim")) < 3, "N/D (são necessários pelo menos 3 preços)", IFERROR(ROUND(_xlfn.STDEV.S(_xlfn._xlws.FILTER($I$10:$I$16,$M$10:$M$16="Sim"), _xlfn._xlws.FILTER($I$19:$I$29,N19:N29="Sim")) / AVERAGE(_xlfn._xlws.FILTER($I$10:$I$16,$M$10:$M$16="Sim"), _xlfn._xlws.FILTER($I$19:$I$29,N19:N29="Sim")),4),N32) ) -> 0.2033 | O35: =IF(SUM(COUNTIF($M$10:$M$16,"Sim")) + SUM(COUNTIF(O19:O29,"Sim")) < 3, "N/D (são necessários pelo menos 3 preços)", IFERROR(ROUND(_xlfn.STDEV.S(_xlfn._xlws.FILTER($I$10:$I$16,$M$10:$M$16="Sim"), _xlfn._xlws.FILTER($I$19:$I$29,O19:O29="Sim")) / AVERAGE(_xlfn._xlws.FILTER($I$10:$I$16,$M$10:$M$16="Sim"), _xlfn._xlws.FILTER($I$19:$I$29,O19:O29="Sim")),4),O32) ) -> 0.1143 | P35: =IF(SUM(COUNTIF($M$10:$M$16,"Sim")) + SUM(COUNTIF(P19:P29,"Sim")) < 3, "N/D (são necessários pelo menos 3 preços)", IFERROR(ROUND(_xlfn.STDEV.S(_xlfn._xlws.FILTER($I$10:$I$16,$M$10:$M$16="Sim"), _xlfn._xlws.FILTER($I$19:$I$29,P19:P29="Sim")) / AVERAGE(_xlfn._xlws.FILTER($I$10:$I$16,$M$10:$M$16="Sim"), _xlfn._xlws.FILTER($I$19:$I$29,P19:P29="Sim")),4),P32) ) -> 0.2131 | Q35: =IF(SUM(COUNTIF($M$10:$M$16,"Sim")) + SUM(COUNTIF(Q19:Q29,"Sim")) < 3, "N/D (são necessários pelo menos 3 preços)", IFERROR(ROUND(_xlfn.STDEV.S(_xlfn._xlws.FILTER($I$10:$I$16,$M$10:$M$16="Sim"), _xlfn._xlws.FILTER($I$19:$I$29,Q19:Q29="Sim")) / AVERAGE(_xlfn._xlws.FILTER($I$10:$I$16,$M$10:$M$16="Sim"), _xlfn._xlws.FILTER($I$19:$I$29,Q19:Q29="Sim")),4),Q32) ) -> 0.127 | R35: =IF(SUM(COUNTIF($M$10:$M$16,"Sim")) + SUM(COUNTIF(R19:R29,"Sim")) < 3, "N/D (são necessários pelo menos 3 preços)", IFERROR(ROUND(_xlfn.STDEV.S(_xlfn._xlws.FILTER($I$10:$I$16,$M$10:$M$16="Sim"), _xlfn._xlws.FILTER($I$19:$I$29,R19:R29="Sim")) / AVERAGE(_xlfn._xlws.FILTER($I$10:$I$16,$M$10:$M$16="Sim"), _xlfn._xlws.FILTER($I$19:$I$29,R19:R29="Sim")),4),R32) ) -> 0.1197 | S35: =IF(SUM(COUNTIF($S$10:$S$16,"Sim")) + SUM(COUNTIF(S19:S29,"Sim")) < 3, "N/D (são necessários pelo menos 3 preços)", IFERROR(_xlfn.STDEV.S(_xlfn._xlws.FILTER($I$10:$I$16,$S$10:$S$16="Sim"), _xlfn._xlws.FILTER($I$19:$I$29,S19:S29="Sim")) / AVERAGE(_xlfn._xlws.FILTER($I$10:$I$16,$S$10:$S$16="Sim"), _xlfn._xlws.FILTER($I$19:$I$29,S19:S29="Sim")),S32) ) -> N/D (são necessários pelo menos 3 preços)
B36: PREÇO UNITÁRIO ESTIMADO ADOTADO: | J36: =IF($J$33="","Selecione metodologia para exclusão de preços",MIN(J31:J32)) -> 7.671261942 | L36: Metodologia sugerida: | M36: =IF($M$35=MIN($M$35,$N$35:$R$35),M8,"Grupos - "&INDEX({"Todos";"Sem o maior";"Sem o menor";"Sem o maior e Sem o menor";"Sem os dois maiores"},MATCH(MIN($N$35:$R$35),$N$35:$R$35,0))) -> Licitações Anteriores - Outliers
L37: Preço estimado sugerido: | M37: =IF($M$36=M8,SMALL($M$33:$M$34,1),MIN(INDEX($N$34:$R$34, MATCH(MIN($N$35:$R$35), $N$35:$R$35, 0)),INDEX($N$33:$R$33, MATCH(MIN($N$35:$R$35), $N$35:$R$35, 0)))) -> 7.671261942
L38: Metodologia a adotar: | M38: =IF(INDEX(L18:S18,N38)=0,"",INDEX(L18:S18,N38)) ->  | N38: 1

Sheet Peixe 45% 1,8 mm
B2: Processo | C2: ='Peixe 50% PB Farelo'!C2 -> 59511.000102/2026-55
B3: Responsável | C3: ='Peixe 50% PB Farelo'!C3 -> JHONES DE LIMA VIEIRA
B4: Área de Origem | C4: ='Peixe 50% PB Farelo'!C4 -> 14ª GTR
B5: Data da pesquisa | C5: ='Peixe 50% PB Farelo'!C5 -> Janeiro/2026 - Fevereiro/2026
B7: ITEM: | C7: Ração extrusada para peixe onívoro 45% PB – Proteína Bruta Mín.: 45%, granulometria 1.8 mm. Data de validade não inferior a 6 meses. | G7: UNIDADE DE MEDIDA: | H7: ='Peixe 50% PB Farelo'!H7 -> kg | I7: QUANTIDADE: | J7: =1500*25 -> 37500 | M7: Tabela auxiliar de metodologias para exclusão de preços | U7: Automática (menor CV)
B8: LICITAÇÕES ANTERIORES | M8: Licitações Anteriores - Outliers | U8: =M18 -> Outliers
B9: Órgão | C9: Edital/Ano - Nº do Lote / Item | D9: Quantidade | E9: Valor Unitário | F9: Data | G9: índice de atualização (nome) | H9: Variação acumulada do índice (%) | I9: Preço unitário atualizado | J9: Utilizar? (Sim/Não) | M9: Utilizar? | S9: Por critério do(a) analista | U9: =N18 -> Grupos - Todos
B10: 14ª SR - Fortaleza/CE | C10: Edital 90007/2024 - Item 3 | D10: 3736 | E10: 6.27 | F10: 2025-01-02 | G10: IPA-EP-DI Suprimentos agropecuários | H10: =(I10/E10)-1 -> 0.01654095744 | I10: =IF(ISBLANK(E10),"",E10*(1+(INDEX('índice de atualização'!B:B,MATCH(G10,'índice de atualização'!B:B,0)+COUNTA('índice de atualização'!B:B)-1)-INDEX('índice de atualização'!B:B,MATCH(TEXT(F10,"MM/AAAA"),'índice de atualização'!A:A,0)))/INDEX('índice de atualização'!B:B,MATCH(TEXT(F10,"MM/AAAA"),'índice de atualização'!A:A,0)))) -> 6.373711803 | J10: =IF(ISNUMBER(I10),IF($J$33<>$S$9,M10,S10),"") -> Sim | M10: =IF(ISNUMBER(I10),IF(OR(I10<_xlfn.QUARTILE.INC($I$10:$I$29,1)-1.5*(_xlfn.QUARTILE.INC($I$10:I29,3)-_xlfn.QUARTILE.INC($I$10:$I$29,1)),I10>_xlfn.QUARTILE.INC($I$10:$I$29,3)+1.5*(_xlfn.QUARTILE.INC($I$10:$I$29,3)-_xlfn.QUARTILE.INC($I$10:$I$29,1))),"Não","Sim"),"") -> Sim | U10: =O18 -> Grupos - Sem o maior
B11: 14ª SR - Fortaleza/CE | C11: Edital 90007/2024 - Item 11 | D11: 650 | E11: 6.28 | F11: 2025-02-18 | G11: IPA-EP-DI Suprimentos agropecuários | H11: =(I11/E11)-1 -> 0.0004507242601 | I11: =IF(ISBLANK(E11),"",E11*(1+(INDEX('índice de atualização'!B:B,MATCH(G11,'índice de atualização'!B:B,0)+COUNTA('índice de atualização'!B:B)-1)-INDEX('índice de atualização'!B:B,MATCH(TEXT(F11,"MM/AAAA"),'índice de atualização'!A:A,0)))/INDEX('índice de atualização'!B:B,MATCH(TEXT(F11,"MM/AAAA"),'índice de atualização'!A:A,0)))) -> 6.282830548 | J11: =IF(ISNUMBER(I11),IF($J$33<>$S$8,M11,S11),"") -> Sim | M11: =IF(ISNUMBER(I11),IF(OR(I11<_xlfn.QUARTILE.INC($I$10:$I$29,1)-1.5*(_xlfn.QUARTILE.INC($I$10:I30,3)-_xlfn.QUARTILE.INC($I$10:$I$29,1)),I11>_xlfn.QUARTILE.INC($I$10:$I$29,3)+1.5*(_xlfn.QUARTILE.INC($I$10:$I$29,3)-_xlfn.QUARTILE.INC($I$10:$I$29,1))),"Não","Sim"),"") -> Sim | U11: =P18 -> Grupos - Sem o menor
B12: 4ª SR - Aracaju/SE | C12: Edital 90002/2025 - Item 2 | D12: 4000 | E12: 7.9 | F12: 2025-07-11 | G12: IPA-EP-DI Suprimentos agropecuários | H12: =(I12/E12)-1 -> -0.02236834839 | I12: =IF(ISBLANK(E12),"",E12*(1+(INDEX('índice de atualização'!B:B,MATCH(G12,'índice de atualização'!B:B,0)+COUNTA('índice de atualização'!B:B)-1)-INDEX('índice de atualização'!B:B,MATCH(TEXT(F12,"MM/AAAA"),'índice de atualização'!A:A,0)))/INDEX('índice de atualização'!B:B,MATCH(TEXT(F12,"MM/AAAA"),'índice de atualização'!A:A,0)))) -> 7.723290048 | J12: Sim | M12: =IF(ISNUMBER(I12),IF(OR(I12<_xlfn.QUARTILE.INC($I$10:$I$29,1)-1.5*(_xlfn.QUARTILE.INC($I$10:I31,3)-_xlfn.QUARTILE.INC($I$10:$I$29,1)),I12>_xlfn.QUARTILE.INC($I$10:$I$29,3)+1.5*(_xlfn.QUARTILE.INC($I$10:$I$29,3)-_xlfn.QUARTILE.INC($I$10:$I$29,1))),"Não","Sim"),"") -> Sim | N12: =$M$12 -> Sim | O12: =$M$12 -> Sim | P12: =$M$12 -> Sim | Q12: =$M$12 -> Sim | R12: =$M$12 -> Sim | U12: =Q18 -> Grupos - Sem o maior e sem o menor
I13: =IF(ISBLANK(E13),"",E13*(1+(INDEX('índice de atualização'!B:B,MATCH(G13,'índice de atualização'!B:B,0)+COUNTA('índice de atualização'!B:B)-1)-INDEX('índice de atualização'!B:B,MATCH(TEXT(F13,"MM/AAAA"),'índice de atualização'!A:A,0)))/INDEX('índice de atualização'!B:B,MATCH(TEXT(F13,"MM/AAAA"),'índice de atualização'!A:A,0)))) ->  | M13: =IF(ISNUMBER(I13),IF(OR(I13<_xlfn.QUARTILE.INC($I$10:$I$29,1)-1.5*(_xlfn.QUARTILE.INC($I$10:I32,3)-_xlfn.QUARTILE.INC($I$10:$I$29,1)),I13>_xlfn.QUARTILE.INC($I$10:$I$29,3)+1.5*(_xlfn.QUARTILE.INC($I$10:$I$29,3)-_xlfn.QUARTILE.INC($I$10:$I$29,1))),"Não","Sim"),"") ->  | N13: =$M$13 ->  | O13: =$M$13 ->  | P13: =$M$13 ->  | Q13: =$M$13 ->  | R13: =$M$13 ->  | U13: =R18 -> Grupos - Sem os dois maiores
I14: =IF(ISBLANK(E14),"",E14*(1+(INDEX('índice de atualização'!B:B,MATCH(G14,'índice de atualização'!B:B,0)+COUNTA('índice de atualização'!B:B)-1)-INDEX('índice de atualização'!B:B,MATCH(TEXT(F14,"MM/AAAA"),'índice de atualização'!A:A,0)))/INDEX('índice de atualização'!B:B,MATCH(TEXT(F14,"MM/AAAA"),'índice de atualização'!A:A,0)))) ->  | M14: =IF(ISNUMBER(I14),IF(OR(I14<_xlfn.QUARTILE.INC($I$10:$I$29,1)-1.5*(_xlfn.QUARTILE.INC($I$10:I33,3)-_xlfn.QUARTILE.INC($I$10:$I$29,1)),I14>_xlfn.QUARTILE.INC($I$10:$I$29,3)+1.5*(_xlfn.QUARTILE.INC($I$10:$I$29,3)-_xlfn.QUARTILE.INC($I$10:$I$29,1))),"Não","Sim"),"") ->  | N14: =$M$14 ->  | O14: =$M$14 ->  | P14: =$M$14 ->  | Q14: =$M$14 ->  | R14: =$M$14 ->  | U14: =S18 -> Por critério do(a) analista
I15: =IF(ISBLANK(E15),"",E15*(1+(INDEX('índice de atualização'!B:B,MATCH(G15,'índice de atualização'!B:B,0)+COUNTA('índice de atualização'!B:B)-1)-INDEX('índice de atualização'!B:B,MATCH(TEXT(F15,"MM/AAAA"),'índice de atualização'!A:A,0)))/INDEX('índice de atualização'!B:B,MATCH(TEXT(F15,"MM/AAAA"),'índice de atualização'!A:A,0)))) ->  | M15: =IF(ISNUMBER(I15),IF(OR(I15<_xlfn.QUARTILE.INC($I$10:$I$29,1)-1.5*(_xlfn.QUARTILE.INC($I$10:I36,3)-_xlfn.QUARTILE.INC($I$10:$I$29,1)),I15>_xlfn.QUARTILE.INC($I$10:$I$29,3)+1.5*(_xlfn.QUARTILE.INC($I$10:$I$29,3)-_xlfn.QUARTILE.INC($I$10:$I$29,1))),"Não","Sim"),"") ->  | N15: =$M$15 ->  | O15: =$M$15 ->  | P15: =$M$15 ->  | Q15: =$M$15 ->  | R15: =$M$15 -> 
M16: =IF(ISNUMBER(I16),IF(OR(I16<_xlfn.QUARTILE.INC($I$10:$I$29,1)-1.5*(_xlfn.QUARTILE.INC($I$10:I39,3)-_xlfn.QUARTILE.INC($I$10:$I$29,1)),I16>_xlfn.QUARTILE.INC($I$10:$I$29,3)+1.5*(_xlfn.QUARTILE.INC($I$10:$I$29,3)-_xlfn.QUARTILE.INC($I$10:$I$29,1))),"Não","Sim"),"") ->  | N16: =$M$16 ->  | O16: =$M$16 ->  | P16: =$M$16 ->  | Q16: =$M$16 ->  | R16: =$M$16 -> 
B17: COTAÇÕES DE MERCADO | M17: Cotações
B18: Empresa | H18: Data | I18: Preço Unitário | J18: Utilizar? (Sim/Não) | M18: Outliers | N18: Grupos - Todos | O18: Grupos - Sem o maior | P18: Grupos - Sem o menor | Q18: Grupos - Sem o maior e sem o menor | R18: Grupos - Sem os dois maiores | S18: Por critério do(a) analista
B19: Samaria Rações LTDA | H19: 2026-02-09 | I19: =156.75/25 -> 6.27 | J19: =IF(ISNUMBER(I19),IF($J$33=$M$18,M19,IF($J$33=$N$18,N19,IF($J$33=$O$18,O19,IF($J$33=$P$18,P19,IF($J$33=$Q$18,Q19,IF($J$33=$R$18,R19,IF($J$33=$S$18,S19,""))))))),"") -> Sim | M19: =IF(ISNUMBER(I19),IF(OR(I19<_xlfn.QUARTILE.INC($I$10:$I$29,1)-1.5*(_xlfn.QUARTILE.INC($I$10:I40,3)-_xlfn.QUARTILE.INC($I$10:$I$29,1)),I19>_xlfn.QUARTILE.INC($I$10:$I$29,3)+1.5*(_xlfn.QUARTILE.INC($I$10:$I$29,3)-_xlfn.QUARTILE.INC($I$10:$I$29,1))),"Não","Sim"),"") -> Sim | N19: =IF(ISNUMBER(I19),"Sim","") -> Sim | O19: =IF(ISNUMBER(I19),IF(_xlfn.RANK.EQ(I19,$I$19:$I$29)=1,"Não","Sim"),"") -> Sim | P19: =IF(ISNUMBER(I19),IF(_xlfn.RANK.EQ(I19,$I$19:$I$29)=COUNT($I$19:$I$29),"Não","Sim"),"") -> Não | Q19: =IF(O19="","",IF(AND(O19="Sim",P19="Sim"),"Sim","Não")) -> Não | R19: =IF(ISNUMBER(I19),IF(_xlfn.RANK.EQ(I19,$I$19:$I$29)<=2,"Não","Sim"),"") -> Sim
B20: Integral Mix Agroindustria | H20: 2026-02-07 | I20: =170.01/25 -> 6.8004 | J20: Sim | M20: =IF(ISNUMBER(I20),IF(OR(I20<_xlfn.QUARTILE.INC($I$10:$I$29,1)-1.5*(_xlfn.QUARTILE.INC($I$10:I40,3)-_xlfn.QUARTILE.INC($I$10:$I$29,1)),I20>_xlfn.QUARTILE.INC($I$10:$I$29,3)+1.5*(_xlfn.QUARTILE.INC($I$10:$I$29,3)-_xlfn.QUARTILE.INC($I$10:$I$29,1))),"Não","Sim"),"") -> Sim | N20: Sim | O20: Sim | P20: Sim | Q20: =IF(O20="","",IF(AND(O20="Sim",P20="Sim"),"Sim","Não")) -> Sim | R20: Não
B21: Comercial do Carmo ME | H21: 2026-02-12 | I21: =203/25 -> 8.12 | J21: Não | M21: =IF(ISNUMBER(I21),IF(OR(I21<_xlfn.QUARTILE.INC($I$10:$I$29,1)-1.5*(_xlfn.QUARTILE.INC($I$10:I40,3)-_xlfn.QUARTILE.INC($I$10:$I$29,1)),I21>_xlfn.QUARTILE.INC($I$10:$I$29,3)+1.5*(_xlfn.QUARTILE.INC($I$10:$I$29,3)-_xlfn.QUARTILE.INC($I$10:$I$29,1))),"Não","Sim"),"") -> Sim | N21: Sim | O21: Não | P21: Sim | Q21: Não | R21: Não
M22: =IF(ISNUMBER(I22),IF(OR(I22<_xlfn.QUARTILE.INC($I$10:$I$29,1)-1.5*(_xlfn.QUARTILE.INC($I$10:I40,3)-_xlfn.QUARTILE.INC($I$10:$I$29,1)),I22>_xlfn.QUARTILE.INC($I$10:$I$29,3)+1.5*(_xlfn.QUARTILE.INC($I$10:$I$29,3)-_xlfn.QUARTILE.INC($I$10:$I$29,1))),"Não","Sim"),"") -> 
M23: =IF(ISNUMBER(I23),IF(OR(I23<_xlfn.QUARTILE.INC($I$10:$I$29,1)-1.5*(_xlfn.QUARTILE.INC($I$10:I41,3)-_xlfn.QUARTILE.INC($I$10:$I$29,1)),I23>_xlfn.QUARTILE.INC($I$10:$I$29,3)+1.5*(_xlfn.QUARTILE.INC($I$10:$I$29,3)-_xlfn.QUARTILE.INC($I$10:$I$29,1))),"Não","Sim"),"") -> 
M24: =IF(ISNUMBER(I24),IF(OR(I24<_xlfn.QUARTILE.INC($I$10:$I$29,1)-1.5*(_xlfn.QUARTILE.INC($I$10:I42,3)-_xlfn.QUARTILE.INC($I$10:$I$29,1)),I24>_xlfn.QUARTILE.INC($I$10:$I$29,3)+1.5*(_xlfn.QUARTILE.INC($I$10:$I$29,3)-_xlfn.QUARTILE.INC($I$10:$I$29,1))),"Não","Sim"),"") -> 
M25: =IF(ISNUMBER(I25),IF(OR(I25<_xlfn.QUARTILE.INC($I$10:$I$29,1)-1.5*(_xlfn.QUARTILE.INC($I$10:I40,3)-_xlfn.QUARTILE.INC($I$10:$I$29,1)),I25>_xlfn.QUARTILE.INC($I$10:$I$29,3)+1.5*(_xlfn.QUARTILE.INC($I$10:$I$29,3)-_xlfn.QUARTILE.INC($I$10:$I$29,1))),"Não","Sim"),"") -> 
M26: =IF(ISNUMBER(I26),IF(OR(I26<_xlfn.QUARTILE.INC($I$10:$I$29,1)-1.5*(_xlfn.QUARTILE.INC($I$10:I40,3)-_xlfn.QUARTILE.INC($I$10:$I$29,1)),I26>_xlfn.QUARTILE.INC($I$10:$I$29,3)+1.5*(_xlfn.QUARTILE.INC($I$10:$I$29,3)-_xlfn.QUARTILE.INC($I$10:$I$29,1))),"Não","Sim"),"") -> 
M27: =IF(ISNUMBER(I27),IF(OR(I27<_xlfn.QUARTILE.INC($I$10:$I$29,1)-1.5*(_xlfn.QUARTILE.INC($I$10:I40,3)-_xlfn.QUARTILE.INC($I$10:$I$29,1)),I27>_xlfn.QUARTILE.INC($I$10:$I$29,3)+1.5*(_xlfn.QUARTILE.INC($I$10:$I$29,3)-_xlfn.QUARTILE.INC($I$10:$I$29,1))),"Não","Sim"),"") -> 
M28: =IF(ISNUMBER(I28),IF(OR(I28<_xlfn.QUARTILE.INC($I$10:$I$29,1)-1.5*(_xlfn.QUARTILE.INC($I$10:I40,3)-_xlfn.QUARTILE.INC($I$10:$I$29,1)),I28>_xlfn.QUARTILE.INC($I$10:$I$29,3)+1.5*(_xlfn.QUARTILE.INC($I$10:$I$29,3)-_xlfn.QUARTILE.INC($I$10:$I$29,1))),"Não","Sim"),"") -> 
M29: =IF(ISNUMBER(I29),IF(OR(I29<_xlfn.QUARTILE.INC($I$10:$I$29,1)-1.5*(_xlfn.QUARTILE.INC($I$10:I40,3)-_xlfn.QUARTILE.INC($I$10:$I$29,1)),I29>_xlfn.QUARTILE.INC($I$10:$I$29,3)+1.5*(_xlfn.QUARTILE.INC($I$10:$I$29,3)-_xlfn.QUARTILE.INC($I$10:$I$29,1))),"Não","Sim"),"") -> 
B30: Observações: | I30: CV: | J30: =IF($J$33="","Selecione metodologia para exclusão de preços",IF(COUNTIF($J$10:$J$29,"Sim")<3,"N/D (são necessários pelo menos 3 preços)",_xlfn.STDEV.S(IF($J$10:$J$29="Sim",$I$10:$I$29))/AVERAGE(IF($J$10:$J$29="Sim",$I$10:$I$29)))) -> 0.09220674659 | L30: Média (Cotações) | M30: =IF(COUNTIF(M19:M29,"Sim")<3,"N/D (são necessários pelo menos 3 preços)",AVERAGE(IF(M19:M29="Sim",$I19:$I29))) -> 7.063466667 | N30: =IF(COUNTIF(N19:N29,"Sim")<3,"N/D (são necessários pelo menos 3 preços)",AVERAGE(IF(N19:N29="Sim",$I19:$I29))) -> 7.063466667 | O30: =IF(COUNTIF(O19:O29,"Sim")<3,"N/D (são necessários pelo menos 3 preços)",AVERAGE(IF(O19:O29="Sim",$I19:$I29))) -> N/D (são necessários pelo menos 3 preços) | P30: =IF(COUNTIF(P19:P29,"Sim")<3,"N/D (são necessários pelo menos 3 preços)",AVERAGE(IF(P19:P29="Sim",$I19:$I29))) -> N/D (são necessários pelo menos 3 preços) | Q30: =IF(COUNTIF(Q19:Q29,"Sim")<3,"N/D (são necessários pelo menos 3 preços)",AVERAGE(IF(Q19:Q29="Sim",$I19:$I29))) -> N/D (são necessários pelo menos 3 preços) | R30: =IF(COUNTIF(R19:R29,"Sim")<3,"N/D (são necessários pelo menos 3 preços)",AVERAGE(IF(R19:R29="Sim",$I19:$I29))) -> N/D (são necessários pelo menos 3 preços) | S30: =IF(COUNTIF(S19:S29,"Sim")<3,"N/D (são necessários pelo menos 3 preços)",AVERAGE(IF(S19:S29="Sim",$I19:$I29))) -> N/D (são necessários pelo menos 3 preços)
I31: Média: | J31: =IF($J$33="","Selecione metodologia para exclusão de preços",AVERAGE(IF($J$10:$J$29="Sim",$I$10:$I$29))) -> 6.69004648 | L31: Mediana (Cotações) | M31: =IF(COUNTIF(M19:M29,"Sim")<3,"N/D (são necessários pelo menos 3 preços)",MEDIAN(IF(M19:M29="Sim",$I19:$I29))) -> 6.8004 | N31: =IF(COUNTIF(N19:N29,"Sim")<3,"N/D (são necessários pelo menos 3 preços)",MEDIAN(IF(N19:N29="Sim",$I19:$I29))) -> 6.8004 | O31: =IF(COUNTIF(O19:O29,"Sim")<3,"N/D (são necessários pelo menos 3 preços)",MEDIAN(IF(O19:O29="Sim",$I19:$I29))) -> N/D (são necessários pelo menos 3 preços) | P31: =IF(COUNTIF(P19:P29,"Sim")<3,"N/D (são necessários pelo menos 3 preços)",MEDIAN(IF(P19:P29="Sim",$I19:$I29))) -> N/D (são necessários pelo menos 3 preços) | Q31: =IF(COUNTIF(Q19:Q29,"Sim")<3,"N/D (são necessários pelo menos 3 preços)",MEDIAN(IF(Q19:Q29="Sim",$I19:$I29))) -> N/D (são necessários pelo menos 3 preços) | R31: =IF(COUNTIF(R19:R29,"Sim")<3,"N/D (são necessários pelo menos 3 preços)",MEDIAN(IF(R19:R29="Sim",$I19:$I29))) -> N/D (são necessários pelo menos 3 preços) | S31: =IF(COUNTIF(S19:S29,"Sim")<3,"N/D (são necessários pelo menos 3 preços)",MEDIAN(IF(S19:S29="Sim",$I19:$I29))) -> N/D (são necessários pelo menos 3 preços)
I32: Mediana: | J32: =IF($J$33="","Selecione metodologia para exclusão de preços",MEDIAN(IF($J$10:$J$29="Sim",$I$10:$I$29))) -> 6.373711803 | L32: CV (Cotações) | M32: =IF(COUNTIF(M19:M29,"Sim")<3,"N/D (são necessários pelo menos 3 preços)",_xlfn.STDEV.S(IF(M19:M29="Sim",$I19:$I29))/AVERAGE(IF(M19:M29="Sim",$I19:$I29))) -> 0.1348689975 | N32: =IF(COUNTIF(N19:N29,"Sim")<3,"N/D (são necessários pelo menos 3 preços)",_xlfn.STDEV.S(IF(N19:N29="Sim",$I19:$I29))/AVERAGE(IF(N19:N29="Sim",$I19:$I29))) -> 0.1348689975 | O32: =IF(COUNTIF(O19:O29,"Sim")<3,"N/D (são necessários pelo menos 3 preços)",_xlfn.STDEV.S(IF(O19:O29="Sim",$I19:$I29))/AVERAGE(IF(O19:O29="Sim",$I19:$I29))) -> N/D (são necessários pelo menos 3 preços) | P32: =IF(COUNTIF(P19:P29,"Sim")<3,"N/D (são necessários pelo menos 3 preços)",_xlfn.STDEV.S(IF(P19:P29="Sim",$I19:$I29))/AVERAGE(IF(P19:P29="Sim",$I19:$I29))) -> N/D (são necessários pelo menos 3 preços) | Q32: =IF(COUNTIF(Q19:Q29,"Sim")<3,"N/D (são necessários pelo menos 3 preços)",_xlfn.STDEV.S(IF(Q19:Q29="Sim",$I19:$I29))/AVERAGE(IF(Q19:Q29="Sim",$I19:$I29))) -> N/D (são necessários pelo menos 3 preços) | R32: =IF(COUNTIF(R19:R29,"Sim")<3,"N/D (são necessários pelo menos 3 preços)",_xlfn.STDEV.S(IF(R19:R29="Sim",$I19:$I29))/AVERAGE(IF(R19:R29="Sim",$I19:$I29))) -> N/D (são necessários pelo menos 3 preços) | S32: =IF(COUNTIF(S19:S29,"Sim")<3,"N/D (são necessários pelo menos 3 preços)",_xlfn.STDEV.S(IF(S19:S29="Sim",$I19:$I29))/AVERAGE(IF(S19:S29="Sim",$I19:$I29))) -> N/D (são necessários pelo menos 3 preços)
B33: Metodologia de exclusão de preços adotada: | J33: =IF(M38="",INDEX(M18:S18,MATCH(MIN(M35:S35),M35:S35,0)),M38) -> Grupos - Sem o maior | L33: Média | M33: =IF(SUM(COUNTIF($M$10:$M$16,"Sim")) + SUM(COUNTIF(M19:M29,"Sim")) < 3, "N/D (são necessários pelo menos 3 preços)", IFERROR(AVERAGE(_xlfn._xlws.FILTER($I$10:$I$16,$M$10:$M$16="Sim"), _xlfn._xlws.FILTER($I$19:$I$29,M19:M29="Sim")),M30)) -> 6.928372067 | N33: =IF(SUM(COUNTIF($M$10:$M$16,"Sim")) + SUM(COUNTIF(N19:N29,"Sim")) < 3, "N/D (são necessários pelo menos 3 preços)", IFERROR(AVERAGE(_xlfn._xlws.FILTER($I$10:$I$16,$M$10:$M$16="Sim"), _xlfn._xlws.FILTER($I$19:$I$29,N19:N29="Sim")),N30)) -> 6.928372067 | O33: =IF(SUM(COUNTIF($M$10:$M$16,"Sim")) + SUM(COUNTIF(O19:O29,"Sim")) < 3, "N/D (são necessários pelo menos 3 preços)", IFERROR(AVERAGE(_xlfn._xlws.FILTER($I$10:$I$16,$M$10:$M$16="Sim"), _xlfn._xlws.FILTER($I$19:$I$29,O19:O29="Sim")),O30)) -> 6.69004648 | P33: =IF(SUM(COUNTIF($M$10:$M$16,"Sim")) + SUM(COUNTIF(P19:P29,"Sim")) < 3, "N/D (são necessários pelo menos 3 preços)", IFERROR(AVERAGE(_xlfn._xlws.FILTER($I$10:$I$16,$M$10:$M$16="Sim"), _xlfn._xlws.FILTER($I$19:$I$29,P19:P29="Sim")),P30)) -> 7.06004648 | Q33: =IF(SUM(COUNTIF($M$10:$M$16,"Sim")) + SUM(COUNTIF(Q19:Q29,"Sim")) < 3, "N/D (são necessários pelo menos 3 preços)", IFERROR(AVERAGE(_xlfn._xlws.FILTER($I$10:$I$16,$M$10:$M$16="Sim"), _xlfn._xlws.FILTER($I$19:$I$29,Q19:Q29="Sim")),Q30)) -> 6.7950581 | R33: =IF(SUM(COUNTIF($M$10:$M$16,"Sim")) + SUM(COUNTIF(R19:R29,"Sim")) < 3, "N/D (são necessários pelo menos 3 preços)", IFERROR(AVERAGE(_xlfn._xlws.FILTER($I$10:$I$16,$M$10:$M$16="Sim"), _xlfn._xlws.FILTER($I$19:$I$29,R19:R29="Sim")),R30)) -> 6.6624581 | S33: =IF(SUM(COUNTIF($S$10:$S$16,"Sim")) + SUM(COUNTIF(S19:S29,"Sim")) < 3, "N/D (são necessários pelo menos 3 preços)", IFERROR(AVERAGE(_xlfn._xlws.FILTER($I$10:$I$16,$S$10:$S$16="Sim"), _xlfn._xlws.FILTER($I$19:$I$29,S19:S29="Sim")),S30)) -> N/D (são necessários pelo menos 3 preços)
L34: Mediana | M34: =IF(SUM(COUNTIF($M$10:$M$16,"Sim")) + SUM(COUNTIF(M19:M29,"Sim")) < 3, "N/D (são necessários pelo menos 3 preços)", IFERROR(MEDIAN(_xlfn._xlws.FILTER($I$10:$I$16,$M$10:$M$16="Sim"), _xlfn._xlws.FILTER($I$19:$I$29,M19:M29="Sim")),M30)) -> 6.587055902 | N34: =IF(SUM(COUNTIF($M$10:$M$16,"Sim")) + SUM(COUNTIF(N19:N29,"Sim")) < 3, "N/D (são necessários pelo menos 3 preços)", IFERROR(MEDIAN(_xlfn._xlws.FILTER($I$10:$I$16,$M$10:$M$16="Sim"), _xlfn._xlws.FILTER($I$19:$I$29,N19:N29="Sim")),N30)) -> 6.587055902 | O34: =IF(SUM(COUNTIF($M$10:$M$16,"Sim")) + SUM(COUNTIF(O19:O29,"Sim")) < 3, "N/D (são necessários pelo menos 3 preços)", IFERROR(MEDIAN(_xlfn._xlws.FILTER($I$10:$I$16,$M$10:$M$16="Sim"), _xlfn._xlws.FILTER($I$19:$I$29,O19:O29="Sim")),O30)) -> 6.373711803 | P34: =IF(SUM(COUNTIF($M$10:$M$16,"Sim")) + SUM(COUNTIF(P19:P29,"Sim")) < 3, "N/D (são necessários pelo menos 3 preços)", IFERROR(MEDIAN(_xlfn._xlws.FILTER($I$10:$I$16,$M$10:$M$16="Sim"), _xlfn._xlws.FILTER($I$19:$I$29,P19:P29="Sim")),P30)) -> 6.8004 | Q34: =IF(SUM(COUNTIF($M$10:$M$16,"Sim")) + SUM(COUNTIF(Q19:Q29,"Sim")) < 3, "N/D (são necessários pelo menos 3 preços)", IFERROR(MEDIAN(_xlfn._xlws.FILTER($I$10:$I$16,$M$10:$M$16="Sim"), _xlfn._xlws.FILTER($I$19:$I$29,Q19:Q29="Sim")),Q30)) -> 6.587055902 | R34: =IF(SUM(COUNTIF($M$10:$M$16,"Sim")) + SUM(COUNTIF(R19:R29,"Sim")) < 3, "N/D (são necessários pelo menos 3 preços)", IFERROR(MEDIAN(_xlfn._xlws.FILTER($I$10:$I$16,$M$10:$M$16="Sim"), _xlfn._xlws.FILTER($I$19:$I$29,R19:R29="Sim")),R30)) -> 6.328271176 | S34: =IF(SUM(COUNTIF($S$10:$S$16,"Sim")) + SUM(COUNTIF(S19:S29,"Sim")) < 3, "N/D (são necessários pelo menos 3 preços)", IFERROR(MEDIAN(_xlfn._xlws.FILTER($I$10:$I$16,$S$10:$S$16="Sim"), _xlfn._xlws.FILTER($I$19:$I$29,S19:S29="Sim")),S30)) -> N/D (são necessários pelo menos 3 preços)
L35: CV | M35: =IF(SUM(COUNTIF($M$10:$M$16,"Sim")) + SUM(COUNTIF(M19:M29,"Sim")) < 3, "N/D (são necessários pelo menos 3 preços)", IFERROR(ROUND(_xlfn.STDEV.S(_xlfn._xlws.FILTER($I$10:$I$16,$M$10:$M$16="Sim"), _xlfn._xlws.FILTER($I$19:$I$29,M19:M29="Sim")) / AVERAGE(_xlfn._xlws.FILTER($I$10:$I$16,$M$10:$M$16="Sim"), _xlfn._xlws.FILTER($I$19:$I$29,M19:M29="Sim")),4),M32) ) -> 0.1159 | N35: =IF(SUM(COUNTIF($M$10:$M$16,"Sim")) + SUM(COUNTIF(N19:N29,"Sim")) < 3, "N/D (são necessários pelo menos 3 preços)", IFERROR(ROUND(_xlfn.STDEV.S(_xlfn._xlws.FILTER($I$10:$I$16,$M$10:$M$16="Sim"), _xlfn._xlws.FILTER($I$19:$I$29,N19:N29="Sim")) / AVERAGE(_xlfn._xlws.FILTER($I$10:$I$16,$M$10:$M$16="Sim"), _xlfn._xlws.FILTER($I$19:$I$29,N19:N29="Sim")),4),N32) ) -> 0.1159 | O35: =IF(SUM(COUNTIF($M$10:$M$16,"Sim")) + SUM(COUNTIF(O19:O29,"Sim")) < 3, "N/D (são necessários pelo menos 3 preços)", IFERROR(ROUND(_xlfn.STDEV.S(_xlfn._xlws.FILTER($I$10:$I$16,$M$10:$M$16="Sim"), _xlfn._xlws.FILTER($I$19:$I$29,O19:O29="Sim")) / AVERAGE(_xlfn._xlws.FILTER($I$10:$I$16,$M$10:$M$16="Sim"), _xlfn._xlws.FILTER($I$19:$I$29,O19:O29="Sim")),4),O32) ) -> 0.0922 | P35: =IF(SUM(COUNTIF($M$10:$M$16,"Sim")) + SUM(COUNTIF(P19:P29,"Sim")) < 3, "N/D (são necessários pelo menos 3 preços)", IFERROR(ROUND(_xlfn.STDEV.S(_xlfn._xlws.FILTER($I$10:$I$16,$M$10:$M$16="Sim"), _xlfn._xlws.FILTER($I$19:$I$29,P19:P29="Sim")) / AVERAGE(_xlfn._xlws.FILTER($I$10:$I$16,$M$10:$M$16="Sim"), _xlfn._xlws.FILTER($I$19:$I$29,P19:P29="Sim")),4),P32) ) -> 0.1165 | Q35: =IF(SUM(COUNTIF($M$10:$M$16,"Sim")) + SUM(COUNTIF(Q19:Q29,"Sim")) < 3, "N/D (são necessários pelo menos 3 preços)", IFERROR(ROUND(_xlfn.STDEV.S(_xlfn._xlws.FILTER($I$10:$I$16,$M$10:$M$16="Sim"), _xlfn._xlws.FILTER($I$19:$I$29,Q19:Q29="Sim")) / AVERAGE(_xlfn._xlws.FILTER($I$10:$I$16,$M$10:$M$16="Sim"), _xlfn._xlws.FILTER($I$19:$I$29,Q19:Q29="Sim")),4),Q32) ) -> 0.0969 | R35: =IF(SUM(COUNTIF($M$10:$M$16,"Sim")) + SUM(COUNTIF(R19:R29,"Sim")) < 3, "N/D (são necessários pelo menos 3 preços)", IFERROR(ROUND(_xlfn.STDEV.S(_xlfn._xlws.FILTER($I$10:$I$16,$M$10:$M$16="Sim"), _xlfn._xlws.FILTER($I$19:$I$29,R19:R29="Sim")) / AVERAGE(_xlfn._xlws.FILTER($I$10:$I$16,$M$10:$M$16="Sim"), _xlfn._xlws.FILTER($I$19:$I$29,R19:R29="Sim")),4),R32) ) -> 0.1064 | S35: =IF(SUM(COUNTIF($S$10:$S$16,"Sim")) + SUM(COUNTIF(S19:S29,"Sim")) < 3, "N/D (são necessários pelo menos 3 preços)", IFERROR(_xlfn.STDEV.S(_xlfn._xlws.FILTER($I$10:$I$16,$S$10:$S$16="Sim"), _xlfn._xlws.FILTER($I$19:$I$29,S19:S29="Sim")) / AVERAGE(_xlfn._xlws.FILTER($I$10:$I$16,$S$10:$S$16="Sim"), _xlfn._xlws.FILTER($I$19:$I$29,S19:S29="Sim")),S32) ) -> N/D (são necessários pelo menos 3 preços)
B36: PREÇO UNITÁRIO ESTIMADO ADOTADO: | J36: =IF($J$33="","Selecione metodologia para exclusão de preços",MIN(J31:J32)) -> 6.373711803 | L36: Metodologia sugerida: | M36: =IF($M$35=MIN($M$35,$N$35:$R$35),M8,"Grupos - "&INDEX({"Todos";"Sem o maior";"Sem o menor";"Sem o maior e Sem o menor";"Sem os dois maiores"},MATCH(MIN($N$35:$R$35),$N$35:$R$35,0))) -> Grupos - Sem o maior
L37: Preço estimado sugerido: | M37: =IF($M$36=M8,SMALL($M$33:$M$34,1),MIN(INDEX($N$34:$R$34, MATCH(MIN($N$35:$R$35), $N$35:$R$35, 0)),INDEX($N$33:$R$33, MATCH(MIN($N$35:$R$35), $N$35:$R$35, 0)))) -> 6.373711803
L38: Metodologia a adotar: | M38: =IF(INDEX(L18:S18,N38)=0,"",INDEX(L18:S18,N38)) ->  | N38: 1

Sheet Peixe 35% 2 a 3 mm
B2: Processo | C2: ='Peixe 50% PB Farelo'!C2 -> 59511.000102/2026-55
B3: Responsável | C3: ='Peixe 50% PB Farelo'!C3 -> JHONES DE LIMA VIEIRA
B4: Área de Origem | C4: ='Peixe 50% PB Farelo'!C4 -> 14ª GTR
B5: Data da pesquisa | C5: ='Peixe 50% PB Farelo'!C5 -> Janeiro/2026 - Fevereiro/2026
B7: ITEM: | C7: Ração extrusada para peixe onívoro 35% PB – Proteína Bruta Mín.: 35%, granulometria 2 a 3 mm. Data de validade não inferior a 6 meses. | G7: UNIDADE DE MEDIDA: | H7: ='Peixe 50% PB Farelo'!H7 -> kg | I7: QUANTIDADE: | J7: 37500 | M7: Tabela auxiliar de metodologias para exclusão de preços | U7: Automática (menor CV)
B8: LICITAÇÕES ANTERIORES | M8: Licitações Anteriores - Outliers | U8: =M18 -> Outliers
B9: Órgão | C9: Edital/Ano - Nº do Lote / Item | D9: Quantidade | E9: Valor Unitário | F9: Data | G9: índice de atualização (nome) | H9: Variação acumulada do índice (%) | I9: Preço unitário atualizado | J9: Utilizar? (Sim/Não) | M9: Utilizar? | S9: Por critério do(a) analista | U9: =N18 -> Grupos - Todos
B10: 14ª SR - Fortaleza/CE | C10: Edital 90007/2024 - Item 4 | D10: 4337 | E10: 4.3 | F10: 2025-01-02 | G10: IPA-EP-DI Suprimentos agropecuários | H10: =(I10/E10)-1 -> 0.01654095744 | I10: =IF(ISBLANK(E10),"",E10*(1+(INDEX('índice de atualização'!B:B,MATCH(G10,'índice de atualização'!B:B,0)+COUNTA('índice de atualização'!B:B)-1)-INDEX('índice de atualização'!B:B,MATCH(TEXT(F10,"MM/AAAA"),'índice de atualização'!A:A,0)))/INDEX('índice de atualização'!B:B,MATCH(TEXT(F10,"MM/AAAA"),'índice de atualização'!A:A,0)))) -> 4.371126117 | J10: =IF(ISNUMBER(I10),IF($J$33<>$S$9,M10,S10),"") -> Sim | M10: =IF(ISNUMBER(I10),IF(OR(I10<_xlfn.QUARTILE.INC($I$10:$I$29,1)-1.5*(_xlfn.QUARTILE.INC($I$10:I29,3)-_xlfn.QUARTILE.INC($I$10:$I$29,1)),I10>_xlfn.QUARTILE.INC($I$10:$I$29,3)+1.5*(_xlfn.QUARTILE.INC($I$10:$I$29,3)-_xlfn.QUARTILE.INC($I$10:$I$29,1))),"Não","Sim"),"") -> Sim | U10: =O18 -> Grupos - Sem o maior
B11: 14ª SR - Fortaleza/CE | C11: Edital 90007/2024 - Item 12 | D11: 750 | E11: 4.28 | F11: 2025-02-18 | G11: IPA-EP-DI Suprimentos agropecuários | H11: =(I11/E11)-1 -> 0.0004507242601 | I11: =IF(ISBLANK(E11),"",E11*(1+(INDEX('índice de atualização'!B:B,MATCH(G11,'índice de atualização'!B:B,0)+COUNTA('índice de atualização'!B:B)-1)-INDEX('índice de atualização'!B:B,MATCH(TEXT(F11,"MM/AAAA"),'índice de atualização'!A:A,0)))/INDEX('índice de atualização'!B:B,MATCH(TEXT(F11,"MM/AAAA"),'índice de atualização'!A:A,0)))) -> 4.2819291 | J11: =IF(ISNUMBER(I11),IF($J$33<>$S$8,M11,S11),"") -> Sim | M11: =IF(ISNUMBER(I11),IF(OR(I11<_xlfn.QUARTILE.INC($I$10:$I$29,1)-1.5*(_xlfn.QUARTILE.INC($I$10:I30,3)-_xlfn.QUARTILE.INC($I$10:$I$29,1)),I11>_xlfn.QUARTILE.INC($I$10:$I$29,3)+1.5*(_xlfn.QUARTILE.INC($I$10:$I$29,3)-_xlfn.QUARTILE.INC($I$10:$I$29,1))),"Não","Sim"),"") -> Sim | U11: =P18 -> Grupos - Sem o menor
B12: 4ª SR - Aracaju/SE | C12: Edital 90002/2025 - Item 3 | D12: 6000 | E12: 4.08 | F12: 2025-07-11 | G12: IPA-EP-DI Suprimentos agropecuários | H12: =(I12/E12)-1 -> -0.02236834839 | I12: =IF(ISBLANK(E12),"",E12*(1+(INDEX('índice de atualização'!B:B,MATCH(G12,'índice de atualização'!B:B,0)+COUNTA('índice de atualização'!B:B)-1)-INDEX('índice de atualização'!B:B,MATCH(TEXT(F12,"MM/AAAA"),'índice de atualização'!A:A,0)))/INDEX('índice de atualização'!B:B,MATCH(TEXT(F12,"MM/AAAA"),'índice de atualização'!A:A,0)))) -> 3.988737139 | J12: Sim | M12: =IF(ISNUMBER(I12),IF(OR(I12<_xlfn.QUARTILE.INC($I$10:$I$29,1)-1.5*(_xlfn.QUARTILE.INC($I$10:I31,3)-_xlfn.QUARTILE.INC($I$10:$I$29,1)),I12>_xlfn.QUARTILE.INC($I$10:$I$29,3)+1.5*(_xlfn.QUARTILE.INC($I$10:$I$29,3)-_xlfn.QUARTILE.INC($I$10:$I$29,1))),"Não","Sim"),"") -> Sim | N12: =$M$12 -> Sim | O12: =$M$12 -> Sim | P12: =$M$12 -> Sim | Q12: =$M$12 -> Sim | R12: =$M$12 -> Sim | U12: =Q18 -> Grupos - Sem o maior e sem o menor
B13: 11ª SR - Amapá/AP | C13: Edital 90126/2024 - Item 1 e 5 | D13: 15000 | E13: 4.8 | F13: 2025-05-13 | G13: IPA-EP-DI Suprimentos agropecuários | H13: =(I13/E13)-1 -> -0.03987840836 | I13: =IF(ISBLANK(E13),"",E13*(1+(INDEX('índice de atualização'!B:B,MATCH(G13,'índice de atualização'!B:B,0)+COUNTA('índice de atualização'!B:B)-1)-INDEX('índice de atualização'!B:B,MATCH(TEXT(F13,"MM/AAAA"),'índice de atualização'!A:A,0)))/INDEX('índice de atualização'!B:B,MATCH(TEXT(F13,"MM/AAAA"),'índice de atualização'!A:A,0)))) -> 4.60858364 | J13: Sim | M13: =IF(ISNUMBER(I13),IF(OR(I13<_xlfn.QUARTILE.INC($I$10:$I$29,1)-1.5*(_xlfn.QUARTILE.INC($I$10:I32,3)-_xlfn.QUARTILE.INC($I$10:$I$29,1)),I13>_xlfn.QUARTILE.INC($I$10:$I$29,3)+1.5*(_xlfn.QUARTILE.INC($I$10:$I$29,3)-_xlfn.QUARTILE.INC($I$10:$I$29,1))),"Não","Sim"),"") -> Sim | N13: =$M$13 -> Sim | O13: =$M$13 -> Sim | P13: =$M$13 -> Sim | Q13: =$M$13 -> Sim | R13: =$M$13 -> Sim | U13: =R18 -> Grupos - Sem os dois maiores
B14: Codevasf Sede | C14: Edital 90057/2025 - Item 1 | D14: =1176*25 -> 29400 | E14: =124/25 -> 4.96 | F14: 2025-12-08 | G14: IPA-EP-DI Suprimentos agropecuários | H14: =(I14/E14)-1 -> 0 | I14: =IF(ISBLANK(E14),"",E14*(1+(INDEX('índice de atualização'!B:B,MATCH(G14,'índice de atualização'!B:B,0)+COUNTA('índice de atualização'!B:B)-1)-INDEX('índice de atualização'!B:B,MATCH(TEXT(F14,"MM/AAAA"),'índice de atualização'!A:A,0)))/INDEX('índice de atualização'!B:B,MATCH(TEXT(F14,"MM/AAAA"),'índice de atualização'!A:A,0)))) -> 4.96 | J14: Sim | M14: =IF(ISNUMBER(I14),IF(OR(I14<_xlfn.QUARTILE.INC($I$10:$I$29,1)-1.5*(_xlfn.QUARTILE.INC($I$10:I33,3)-_xlfn.QUARTILE.INC($I$10:$I$29,1)),I14>_xlfn.QUARTILE.INC($I$10:$I$29,3)+1.5*(_xlfn.QUARTILE.INC($I$10:$I$29,3)-_xlfn.QUARTILE.INC($I$10:$I$29,1))),"Não","Sim"),"") -> Sim | N14: =$M$14 -> Sim | O14: =$M$14 -> Sim | P14: =$M$14 -> Sim | Q14: =$M$14 -> Sim | R14: =$M$14 -> Sim | U14: =S18 -> Por critério do(a) analista
I15: =IF(ISBLANK(E15),"",E15*(1+(INDEX('índice de atualização'!B:B,MATCH(G15,'índice de atualização'!B:B,0)+COUNTA('índice de atualização'!B:B)-1)-INDEX('índice de atualização'!B:B,MATCH(TEXT(F15,"MM/AAAA"),'índice de atualização'!A:A,0)))/INDEX('índice de atualização'!B:B,MATCH(TEXT(F15,"MM/AAAA"),'índice de atualização'!A:A,0)))) ->  | M15: =IF(ISNUMBER(I15),IF(OR(I15<_xlfn.QUARTILE.INC($I$10:$I$29,1)-1.5*(_xlfn.QUARTILE.INC($I$10:I36,3)-_xlfn.QUARTILE.INC($I$10:$I$29,1)),I15>_xlfn.QUARTILE.INC($I$10:$I$29,3)+1.5*(_xlfn.QUARTILE.INC($I$10:$I$29,3)-_xlfn.QUARTILE.INC($I$10:$I$29,1))),"Não","Sim"),"") ->  | N15: =$M$15 ->  | O15: =$M$15 ->  | P15: =$M$15 ->  | Q15: =$M$15 ->  | R15: =$M$15 -> 
M16: =IF(ISNUMBER(I16),IF(OR(I16<_xlfn.QUARTILE.INC($I$10:$I$29,1)-1.5*(_xlfn.QUARTILE.INC($I$10:I39,3)-_xlfn.QUARTILE.INC($I$10:$I$29,1)),I16>_xlfn.QUARTILE.INC($I$10:$I$29,3)+1.5*(_xlfn.QUARTILE.INC($I$10:$I$29,3)-_xlfn.QUARTILE.INC($I$10:$I$29,1))),"Não","Sim"),"") ->  | N16: =$M$16 ->  | O16: =$M$16 ->  | P16: =$M$16 ->  | Q16: =$M$16 ->  | R16: =$M$16 -> 
B17: COTAÇÕES DE MERCADO | M17: Cotações
B18: Empresa | H18: Data | I18: Preço Unitário | J18: Utilizar? (Sim/Não) | M18: Outliers | N18: Grupos - Todos | O18: Grupos - Sem o maior | P18: Grupos - Sem o menor | Q18: Grupos - Sem o maior e sem o menor | R18: Grupos - Sem os dois maiores | S18: Por critério do(a) analista
B19: Agrosolo - Guabi | H19: 2026-02-10 | I19: =120.54/25 -> 4.8216 | J19: =IF(ISNUMBER(I19),IF($J$33=$M$18,M19,IF($J$33=$N$18,N19,IF($J$33=$O$18,O19,IF($J$33=$P$18,P19,IF($J$33=$Q$18,Q19,IF($J$33=$R$18,R19,IF($J$33=$S$18,S19,""))))))),"") -> Não | M19: =IF(ISNUMBER(I19),IF(OR(I19<_xlfn.QUARTILE.INC($I$10:$I$29,1)-1.5*(_xlfn.QUARTILE.INC($I$10:I40,3)-_xlfn.QUARTILE.INC($I$10:$I$29,1)),I19>_xlfn.QUARTILE.INC($I$10:$I$29,3)+1.5*(_xlfn.QUARTILE.INC($I$10:$I$29,3)-_xlfn.QUARTILE.INC($I$10:$I$29,1))),"Não","Sim"),"") -> Sim | N19: =IF(ISNUMBER(I19),"Sim","") -> Sim | O19: =IF(ISNUMBER(I19),IF(_xlfn.RANK.EQ(I19,$I$19:$I$29)=1,"Não","Sim"),"") -> Sim | P19: =IF(ISNUMBER(I19),IF(_xlfn.RANK.EQ(I19,$I$19:$I$29)=COUNT($I$19:$I$29),"Não","Sim"),"") -> Sim | Q19: =IF(O19="","",IF(AND(O19="Sim",P19="Sim"),"Sim","Não")) -> Sim | R19: =IF(ISNUMBER(I19),IF(_xlfn.RANK.EQ(I19,$I$19:$I$29)<=2,"Não","Sim"),"") -> Não
B20: Samaria Rações LTDA | H20: 2026-02-09 | I20: =107.5/25 -> 4.3 | J20: Sim | M20: =IF(ISNUMBER(I20),IF(OR(I20<_xlfn.QUARTILE.INC($I$10:$I$29,1)-1.5*(_xlfn.QUARTILE.INC($I$10:I40,3)-_xlfn.QUARTILE.INC($I$10:$I$29,1)),I20>_xlfn.QUARTILE.INC($I$10:$I$29,3)+1.5*(_xlfn.QUARTILE.INC($I$10:$I$29,3)-_xlfn.QUARTILE.INC($I$10:$I$29,1))),"Não","Sim"),"") -> Sim | N20: Sim | O20: Sim | P20: Sim | Q20: =IF(O20="","",IF(AND(O20="Sim",P20="Sim"),"Sim","Não")) -> Sim | R20: Sim
B21: Integral Mix Agroindustria | H21: 2026-02-07 | I21: =105.87/25 -> 4.2348 | J21: Sim | M21: =IF(ISNUMBER(I21),IF(OR(I21<_xlfn.QUARTILE.INC($I$10:$I$29,1)-1.5*(_xlfn.QUARTILE.INC($I$10:I40,3)-_xlfn.QUARTILE.INC($I$10:$I$29,1)),I21>_xlfn.QUARTILE.INC($I$10:$I$29,3)+1.5*(_xlfn.QUARTILE.INC($I$10:$I$29,3)-_xlfn.QUARTILE.INC($I$10:$I$29,1))),"Não","Sim"),"") -> Sim | N21: Sim | O21: Sim | P21: Não | Q21: Não | R21: Sim
B22: Comercial do Carmo ME | H22: 2026-02-12 | I22: =145/25 -> 5.8 | J22: Não | M22: =IF(ISNUMBER(I22),IF(OR(I22<_xlfn.QUARTILE.INC($I$10:$I$29,1)-1.5*(_xlfn.QUARTILE.INC($I$10:I40,3)-_xlfn.QUARTILE.INC($I$10:$I$29,1)),I22>_xlfn.QUARTILE.INC($I$10:$I$29,3)+1.5*(_xlfn.QUARTILE.INC($I$10:$I$29,3)-_xlfn.QUARTILE.INC($I$10:$I$29,1))),"Não","Sim"),"") -> Não | N22: Sim | O22: Não | P22: Sim | Q22: Não | R22: Não
M23: =IF(ISNUMBER(I23),IF(OR(I23<_xlfn.QUARTILE.INC($I$10:$I$29,1)-1.5*(_xlfn.QUARTILE.INC($I$10:I41,3)-_xlfn.QUARTILE.INC($I$10:$I$29,1)),I23>_xlfn.QUARTILE.INC($I$10:$I$29,3)+1.5*(_xlfn.QUARTILE.INC($I$10:$I$29,3)-_xlfn.QUARTILE.INC($I$10:$I$29,1))),"Não","Sim"),"") -> 
M24: =IF(ISNUMBER(I24),IF(OR(I24<_xlfn.QUARTILE.INC($I$10:$I$29,1)-1.5*(_xlfn.QUARTILE.INC($I$10:I42,3)-_xlfn.QUARTILE.INC($I$10:$I$29,1)),I24>_xlfn.QUARTILE.INC($I$10:$I$29,3)+1.5*(_xlfn.QUARTILE.INC($I$10:$I$29,3)-_xlfn.QUARTILE.INC($I$10:$I$29,1))),"Não","Sim"),"") -> 
M25: =IF(ISNUMBER(I25),IF(OR(I25<_xlfn.QUARTILE.INC($I$10:$I$29,1)-1.5*(_xlfn.QUARTILE.INC($I$10:I40,3)-_xlfn.QUARTILE.INC($I$10:$I$29,1)),I25>_xlfn.QUARTILE.INC($I$10:$I$29,3)+1.5*(_xlfn.QUARTILE.INC($I$10:$I$29,3)-_xlfn.QUARTILE.INC($I$10:$I$29,1))),"Não","Sim"),"") -> 
M26: =IF(ISNUMBER(I26),IF(OR(I26<_xlfn.QUARTILE.INC($I$10:$I$29,1)-1.5*(_xlfn.QUARTILE.INC($I$10:I40,3)-_xlfn.QUARTILE.INC($I$10:$I$29,1)),I26>_xlfn.QUARTILE.INC($I$10:$I$29,3)+1.5*(_xlfn.QUARTILE.INC($I$10:$I$29,3)-_xlfn.QUARTILE.INC($I$10:$I$29,1))),"Não","Sim"),"") -> 
M27: =IF(ISNUMBER(I27),IF(OR(I27<_xlfn.QUARTILE.INC($I$10:$I$29,1)-1.5*(_xlfn.QUARTILE.INC($I$10:I40,3)-_xlfn.QUARTILE.INC($I$10:$I$29,1)),I27>_xlfn.QUARTILE.INC($I$10:$I$29,3)+1.5*(_xlfn.QUARTILE.INC($I$10:$I$29,3)-_xlfn.QUARTILE.INC($I$10:$I$29,1))),"Não","Sim"),"") -> 
M28: =IF(ISNUMBER(I28),IF(OR(I28<_xlfn.QUARTILE.INC($I$10:$I$29,1)-1.5*(_xlfn.QUARTILE.INC($I$10:I40,3)-_xlfn.QUARTILE.INC($I$10:$I$29,1)),I28>_xlfn.QUARTILE.INC($I$10:$I$29,3)+1.5*(_xlfn.QUARTILE.INC($I$10:$I$29,3)-_xlfn.QUARTILE.INC($I$10:$I$29,1))),"Não","Sim"),"") -> 
M29: =IF(ISNUMBER(I29),IF(OR(I29<_xlfn.QUARTILE.INC($I$10:$I$29,1)-1.5*(_xlfn.QUARTILE.INC($I$10:I40,3)-_xlfn.QUARTILE.INC($I$10:$I$29,1)),I29>_xlfn.QUARTILE.INC($I$10:$I$29,3)+1.5*(_xlfn.QUARTILE.INC($I$10:$I$29,3)-_xlfn.QUARTILE.INC($I$10:$I$29,1))),"Não","Sim"),"") -> 
B30: Observações: | I30: CV: | J30: =IF($J$33="","Selecione metodologia para exclusão de preços",IF(COUNTIF($J$10:$J$29,"Sim")<3,"N/D (são necessários pelo menos 3 preços)",_xlfn.STDEV.S(IF($J$10:$J$29="Sim",$I$10:$I$29))/AVERAGE(IF($J$10:$J$29="Sim",$I$10:$I$29)))) -> 0.07065849837 | L30: Média (Cotações) | M30: =IF(COUNTIF(M19:M29,"Sim")<3,"N/D (são necessários pelo menos 3 preços)",AVERAGE(IF(M19:M29="Sim",$I19:$I29))) -> 4.452133333 | N30: =IF(COUNTIF(N19:N29,"Sim")<3,"N/D (são necessários pelo menos 3 preços)",AVERAGE(IF(N19:N29="Sim",$I19:$I29))) -> 4.7891 | O30: =IF(COUNTIF(O19:O29,"Sim")<3,"N/D (são necessários pelo menos 3 preços)",AVERAGE(IF(O19:O29="Sim",$I19:$I29))) -> 4.452133333 | P30: =IF(COUNTIF(P19:P29,"Sim")<3,"N/D (são necessários pelo menos 3 preços)",AVERAGE(IF(P19:P29="Sim",$I19:$I29))) -> 4.973866667 | Q30: =IF(COUNTIF(Q19:Q29,"Sim")<3,"N/D (são necessários pelo menos 3 preços)",AVERAGE(IF(Q19:Q29="Sim",$I19:$I29))) -> N/D (são necessários pelo menos 3 preços) | R30: =IF(COUNTIF(R19:R29,"Sim")<3,"N/D (são necessários pelo menos 3 preços)",AVERAGE(IF(R19:R29="Sim",$I19:$I29))) -> N/D (são necessários pelo menos 3 preços) | S30: =IF(COUNTIF(S19:S29,"Sim")<3,"N/D (são necessários pelo menos 3 preços)",AVERAGE(IF(S19:S29="Sim",$I19:$I29))) -> N/D (são necessários pelo menos 3 preços)
I31: Média: | J31: =IF($J$33="","Selecione metodologia para exclusão de preços",AVERAGE(IF($J$10:$J$29="Sim",$I$10:$I$29))) -> 4.392167999 | L31: Mediana (Cotações) | M31: =IF(COUNTIF(M19:M29,"Sim")<3,"N/D (são necessários pelo menos 3 preços)",MEDIAN(IF(M19:M29="Sim",$I19:$I29))) -> 4.3 | N31: =IF(COUNTIF(N19:N29,"Sim")<3,"N/D (são necessários pelo menos 3 preços)",MEDIAN(IF(N19:N29="Sim",$I19:$I29))) -> 4.5608 | O31: =IF(COUNTIF(O19:O29,"Sim")<3,"N/D (são necessários pelo menos 3 preços)",MEDIAN(IF(O19:O29="Sim",$I19:$I29))) -> 4.3 | P31: =IF(COUNTIF(P19:P29,"Sim")<3,"N/D (são necessários pelo menos 3 preços)",MEDIAN(IF(P19:P29="Sim",$I19:$I29))) -> 4.8216 | Q31: =IF(COUNTIF(Q19:Q29,"Sim")<3,"N/D (são necessários pelo menos 3 preços)",MEDIAN(IF(Q19:Q29="Sim",$I19:$I29))) -> N/D (são necessários pelo menos 3 preços) | R31: =IF(COUNTIF(R19:R29,"Sim")<3,"N/D (são necessários pelo menos 3 preços)",MEDIAN(IF(R19:R29="Sim",$I19:$I29))) -> N/D (são necessários pelo menos 3 preços) | S31: =IF(COUNTIF(S19:S29,"Sim")<3,"N/D (são necessários pelo menos 3 preços)",MEDIAN(IF(S19:S29="Sim",$I19:$I29))) -> N/D (são necessários pelo menos 3 preços)
I32: Mediana: | J32: =IF($J$33="","Selecione metodologia para exclusão de preços",MEDIAN(IF($J$10:$J$29="Sim",$I$10:$I$29))) -> 4.3 | L32: CV (Cotações) | M32: =IF(COUNTIF(M19:M29,"Sim")<3,"N/D (são necessários pelo menos 3 preços)",_xlfn.STDEV.S(IF(M19:M29="Sim",$I19:$I29))/AVERAGE(IF(M19:M29="Sim",$I19:$I29))) -> 0.07224041567 | N32: =IF(COUNTIF(N19:N29,"Sim")<3,"N/D (são necessários pelo menos 3 preços)",_xlfn.STDEV.S(IF(N19:N29="Sim",$I19:$I29))/AVERAGE(IF(N19:N29="Sim",$I19:$I29))) -> 0.1510282368 | O32: =IF(COUNTIF(O19:O29,"Sim")<3,"N/D (são necessários pelo menos 3 preços)",_xlfn.STDEV.S(IF(O19:O29="Sim",$I19:$I29))/AVERAGE(IF(O19:O29="Sim",$I19:$I29))) -> 0.07224041567 | P32: =IF(COUNTIF(P19:P29,"Sim")<3,"N/D (são necessários pelo menos 3 preços)",_xlfn.STDEV.S(IF(P19:P29="Sim",$I19:$I29))/AVERAGE(IF(P19:P29="Sim",$I19:$I29))) -> 0.1531010754 | Q32: =IF(COUNTIF(Q19:Q29,"Sim")<3,"N/D (são necessários pelo menos 3 preços)",_xlfn.STDEV.S(IF(Q19:Q29="Sim",$I19:$I29))/AVERAGE(IF(Q19:Q29="Sim",$I19:$I29))) -> N/D (são necessários pelo menos 3 preços) | R32: =IF(COUNTIF(R19:R29,"Sim")<3,"N/D (são necessários pelo menos 3 preços)",_xlfn.STDEV.S(IF(R19:R29="Sim",$I19:$I29))/AVERAGE(IF(R19:R29="Sim",$I19:$I29))) -> N/D (são necessários pelo menos 3 preços) | S32: =IF(COUNTIF(S19:S29,"Sim")<3,"N/D (são necessários pelo menos 3 preços)",_xlfn.STDEV.S(IF(S19:S29="Sim",$I19:$I29))/AVERAGE(IF(S19:S29="Sim",$I19:$I29))) -> N/D (são necessários pelo menos 3 preços)
B33: Metodologia de exclusão de preços adotada: | J33: =IF(M38="",INDEX(M18:S18,MATCH(MIN(M35:S35),M35:S35,0)),M38) -> Grupos - Sem os dois maiores | L33: Média | M33: =IF(SUM(COUNTIF($M$10:$M$16,"Sim")) + SUM(COUNTIF(M19:M29,"Sim")) < 3, "N/D (são necessários pelo menos 3 preços)", IFERROR(AVERAGE(_xlfn._xlws.FILTER($I$10:$I$16,$M$10:$M$16="Sim"), _xlfn._xlws.FILTER($I$19:$I$29,M19:M29="Sim")),M30)) -> 4.445846999 | N33: =IF(SUM(COUNTIF($M$10:$M$16,"Sim")) + SUM(COUNTIF(N19:N29,"Sim")) < 3, "N/D (são necessários pelo menos 3 preços)", IFERROR(AVERAGE(_xlfn._xlws.FILTER($I$10:$I$16,$M$10:$M$16="Sim"), _xlfn._xlws.FILTER($I$19:$I$29,N19:N29="Sim")),N30)) -> 4.596308444 | O33: =IF(SUM(COUNTIF($M$10:$M$16,"Sim")) + SUM(COUNTIF(O19:O29,"Sim")) < 3, "N/D (são necessários pelo menos 3 preços)", IFERROR(AVERAGE(_xlfn._xlws.FILTER($I$10:$I$16,$M$10:$M$16="Sim"), _xlfn._xlws.FILTER($I$19:$I$29,O19:O29="Sim")),O30)) -> 4.445846999 | P33: =IF(SUM(COUNTIF($M$10:$M$16,"Sim")) + SUM(COUNTIF(P19:P29,"Sim")) < 3, "N/D (são necessários pelo menos 3 preços)", IFERROR(AVERAGE(_xlfn._xlws.FILTER($I$10:$I$16,$M$10:$M$16="Sim"), _xlfn._xlws.FILTER($I$19:$I$29,P19:P29="Sim")),P30)) -> 4.641496999 | Q33: =IF(SUM(COUNTIF($M$10:$M$16,"Sim")) + SUM(COUNTIF(Q19:Q29,"Sim")) < 3, "N/D (são necessários pelo menos 3 preços)", IFERROR(AVERAGE(_xlfn._xlws.FILTER($I$10:$I$16,$M$10:$M$16="Sim"), _xlfn._xlws.FILTER($I$19:$I$29,Q19:Q29="Sim")),Q30)) -> 4.475996571 | R33: =IF(SUM(COUNTIF($M$10:$M$16,"Sim")) + SUM(COUNTIF(R19:R29,"Sim")) < 3, "N/D (são necessários pelo menos 3 preços)", IFERROR(AVERAGE(_xlfn._xlws.FILTER($I$10:$I$16,$M$10:$M$16="Sim"), _xlfn._xlws.FILTER($I$19:$I$29,R19:R29="Sim")),R30)) -> 4.392167999 | S33: =IF(SUM(COUNTIF($S$10:$S$16,"Sim")) + SUM(COUNTIF(S19:S29,"Sim")) < 3, "N/D (são necessários pelo menos 3 preços)", IFERROR(AVERAGE(_xlfn._xlws.FILTER($I$10:$I$16,$S$10:$S$16="Sim"), _xlfn._xlws.FILTER($I$19:$I$29,S19:S29="Sim")),S30)) -> N/D (são necessários pelo menos 3 preços)
L34: Mediana | M34: =IF(SUM(COUNTIF($M$10:$M$16,"Sim")) + SUM(COUNTIF(M19:M29,"Sim")) < 3, "N/D (são necessários pelo menos 3 preços)", IFERROR(MEDIAN(_xlfn._xlws.FILTER($I$10:$I$16,$M$10:$M$16="Sim"), _xlfn._xlws.FILTER($I$19:$I$29,M19:M29="Sim")),M30)) -> 4.335563059 | N34: =IF(SUM(COUNTIF($M$10:$M$16,"Sim")) + SUM(COUNTIF(N19:N29,"Sim")) < 3, "N/D (são necessários pelo menos 3 preços)", IFERROR(MEDIAN(_xlfn._xlws.FILTER($I$10:$I$16,$M$10:$M$16="Sim"), _xlfn._xlws.FILTER($I$19:$I$29,N19:N29="Sim")),N30)) -> 4.371126117 | O34: =IF(SUM(COUNTIF($M$10:$M$16,"Sim")) + SUM(COUNTIF(O19:O29,"Sim")) < 3, "N/D (são necessários pelo menos 3 preços)", IFERROR(MEDIAN(_xlfn._xlws.FILTER($I$10:$I$16,$M$10:$M$16="Sim"), _xlfn._xlws.FILTER($I$19:$I$29,O19:O29="Sim")),O30)) -> 4.335563059 | P34: =IF(SUM(COUNTIF($M$10:$M$16,"Sim")) + SUM(COUNTIF(P19:P29,"Sim")) < 3, "N/D (são necessários pelo menos 3 preços)", IFERROR(MEDIAN(_xlfn._xlws.FILTER($I$10:$I$16,$M$10:$M$16="Sim"), _xlfn._xlws.FILTER($I$19:$I$29,P19:P29="Sim")),P30)) -> 4.489854878 | Q34: =IF(SUM(COUNTIF($M$10:$M$16,"Sim")) + SUM(COUNTIF(Q19:Q29,"Sim")) < 3, "N/D (são necessários pelo menos 3 preços)", IFERROR(MEDIAN(_xlfn._xlws.FILTER($I$10:$I$16,$M$10:$M$16="Sim"), _xlfn._xlws.FILTER($I$19:$I$29,Q19:Q29="Sim")),Q30)) -> 4.371126117 | R34: =IF(SUM(COUNTIF($M$10:$M$16,"Sim")) + SUM(COUNTIF(R19:R29,"Sim")) < 3, "N/D (são necessários pelo menos 3 preços)", IFERROR(MEDIAN(_xlfn._xlws.FILTER($I$10:$I$16,$M$10:$M$16="Sim"), _xlfn._xlws.FILTER($I$19:$I$29,R19:R29="Sim")),R30)) -> 4.3 | S34: =IF(SUM(COUNTIF($S$10:$S$16,"Sim")) + SUM(COUNTIF(S19:S29,"Sim")) < 3, "N/D (são necessários pelo menos 3 preços)", IFERROR(MEDIAN(_xlfn._xlws.FILTER($I$10:$I$16,$S$10:$S$16="Sim"), _xlfn._xlws.FILTER($I$19:$I$29,S19:S29="Sim")),S30)) -> N/D (são necessários pelo menos 3 preços)
L35: CV | M35: =IF(SUM(COUNTIF($M$10:$M$16,"Sim")) + SUM(COUNTIF(M19:M29,"Sim")) < 3, "N/D (são necessários pelo menos 3 preços)", IFERROR(ROUND(_xlfn.STDEV.S(_xlfn._xlws.FILTER($I$10:$I$16,$M$10:$M$16="Sim"), _xlfn._xlws.FILTER($I$19:$I$29,M19:M29="Sim")) / AVERAGE(_xlfn._xlws.FILTER($I$10:$I$16,$M$10:$M$16="Sim"), _xlfn._xlws.FILTER($I$19:$I$29,M19:M29="Sim")),4),M32) ) -> 0.0731 | N35: =IF(SUM(COUNTIF($M$10:$M$16,"Sim")) + SUM(COUNTIF(N19:N29,"Sim")) < 3, "N/D (são necessários pelo menos 3 preços)", IFERROR(ROUND(_xlfn.STDEV.S(_xlfn._xlws.FILTER($I$10:$I$16,$M$10:$M$16="Sim"), _xlfn._xlws.FILTER($I$19:$I$29,N19:N29="Sim")) / AVERAGE(_xlfn._xlws.FILTER($I$10:$I$16,$M$10:$M$16="Sim"), _xlfn._xlws.FILTER($I$19:$I$29,N19:N29="Sim")),4),N32) ) -> 0.1184 | O35: =IF(SUM(COUNTIF($M$10:$M$16,"Sim")) + SUM(COUNTIF(O19:O29,"Sim")) < 3, "N/D (são necessários pelo menos 3 preços)", IFERROR(ROUND(_xlfn.STDEV.S(_xlfn._xlws.FILTER($I$10:$I$16,$M$10:$M$16="Sim"), _xlfn._xlws.FILTER($I$19:$I$29,O19:O29="Sim")) / AVERAGE(_xlfn._xlws.FILTER($I$10:$I$16,$M$10:$M$16="Sim"), _xlfn._xlws.FILTER($I$19:$I$29,O19:O29="Sim")),4),O32) ) -> 0.0731 | P35: =IF(SUM(COUNTIF($M$10:$M$16,"Sim")) + SUM(COUNTIF(P19:P29,"Sim")) < 3, "N/D (são necessários pelo menos 3 preços)", IFERROR(ROUND(_xlfn.STDEV.S(_xlfn._xlws.FILTER($I$10:$I$16,$M$10:$M$16="Sim"), _xlfn._xlws.FILTER($I$19:$I$29,P19:P29="Sim")) / AVERAGE(_xlfn._xlws.FILTER($I$10:$I$16,$M$10:$M$16="Sim"), _xlfn._xlws.FILTER($I$19:$I$29,P19:P29="Sim")),4),P32) ) -> 0.1214 | Q35: =IF(SUM(COUNTIF($M$10:$M$16,"Sim")) + SUM(COUNTIF(Q19:Q29,"Sim")) < 3, "N/D (são necessários pelo menos 3 preços)", IFERROR(ROUND(_xlfn.STDEV.S(_xlfn._xlws.FILTER($I$10:$I$16,$M$10:$M$16="Sim"), _xlfn._xlws.FILTER($I$19:$I$29,Q19:Q29="Sim")) / AVERAGE(_xlfn._xlws.FILTER($I$10:$I$16,$M$10:$M$16="Sim"), _xlfn._xlws.FILTER($I$19:$I$29,Q19:Q29="Sim")),4),Q32) ) -> 0.0757 | R35: =IF(SUM(COUNTIF($M$10:$M$16,"Sim")) + SUM(COUNTIF(R19:R29,"Sim")) < 3, "N/D (são necessários pelo menos 3 preços)", IFERROR(ROUND(_xlfn.STDEV.S(_xlfn._xlws.FILTER($I$10:$I$16,$M$10:$M$16="Sim"), _xlfn._xlws.FILTER($I$19:$I$29,R19:R29="Sim")) / AVERAGE(_xlfn._xlws.FILTER($I$10:$I$16,$M$10:$M$16="Sim"), _xlfn._xlws.FILTER($I$19:$I$29,R19:R29="Sim")),4),R32) ) -> 0.0707 | S35: =IF(SUM(COUNTIF($S$10:$S$16,"Sim")) + SUM(COUNTIF(S19:S29,"Sim")) < 3, "N/D (são necessários pelo menos 3 preços)", IFERROR(_xlfn.STDEV.S(_xlfn._xlws.FILTER($I$10:$I$16,$S$10:$S$16="Sim"), _xlfn._xlws.FILTER($I$19:$I$29,S19:S29="Sim")) / AVERAGE(_xlfn._xlws.FILTER($I$10:$I$16,$S$10:$S$16="Sim"), _xlfn._xlws.FILTER($I$19:$I$29,S19:S29="Sim")),S32) ) -> N/D (são necessários pelo menos 3 preços)
B36: PREÇO UNITÁRIO ESTIMADO ADOTADO: | J36: =IF($J$33="","Selecione metodologia para exclusão de preços",MIN(J31:J32)) -> 4.3 | L36: Metodologia sugerida: | M36: =IF($M$35=MIN($M$35,$N$35:$R$35),M8,"Grupos - "&INDEX({"Todos";"Sem o maior";"Sem o menor";"Sem o maior e Sem o menor";"Sem os dois maiores"},MATCH(MIN($N$35:$R$35),$N$35:$R$35,0))) -> Grupos - Sem os dois maiores
L37: Preço estimado sugerido: | M37: =IF($M$36=M8,SMALL($M$33:$M$34,1),MIN(INDEX($N$34:$R$34, MATCH(MIN($N$35:$R$35), $N$35:$R$35, 0)),INDEX($N$33:$R$33, MATCH(MIN($N$35:$R$35), $N$35:$R$35, 0)))) -> 4.3
L38: Metodologia a adotar: | M38: =IF(INDEX(L18:S18,N38)=0,"",INDEX(L18:S18,N38)) ->  | N38: 1

Sheet Peixe 35% 3 a 4 mm
B2: Processo | C2: ='Peixe 50% PB Farelo'!C2 -> 59511.000102/2026-55
B3: Responsável | C3: ='Peixe 50% PB Farelo'!C3 -> JHONES DE LIMA VIEIRA
B4: Área de Origem | C4: ='Peixe 50% PB Farelo'!C4 -> 14ª GTR
B5: Data da pesquisa | C5: ='Peixe 50% PB Farelo'!C5 -> Janeiro/2026 - Fevereiro/2026
B7: ITEM: | C7: Ração extrusada para peixe onívoro 35% PB – Proteína Bruta Mín.: 35%, granulometria 3 a 4 mm. Data de validade não inferior a 6 meses. | G7: UNIDADE DE MEDIDA: | H7: ='Peixe 50% PB Farelo'!H7 -> kg | I7: QUANTIDADE: | J7: 37500 | M7: Tabela auxiliar de metodologias para exclusão de preços | U7: Automática (menor CV)
B8: LICITAÇÕES ANTERIORES | M8: Licitações Anteriores - Outliers | U8: =M18 -> Outliers
B9: Órgão | C9: Edital/Ano - Nº do Lote / Item | D9: Quantidade | E9: Valor Unitário | F9: Data | G9: índice de atualização (nome) | H9: Variação acumulada do índice (%) | I9: Preço unitário atualizado | J9: Utilizar? (Sim/Não) | M9: Utilizar? | S9: Por critério do(a) analista | U9: =N18 -> Grupos - Todos
B10: 14ª SR - Fortaleza/CE | C10: Edital 90007/2024 - Item 5 | D10: 10909 | E10: 4.18 | F10: 2025-01-02 | G10: IPA-EP-DI Suprimentos agropecuários | H10: =(I10/E10)-1 -> 0.01654095744 | I10: =IF(ISBLANK(E10),"",E10*(1+(INDEX('índice de atualização'!B:B,MATCH(G10,'índice de atualização'!B:B,0)+COUNTA('índice de atualização'!B:B)-1)-INDEX('índice de atualização'!B:B,MATCH(TEXT(F10,"MM/AAAA"),'índice de atualização'!A:A,0)))/INDEX('índice de atualização'!B:B,MATCH(TEXT(F10,"MM/AAAA"),'índice de atualização'!A:A,0)))) -> 4.249141202 | J10: =IF(ISNUMBER(I10),IF($J$33<>$S$9,M10,S10),"") -> Sim | M10: =IF(ISNUMBER(I10),IF(OR(I10<_xlfn.QUARTILE.INC($I$10:$I$29,1)-1.5*(_xlfn.QUARTILE.INC($I$10:I29,3)-_xlfn.QUARTILE.INC($I$10:$I$29,1)),I10>_xlfn.QUARTILE.INC($I$10:$I$29,3)+1.5*(_xlfn.QUARTILE.INC($I$10:$I$29,3)-_xlfn.QUARTILE.INC($I$10:$I$29,1))),"Não","Sim"),"") -> Sim | U10: =O18 -> Grupos - Sem o maior
B11: 14ª SR - Fortaleza/CE | C11: Edital 90007/2024 - Item 13 | D11: 1900 | E11: 4.1 | F11: 2025-02-18 | G11: IPA-EP-DI Suprimentos agropecuários | H11: =(I11/E11)-1 -> 0.0004507242601 | I11: =IF(ISBLANK(E11),"",E11*(1+(INDEX('índice de atualização'!B:B,MATCH(G11,'índice de atualização'!B:B,0)+COUNTA('índice de atualização'!B:B)-1)-INDEX('índice de atualização'!B:B,MATCH(TEXT(F11,"MM/AAAA"),'índice de atualização'!A:A,0)))/INDEX('índice de atualização'!B:B,MATCH(TEXT(F11,"MM/AAAA"),'índice de atualização'!A:A,0)))) -> 4.101847969 | J11: =IF(ISNUMBER(I11),IF($J$33<>$S$8,M11,S11),"") -> Sim | M11: =IF(ISNUMBER(I11),IF(OR(I11<_xlfn.QUARTILE.INC($I$10:$I$29,1)-1.5*(_xlfn.QUARTILE.INC($I$10:I30,3)-_xlfn.QUARTILE.INC($I$10:$I$29,1)),I11>_xlfn.QUARTILE.INC($I$10:$I$29,3)+1.5*(_xlfn.QUARTILE.INC($I$10:$I$29,3)-_xlfn.QUARTILE.INC($I$10:$I$29,1))),"Não","Sim"),"") -> Sim | U11: =P18 -> Grupos - Sem o menor
B12: 4ª SR - Aracaju/SE | C12: Edital 90002/2025 - Item 3 | D12: 6000 | E12: 4.08 | F12: 2025-07-11 | G12: IPA-EP-DI Suprimentos agropecuários | H12: =(I12/E12)-1 -> -0.02236834839 | I12: =IF(ISBLANK(E12),"",E12*(1+(INDEX('índice de atualização'!B:B,MATCH(G12,'índice de atualização'!B:B,0)+COUNTA('índice de atualização'!B:B)-1)-INDEX('índice de atualização'!B:B,MATCH(TEXT(F12,"MM/AAAA"),'índice de atualização'!A:A,0)))/INDEX('índice de atualização'!B:B,MATCH(TEXT(F12,"MM/AAAA"),'índice de atualização'!A:A,0)))) -> 3.988737139 | J12: =IF(ISNUMBER(I12),IF($J$33<>$S$8,M12,S12),"") -> Sim | M12: =IF(ISNUMBER(I12),IF(OR(I12<_xlfn.QUARTILE.INC($I$10:$I$29,1)-1.5*(_xlfn.QUARTILE.INC($I$10:I31,3)-_xlfn.QUARTILE.INC($I$10:$I$29,1)),I12>_xlfn.QUARTILE.INC($I$10:$I$29,3)+1.5*(_xlfn.QUARTILE.INC($I$10:$I$29,3)-_xlfn.QUARTILE.INC($I$10:$I$29,1))),"Não","Sim"),"") -> Sim | N12: =$M$12 -> Sim | O12: =$M$12 -> Sim | P12: =$M$12 -> Sim | Q12: =$M$12 -> Sim | R12: =$M$12 -> Sim | U12: =Q18 -> Grupos - Sem o maior e sem o menor
B13: Codevasf Sede | C13: Edital 90057/2025 - Item 1 | D13: =1176*25 -> 29400 | E13: =124/25 -> 4.96 | F13: 2025-12-08 | G13: IPA-EP-DI Suprimentos agropecuários | H13: =(I13/E13)-1 -> 0 | I13: =IF(ISBLANK(E13),"",E13*(1+(INDEX('índice de atualização'!B:B,MATCH(G13,'índice de atualização'!B:B,0)+COUNTA('índice de atualização'!B:B)-1)-INDEX('índice de atualização'!B:B,MATCH(TEXT(F13,"MM/AAAA"),'índice de atualização'!A:A,0)))/INDEX('índice de atualização'!B:B,MATCH(TEXT(F13,"MM/AAAA"),'índice de atualização'!A:A,0)))) -> 4.96 | J13: Sim | M13: =IF(ISNUMBER(I13),IF(OR(I13<_xlfn.QUARTILE.INC($I$10:$I$29,1)-1.5*(_xlfn.QUARTILE.INC($I$10:I32,3)-_xlfn.QUARTILE.INC($I$10:$I$29,1)),I13>_xlfn.QUARTILE.INC($I$10:$I$29,3)+1.5*(_xlfn.QUARTILE.INC($I$10:$I$29,3)-_xlfn.QUARTILE.INC($I$10:$I$29,1))),"Não","Sim"),"") -> Sim | N13: =$M$13 -> Sim | O13: =$M$13 -> Sim | P13: =$M$13 -> Sim | Q13: =$M$13 -> Sim | R13: =$M$13 -> Sim | U13: =R18 -> Grupos - Sem os dois maiores
M14: =IF(ISNUMBER(I14),IF(OR(I14<_xlfn.QUARTILE.INC($I$10:$I$29,1)-1.5*(_xlfn.QUARTILE.INC($I$10:I33,3)-_xlfn.QUARTILE.INC($I$10:$I$29,1)),I14>_xlfn.QUARTILE.INC($I$10:$I$29,3)+1.5*(_xlfn.QUARTILE.INC($I$10:$I$29,3)-_xlfn.QUARTILE.INC($I$10:$I$29,1))),"Não","Sim"),"") ->  | N14: =$M$14 ->  | O14: =$M$14 ->  | P14: =$M$14 ->  | Q14: =$M$14 ->  | R14: =$M$14 ->  | U14: =S18 -> Por critério do(a) analista
M15: =IF(ISNUMBER(I15),IF(OR(I15<_xlfn.QUARTILE.INC($I$10:$I$29,1)-1.5*(_xlfn.QUARTILE.INC($I$10:I36,3)-_xlfn.QUARTILE.INC($I$10:$I$29,1)),I15>_xlfn.QUARTILE.INC($I$10:$I$29,3)+1.5*(_xlfn.QUARTILE.INC($I$10:$I$29,3)-_xlfn.QUARTILE.INC($I$10:$I$29,1))),"Não","Sim"),"") ->  | N15: =$M$15 ->  | O15: =$M$15 ->  | P15: =$M$15 ->  | Q15: =$M$15 ->  | R15: =$M$15 -> 
M16: =IF(ISNUMBER(I16),IF(OR(I16<_xlfn.QUARTILE.INC($I$10:$I$29,1)-1.5*(_xlfn.QUARTILE.INC($I$10:I39,3)-_xlfn.QUARTILE.INC($I$10:$I$29,1)),I16>_xlfn.QUARTILE.INC($I$10:$I$29,3)+1.5*(_xlfn.QUARTILE.INC($I$10:$I$29,3)-_xlfn.QUARTILE.INC($I$10:$I$29,1))),"Não","Sim"),"") ->  | N16: =$M$16 ->  | O16: =$M$16 ->  | P16: =$M$16 ->  | Q16: =$M$16 ->  | R16: =$M$16 -> 
B17: COTAÇÕES DE MERCADO | M17: Cotações
B18: Empresa | H18: Data | I18: Preço Unitário | J18: Utilizar? (Sim/Não) | M18: Outliers | N18: Grupos - Todos | O18: Grupos - Sem o maior | P18: Grupos - Sem o menor | Q18: Grupos - Sem o maior e sem o menor | R18: Grupos - Sem os dois maiores | S18: Por critério do(a) analista
B19: Agrosolo - Guabi | H19: 2026-02-10 | I19: =119.46/25 -> 4.7784 | J19: =IF(ISNUMBER(I19),IF($J$33=$M$18,M19,IF($J$33=$N$18,N19,IF($J$33=$O$18,O19,IF($J$33=$P$18,P19,IF($J$33=$Q$18,Q19,IF($J$33=$R$18,R19,IF($J$33=$S$18,S19,""))))))),"") -> Sim | M19: =IF(ISNUMBER(I19),IF(OR(I19<_xlfn.QUARTILE.INC($I$10:$I$29,1)-1.5*(_xlfn.QUARTILE.INC($I$10:I40,3)-_xlfn.QUARTILE.INC($I$10:$I$29,1)),I19>_xlfn.QUARTILE.INC($I$10:$I$29,3)+1.5*(_xlfn.QUARTILE.INC($I$10:$I$29,3)-_xlfn.QUARTILE.INC($I$10:$I$29,1))),"Não","Sim"),"") -> Sim | N19: =IF(ISNUMBER(I19),"Sim","") -> Sim | O19: =IF(ISNUMBER(I19),IF(_xlfn.RANK.EQ(I19,$I$19:$I$29)=1,"Não","Sim"),"") -> Sim | P19: =IF(ISNUMBER(I19),IF(_xlfn.RANK.EQ(I19,$I$19:$I$29)=COUNT($I$19:$I$29),"Não","Sim"),"") -> Sim | Q19: =IF(O19="","",IF(AND(O19="Sim",P19="Sim"),"Sim","Não")) -> Sim | R19: =IF(ISNUMBER(I19),IF(_xlfn.RANK.EQ(I19,$I$19:$I$29)<=2,"Não","Sim"),"") -> Não
B20: Samaria Rações LTDA | H20: 2026-02-09 | I20: =104.5/25 -> 4.18 | J20: Sim | M20: =IF(ISNUMBER(I20),IF(OR(I20<_xlfn.QUARTILE.INC($I$10:$I$29,1)-1.5*(_xlfn.QUARTILE.INC($I$10:I40,3)-_xlfn.QUARTILE.INC($I$10:$I$29,1)),I20>_xlfn.QUARTILE.INC($I$10:$I$29,3)+1.5*(_xlfn.QUARTILE.INC($I$10:$I$29,3)-_xlfn.QUARTILE.INC($I$10:$I$29,1))),"Não","Sim"),"") -> Sim | N20: Sim | O20: Sim | P20: Sim | Q20: =IF(O20="","",IF(AND(O20="Sim",P20="Sim"),"Sim","Não")) -> Sim | R20: Sim
B21: Integral Mix Agroindustria | H21: 2026-02-07 | I21: =95.31/25 -> 3.8124 | J21: Não | M21: =IF(ISNUMBER(I21),IF(OR(I21<_xlfn.QUARTILE.INC($I$10:$I$29,1)-1.5*(_xlfn.QUARTILE.INC($I$10:I40,3)-_xlfn.QUARTILE.INC($I$10:$I$29,1)),I21>_xlfn.QUARTILE.INC($I$10:$I$29,3)+1.5*(_xlfn.QUARTILE.INC($I$10:$I$29,3)-_xlfn.QUARTILE.INC($I$10:$I$29,1))),"Não","Sim"),"") -> Sim | N21: Sim | O21: Sim | P21: Não | Q21: Não | R21: Sim
B22: Comercial do Carmo ME | H22: 2026-02-12 | I22: =141/25 -> 5.64 | J22: Não | M22: =IF(ISNUMBER(I22),IF(OR(I22<_xlfn.QUARTILE.INC($I$10:$I$29,1)-1.5*(_xlfn.QUARTILE.INC($I$10:I40,3)-_xlfn.QUARTILE.INC($I$10:$I$29,1)),I22>_xlfn.QUARTILE.INC($I$10:$I$29,3)+1.5*(_xlfn.QUARTILE.INC($I$10:$I$29,3)-_xlfn.QUARTILE.INC($I$10:$I$29,1))),"Não","Sim"),"") -> Sim | N22: Sim | O22: Não | P22: Sim | Q22: Não | R22: Não
M23: =IF(ISNUMBER(I23),IF(OR(I23<_xlfn.QUARTILE.INC($I$10:$I$29,1)-1.5*(_xlfn.QUARTILE.INC($I$10:I41,3)-_xlfn.QUARTILE.INC($I$10:$I$29,1)),I23>_xlfn.QUARTILE.INC($I$10:$I$29,3)+1.5*(_xlfn.QUARTILE.INC($I$10:$I$29,3)-_xlfn.QUARTILE.INC($I$10:$I$29,1))),"Não","Sim"),"") -> 
M24: =IF(ISNUMBER(I24),IF(OR(I24<_xlfn.QUARTILE.INC($I$10:$I$29,1)-1.5*(_xlfn.QUARTILE.INC($I$10:I42,3)-_xlfn.QUARTILE.INC($I$10:$I$29,1)),I24>_xlfn.QUARTILE.INC($I$10:$I$29,3)+1.5*(_xlfn.QUARTILE.INC($I$10:$I$29,3)-_xlfn.QUARTILE.INC($I$10:$I$29,1))),"Não","Sim"),"") -> 
M25: =IF(ISNUMBER(I25),IF(OR(I25<_xlfn.QUARTILE.INC($I$10:$I$29,1)-1.5*(_xlfn.QUARTILE.INC($I$10:I40,3)-_xlfn.QUARTILE.INC($I$10:$I$29,1)),I25>_xlfn.QUARTILE.INC($I$10:$I$29,3)+1.5*(_xlfn.QUARTILE.INC($I$10:$I$29,3)-_xlfn.QUARTILE.INC($I$10:$I$29,1))),"Não","Sim"),"") -> 
M26: =IF(ISNUMBER(I26),IF(OR(I26<_xlfn.QUARTILE.INC($I$10:$I$29,1)-1.5*(_xlfn.QUARTILE.INC($I$10:I40,3)-_xlfn.QUARTILE.INC($I$10:$I$29,1)),I26>_xlfn.QUARTILE.INC($I$10:$I$29,3)+1.5*(_xlfn.QUARTILE.INC($I$10:$I$29,3)-_xlfn.QUARTILE.INC($I$10:$I$29,1))),"Não","Sim"),"") -> 
M27: =IF(ISNUMBER(I27),IF(OR(I27<_xlfn.QUARTILE.INC($I$10:$I$29,1)-1.5*(_xlfn.QUARTILE.INC($I$10:I40,3)-_xlfn.QUARTILE.INC($I$10:$I$29,1)),I27>_xlfn.QUARTILE.INC($I$10:$I$29,3)+1.5*(_xlfn.QUARTILE.INC($I$10:$I$29,3)-_xlfn.QUARTILE.INC($I$10:$I$29,1))),"Não","Sim"),"") -> 
M28: =IF(ISNUMBER(I28),IF(OR(I28<_xlfn.QUARTILE.INC($I$10:$I$29,1)-1.5*(_xlfn.QUARTILE.INC($I$10:I40,3)-_xlfn.QUARTILE.INC($I$10:$I$29,1)),I28>_xlfn.QUARTILE.INC($I$10:$I$29,3)+1.5*(_xlfn.QUARTILE.INC($I$10:$I$29,3)-_xlfn.QUARTILE.INC($I$10:$I$29,1))),"Não","Sim"),"") -> 
M29: =IF(ISNUMBER(I29),IF(OR(I29<_xlfn.QUARTILE.INC($I$10:$I$29,1)-1.5*(_xlfn.QUARTILE.INC($I$10:I40,3)-_xlfn.QUARTILE.INC($I$10:$I$29,1)),I29>_xlfn.QUARTILE.INC($I$10:$I$29,3)+1.5*(_xlfn.QUARTILE.INC($I$10:$I$29,3)-_xlfn.QUARTILE.INC($I$10:$I$29,1))),"Não","Sim"),"") -> 
B30: Observações: | I30: CV: | J30: =IF($J$33="","Selecione metodologia para exclusão de preços",IF(COUNTIF($J$10:$J$29,"Sim")<3,"N/D (são necessários pelo menos 3 preços)",_xlfn.STDEV.S(IF($J$10:$J$29="Sim",$I$10:$I$29))/AVERAGE(IF($J$10:$J$29="Sim",$I$10:$I$29)))) -> 0.09040210579 | L30: Média (Cotações) | M30: =IF(COUNTIF(M19:M29,"Sim")<3,"N/D (são necessários pelo menos 3 preços)",AVERAGE(IF(M19:M29="Sim",$I19:$I29))) -> 4.6027 | N30: =IF(COUNTIF(N19:N29,"Sim")<3,"N/D (são necessários pelo menos 3 preços)",AVERAGE(IF(N19:N29="Sim",$I19:$I29))) -> 4.6027 | O30: =IF(COUNTIF(O19:O29,"Sim")<3,"N/D (são necessários pelo menos 3 preços)",AVERAGE(IF(O19:O29="Sim",$I19:$I29))) -> 4.256933333 | P30: =IF(COUNTIF(P19:P29,"Sim")<3,"N/D (são necessários pelo menos 3 preços)",AVERAGE(IF(P19:P29="Sim",$I19:$I29))) -> 4.866133333 | Q30: =IF(COUNTIF(Q19:Q29,"Sim")<3,"N/D (são necessários pelo menos 3 preços)",AVERAGE(IF(Q19:Q29="Sim",$I19:$I29))) -> N/D (são necessários pelo menos 3 preços) | R30: =IF(COUNTIF(R19:R29,"Sim")<3,"N/D (são necessários pelo menos 3 preços)",AVERAGE(IF(R19:R29="Sim",$I19:$I29))) -> N/D (são necessários pelo menos 3 preços) | S30: =IF(COUNTIF(S19:S29,"Sim")<3,"N/D (são necessários pelo menos 3 preços)",AVERAGE(IF(S19:S29="Sim",$I19:$I29))) -> N/D (são necessários pelo menos 3 preços)
I31: Média: | J31: =IF($J$33="","Selecione metodologia para exclusão de preços",AVERAGE(IF($J$10:$J$29="Sim",$I$10:$I$29))) -> 4.376354385 | L31: Mediana (Cotações) | M31: =IF(COUNTIF(M19:M29,"Sim")<3,"N/D (são necessários pelo menos 3 preços)",MEDIAN(IF(M19:M29="Sim",$I19:$I29))) -> 4.4792 | N31: =IF(COUNTIF(N19:N29,"Sim")<3,"N/D (são necessários pelo menos 3 preços)",MEDIAN(IF(N19:N29="Sim",$I19:$I29))) -> 4.4792 | O31: =IF(COUNTIF(O19:O29,"Sim")<3,"N/D (são necessários pelo menos 3 preços)",MEDIAN(IF(O19:O29="Sim",$I19:$I29))) -> 4.18 | P31: =IF(COUNTIF(P19:P29,"Sim")<3,"N/D (são necessários pelo menos 3 preços)",MEDIAN(IF(P19:P29="Sim",$I19:$I29))) -> 4.7784 | Q31: =IF(COUNTIF(Q19:Q29,"Sim")<3,"N/D (são necessários pelo menos 3 preços)",MEDIAN(IF(Q19:Q29="Sim",$I19:$I29))) -> N/D (são necessários pelo menos 3 preços) | R31: =IF(COUNTIF(R19:R29,"Sim")<3,"N/D (são necessários pelo menos 3 preços)",MEDIAN(IF(R19:R29="Sim",$I19:$I29))) -> N/D (são necessários pelo menos 3 preços) | S31: =IF(COUNTIF(S19:S29,"Sim")<3,"N/D (são necessários pelo menos 3 preços)",MEDIAN(IF(S19:S29="Sim",$I19:$I29))) -> N/D (são necessários pelo menos 3 preços)
I32: Mediana: | J32: =IF($J$33="","Selecione metodologia para exclusão de preços",MEDIAN(IF($J$10:$J$29="Sim",$I$10:$I$29))) -> 4.214570601 | L32: CV (Cotações) | M32: =IF(COUNTIF(M19:M29,"Sim")<3,"N/D (são necessários pelo menos 3 preços)",_xlfn.STDEV.S(IF(M19:M29="Sim",$I19:$I29))/AVERAGE(IF(M19:M29="Sim",$I19:$I29))) -> 0.1733628447 | N32: =IF(COUNTIF(N19:N29,"Sim")<3,"N/D (são necessários pelo menos 3 preços)",_xlfn.STDEV.S(IF(N19:N29="Sim",$I19:$I29))/AVERAGE(IF(N19:N29="Sim",$I19:$I29))) -> 0.1733628447 | O32: =IF(COUNTIF(O19:O29,"Sim")<3,"N/D (são necessários pelo menos 3 preços)",_xlfn.STDEV.S(IF(O19:O29="Sim",$I19:$I29))/AVERAGE(IF(O19:O29="Sim",$I19:$I29))) -> 0.1145363577 | P32: =IF(COUNTIF(P19:P29,"Sim")<3,"N/D (são necessários pelo menos 3 preços)",_xlfn.STDEV.S(IF(P19:P29="Sim",$I19:$I29))/AVERAGE(IF(P19:P29="Sim",$I19:$I29))) -> 0.1508268081 | Q32: =IF(COUNTIF(Q19:Q29,"Sim")<3,"N/D (são necessários pelo menos 3 preços)",_xlfn.STDEV.S(IF(Q19:Q29="Sim",$I19:$I29))/AVERAGE(IF(Q19:Q29="Sim",$I19:$I29))) -> N/D (são necessários pelo menos 3 preços) | R32: =IF(COUNTIF(R19:R29,"Sim")<3,"N/D (são necessários pelo menos 3 preços)",_xlfn.STDEV.S(IF(R19:R29="Sim",$I19:$I29))/AVERAGE(IF(R19:R29="Sim",$I19:$I29))) -> N/D (são necessários pelo menos 3 preços) | S32: =IF(COUNTIF(S19:S29,"Sim")<3,"N/D (são necessários pelo menos 3 preços)",_xlfn.STDEV.S(IF(S19:S29="Sim",$I19:$I29))/AVERAGE(IF(S19:S29="Sim",$I19:$I29))) -> N/D (são necessários pelo menos 3 preços)
B33: Metodologia de exclusão de preços adotada: | J33: =IF(M38="",INDEX(M18:S18,MATCH(MIN(M35:S35),M35:S35,0)),M38) -> Grupos - Sem o maior e sem o menor | L33: Média | M33: =IF(SUM(COUNTIF($M$10:$M$16,"Sim")) + SUM(COUNTIF(M19:M29,"Sim")) < 3, "N/D (são necessários pelo menos 3 preços)", IFERROR(AVERAGE(_xlfn._xlws.FILTER($I$10:$I$16,$M$10:$M$16="Sim"), _xlfn._xlws.FILTER($I$19:$I$29,M19:M29="Sim")),M30)) -> 4.463815789 | N33: =IF(SUM(COUNTIF($M$10:$M$16,"Sim")) + SUM(COUNTIF(N19:N29,"Sim")) < 3, "N/D (são necessários pelo menos 3 preços)", IFERROR(AVERAGE(_xlfn._xlws.FILTER($I$10:$I$16,$M$10:$M$16="Sim"), _xlfn._xlws.FILTER($I$19:$I$29,N19:N29="Sim")),N30)) -> 4.463815789 | O33: =IF(SUM(COUNTIF($M$10:$M$16,"Sim")) + SUM(COUNTIF(O19:O29,"Sim")) < 3, "N/D (são necessários pelo menos 3 preços)", IFERROR(AVERAGE(_xlfn._xlws.FILTER($I$10:$I$16,$M$10:$M$16="Sim"), _xlfn._xlws.FILTER($I$19:$I$29,O19:O29="Sim")),O30)) -> 4.295789473 | P33: =IF(SUM(COUNTIF($M$10:$M$16,"Sim")) + SUM(COUNTIF(P19:P29,"Sim")) < 3, "N/D (são necessários pelo menos 3 preços)", IFERROR(AVERAGE(_xlfn._xlws.FILTER($I$10:$I$16,$M$10:$M$16="Sim"), _xlfn._xlws.FILTER($I$19:$I$29,P19:P29="Sim")),P30)) -> 4.556875187 | Q33: =IF(SUM(COUNTIF($M$10:$M$16,"Sim")) + SUM(COUNTIF(Q19:Q29,"Sim")) < 3, "N/D (são necessários pelo menos 3 preços)", IFERROR(AVERAGE(_xlfn._xlws.FILTER($I$10:$I$16,$M$10:$M$16="Sim"), _xlfn._xlws.FILTER($I$19:$I$29,Q19:Q29="Sim")),Q30)) -> 4.376354385 | R33: =IF(SUM(COUNTIF($M$10:$M$16,"Sim")) + SUM(COUNTIF(R19:R29,"Sim")) < 3, "N/D (são necessários pelo menos 3 preços)", IFERROR(AVERAGE(_xlfn._xlws.FILTER($I$10:$I$16,$M$10:$M$16="Sim"), _xlfn._xlws.FILTER($I$19:$I$29,R19:R29="Sim")),R30)) -> 4.215354385 | S33: =IF(SUM(COUNTIF($S$10:$S$16,"Sim")) + SUM(COUNTIF(S19:S29,"Sim")) < 3, "N/D (são necessários pelo menos 3 preços)", IFERROR(AVERAGE(_xlfn._xlws.FILTER($I$10:$I$16,$S$10:$S$16="Sim"), _xlfn._xlws.FILTER($I$19:$I$29,S19:S29="Sim")),S30)) -> N/D (são necessários pelo menos 3 preços)
L34: Mediana | M34: =IF(SUM(COUNTIF($M$10:$M$16,"Sim")) + SUM(COUNTIF(M19:M29,"Sim")) < 3, "N/D (são necessários pelo menos 3 preços)", IFERROR(MEDIAN(_xlfn._xlws.FILTER($I$10:$I$16,$M$10:$M$16="Sim"), _xlfn._xlws.FILTER($I$19:$I$29,M19:M29="Sim")),M30)) -> 4.214570601 | N34: =IF(SUM(COUNTIF($M$10:$M$16,"Sim")) + SUM(COUNTIF(N19:N29,"Sim")) < 3, "N/D (são necessários pelo menos 3 preços)", IFERROR(MEDIAN(_xlfn._xlws.FILTER($I$10:$I$16,$M$10:$M$16="Sim"), _xlfn._xlws.FILTER($I$19:$I$29,N19:N29="Sim")),N30)) -> 4.214570601 | O34: =IF(SUM(COUNTIF($M$10:$M$16,"Sim")) + SUM(COUNTIF(O19:O29,"Sim")) < 3, "N/D (são necessários pelo menos 3 preços)", IFERROR(MEDIAN(_xlfn._xlws.FILTER($I$10:$I$16,$M$10:$M$16="Sim"), _xlfn._xlws.FILTER($I$19:$I$29,O19:O29="Sim")),O30)) -> 4.18 | P34: =IF(SUM(COUNTIF($M$10:$M$16,"Sim")) + SUM(COUNTIF(P19:P29,"Sim")) < 3, "N/D (são necessários pelo menos 3 preços)", IFERROR(MEDIAN(_xlfn._xlws.FILTER($I$10:$I$16,$M$10:$M$16="Sim"), _xlfn._xlws.FILTER($I$19:$I$29,P19:P29="Sim")),P30)) -> 4.249141202 | Q34: =IF(SUM(COUNTIF($M$10:$M$16,"Sim")) + SUM(COUNTIF(Q19:Q29,"Sim")) < 3, "N/D (são necessários pelo menos 3 preços)", IFERROR(MEDIAN(_xlfn._xlws.FILTER($I$10:$I$16,$M$10:$M$16="Sim"), _xlfn._xlws.FILTER($I$19:$I$29,Q19:Q29="Sim")),Q30)) -> 4.214570601 | R34: =IF(SUM(COUNTIF($M$10:$M$16,"Sim")) + SUM(COUNTIF(R19:R29,"Sim")) < 3, "N/D (são necessários pelo menos 3 preços)", IFERROR(MEDIAN(_xlfn._xlws.FILTER($I$10:$I$16,$M$10:$M$16="Sim"), _xlfn._xlws.FILTER($I$19:$I$29,R19:R29="Sim")),R30)) -> 4.140923985 | S34: =IF(SUM(COUNTIF($S$10:$S$16,"Sim")) + SUM(COUNTIF(S19:S29,"Sim")) < 3, "N/D (são necessários pelo menos 3 preços)", IFERROR(MEDIAN(_xlfn._xlws.FILTER($I$10:$I$16,$S$10:$S$16="Sim"), _xlfn._xlws.FILTER($I$19:$I$29,S19:S29="Sim")),S30)) -> N/D (são necessários pelo menos 3 preços)
L35: CV | M35: =IF(SUM(COUNTIF($M$10:$M$16,"Sim")) + SUM(COUNTIF(M19:M29,"Sim")) < 3, "N/D (são necessários pelo menos 3 preços)", IFERROR(ROUND(_xlfn.STDEV.S(_xlfn._xlws.FILTER($I$10:$I$16,$M$10:$M$16="Sim"), _xlfn._xlws.FILTER($I$19:$I$29,M19:M29="Sim")) / AVERAGE(_xlfn._xlws.FILTER($I$10:$I$16,$M$10:$M$16="Sim"), _xlfn._xlws.FILTER($I$19:$I$29,M19:M29="Sim")),4),M32) ) -> 0.1375 | N35: =IF(SUM(COUNTIF($M$10:$M$16,"Sim")) + SUM(COUNTIF(N19:N29,"Sim")) < 3, "N/D (são necessários pelo menos 3 preços)", IFERROR(ROUND(_xlfn.STDEV.S(_xlfn._xlws.FILTER($I$10:$I$16,$M$10:$M$16="Sim"), _xlfn._xlws.FILTER($I$19:$I$29,N19:N29="Sim")) / AVERAGE(_xlfn._xlws.FILTER($I$10:$I$16,$M$10:$M$16="Sim"), _xlfn._xlws.FILTER($I$19:$I$29,N19:N29="Sim")),4),N32) ) -> 0.1375 | O35: =IF(SUM(COUNTIF($M$10:$M$16,"Sim")) + SUM(COUNTIF(O19:O29,"Sim")) < 3, "N/D (são necessários pelo menos 3 preços)", IFERROR(ROUND(_xlfn.STDEV.S(_xlfn._xlws.FILTER($I$10:$I$16,$M$10:$M$16="Sim"), _xlfn._xlws.FILTER($I$19:$I$29,O19:O29="Sim")) / AVERAGE(_xlfn._xlws.FILTER($I$10:$I$16,$M$10:$M$16="Sim"), _xlfn._xlws.FILTER($I$19:$I$29,O19:O29="Sim")),4),O32) ) -> 0.0976 | P35: =IF(SUM(COUNTIF($M$10:$M$16,"Sim")) + SUM(COUNTIF(P19:P29,"Sim")) < 3, "N/D (são necessários pelo menos 3 preços)", IFERROR(ROUND(_xlfn.STDEV.S(_xlfn._xlws.FILTER($I$10:$I$16,$M$10:$M$16="Sim"), _xlfn._xlws.FILTER($I$19:$I$29,P19:P29="Sim")) / AVERAGE(_xlfn._xlws.FILTER($I$10:$I$16,$M$10:$M$16="Sim"), _xlfn._xlws.FILTER($I$19:$I$29,P19:P29="Sim")),4),P32) ) -> 0.1314 | Q35: =IF(SUM(COUNTIF($M$10:$M$16,"Sim")) + SUM(COUNTIF(Q19:Q29,"Sim")) < 3, "N/D (são necessários pelo menos 3 preços)", IFERROR(ROUND(_xlfn.STDEV.S(_xlfn._xlws.FILTER($I$10:$I$16,$M$10:$M$16="Sim"), _xlfn._xlws.FILTER($I$19:$I$29,Q19:Q29="Sim")) / AVERAGE(_xlfn._xlws.FILTER($I$10:$I$16,$M$10:$M$16="Sim"), _xlfn._xlws.FILTER($I$19:$I$29,Q19:Q29="Sim")),4),Q32) ) -> 0.0904 | R35: =IF(SUM(COUNTIF($M$10:$M$16,"Sim")) + SUM(COUNTIF(R19:R29,"Sim")) < 3, "N/D (são necessários pelo menos 3 preços)", IFERROR(ROUND(_xlfn.STDEV.S(_xlfn._xlws.FILTER($I$10:$I$16,$M$10:$M$16="Sim"), _xlfn._xlws.FILTER($I$19:$I$29,R19:R29="Sim")) / AVERAGE(_xlfn._xlws.FILTER($I$10:$I$16,$M$10:$M$16="Sim"), _xlfn._xlws.FILTER($I$19:$I$29,R19:R29="Sim")),4),R32) ) -> 0.0939 | S35: =IF(SUM(COUNTIF($S$10:$S$16,"Sim")) + SUM(COUNTIF(S19:S29,"Sim")) < 3, "N/D (são necessários pelo menos 3 preços)", IFERROR(_xlfn.STDEV.S(_xlfn._xlws.FILTER($I$10:$I$16,$S$10:$S$16="Sim"), _xlfn._xlws.FILTER($I$19:$I$29,S19:S29="Sim")) / AVERAGE(_xlfn._xlws.FILTER($I$10:$I$16,$S$10:$S$16="Sim"), _xlfn._xlws.FILTER($I$19:$I$29,S19:S29="Sim")),S32) ) -> N/D (são necessários pelo menos 3 preços)
B36: PREÇO UNITÁRIO ESTIMADO ADOTADO: | J36: =IF($J$33="","Selecione metodologia para exclusão de preços",MIN(J31:J32)) -> 4.214570601 | L36: Metodologia sugerida: | M36: =IF($M$35=MIN($M$35,$N$35:$R$35),M8,"Grupos - "&INDEX({"Todos";"Sem o maior";"Sem o menor";"Sem o maior e Sem o menor";"Sem os dois maiores"},MATCH(MIN($N$35:$R$35),$N$35:$R$35,0))) -> Grupos - Sem o maior e Sem o menor
L37: Preço estimado sugerido: | M37: =IF($M$36=M8,SMALL($M$33:$M$34,1),MIN(INDEX($N$34:$R$34, MATCH(MIN($N$35:$R$35), $N$35:$R$35, 0)),INDEX($N$33:$R$33, MATCH(MIN($N$35:$R$35), $N$35:$R$35, 0)))) -> 4.214570601
L38: Metodologia a adotar: | M38: =IF(INDEX(L18:S18,N38)=0,"",INDEX(L18:S18,N38)) ->  | N38: 1

Sheet Peixe 32% 3 a 5 mm
B2: Processo | C2: ='Peixe 50% PB Farelo'!C2 -> 59511.000102/2026-55
B3: Responsável | C3: ='Peixe 50% PB Farelo'!C3 -> JHONES DE LIMA VIEIRA
B4: Área de Origem | C4: ='Peixe 50% PB Farelo'!C4 -> 14ª GTR
B5: Data da pesquisa | C5: ='Peixe 50% PB Farelo'!C5 -> Janeiro/2026 - Fevereiro/2026
B7: ITEM: | C7: Ração extrusada para peixe onívoro 32% PB – Proteína Bruta Mín.: 32%, granulometria 3 a 5 mm. Data de validade não inferior a 6 meses. | G7: UNIDADE DE MEDIDA: | H7: ='Peixe 50% PB Farelo'!H7 -> kg | I7: QUANTIDADE: | J7: 75000 | M7: Tabela auxiliar de metodologias para exclusão de preços | U7: Automática (menor CV)
B8: LICITAÇÕES ANTERIORES | M8: Licitações Anteriores - Outliers | U8: =M18 -> Outliers
B9: Órgão | C9: Edital/Ano - Nº do Lote / Item | D9: Quantidade | E9: Valor Unitário | F9: Data | G9: índice de atualização (nome) | H9: Variação acumulada do índice (%) | I9: Preço unitário atualizado | J9: Utilizar? (Sim/Não) | M9: Utilizar? | S9: Por critério do(a) analista | U9: =N18 -> Grupos - Todos
B10: 14ª SR - Fortaleza/CE | C10: Edital 90007/2024 - Item 6 | D10: 37262 | E10: 3.3 | F10: 2025-01-02 | G10: IPA-EP-DI Suprimentos agropecuários | H10: =(I10/E10)-1 -> 0.01654095744 | I10: =IF(ISBLANK(E10),"",E10*(1+(INDEX('índice de atualização'!B:B,MATCH(G10,'índice de atualização'!B:B,0)+COUNTA('índice de atualização'!B:B)-1)-INDEX('índice de atualização'!B:B,MATCH(TEXT(F10,"MM/AAAA"),'índice de atualização'!A:A,0)))/INDEX('índice de atualização'!B:B,MATCH(TEXT(F10,"MM/AAAA"),'índice de atualização'!A:A,0)))) -> 3.35458516 | J10: =IF(ISNUMBER(I10),IF($J$33<>$S$9,M10,S10),"") -> Sim | M10: =IF(ISNUMBER(I10),IF(OR(I10<_xlfn.QUARTILE.INC($I$10:$I$29,1)-1.5*(_xlfn.QUARTILE.INC($I$10:I29,3)-_xlfn.QUARTILE.INC($I$10:$I$29,1)),I10>_xlfn.QUARTILE.INC($I$10:$I$29,3)+1.5*(_xlfn.QUARTILE.INC($I$10:$I$29,3)-_xlfn.QUARTILE.INC($I$10:$I$29,1))),"Não","Sim"),"") -> Sim | U10: =O18 -> Grupos - Sem o maior
B11: 14ª SR - Fortaleza/CE | C11: Edital 90007/2024 - Item 14 | D11: 6550 | E11: 3.38 | F11: 2025-02-18 | G11: IPA-EP-DI Suprimentos agropecuários | H11: =(I11/E11)-1 -> 0.0004507242601 | I11: =IF(ISBLANK(E11),"",E11*(1+(INDEX('índice de atualização'!B:B,MATCH(G11,'índice de atualização'!B:B,0)+COUNTA('índice de atualização'!B:B)-1)-INDEX('índice de atualização'!B:B,MATCH(TEXT(F11,"MM/AAAA"),'índice de atualização'!A:A,0)))/INDEX('índice de atualização'!B:B,MATCH(TEXT(F11,"MM/AAAA"),'índice de atualização'!A:A,0)))) -> 3.381523448 | J11: =IF(ISNUMBER(I11),IF($J$33<>$S$8,M11,S11),"") -> Sim | M11: =IF(ISNUMBER(I11),IF(OR(I11<_xlfn.QUARTILE.INC($I$10:$I$29,1)-1.5*(_xlfn.QUARTILE.INC($I$10:I30,3)-_xlfn.QUARTILE.INC($I$10:$I$29,1)),I11>_xlfn.QUARTILE.INC($I$10:$I$29,3)+1.5*(_xlfn.QUARTILE.INC($I$10:$I$29,3)-_xlfn.QUARTILE.INC($I$10:$I$29,1))),"Não","Sim"),"") -> Sim | U11: =P18 -> Grupos - Sem o menor
M12: =IF(ISNUMBER(I12),IF(OR(I12<_xlfn.QUARTILE.INC($I$10:$I$29,1)-1.5*(_xlfn.QUARTILE.INC($I$10:I31,3)-_xlfn.QUARTILE.INC($I$10:$I$29,1)),I12>_xlfn.QUARTILE.INC($I$10:$I$29,3)+1.5*(_xlfn.QUARTILE.INC($I$10:$I$29,3)-_xlfn.QUARTILE.INC($I$10:$I$29,1))),"Não","Sim"),"") ->  | N12: =$M$12 ->  | O12: =$M$12 ->  | P12: =$M$12 ->  | Q12: =$M$12 ->  | R12: =$M$12 ->  | U12: =Q18 -> Grupos - Sem o maior e sem o menor
M13: =IF(ISNUMBER(I13),IF(OR(I13<_xlfn.QUARTILE.INC($I$10:$I$29,1)-1.5*(_xlfn.QUARTILE.INC($I$10:I32,3)-_xlfn.QUARTILE.INC($I$10:$I$29,1)),I13>_xlfn.QUARTILE.INC($I$10:$I$29,3)+1.5*(_xlfn.QUARTILE.INC($I$10:$I$29,3)-_xlfn.QUARTILE.INC($I$10:$I$29,1))),"Não","Sim"),"") ->  | N13: =$M$13 ->  | O13: =$M$13 ->  | P13: =$M$13 ->  | Q13: =$M$13 ->  | R13: =$M$13 ->  | U13: =R18 -> Grupos - Sem os dois maiores
M14: =IF(ISNUMBER(I14),IF(OR(I14<_xlfn.QUARTILE.INC($I$10:$I$29,1)-1.5*(_xlfn.QUARTILE.INC($I$10:I33,3)-_xlfn.QUARTILE.INC($I$10:$I$29,1)),I14>_xlfn.QUARTILE.INC($I$10:$I$29,3)+1.5*(_xlfn.QUARTILE.INC($I$10:$I$29,3)-_xlfn.QUARTILE.INC($I$10:$I$29,1))),"Não","Sim"),"") ->  | N14: =$M$14 ->  | O14: =$M$14 ->  | P14: =$M$14 ->  | Q14: =$M$14 ->  | R14: =$M$14 ->  | U14: =S18 -> Por critério do(a) analista
M15: =IF(ISNUMBER(I15),IF(OR(I15<_xlfn.QUARTILE.INC($I$10:$I$29,1)-1.5*(_xlfn.QUARTILE.INC($I$10:I36,3)-_xlfn.QUARTILE.INC($I$10:$I$29,1)),I15>_xlfn.QUARTILE.INC($I$10:$I$29,3)+1.5*(_xlfn.QUARTILE.INC($I$10:$I$29,3)-_xlfn.QUARTILE.INC($I$10:$I$29,1))),"Não","Sim"),"") ->  | N15: =$M$15 ->  | O15: =$M$15 ->  | P15: =$M$15 ->  | Q15: =$M$15 ->  | R15: =$M$15 -> 
M16: =IF(ISNUMBER(I16),IF(OR(I16<_xlfn.QUARTILE.INC($I$10:$I$29,1)-1.5*(_xlfn.QUARTILE.INC($I$10:I39,3)-_xlfn.QUARTILE.INC($I$10:$I$29,1)),I16>_xlfn.QUARTILE.INC($I$10:$I$29,3)+1.5*(_xlfn.QUARTILE.INC($I$10:$I$29,3)-_xlfn.QUARTILE.INC($I$10:$I$29,1))),"Não","Sim"),"") ->  | N16: =$M$16 ->  | O16: =$M$16 ->  | P16: =$M$16 ->  | Q16: =$M$16 ->  | R16: =$M$16 -> 
B17: COTAÇÕES DE MERCADO | M17: Cotações
B18: Empresa | H18: Data | I18: Preço Unitário | J18: Utilizar? (Sim/Não) | M18: Outliers | N18: Grupos - Todos | O18: Grupos - Sem o maior | P18: Grupos - Sem o menor | Q18: Grupos - Sem o maior e sem o menor | R18: Grupos - Sem os dois maiores | S18: Por critério do(a) analista
B19: Agrosolo - Guabi | H19: 2026-02-10 | I19: =102.8/25 -> 4.112 | J19: =IF(ISNUMBER(I19),IF($J$33=$M$18,M19,IF($J$33=$N$18,N19,IF($J$33=$O$18,O19,IF($J$33=$P$18,P19,IF($J$33=$Q$18,Q19,IF($J$33=$R$18,R19,IF($J$33=$S$18,S19,""))))))),"") -> Não | M19: =IF(ISNUMBER(I19),IF(OR(I19<_xlfn.QUARTILE.INC($I$10:$I$29,1)-1.5*(_xlfn.QUARTILE.INC($I$10:I40,3)-_xlfn.QUARTILE.INC($I$10:$I$29,1)),I19>_xlfn.QUARTILE.INC($I$10:$I$29,3)+1.5*(_xlfn.QUARTILE.INC($I$10:$I$29,3)-_xlfn.QUARTILE.INC($I$10:$I$29,1))),"Não","Sim"),"") -> Sim | N19: =IF(ISNUMBER(I19),"Sim","") -> Sim | O19: =IF(ISNUMBER(I19),IF(_xlfn.RANK.EQ(I19,$I$19:$I$29)=1,"Não","Sim"),"") -> Sim | P19: =IF(ISNUMBER(I19),IF(_xlfn.RANK.EQ(I19,$I$19:$I$29)=COUNT($I$19:$I$29),"Não","Sim"),"") -> Sim | Q19: =IF(O19="","",IF(AND(O19="Sim",P19="Sim"),"Sim","Não")) -> Sim | R19: =IF(ISNUMBER(I19),IF(_xlfn.RANK.EQ(I19,$I$19:$I$29)<=2,"Não","Sim"),"") -> Não
B20: Samaria Rações LTDA | H20: 2026-02-09 | I20: =82.5/25 -> 3.3 | J20: Sim | M20: =IF(ISNUMBER(I20),IF(OR(I20<_xlfn.QUARTILE.INC($I$10:$I$29,1)-1.5*(_xlfn.QUARTILE.INC($I$10:I40,3)-_xlfn.QUARTILE.INC($I$10:$I$29,1)),I20>_xlfn.QUARTILE.INC($I$10:$I$29,3)+1.5*(_xlfn.QUARTILE.INC($I$10:$I$29,3)-_xlfn.QUARTILE.INC($I$10:$I$29,1))),"Não","Sim"),"") -> Sim | N20: Sim | O20: Sim | P20: Não | Q20: =IF(O20="","",IF(AND(O20="Sim",P20="Sim"),"Sim","Não")) -> Não | R20: Sim
B21: Integral Mix Agroindustria | H21: 2026-02-07 | I21: =95.31/25 -> 3.8124 | J21: Sim | M21: =IF(ISNUMBER(I21),IF(OR(I21<_xlfn.QUARTILE.INC($I$10:$I$29,1)-1.5*(_xlfn.QUARTILE.INC($I$10:I40,3)-_xlfn.QUARTILE.INC($I$10:$I$29,1)),I21>_xlfn.QUARTILE.INC($I$10:$I$29,3)+1.5*(_xlfn.QUARTILE.INC($I$10:$I$29,3)-_xlfn.QUARTILE.INC($I$10:$I$29,1))),"Não","Sim"),"") -> Sim | N21: Sim | O21: Sim | P21: Sim | Q21: Sim | R21: Sim
B22: Comercial do Carmo ME | H22: 2026-02-12 | I22: =111/25 -> 4.44 | J22: Não | M22: =IF(ISNUMBER(I22),IF(OR(I22<_xlfn.QUARTILE.INC($I$10:$I$29,1)-1.5*(_xlfn.QUARTILE.INC($I$10:I40,3)-_xlfn.QUARTILE.INC($I$10:$I$29,1)),I22>_xlfn.QUARTILE.INC($I$10:$I$29,3)+1.5*(_xlfn.QUARTILE.INC($I$10:$I$29,3)-_xlfn.QUARTILE.INC($I$10:$I$29,1))),"Não","Sim"),"") -> Sim | N22: Sim | O22: Não | P22: Sim | Q22: Não | R22: Não
M23: =IF(ISNUMBER(I23),IF(OR(I23<_xlfn.QUARTILE.INC($I$10:$I$29,1)-1.5*(_xlfn.QUARTILE.INC($I$10:I41,3)-_xlfn.QUARTILE.INC($I$10:$I$29,1)),I23>_xlfn.QUARTILE.INC($I$10:$I$29,3)+1.5*(_xlfn.QUARTILE.INC($I$10:$I$29,3)-_xlfn.QUARTILE.INC($I$10:$I$29,1))),"Não","Sim"),"") -> 
M24: =IF(ISNUMBER(I24),IF(OR(I24<_xlfn.QUARTILE.INC($I$10:$I$29,1)-1.5*(_xlfn.QUARTILE.INC($I$10:I42,3)-_xlfn.QUARTILE.INC($I$10:$I$29,1)),I24>_xlfn.QUARTILE.INC($I$10:$I$29,3)+1.5*(_xlfn.QUARTILE.INC($I$10:$I$29,3)-_xlfn.QUARTILE.INC($I$10:$I$29,1))),"Não","Sim"),"") -> 
M25: =IF(ISNUMBER(I25),IF(OR(I25<_xlfn.QUARTILE.INC($I$10:$I$29,1)-1.5*(_xlfn.QUARTILE.INC($I$10:I40,3)-_xlfn.QUARTILE.INC($I$10:$I$29,1)),I25>_xlfn.QUARTILE.INC($I$10:$I$29,3)+1.5*(_xlfn.QUARTILE.INC($I$10:$I$29,3)-_xlfn.QUARTILE.INC($I$10:$I$29,1))),"Não","Sim"),"") -> 
M26: =IF(ISNUMBER(I26),IF(OR(I26<_xlfn.QUARTILE.INC($I$10:$I$29,1)-1.5*(_xlfn.QUARTILE.INC($I$10:I40,3)-_xlfn.QUARTILE.INC($I$10:$I$29,1)),I26>_xlfn.QUARTILE.INC($I$10:$I$29,3)+1.5*(_xlfn.QUARTILE.INC($I$10:$I$29,3)-_xlfn.QUARTILE.INC($I$10:$I$29,1))),"Não","Sim"),"") -> 
M27: =IF(ISNUMBER(I27),IF(OR(I27<_xlfn.QUARTILE.INC($I$10:$I$29,1)-1.5*(_xlfn.QUARTILE.INC($I$10:I40,3)-_xlfn.QUARTILE.INC($I$10:$I$29,1)),I27>_xlfn.QUARTILE.INC($I$10:$I$29,3)+1.5*(_xlfn.QUARTILE.INC($I$10:$I$29,3)-_xlfn.QUARTILE.INC($I$10:$I$29,1))),"Não","Sim"),"") -> 
M28: =IF(ISNUMBER(I28),IF(OR(I28<_xlfn.QUARTILE.INC($I$10:$I$29,1)-1.5*(_xlfn.QUARTILE.INC($I$10:I40,3)-_xlfn.QUARTILE.INC($I$10:$I$29,1)),I28>_xlfn.QUARTILE.INC($I$10:$I$29,3)+1.5*(_xlfn.QUARTILE.INC($I$10:$I$29,3)-_xlfn.QUARTILE.INC($I$10:$I$29,1))),"Não","Sim"),"") -> 
M29: =IF(ISNUMBER(I29),IF(OR(I29<_xlfn.QUARTILE.INC($I$10:$I$29,1)-1.5*(_xlfn.QUARTILE.INC($I$10:I40,3)-_xlfn.QUARTILE.INC($I$10:$I$29,1)),I29>_xlfn.QUARTILE.INC($I$10:$I$29,3)+1.5*(_xlfn.QUARTILE.INC($I$10:$I$29,3)-_xlfn.QUARTILE.INC($I$10:$I$29,1))),"Não","Sim"),"") -> 
B30: Observações: | I30: CV: | J30: =IF($J$33="","Selecione metodologia para exclusão de preços",IF(COUNTIF($J$10:$J$29,"Sim")<3,"N/D (são necessários pelo menos 3 preços)",_xlfn.STDEV.S(IF($J$10:$J$29="Sim",$I$10:$I$29))/AVERAGE(IF($J$10:$J$29="Sim",$I$10:$I$29)))) -> 0.06815609093 | L30: Média (Cotações) | M30: =IF(COUNTIF(M19:M29,"Sim")<3,"N/D (são necessários pelo menos 3 preços)",AVERAGE(IF(M19:M29="Sim",$I19:$I29))) -> 3.9161 | N30: =IF(COUNTIF(N19:N29,"Sim")<3,"N/D (são necessários pelo menos 3 preços)",AVERAGE(IF(N19:N29="Sim",$I19:$I29))) -> 3.9161 | O30: =IF(COUNTIF(O19:O29,"Sim")<3,"N/D (são necessários pelo menos 3 preços)",AVERAGE(IF(O19:O29="Sim",$I19:$I29))) -> 3.741466667 | P30: =IF(COUNTIF(P19:P29,"Sim")<3,"N/D (são necessários pelo menos 3 preços)",AVERAGE(IF(P19:P29="Sim",$I19:$I29))) -> 4.121466667 | Q30: =IF(COUNTIF(Q19:Q29,"Sim")<3,"N/D (são necessários pelo menos 3 preços)",AVERAGE(IF(Q19:Q29="Sim",$I19:$I29))) -> N/D (são necessários pelo menos 3 preços) | R30: =IF(COUNTIF(R19:R29,"Sim")<3,"N/D (são necessários pelo menos 3 preços)",AVERAGE(IF(R19:R29="Sim",$I19:$I29))) -> N/D (são necessários pelo menos 3 preços) | S30: =IF(COUNTIF(S19:S29,"Sim")<3,"N/D (são necessários pelo menos 3 preços)",AVERAGE(IF(S19:S29="Sim",$I19:$I29))) -> N/D (são necessários pelo menos 3 preços)
I31: Média: | J31: =IF($J$33="","Selecione metodologia para exclusão de preços",AVERAGE(IF($J$10:$J$29="Sim",$I$10:$I$29))) -> 3.462127152 | L31: Mediana (Cotações) | M31: =IF(COUNTIF(M19:M29,"Sim")<3,"N/D (são necessários pelo menos 3 preços)",MEDIAN(IF(M19:M29="Sim",$I19:$I29))) -> 3.9622 | N31: =IF(COUNTIF(N19:N29,"Sim")<3,"N/D (são necessários pelo menos 3 preços)",MEDIAN(IF(N19:N29="Sim",$I19:$I29))) -> 3.9622 | O31: =IF(COUNTIF(O19:O29,"Sim")<3,"N/D (são necessários pelo menos 3 preços)",MEDIAN(IF(O19:O29="Sim",$I19:$I29))) -> 3.8124 | P31: =IF(COUNTIF(P19:P29,"Sim")<3,"N/D (são necessários pelo menos 3 preços)",MEDIAN(IF(P19:P29="Sim",$I19:$I29))) -> 4.112 | Q31: =IF(COUNTIF(Q19:Q29,"Sim")<3,"N/D (são necessários pelo menos 3 preços)",MEDIAN(IF(Q19:Q29="Sim",$I19:$I29))) -> N/D (são necessários pelo menos 3 preços) | R31: =IF(COUNTIF(R19:R29,"Sim")<3,"N/D (são necessários pelo menos 3 preços)",MEDIAN(IF(R19:R29="Sim",$I19:$I29))) -> N/D (são necessários pelo menos 3 preços) | S31: =IF(COUNTIF(S19:S29,"Sim")<3,"N/D (são necessários pelo menos 3 preços)",MEDIAN(IF(S19:S29="Sim",$I19:$I29))) -> N/D (são necessários pelo menos 3 preços)
I32: Mediana: | J32: =IF($J$33="","Selecione metodologia para exclusão de preços",MEDIAN(IF($J$10:$J$29="Sim",$I$10:$I$29))) -> 3.368054304 | L32: CV (Cotações) | M32: =IF(COUNTIF(M19:M29,"Sim")<3,"N/D (são necessários pelo menos 3 preços)",_xlfn.STDEV.S(IF(M19:M29="Sim",$I19:$I29))/AVERAGE(IF(M19:M29="Sim",$I19:$I29))) -> 0.1236286533 | N32: =IF(COUNTIF(N19:N29,"Sim")<3,"N/D (são necessários pelo menos 3 preços)",_xlfn.STDEV.S(IF(N19:N29="Sim",$I19:$I29))/AVERAGE(IF(N19:N29="Sim",$I19:$I29))) -> 0.1236286533 | O32: =IF(COUNTIF(O19:O29,"Sim")<3,"N/D (são necessários pelo menos 3 preços)",_xlfn.STDEV.S(IF(O19:O29="Sim",$I19:$I29))/AVERAGE(IF(O19:O29="Sim",$I19:$I29))) -> 0.1097486881 | P32: =IF(COUNTIF(P19:P29,"Sim")<3,"N/D (são necessários pelo menos 3 preços)",_xlfn.STDEV.S(IF(P19:P29="Sim",$I19:$I29))/AVERAGE(IF(P19:P29="Sim",$I19:$I29))) -> 0.07616392487 | Q32: =IF(COUNTIF(Q19:Q29,"Sim")<3,"N/D (são necessários pelo menos 3 preços)",_xlfn.STDEV.S(IF(Q19:Q29="Sim",$I19:$I29))/AVERAGE(IF(Q19:Q29="Sim",$I19:$I29))) -> N/D (são necessários pelo menos 3 preços) | R32: =IF(COUNTIF(R19:R29,"Sim")<3,"N/D (são necessários pelo menos 3 preços)",_xlfn.STDEV.S(IF(R19:R29="Sim",$I19:$I29))/AVERAGE(IF(R19:R29="Sim",$I19:$I29))) -> N/D (são necessários pelo menos 3 preços) | S32: =IF(COUNTIF(S19:S29,"Sim")<3,"N/D (são necessários pelo menos 3 preços)",_xlfn.STDEV.S(IF(S19:S29="Sim",$I19:$I29))/AVERAGE(IF(S19:S29="Sim",$I19:$I29))) -> N/D (são necessários pelo menos 3 preços)
B33: Metodologia de exclusão de preços adotada: | J33: =IF(M38="",INDEX(M18:S18,MATCH(MIN(M35:S35),M35:S35,0)),M38) -> Grupos - Sem os dois maiores | L33: Média | M33: =IF(SUM(COUNTIF($M$10:$M$16,"Sim")) + SUM(COUNTIF(M19:M29,"Sim")) < 3, "N/D (são necessários pelo menos 3 preços)", IFERROR(AVERAGE(_xlfn._xlws.FILTER($I$10:$I$16,$M$10:$M$16="Sim"), _xlfn._xlws.FILTER($I$19:$I$29,M19:M29="Sim")),M30)) -> 3.733418101 | N33: =IF(SUM(COUNTIF($M$10:$M$16,"Sim")) + SUM(COUNTIF(N19:N29,"Sim")) < 3, "N/D (são necessários pelo menos 3 preços)", IFERROR(AVERAGE(_xlfn._xlws.FILTER($I$10:$I$16,$M$10:$M$16="Sim"), _xlfn._xlws.FILTER($I$19:$I$29,N19:N29="Sim")),N30)) -> 3.733418101 | O33: =IF(SUM(COUNTIF($M$10:$M$16,"Sim")) + SUM(COUNTIF(O19:O29,"Sim")) < 3, "N/D (são necessários pelo menos 3 preços)", IFERROR(AVERAGE(_xlfn._xlws.FILTER($I$10:$I$16,$M$10:$M$16="Sim"), _xlfn._xlws.FILTER($I$19:$I$29,O19:O29="Sim")),O30)) -> 3.592101722 | P33: =IF(SUM(COUNTIF($M$10:$M$16,"Sim")) + SUM(COUNTIF(P19:P29,"Sim")) < 3, "N/D (são necessários pelo menos 3 preços)", IFERROR(AVERAGE(_xlfn._xlws.FILTER($I$10:$I$16,$M$10:$M$16="Sim"), _xlfn._xlws.FILTER($I$19:$I$29,P19:P29="Sim")),P30)) -> 3.820101722 | Q33: =IF(SUM(COUNTIF($M$10:$M$16,"Sim")) + SUM(COUNTIF(Q19:Q29,"Sim")) < 3, "N/D (são necessários pelo menos 3 preços)", IFERROR(AVERAGE(_xlfn._xlws.FILTER($I$10:$I$16,$M$10:$M$16="Sim"), _xlfn._xlws.FILTER($I$19:$I$29,Q19:Q29="Sim")),Q30)) -> 3.665127152 | R33: =IF(SUM(COUNTIF($M$10:$M$16,"Sim")) + SUM(COUNTIF(R19:R29,"Sim")) < 3, "N/D (são necessários pelo menos 3 preços)", IFERROR(AVERAGE(_xlfn._xlws.FILTER($I$10:$I$16,$M$10:$M$16="Sim"), _xlfn._xlws.FILTER($I$19:$I$29,R19:R29="Sim")),R30)) -> 3.462127152 | S33: =IF(SUM(COUNTIF($S$10:$S$16,"Sim")) + SUM(COUNTIF(S19:S29,"Sim")) < 3, "N/D (são necessários pelo menos 3 preços)", IFERROR(AVERAGE(_xlfn._xlws.FILTER($I$10:$I$16,$S$10:$S$16="Sim"), _xlfn._xlws.FILTER($I$19:$I$29,S19:S29="Sim")),S30)) -> N/D (são necessários pelo menos 3 preços)
L34: Mediana | M34: =IF(SUM(COUNTIF($M$10:$M$16,"Sim")) + SUM(COUNTIF(M19:M29,"Sim")) < 3, "N/D (são necessários pelo menos 3 preços)", IFERROR(MEDIAN(_xlfn._xlws.FILTER($I$10:$I$16,$M$10:$M$16="Sim"), _xlfn._xlws.FILTER($I$19:$I$29,M19:M29="Sim")),M30)) -> 3.596961724 | N34: =IF(SUM(COUNTIF($M$10:$M$16,"Sim")) + SUM(COUNTIF(N19:N29,"Sim")) < 3, "N/D (são necessários pelo menos 3 preços)", IFERROR(MEDIAN(_xlfn._xlws.FILTER($I$10:$I$16,$M$10:$M$16="Sim"), _xlfn._xlws.FILTER($I$19:$I$29,N19:N29="Sim")),N30)) -> 3.596961724 | O34: =IF(SUM(COUNTIF($M$10:$M$16,"Sim")) + SUM(COUNTIF(O19:O29,"Sim")) < 3, "N/D (são necessários pelo menos 3 preços)", IFERROR(MEDIAN(_xlfn._xlws.FILTER($I$10:$I$16,$M$10:$M$16="Sim"), _xlfn._xlws.FILTER($I$19:$I$29,O19:O29="Sim")),O30)) -> 3.381523448 | P34: =IF(SUM(COUNTIF($M$10:$M$16,"Sim")) + SUM(COUNTIF(P19:P29,"Sim")) < 3, "N/D (são necessários pelo menos 3 preços)", IFERROR(MEDIAN(_xlfn._xlws.FILTER($I$10:$I$16,$M$10:$M$16="Sim"), _xlfn._xlws.FILTER($I$19:$I$29,P19:P29="Sim")),P30)) -> 3.8124 | Q34: =IF(SUM(COUNTIF($M$10:$M$16,"Sim")) + SUM(COUNTIF(Q19:Q29,"Sim")) < 3, "N/D (são necessários pelo menos 3 preços)", IFERROR(MEDIAN(_xlfn._xlws.FILTER($I$10:$I$16,$M$10:$M$16="Sim"), _xlfn._xlws.FILTER($I$19:$I$29,Q19:Q29="Sim")),Q30)) -> 3.596961724 | R34: =IF(SUM(COUNTIF($M$10:$M$16,"Sim")) + SUM(COUNTIF(R19:R29,"Sim")) < 3, "N/D (são necessários pelo menos 3 preços)", IFERROR(MEDIAN(_xlfn._xlws.FILTER($I$10:$I$16,$M$10:$M$16="Sim"), _xlfn._xlws.FILTER($I$19:$I$29,R19:R29="Sim")),R30)) -> 3.368054304 | S34: =IF(SUM(COUNTIF($S$10:$S$16,"Sim")) + SUM(COUNTIF(S19:S29,"Sim")) < 3, "N/D (são necessários pelo menos 3 preços)", IFERROR(MEDIAN(_xlfn._xlws.FILTER($I$10:$I$16,$S$10:$S$16="Sim"), _xlfn._xlws.FILTER($I$19:$I$29,S19:S29="Sim")),S30)) -> N/D (são necessários pelo menos 3 preços)
L35: CV | M35: =IF(SUM(COUNTIF($M$10:$M$16,"Sim")) + SUM(COUNTIF(M19:M29,"Sim")) < 3, "N/D (são necessários pelo menos 3 preços)", IFERROR(ROUND(_xlfn.STDEV.S(_xlfn._xlws.FILTER($I$10:$I$16,$M$10:$M$16="Sim"), _xlfn._xlws.FILTER($I$19:$I$29,M19:M29="Sim")) / AVERAGE(_xlfn._xlws.FILTER($I$10:$I$16,$M$10:$M$16="Sim"), _xlfn._xlws.FILTER($I$19:$I$29,M19:M29="Sim")),4),M32) ) -> 0.1259 | N35: =IF(SUM(COUNTIF($M$10:$M$16,"Sim")) + SUM(COUNTIF(N19:N29,"Sim")) < 3, "N/D (são necessários pelo menos 3 preços)", IFERROR(ROUND(_xlfn.STDEV.S(_xlfn._xlws.FILTER($I$10:$I$16,$M$10:$M$16="Sim"), _xlfn._xlws.FILTER($I$19:$I$29,N19:N29="Sim")) / AVERAGE(_xlfn._xlws.FILTER($I$10:$I$16,$M$10:$M$16="Sim"), _xlfn._xlws.FILTER($I$19:$I$29,N19:N29="Sim")),4),N32) ) -> 0.1259 | O35: =IF(SUM(COUNTIF($M$10:$M$16,"Sim")) + SUM(COUNTIF(O19:O29,"Sim")) < 3, "N/D (são necessários pelo menos 3 preços)", IFERROR(ROUND(_xlfn.STDEV.S(_xlfn._xlws.FILTER($I$10:$I$16,$M$10:$M$16="Sim"), _xlfn._xlws.FILTER($I$19:$I$29,O19:O29="Sim")) / AVERAGE(_xlfn._xlws.FILTER($I$10:$I$16,$M$10:$M$16="Sim"), _xlfn._xlws.FILTER($I$19:$I$29,O19:O29="Sim")),4),O32) ) -> 0.0989 | P35: =IF(SUM(COUNTIF($M$10:$M$16,"Sim")) + SUM(COUNTIF(P19:P29,"Sim")) < 3, "N/D (são necessários pelo menos 3 preços)", IFERROR(ROUND(_xlfn.STDEV.S(_xlfn._xlws.FILTER($I$10:$I$16,$M$10:$M$16="Sim"), _xlfn._xlws.FILTER($I$19:$I$29,P19:P29="Sim")) / AVERAGE(_xlfn._xlws.FILTER($I$10:$I$16,$M$10:$M$16="Sim"), _xlfn._xlws.FILTER($I$19:$I$29,P19:P29="Sim")),4),P32) ) -> 0.1227 | Q35: =IF(SUM(COUNTIF($M$10:$M$16,"Sim")) + SUM(COUNTIF(Q19:Q29,"Sim")) < 3, "N/D (são necessários pelo menos 3 preços)", IFERROR(ROUND(_xlfn.STDEV.S(_xlfn._xlws.FILTER($I$10:$I$16,$M$10:$M$16="Sim"), _xlfn._xlws.FILTER($I$19:$I$29,Q19:Q29="Sim")) / AVERAGE(_xlfn._xlws.FILTER($I$10:$I$16,$M$10:$M$16="Sim"), _xlfn._xlws.FILTER($I$19:$I$29,Q19:Q29="Sim")),4),Q32) ) -> 0.0994 | R35: =IF(SUM(COUNTIF($M$10:$M$16,"Sim")) + SUM(COUNTIF(R19:R29,"Sim")) < 3, "N/D (são necessários pelo menos 3 preços)", IFERROR(ROUND(_xlfn.STDEV.S(_xlfn._xlws.FILTER($I$10:$I$16,$M$10:$M$16="Sim"), _xlfn._xlws.FILTER($I$19:$I$29,R19:R29="Sim")) / AVERAGE(_xlfn._xlws.FILTER($I$10:$I$16,$M$10:$M$16="Sim"), _xlfn._xlws.FILTER($I$19:$I$29,R19:R29="Sim")),4),R32) ) -> 0.0682 | S35: =IF(SUM(COUNTIF($S$10:$S$16,"Sim")) + SUM(COUNTIF(S19:S29,"Sim")) < 3, "N/D (são necessários pelo menos 3 preços)", IFERROR(_xlfn.STDEV.S(_xlfn._xlws.FILTER($I$10:$I$16,$S$10:$S$16="Sim"), _xlfn._xlws.FILTER($I$19:$I$29,S19:S29="Sim")) / AVERAGE(_xlfn._xlws.FILTER($I$10:$I$16,$S$10:$S$16="Sim"), _xlfn._xlws.FILTER($I$19:$I$29,S19:S29="Sim")),S32) ) -> N/D (são necessários pelo menos 3 preços)
B36: PREÇO UNITÁRIO ESTIMADO ADOTADO: | J36: =IF($J$33="","Selecione metodologia para exclusão de preços",MIN(J31:J32)) -> 3.368054304 | L36: Metodologia sugerida: | M36: =IF($M$35=MIN($M$35,$N$35:$R$35),M8,"Grupos - "&INDEX({"Todos";"Sem o maior";"Sem o menor";"Sem o maior e Sem o menor";"Sem os dois maiores"},MATCH(MIN($N$35:$R$35),$N$35:$R$35,0))) -> Grupos - Sem os dois maiores
L37: Preço estimado sugerido: | M37: =IF($M$36=M8,SMALL($M$33:$M$34,1),MIN(INDEX($N$34:$R$34, MATCH(MIN($N$35:$R$35), $N$35:$R$35, 0)),INDEX($N$33:$R$33, MATCH(MIN($N$35:$R$35), $N$35:$R$35, 0)))) -> 3.368054304
L38: Metodologia a adotar: | M38: =IF(INDEX(L18:S18,N38)=0,"",INDEX(L18:S18,N38)) ->  | N38: 1

Sheet Peixe 32% 4 a 6 mm
B2: Processo | C2: ='Peixe 50% PB Farelo'!C2 -> 59511.000102/2026-55
B3: Responsável | C3: ='Peixe 50% PB Farelo'!C3 -> JHONES DE LIMA VIEIRA
B4: Área de Origem | C4: ='Peixe 50% PB Farelo'!C4 -> 14ª GTR
B5: Data da pesquisa | C5: ='Peixe 50% PB Farelo'!C5 -> Janeiro/2026 - Fevereiro/2026
B7: ITEM: | C7: Ração extrusada para peixe onívoro 32% PB – Proteína Bruta Mín.: 32%, granulometria 4 a 6 mm. Data de validade não inferior a 6 meses. | G7: UNIDADE DE MEDIDA: | H7: ='Peixe 50% PB Farelo'!H7 -> kg | I7: QUANTIDADE: | J7: 75000 | M7: Tabela auxiliar de metodologias para exclusão de preços | U7: Automática (menor CV)
B8: LICITAÇÕES ANTERIORES | M8: Licitações Anteriores - Outliers | U8: =M18 -> Outliers
B9: Órgão | C9: Edital/Ano - Nº do Lote / Item | D9: Quantidade | E9: Valor Unitário | F9: Data | G9: índice de atualização (nome) | H9: Variação acumulada do índice (%) | I9: Preço unitário atualizado | J9: Utilizar? (Sim/Não) | M9: Utilizar? | S9: Por critério do(a) analista | U9: =N18 -> Grupos - Todos
B10: 14ª SR - Fortaleza/CE | C10: Edital 90007/2024 - Item 7 | D10: 66647 | E10: 2.75 | F10: 2025-01-02 | G10: IPA-EP-DI Suprimentos agropecuários | H10: =(I10/E10)-1 -> 0.01654095744 | I10: =IF(ISBLANK(E10),"",E10*(1+(INDEX('índice de atualização'!B:B,MATCH(G10,'índice de atualização'!B:B,0)+COUNTA('índice de atualização'!B:B)-1)-INDEX('índice de atualização'!B:B,MATCH(TEXT(F10,"MM/AAAA"),'índice de atualização'!A:A,0)))/INDEX('índice de atualização'!B:B,MATCH(TEXT(F10,"MM/AAAA"),'índice de atualização'!A:A,0)))) -> 2.795487633 | J10: =IF(ISNUMBER(I10),IF($J$33<>$S$9,M10,S10),"") -> Sim | M10: =IF(ISNUMBER(I10),IF(OR(I10<_xlfn.QUARTILE.INC($I$10:$I$29,1)-1.5*(_xlfn.QUARTILE.INC($I$10:I29,3)-_xlfn.QUARTILE.INC($I$10:$I$29,1)),I10>_xlfn.QUARTILE.INC($I$10:$I$29,3)+1.5*(_xlfn.QUARTILE.INC($I$10:$I$29,3)-_xlfn.QUARTILE.INC($I$10:$I$29,1))),"Não","Sim"),"") -> Sim | U10: =O18 -> Grupos - Sem o maior
B11: 14ª SR - Fortaleza/CE | C11: Edital 90007/2024 - Item 15 | D11: 11750 | E11: 2.78 | F11: 2025-02-18 | G11: IPA-EP-DI Suprimentos agropecuários | H11: =(I11/E11)-1 -> 0.0004507242601 | I11: =IF(ISBLANK(E11),"",E11*(1+(INDEX('índice de atualização'!B:B,MATCH(G11,'índice de atualização'!B:B,0)+COUNTA('índice de atualização'!B:B)-1)-INDEX('índice de atualização'!B:B,MATCH(TEXT(F11,"MM/AAAA"),'índice de atualização'!A:A,0)))/INDEX('índice de atualização'!B:B,MATCH(TEXT(F11,"MM/AAAA"),'índice de atualização'!A:A,0)))) -> 2.781253013 | J11: =IF(ISNUMBER(I11),IF($J$33<>$S$8,M11,S11),"") -> Sim | M11: =IF(ISNUMBER(I11),IF(OR(I11<_xlfn.QUARTILE.INC($I$10:$I$29,1)-1.5*(_xlfn.QUARTILE.INC($I$10:I30,3)-_xlfn.QUARTILE.INC($I$10:$I$29,1)),I11>_xlfn.QUARTILE.INC($I$10:$I$29,3)+1.5*(_xlfn.QUARTILE.INC($I$10:$I$29,3)-_xlfn.QUARTILE.INC($I$10:$I$29,1))),"Não","Sim"),"") -> Sim | U11: =P18 -> Grupos - Sem o menor
B12: 11ª SR - Amapá/AP | C12: Edital 90126/2024 - Item 2 e 6 | D12: 62500 | E12: 3.72 | F12: 2025-05-13 | G12: IPA-EP-DI Suprimentos agropecuários | H12: =(I12/E12)-1 -> -0.03987840836 | I12: =IF(ISBLANK(E12),"",E12*(1+(INDEX('índice de atualização'!B:B,MATCH(G12,'índice de atualização'!B:B,0)+COUNTA('índice de atualização'!B:B)-1)-INDEX('índice de atualização'!B:B,MATCH(TEXT(F12,"MM/AAAA"),'índice de atualização'!A:A,0)))/INDEX('índice de atualização'!B:B,MATCH(TEXT(F12,"MM/AAAA"),'índice de atualização'!A:A,0)))) -> 3.571652321 | J12: Sim | M12: =IF(ISNUMBER(I12),IF(OR(I12<_xlfn.QUARTILE.INC($I$10:$I$29,1)-1.5*(_xlfn.QUARTILE.INC($I$10:I31,3)-_xlfn.QUARTILE.INC($I$10:$I$29,1)),I12>_xlfn.QUARTILE.INC($I$10:$I$29,3)+1.5*(_xlfn.QUARTILE.INC($I$10:$I$29,3)-_xlfn.QUARTILE.INC($I$10:$I$29,1))),"Não","Sim"),"") -> Sim | N12: =$M$12 -> Sim | O12: =$M$12 -> Sim | P12: =$M$12 -> Sim | Q12: =$M$12 -> Sim | R12: =$M$12 -> Sim | U12: =Q18 -> Grupos - Sem o maior e sem o menor
B13: Codevasf Sede | C13: Edital 90057/2025 - Item 2 | D13: =4900*25 -> 122500 | E13: =93.57/25 -> 3.7428 | F13: 2025-12-08 | G13: IPA-EP-DI Suprimentos agropecuários | H13: 0 | I13: =IF(ISBLANK(E13),"",E13*(1+(INDEX('índice de atualização'!B:B,MATCH(G13,'índice de atualização'!B:B,0)+COUNTA('índice de atualização'!B:B)-1)-INDEX('índice de atualização'!B:B,MATCH(TEXT(F13,"MM/AAAA"),'índice de atualização'!A:A,0)))/INDEX('índice de atualização'!B:B,MATCH(TEXT(F13,"MM/AAAA"),'índice de atualização'!A:A,0)))) -> 3.7428 | J13: Sim | M13: =IF(ISNUMBER(I13),IF(OR(I13<_xlfn.QUARTILE.INC($I$10:$I$29,1)-1.5*(_xlfn.QUARTILE.INC($I$10:I32,3)-_xlfn.QUARTILE.INC($I$10:$I$29,1)),I13>_xlfn.QUARTILE.INC($I$10:$I$29,3)+1.5*(_xlfn.QUARTILE.INC($I$10:$I$29,3)-_xlfn.QUARTILE.INC($I$10:$I$29,1))),"Não","Sim"),"") -> Sim | N13: =$M$13 -> Sim | O13: =$M$13 -> Sim | P13: =$M$13 -> Sim | Q13: =$M$13 -> Sim | R13: =$M$13 -> Sim | U13: =R18 -> Grupos - Sem os dois maiores
I14: =IF(ISBLANK(E14),"",E14*(1+(INDEX('índice de atualização'!B:B,MATCH(G14,'índice de atualização'!B:B,0)+COUNTA('índice de atualização'!B:B)-1)-INDEX('índice de atualização'!B:B,MATCH(TEXT(F14,"MM/AAAA"),'índice de atualização'!A:A,0)))/INDEX('índice de atualização'!B:B,MATCH(TEXT(F14,"MM/AAAA"),'índice de atualização'!A:A,0)))) ->  | M14: =IF(ISNUMBER(I14),IF(OR(I14<_xlfn.QUARTILE.INC($I$10:$I$29,1)-1.5*(_xlfn.QUARTILE.INC($I$10:I33,3)-_xlfn.QUARTILE.INC($I$10:$I$29,1)),I14>_xlfn.QUARTILE.INC($I$10:$I$29,3)+1.5*(_xlfn.QUARTILE.INC($I$10:$I$29,3)-_xlfn.QUARTILE.INC($I$10:$I$29,1))),"Não","Sim"),"") ->  | N14: =$M$14 ->  | O14: =$M$14 ->  | P14: =$M$14 ->  | Q14: =$M$14 ->  | R14: =$M$14 ->  | U14: =S18 -> Por critério do(a) analista
I15: =IF(ISBLANK(E15),"",E15*(1+(INDEX('índice de atualização'!B:B,MATCH(G15,'índice de atualização'!B:B,0)+COUNTA('índice de atualização'!B:B)-1)-INDEX('índice de atualização'!B:B,MATCH(TEXT(F15,"MM/AAAA"),'índice de atualização'!A:A,0)))/INDEX('índice de atualização'!B:B,MATCH(TEXT(F15,"MM/AAAA"),'índice de atualização'!A:A,0)))) ->  | M15: =IF(ISNUMBER(I15),IF(OR(I15<_xlfn.QUARTILE.INC($I$10:$I$29,1)-1.5*(_xlfn.QUARTILE.INC($I$10:I36,3)-_xlfn.QUARTILE.INC($I$10:$I$29,1)),I15>_xlfn.QUARTILE.INC($I$10:$I$29,3)+1.5*(_xlfn.QUARTILE.INC($I$10:$I$29,3)-_xlfn.QUARTILE.INC($I$10:$I$29,1))),"Não","Sim"),"") ->  | N15: =$M$15 ->  | O15: =$M$15 ->  | P15: =$M$15 ->  | Q15: =$M$15 ->  | R15: =$M$15 -> 
I16: =IF(ISBLANK(E16),"",E16*(1+(INDEX('índice de atualização'!B:B,MATCH(G16,'índice de atualização'!B:B,0)+COUNTA('índice de atualização'!B:B)-1)-INDEX('índice de atualização'!B:B,MATCH(TEXT(F16,"MM/AAAA"),'índice de atualização'!A:A,0)))/INDEX('índice de atualização'!B:B,MATCH(TEXT(F16,"MM/AAAA"),'índice de atualização'!A:A,0)))) ->  | M16: =IF(ISNUMBER(I16),IF(OR(I16<_xlfn.QUARTILE.INC($I$10:$I$29,1)-1.5*(_xlfn.QUARTILE.INC($I$10:I39,3)-_xlfn.QUARTILE.INC($I$10:$I$29,1)),I16>_xlfn.QUARTILE.INC($I$10:$I$29,3)+1.5*(_xlfn.QUARTILE.INC($I$10:$I$29,3)-_xlfn.QUARTILE.INC($I$10:$I$29,1))),"Não","Sim"),"") ->  | N16: =$M$16 ->  | O16: =$M$16 ->  | P16: =$M$16 ->  | Q16: =$M$16 ->  | R16: =$M$16 -> 
B17: COTAÇÕES DE MERCADO | M17: Cotações
B18: Empresa | H18: Data | I18: Preço Unitário | J18: Utilizar? (Sim/Não) | M18: Outliers | N18: Grupos - Todos | O18: Grupos - Sem o maior | P18: Grupos - Sem o menor | Q18: Grupos - Sem o maior e sem o menor | R18: Grupos - Sem os dois maiores | S18: Por critério do(a) analista
B19: Agrosolo - Guabi | H19: 2026-02-10 | I19: =102.8/25 -> 4.112 | J19: =IF(ISNUMBER(I19),IF($J$33=$M$18,M19,IF($J$33=$N$18,N19,IF($J$33=$O$18,O19,IF($J$33=$P$18,P19,IF($J$33=$Q$18,Q19,IF($J$33=$R$18,R19,IF($J$33=$S$18,S19,""))))))),"") -> Não | M19: =IF(ISNUMBER(I19),IF(OR(I19<_xlfn.QUARTILE.INC($I$10:$I$29,1)-1.5*(_xlfn.QUARTILE.INC($I$10:I40,3)-_xlfn.QUARTILE.INC($I$10:$I$29,1)),I19>_xlfn.QUARTILE.INC($I$10:$I$29,3)+1.5*(_xlfn.QUARTILE.INC($I$10:$I$29,3)-_xlfn.QUARTILE.INC($I$10:$I$29,1))),"Não","Sim"),"") -> Sim | N19: =IF(ISNUMBER(I19),"Sim","") -> Sim | O19: =IF(ISNUMBER(I19),IF(_xlfn.RANK.EQ(I19,$I$19:$I$29)=1,"Não","Sim"),"") -> Não | P19: =IF(ISNUMBER(I19),IF(_xlfn.RANK.EQ(I19,$I$19:$I$29)=COUNT($I$19:$I$29),"Não","Sim"),"") -> Sim | Q19: =IF(O19="","",IF(AND(O19="Sim",P19="Sim"),"Sim","Não")) -> Não | R19: =IF(ISNUMBER(I19),IF(_xlfn.RANK.EQ(I19,$I$19:$I$29)<=2,"Não","Sim"),"") -> Não
B20: Samaria Rações LTDA | H20: 2026-02-09 | I20: =72/25 -> 2.88 | J20: Sim | M20: =IF(ISNUMBER(I20),IF(OR(I20<_xlfn.QUARTILE.INC($I$10:$I$29,1)-1.5*(_xlfn.QUARTILE.INC($I$10:I40,3)-_xlfn.QUARTILE.INC($I$10:$I$29,1)),I20>_xlfn.QUARTILE.INC($I$10:$I$29,3)+1.5*(_xlfn.QUARTILE.INC($I$10:$I$29,3)-_xlfn.QUARTILE.INC($I$10:$I$29,1))),"Não","Sim"),"") -> Sim | N20: Sim | O20: Sim | P20: Não | Q20: =IF(O20="","",IF(AND(O20="Sim",P20="Sim"),"Sim","Não")) -> Não | R20: Sim
B21: Integral Mix Agroindustria | H21: 2026-02-07 | I21: =78.78/25 -> 3.1512 | J21: Sim | M21: =IF(ISNUMBER(I21),IF(OR(I21<_xlfn.QUARTILE.INC($I$10:$I$29,1)-1.5*(_xlfn.QUARTILE.INC($I$10:I40,3)-_xlfn.QUARTILE.INC($I$10:$I$29,1)),I21>_xlfn.QUARTILE.INC($I$10:$I$29,3)+1.5*(_xlfn.QUARTILE.INC($I$10:$I$29,3)-_xlfn.QUARTILE.INC($I$10:$I$29,1))),"Não","Sim"),"") -> Sim | N21: Sim | O21: Sim | P21: Sim | Q21: Sim | R21: Sim
B22: Comercial do Carmo ME | H22: 2026-02-12 | I22: =97/25 -> 3.88 | J22: Não | M22: =IF(ISNUMBER(I22),IF(OR(I22<_xlfn.QUARTILE.INC($I$10:$I$29,1)-1.5*(_xlfn.QUARTILE.INC($I$10:I40,3)-_xlfn.QUARTILE.INC($I$10:$I$29,1)),I22>_xlfn.QUARTILE.INC($I$10:$I$29,3)+1.5*(_xlfn.QUARTILE.INC($I$10:$I$29,3)-_xlfn.QUARTILE.INC($I$10:$I$29,1))),"Não","Sim"),"") -> Sim | N22: Sim | O22: Sim | P22: Sim | Q22: Sim | R22: Não
M23: =IF(ISNUMBER(I23),IF(OR(I23<_xlfn.QUARTILE.INC($I$10:$I$29,1)-1.5*(_xlfn.QUARTILE.INC($I$10:I41,3)-_xlfn.QUARTILE.INC($I$10:$I$29,1)),I23>_xlfn.QUARTILE.INC($I$10:$I$29,3)+1.5*(_xlfn.QUARTILE.INC($I$10:$I$29,3)-_xlfn.QUARTILE.INC($I$10:$I$29,1))),"Não","Sim"),"") -> 
M24: =IF(ISNUMBER(I24),IF(OR(I24<_xlfn.QUARTILE.INC($I$10:$I$29,1)-1.5*(_xlfn.QUARTILE.INC($I$10:I42,3)-_xlfn.QUARTILE.INC($I$10:$I$29,1)),I24>_xlfn.QUARTILE.INC($I$10:$I$29,3)+1.5*(_xlfn.QUARTILE.INC($I$10:$I$29,3)-_xlfn.QUARTILE.INC($I$10:$I$29,1))),"Não","Sim"),"") -> 
M25: =IF(ISNUMBER(I25),IF(OR(I25<_xlfn.QUARTILE.INC($I$10:$I$29,1)-1.5*(_xlfn.QUARTILE.INC($I$10:I40,3)-_xlfn.QUARTILE.INC($I$10:$I$29,1)),I25>_xlfn.QUARTILE.INC($I$10:$I$29,3)+1.5*(_xlfn.QUARTILE.INC($I$10:$I$29,3)-_xlfn.QUARTILE.INC($I$10:$I$29,1))),"Não","Sim"),"") -> 
M26: =IF(ISNUMBER(I26),IF(OR(I26<_xlfn.QUARTILE.INC($I$10:$I$29,1)-1.5*(_xlfn.QUARTILE.INC($I$10:I40,3)-_xlfn.QUARTILE.INC($I$10:$I$29,1)),I26>_xlfn.QUARTILE.INC($I$10:$I$29,3)+1.5*(_xlfn.QUARTILE.INC($I$10:$I$29,3)-_xlfn.QUARTILE.INC($I$10:$I$29,1))),"Não","Sim"),"") -> 
M27: =IF(ISNUMBER(I27),IF(OR(I27<_xlfn.QUARTILE.INC($I$10:$I$29,1)-1.5*(_xlfn.QUARTILE.INC($I$10:I40,3)-_xlfn.QUARTILE.INC($I$10:$I$29,1)),I27>_xlfn.QUARTILE.INC($I$10:$I$29,3)+1.5*(_xlfn.QUARTILE.INC($I$10:$I$29,3)-_xlfn.QUARTILE.INC($I$10:$I$29,1))),"Não","Sim"),"") -> 
M28: =IF(ISNUMBER(I28),IF(OR(I28<_xlfn.QUARTILE.INC($I$10:$I$29,1)-1.5*(_xlfn.QUARTILE.INC($I$10:I40,3)-_xlfn.QUARTILE.INC($I$10:$I$29,1)),I28>_xlfn.QUARTILE.INC($I$10:$I$29,3)+1.5*(_xlfn.QUARTILE.INC($I$10:$I$29,3)-_xlfn.QUARTILE.INC($I$10:$I$29,1))),"Não","Sim"),"") -> 
M29: =IF(ISNUMBER(I29),IF(OR(I29<_xlfn.QUARTILE.INC($I$10:$I$29,1)-1.5*(_xlfn.QUARTILE.INC($I$10:I40,3)-_xlfn.QUARTILE.INC($I$10:$I$29,1)),I29>_xlfn.QUARTILE.INC($I$10:$I$29,3)+1.5*(_xlfn.QUARTILE.INC($I$10:$I$29,3)-_xlfn.QUARTILE.INC($I$10:$I$29,1))),"Não","Sim"),"") -> 
B30: Observações: | I30: CV: | J30: =IF($J$33="","Selecione metodologia para exclusão de preços",IF(COUNTIF($J$10:$J$29,"Sim")<3,"N/D (são necessários pelo menos 3 preços)",_xlfn.STDEV.S(IF($J$10:$J$29="Sim",$I$10:$I$29))/AVERAGE(IF($J$10:$J$29="Sim",$I$10:$I$29)))) -> 0.1317847173 | L30: Média (Cotações) | M30: =IF(COUNTIF(M19:M29,"Sim")<3,"N/D (são necessários pelo menos 3 preços)",AVERAGE(IF(M19:M29="Sim",$I19:$I29))) -> 3.5058 | N30: =IF(COUNTIF(N19:N29,"Sim")<3,"N/D (são necessários pelo menos 3 preços)",AVERAGE(IF(N19:N29="Sim",$I19:$I29))) -> 3.5058 | O30: =IF(COUNTIF(O19:O29,"Sim")<3,"N/D (são necessários pelo menos 3 preços)",AVERAGE(IF(O19:O29="Sim",$I19:$I29))) -> 3.303733333 | P30: =IF(COUNTIF(P19:P29,"Sim")<3,"N/D (são necessários pelo menos 3 preços)",AVERAGE(IF(P19:P29="Sim",$I19:$I29))) -> 3.7144 | Q30: =IF(COUNTIF(Q19:Q29,"Sim")<3,"N/D (são necessários pelo menos 3 preços)",AVERAGE(IF(Q19:Q29="Sim",$I19:$I29))) -> N/D (são necessários pelo menos 3 preços) | R30: =IF(COUNTIF(R19:R29,"Sim")<3,"N/D (são necessários pelo menos 3 preços)",AVERAGE(IF(R19:R29="Sim",$I19:$I29))) -> N/D (são necessários pelo menos 3 preços) | S30: =IF(COUNTIF(S19:S29,"Sim")<3,"N/D (são necessários pelo menos 3 preços)",AVERAGE(IF(S19:S29="Sim",$I19:$I29))) -> N/D (são necessários pelo menos 3 preços)
I31: Média: | J31: =IF($J$33="","Selecione metodologia para exclusão de preços",AVERAGE(IF($J$10:$J$29="Sim",$I$10:$I$29))) -> 3.153732161 | L31: Mediana (Cotações) | M31: =IF(COUNTIF(M19:M29,"Sim")<3,"N/D (são necessários pelo menos 3 preços)",MEDIAN(IF(M19:M29="Sim",$I19:$I29))) -> 3.5156 | N31: =IF(COUNTIF(N19:N29,"Sim")<3,"N/D (são necessários pelo menos 3 preços)",MEDIAN(IF(N19:N29="Sim",$I19:$I29))) -> 3.5156 | O31: =IF(COUNTIF(O19:O29,"Sim")<3,"N/D (são necessários pelo menos 3 preços)",MEDIAN(IF(O19:O29="Sim",$I19:$I29))) -> 3.1512 | P31: =IF(COUNTIF(P19:P29,"Sim")<3,"N/D (são necessários pelo menos 3 preços)",MEDIAN(IF(P19:P29="Sim",$I19:$I29))) -> 3.88 | Q31: =IF(COUNTIF(Q19:Q29,"Sim")<3,"N/D (são necessários pelo menos 3 preços)",MEDIAN(IF(Q19:Q29="Sim",$I19:$I29))) -> N/D (são necessários pelo menos 3 preços) | R31: =IF(COUNTIF(R19:R29,"Sim")<3,"N/D (são necessários pelo menos 3 preços)",MEDIAN(IF(R19:R29="Sim",$I19:$I29))) -> N/D (são necessários pelo menos 3 preços) | S31: =IF(COUNTIF(S19:S29,"Sim")<3,"N/D (são necessários pelo menos 3 preços)",MEDIAN(IF(S19:S29="Sim",$I19:$I29))) -> N/D (são necessários pelo menos 3 preços)
I32: Mediana: | J32: =IF($J$33="","Selecione metodologia para exclusão de preços",MEDIAN(IF($J$10:$J$29="Sim",$I$10:$I$29))) -> 3.0156 | L32: CV (Cotações) | M32: =IF(COUNTIF(M19:M29,"Sim")<3,"N/D (são necessários pelo menos 3 preços)",_xlfn.STDEV.S(IF(M19:M29="Sim",$I19:$I29))/AVERAGE(IF(M19:M29="Sim",$I19:$I29))) -> 0.1667196588 | N32: =IF(COUNTIF(N19:N29,"Sim")<3,"N/D (são necessários pelo menos 3 preços)",_xlfn.STDEV.S(IF(N19:N29="Sim",$I19:$I29))/AVERAGE(IF(N19:N29="Sim",$I19:$I29))) -> 0.1667196588 | O32: =IF(COUNTIF(O19:O29,"Sim")<3,"N/D (são necessários pelo menos 3 preços)",_xlfn.STDEV.S(IF(O19:O29="Sim",$I19:$I29))/AVERAGE(IF(O19:O29="Sim",$I19:$I29))) -> 0.1565366965 | P32: =IF(COUNTIF(P19:P29,"Sim")<3,"N/D (são necessários pelo menos 3 preços)",_xlfn.STDEV.S(IF(P19:P29="Sim",$I19:$I29))/AVERAGE(IF(P19:P29="Sim",$I19:$I29))) -> 0.1349746548 | Q32: =IF(COUNTIF(Q19:Q29,"Sim")<3,"N/D (são necessários pelo menos 3 preços)",_xlfn.STDEV.S(IF(Q19:Q29="Sim",$I19:$I29))/AVERAGE(IF(Q19:Q29="Sim",$I19:$I29))) -> N/D (são necessários pelo menos 3 preços) | R32: =IF(COUNTIF(R19:R29,"Sim")<3,"N/D (são necessários pelo menos 3 preços)",_xlfn.STDEV.S(IF(R19:R29="Sim",$I19:$I29))/AVERAGE(IF(R19:R29="Sim",$I19:$I29))) -> N/D (são necessários pelo menos 3 preços) | S32: =IF(COUNTIF(S19:S29,"Sim")<3,"N/D (são necessários pelo menos 3 preços)",_xlfn.STDEV.S(IF(S19:S29="Sim",$I19:$I29))/AVERAGE(IF(S19:S29="Sim",$I19:$I29))) -> N/D (são necessários pelo menos 3 preços)
B33: Metodologia de exclusão de preços adotada: | J33: =IF(M38="",INDEX(M18:S18,MATCH(MIN(M35:S35),M35:S35,0)),M38) -> Grupos - Sem os dois maiores | L33: Média | M33: =IF(SUM(COUNTIF($M$10:$M$16,"Sim")) + SUM(COUNTIF(M19:M29,"Sim")) < 3, "N/D (são necessários pelo menos 3 preços)", IFERROR(AVERAGE(_xlfn._xlws.FILTER($I$10:$I$16,$M$10:$M$16="Sim"), _xlfn._xlws.FILTER($I$19:$I$29,M19:M29="Sim")),M30)) -> 3.364299121 | N33: =IF(SUM(COUNTIF($M$10:$M$16,"Sim")) + SUM(COUNTIF(N19:N29,"Sim")) < 3, "N/D (são necessários pelo menos 3 preços)", IFERROR(AVERAGE(_xlfn._xlws.FILTER($I$10:$I$16,$M$10:$M$16="Sim"), _xlfn._xlws.FILTER($I$19:$I$29,N19:N29="Sim")),N30)) -> 3.364299121 | O33: =IF(SUM(COUNTIF($M$10:$M$16,"Sim")) + SUM(COUNTIF(O19:O29,"Sim")) < 3, "N/D (são necessários pelo menos 3 preços)", IFERROR(AVERAGE(_xlfn._xlws.FILTER($I$10:$I$16,$M$10:$M$16="Sim"), _xlfn._xlws.FILTER($I$19:$I$29,O19:O29="Sim")),O30)) -> 3.25748471 | P33: =IF(SUM(COUNTIF($M$10:$M$16,"Sim")) + SUM(COUNTIF(P19:P29,"Sim")) < 3, "N/D (são necessários pelo menos 3 preços)", IFERROR(AVERAGE(_xlfn._xlws.FILTER($I$10:$I$16,$M$10:$M$16="Sim"), _xlfn._xlws.FILTER($I$19:$I$29,P19:P29="Sim")),P30)) -> 3.43348471 | Q33: =IF(SUM(COUNTIF($M$10:$M$16,"Sim")) + SUM(COUNTIF(Q19:Q29,"Sim")) < 3, "N/D (são necessários pelo menos 3 preços)", IFERROR(AVERAGE(_xlfn._xlws.FILTER($I$10:$I$16,$M$10:$M$16="Sim"), _xlfn._xlws.FILTER($I$19:$I$29,Q19:Q29="Sim")),Q30)) -> 3.320398828 | R33: =IF(SUM(COUNTIF($M$10:$M$16,"Sim")) + SUM(COUNTIF(R19:R29,"Sim")) < 3, "N/D (são necessários pelo menos 3 preços)", IFERROR(AVERAGE(_xlfn._xlws.FILTER($I$10:$I$16,$M$10:$M$16="Sim"), _xlfn._xlws.FILTER($I$19:$I$29,R19:R29="Sim")),R30)) -> 3.153732161 | S33: =IF(SUM(COUNTIF($S$10:$S$16,"Sim")) + SUM(COUNTIF(S19:S29,"Sim")) < 3, "N/D (são necessários pelo menos 3 preços)", IFERROR(AVERAGE(_xlfn._xlws.FILTER($I$10:$I$16,$S$10:$S$16="Sim"), _xlfn._xlws.FILTER($I$19:$I$29,S19:S29="Sim")),S30)) -> N/D (são necessários pelo menos 3 preços)
L34: Mediana | M34: =IF(SUM(COUNTIF($M$10:$M$16,"Sim")) + SUM(COUNTIF(M19:M29,"Sim")) < 3, "N/D (são necessários pelo menos 3 preços)", IFERROR(MEDIAN(_xlfn._xlws.FILTER($I$10:$I$16,$M$10:$M$16="Sim"), _xlfn._xlws.FILTER($I$19:$I$29,M19:M29="Sim")),M30)) -> 3.36142616 | N34: =IF(SUM(COUNTIF($M$10:$M$16,"Sim")) + SUM(COUNTIF(N19:N29,"Sim")) < 3, "N/D (são necessários pelo menos 3 preços)", IFERROR(MEDIAN(_xlfn._xlws.FILTER($I$10:$I$16,$M$10:$M$16="Sim"), _xlfn._xlws.FILTER($I$19:$I$29,N19:N29="Sim")),N30)) -> 3.36142616 | O34: =IF(SUM(COUNTIF($M$10:$M$16,"Sim")) + SUM(COUNTIF(O19:O29,"Sim")) < 3, "N/D (são necessários pelo menos 3 preços)", IFERROR(MEDIAN(_xlfn._xlws.FILTER($I$10:$I$16,$M$10:$M$16="Sim"), _xlfn._xlws.FILTER($I$19:$I$29,O19:O29="Sim")),O30)) -> 3.1512 | P34: =IF(SUM(COUNTIF($M$10:$M$16,"Sim")) + SUM(COUNTIF(P19:P29,"Sim")) < 3, "N/D (são necessários pelo menos 3 preços)", IFERROR(MEDIAN(_xlfn._xlws.FILTER($I$10:$I$16,$M$10:$M$16="Sim"), _xlfn._xlws.FILTER($I$19:$I$29,P19:P29="Sim")),P30)) -> 3.571652321 | Q34: =IF(SUM(COUNTIF($M$10:$M$16,"Sim")) + SUM(COUNTIF(Q19:Q29,"Sim")) < 3, "N/D (são necessários pelo menos 3 preços)", IFERROR(MEDIAN(_xlfn._xlws.FILTER($I$10:$I$16,$M$10:$M$16="Sim"), _xlfn._xlws.FILTER($I$19:$I$29,Q19:Q29="Sim")),Q30)) -> 3.36142616 | R34: =IF(SUM(COUNTIF($M$10:$M$16,"Sim")) + SUM(COUNTIF(R19:R29,"Sim")) < 3, "N/D (são necessários pelo menos 3 preços)", IFERROR(MEDIAN(_xlfn._xlws.FILTER($I$10:$I$16,$M$10:$M$16="Sim"), _xlfn._xlws.FILTER($I$19:$I$29,R19:R29="Sim")),R30)) -> 3.0156 | S34: =IF(SUM(COUNTIF($S$10:$S$16,"Sim")) + SUM(COUNTIF(S19:S29,"Sim")) < 3, "N/D (são necessários pelo menos 3 preços)", IFERROR(MEDIAN(_xlfn._xlws.FILTER($I$10:$I$16,$S$10:$S$16="Sim"), _xlfn._xlws.FILTER($I$19:$I$29,S19:S29="Sim")),S30)) -> N/D (são necessários pelo menos 3 preços)
L35: CV | M35: =IF(SUM(COUNTIF($M$10:$M$16,"Sim")) + SUM(COUNTIF(M19:M29,"Sim")) < 3, "N/D (são necessários pelo menos 3 preços)", IFERROR(ROUND(_xlfn.STDEV.S(_xlfn._xlws.FILTER($I$10:$I$16,$M$10:$M$16="Sim"), _xlfn._xlws.FILTER($I$19:$I$29,M19:M29="Sim")) / AVERAGE(_xlfn._xlws.FILTER($I$10:$I$16,$M$10:$M$16="Sim"), _xlfn._xlws.FILTER($I$19:$I$29,M19:M29="Sim")),4),M32) ) -> 0.1571 | N35: =IF(SUM(COUNTIF($M$10:$M$16,"Sim")) + SUM(COUNTIF(N19:N29,"Sim")) < 3, "N/D (são necessários pelo menos 3 preços)", IFERROR(ROUND(_xlfn.STDEV.S(_xlfn._xlws.FILTER($I$10:$I$16,$M$10:$M$16="Sim"), _xlfn._xlws.FILTER($I$19:$I$29,N19:N29="Sim")) / AVERAGE(_xlfn._xlws.FILTER($I$10:$I$16,$M$10:$M$16="Sim"), _xlfn._xlws.FILTER($I$19:$I$29,N19:N29="Sim")),4),N32) ) -> 0.1571 | O35: =IF(SUM(COUNTIF($M$10:$M$16,"Sim")) + SUM(COUNTIF(O19:O29,"Sim")) < 3, "N/D (são necessários pelo menos 3 preços)", IFERROR(ROUND(_xlfn.STDEV.S(_xlfn._xlws.FILTER($I$10:$I$16,$M$10:$M$16="Sim"), _xlfn._xlws.FILTER($I$19:$I$29,O19:O29="Sim")) / AVERAGE(_xlfn._xlws.FILTER($I$10:$I$16,$M$10:$M$16="Sim"), _xlfn._xlws.FILTER($I$19:$I$29,O19:O29="Sim")),4),O32) ) -> 0.1438 | P35: =IF(SUM(COUNTIF($M$10:$M$16,"Sim")) + SUM(COUNTIF(P19:P29,"Sim")) < 3, "N/D (são necessários pelo menos 3 preços)", IFERROR(ROUND(_xlfn.STDEV.S(_xlfn._xlws.FILTER($I$10:$I$16,$M$10:$M$16="Sim"), _xlfn._xlws.FILTER($I$19:$I$29,P19:P29="Sim")) / AVERAGE(_xlfn._xlws.FILTER($I$10:$I$16,$M$10:$M$16="Sim"), _xlfn._xlws.FILTER($I$19:$I$29,P19:P29="Sim")),4),P32) ) -> 0.1544 | Q35: =IF(SUM(COUNTIF($M$10:$M$16,"Sim")) + SUM(COUNTIF(Q19:Q29,"Sim")) < 3, "N/D (são necessários pelo menos 3 preços)", IFERROR(ROUND(_xlfn.STDEV.S(_xlfn._xlws.FILTER($I$10:$I$16,$M$10:$M$16="Sim"), _xlfn._xlws.FILTER($I$19:$I$29,Q19:Q29="Sim")) / AVERAGE(_xlfn._xlws.FILTER($I$10:$I$16,$M$10:$M$16="Sim"), _xlfn._xlws.FILTER($I$19:$I$29,Q19:Q29="Sim")),4),Q32) ) -> 0.1444 | R35: =IF(SUM(COUNTIF($M$10:$M$16,"Sim")) + SUM(COUNTIF(R19:R29,"Sim")) < 3, "N/D (são necessários pelo menos 3 preços)", IFERROR(ROUND(_xlfn.STDEV.S(_xlfn._xlws.FILTER($I$10:$I$16,$M$10:$M$16="Sim"), _xlfn._xlws.FILTER($I$19:$I$29,R19:R29="Sim")) / AVERAGE(_xlfn._xlws.FILTER($I$10:$I$16,$M$10:$M$16="Sim"), _xlfn._xlws.FILTER($I$19:$I$29,R19:R29="Sim")),4),R32) ) -> 0.1318 | S35: =IF(SUM(COUNTIF($S$10:$S$16,"Sim")) + SUM(COUNTIF(S19:S29,"Sim")) < 3, "N/D (são necessários pelo menos 3 preços)", IFERROR(_xlfn.STDEV.S(_xlfn._xlws.FILTER($I$10:$I$16,$S$10:$S$16="Sim"), _xlfn._xlws.FILTER($I$19:$I$29,S19:S29="Sim")) / AVERAGE(_xlfn._xlws.FILTER($I$10:$I$16,$S$10:$S$16="Sim"), _xlfn._xlws.FILTER($I$19:$I$29,S19:S29="Sim")),S32) ) -> N/D (são necessários pelo menos 3 preços)
B36: PREÇO UNITÁRIO ESTIMADO ADOTADO: | J36: =IF($J$33="","Selecione metodologia para exclusão de preços",MIN(J31:J32)) -> 3.0156 | L36: Metodologia sugerida: | M36: =IF($M$35=MIN($M$35,$N$35:$R$35),M8,"Grupos - "&INDEX({"Todos";"Sem o maior";"Sem o menor";"Sem o maior e Sem o menor";"Sem os dois maiores"},MATCH(MIN($N$35:$R$35),$N$35:$R$35,0))) -> Grupos - Sem os dois maiores
L37: Preço estimado sugerido: | M37: =IF($M$36=M8,SMALL($M$33:$M$34,1),MIN(INDEX($N$34:$R$34, MATCH(MIN($N$35:$R$35), $N$35:$R$35, 0)),INDEX($N$33:$R$33, MATCH(MIN($N$35:$R$35), $N$35:$R$35, 0)))) -> 3.0156
L38: Metodologia a adotar: | M38: =IF(INDEX(L18:S18,N38)=0,"",INDEX(L18:S18,N38)) ->  | N38: 1

Sheet Peixe 32% 6 a 8 mm
B2: Processo | C2: ='Peixe 50% PB Farelo'!C2 -> 59511.000102/2026-55
B3: Responsável | C3: ='Peixe 50% PB Farelo'!C3 -> JHONES DE LIMA VIEIRA
B4: Área de Origem | C4: ='Peixe 50% PB Farelo'!C4 -> 14ª GTR
B5: Data da pesquisa | C5: ='Peixe 50% PB Farelo'!C5 -> Janeiro/2026 - Fevereiro/2026
B7: ITEM: | C7: Ração extrusada para peixe onívoro 32% PB – Proteína Bruta Mín.: 32%, granulometria 6 a 8 mm. Data de validade não inferior a 6 meses. | G7: UNIDADE DE MEDIDA: | H7: ='Peixe 50% PB Farelo'!H7 -> kg | I7: QUANTIDADE: | J7: 75000 | M7: Tabela auxiliar de metodologias para exclusão de preços | U7: Automática (menor CV)
B8: LICITAÇÕES ANTERIORES | M8: Licitações Anteriores - Outliers | U8: =M19 -> Outliers
B9: Órgão | C9: Edital/Ano - Nº do Lote / Item | D9: Quantidade | E9: Valor Unitário | F9: Data | G9: índice de atualização (nome) | H9: Variação acumulada do índice (%) | I9: Preço unitário atualizado | J9: Utilizar? (Sim/Não) | M9: Utilizar? | S9: Por critério do(a) analista | U9: =N19 -> Grupos - Todos
B10: 14ª SR - Fortaleza/CE | C10: Edital 90007/2024 - Item 8 | D10: 37245 | E10: 2.77 | F10: 2025-01-02 | G10: IPA-EP-DI Suprimentos agropecuários | H10: =(I10/E10)-1 -> 0.01654095744 | I10: =IF(ISBLANK(E10),"",E10*(1+(INDEX('índice de atualização'!B:B,MATCH(G10,'índice de atualização'!B:B,0)+COUNTA('índice de atualização'!B:B)-1)-INDEX('índice de atualização'!B:B,MATCH(TEXT(F10,"MM/AAAA"),'índice de atualização'!A:A,0)))/INDEX('índice de atualização'!B:B,MATCH(TEXT(F10,"MM/AAAA"),'índice de atualização'!A:A,0)))) -> 2.815818452 | J10: =IF(ISNUMBER(I10),IF($J$34<>$S$9,M10,S10),"") -> Sim | M10: =IF(ISNUMBER(I10),IF(OR(I10<_xlfn.QUARTILE.INC($I$10:$I$30,1)-1.5*(_xlfn.QUARTILE.INC($I$10:I30,3)-_xlfn.QUARTILE.INC($I$10:$I$30,1)),I10>_xlfn.QUARTILE.INC($I$10:$I$30,3)+1.5*(_xlfn.QUARTILE.INC($I$10:$I$30,3)-_xlfn.QUARTILE.INC($I$10:$I$30,1))),"Não","Sim"),"") -> Sim | U10: =O19 -> Grupos - Sem o maior
B11: 14ª SR - Fortaleza/CE | C11: Edital 90007/2024 - Item 16 | D11: 6550 | E11: 2.75 | F11: 2025-02-18 | G11: IPA-EP-DI Suprimentos agropecuários | H11: =(I11/E11)-1 -> 0.0004507242601 | I11: =IF(ISBLANK(E11),"",E11*(1+(INDEX('índice de atualização'!B:B,MATCH(G11,'índice de atualização'!B:B,0)+COUNTA('índice de atualização'!B:B)-1)-INDEX('índice de atualização'!B:B,MATCH(TEXT(F11,"MM/AAAA"),'índice de atualização'!A:A,0)))/INDEX('índice de atualização'!B:B,MATCH(TEXT(F11,"MM/AAAA"),'índice de atualização'!A:A,0)))) -> 2.751239492 | J11: =IF(ISNUMBER(I11),IF($J$34<>$S$8,M11,S11),"") -> Sim | M11: =IF(ISNUMBER(I11),IF(OR(I11<_xlfn.QUARTILE.INC($I$10:$I$30,1)-1.5*(_xlfn.QUARTILE.INC($I$10:I31,3)-_xlfn.QUARTILE.INC($I$10:$I$30,1)),I11>_xlfn.QUARTILE.INC($I$10:$I$30,3)+1.5*(_xlfn.QUARTILE.INC($I$10:$I$30,3)-_xlfn.QUARTILE.INC($I$10:$I$30,1))),"Não","Sim"),"") -> Sim | U11: =P19 -> Grupos - Sem o menor
B12: Codevasf Sede | C12: Edital 90057/2025 - Item 2 | D12: =6860*25 -> 171500 | E12: =94.2/25 -> 3.768 | F12: 2025-12-08 | G12: IPA-EP-DI Suprimentos agropecuários | H12: =(I12/E12)-1 -> 0 | I12: =IF(ISBLANK(E12),"",E12*(1+(INDEX('índice de atualização'!B:B,MATCH(G12,'índice de atualização'!B:B,0)+COUNTA('índice de atualização'!B:B)-1)-INDEX('índice de atualização'!B:B,MATCH(TEXT(F12,"MM/AAAA"),'índice de atualização'!A:A,0)))/INDEX('índice de atualização'!B:B,MATCH(TEXT(F12,"MM/AAAA"),'índice de atualização'!A:A,0)))) -> 3.768 | J12: Sim | M12: =IF(ISNUMBER(I12),IF(OR(I12<_xlfn.QUARTILE.INC($I$10:$I$30,1)-1.5*(_xlfn.QUARTILE.INC($I$10:I32,3)-_xlfn.QUARTILE.INC($I$10:$I$30,1)),I12>_xlfn.QUARTILE.INC($I$10:$I$30,3)+1.5*(_xlfn.QUARTILE.INC($I$10:$I$30,3)-_xlfn.QUARTILE.INC($I$10:$I$30,1))),"Não","Sim"),"") -> Sim | N12: =$M$12 -> Sim | O12: =$M$12 -> Sim | P12: =$M$12 -> Sim | Q12: =$M$12 -> Sim | R12: =$M$12 -> Sim | U12: =Q19 -> Grupos - Sem o maior e sem o menor
B13: 11ª SR - Amapá/AP | C13: Edital 90126/2024 - Item 3 e 7 | D13: 87500 | E13: 3.74 | F13: 2025-05-13 | G13: IPA-EP-DI Suprimentos agropecuários | H13: -0.03987840836 | I13: =IF(ISBLANK(E13),"",E13*(1+(INDEX('índice de atualização'!B:B,MATCH(G13,'índice de atualização'!B:B,0)+COUNTA('índice de atualização'!B:B)-1)-INDEX('índice de atualização'!B:B,MATCH(TEXT(F13,"MM/AAAA"),'índice de atualização'!A:A,0)))/INDEX('índice de atualização'!B:B,MATCH(TEXT(F13,"MM/AAAA"),'índice de atualização'!A:A,0)))) -> 3.590854753 | J13: Sim | M13: =IF(ISNUMBER(I13),IF(OR(I13<_xlfn.QUARTILE.INC($I$10:$I$30,1)-1.5*(_xlfn.QUARTILE.INC($I$10:I33,3)-_xlfn.QUARTILE.INC($I$10:$I$30,1)),I13>_xlfn.QUARTILE.INC($I$10:$I$30,3)+1.5*(_xlfn.QUARTILE.INC($I$10:$I$30,3)-_xlfn.QUARTILE.INC($I$10:$I$30,1))),"Não","Sim"),"") -> Sim | N13: =$M$13 -> Sim | O13: =$M$13 -> Sim | P13: =$M$13 -> Sim | Q13: =$M$13 -> Sim | R13: =$M$13 -> Sim | U13: =R19 -> Grupos - Sem os dois maiores
B14: 4ª SR - Aracaju/SE | C14: Edital 90002/2025 - Item 4 | D14: 6000 | E14: 3.48 | F14: 2025-07-11 | G14: IPA-EP-DI Suprimentos agropecuários | H14: =(I14/E14)-1 -> -0.02236834839 | I14: =IF(ISBLANK(E14),"",E14*(1+(INDEX('índice de atualização'!B:B,MATCH(G14,'índice de atualização'!B:B,0)+COUNTA('índice de atualização'!B:B)-1)-INDEX('índice de atualização'!B:B,MATCH(TEXT(F14,"MM/AAAA"),'índice de atualização'!A:A,0)))/INDEX('índice de atualização'!B:B,MATCH(TEXT(F14,"MM/AAAA"),'índice de atualização'!A:A,0)))) -> 3.402158148 | J14: Sim | M14: =IF(ISNUMBER(I14),IF(OR(I14<_xlfn.QUARTILE.INC($I$10:$I$30,1)-1.5*(_xlfn.QUARTILE.INC($I$10:I34,3)-_xlfn.QUARTILE.INC($I$10:$I$30,1)),I14>_xlfn.QUARTILE.INC($I$10:$I$30,3)+1.5*(_xlfn.QUARTILE.INC($I$10:$I$30,3)-_xlfn.QUARTILE.INC($I$10:$I$30,1))),"Não","Sim"),"") -> Sim | N14: =$M$14 -> Sim | O14: Sim | P14: Sim | Q14: Sim | R14: Sim | U14: =S19 -> Por critério do(a) analista
I15: =IF(ISBLANK(E15),"",E15*(1+(INDEX('índice de atualização'!B:B,MATCH(G15,'índice de atualização'!B:B,0)+COUNTA('índice de atualização'!B:B)-1)-INDEX('índice de atualização'!B:B,MATCH(TEXT(F15,"MM/AAAA"),'índice de atualização'!A:A,0)))/INDEX('índice de atualização'!B:B,MATCH(TEXT(F15,"MM/AAAA"),'índice de atualização'!A:A,0)))) ->  | M15: =IF(ISNUMBER(I15),IF(OR(I15<_xlfn.QUARTILE.INC($I$10:$I$30,1)-1.5*(_xlfn.QUARTILE.INC($I$10:I35,3)-_xlfn.QUARTILE.INC($I$10:$I$30,1)),I15>_xlfn.QUARTILE.INC($I$10:$I$30,3)+1.5*(_xlfn.QUARTILE.INC($I$10:$I$30,3)-_xlfn.QUARTILE.INC($I$10:$I$30,1))),"Não","Sim"),"") ->  | N15: Sim | O15: Sim | P15: Sim | Q15: Sim | R15: Sim
I16: =IF(ISBLANK(E16),"",E16*(1+(INDEX('índice de atualização'!B:B,MATCH(G16,'índice de atualização'!B:B,0)+COUNTA('índice de atualização'!B:B)-1)-INDEX('índice de atualização'!B:B,MATCH(TEXT(F16,"MM/AAAA"),'índice de atualização'!A:A,0)))/INDEX('índice de atualização'!B:B,MATCH(TEXT(F16,"MM/AAAA"),'índice de atualização'!A:A,0)))) ->  | M16: =IF(ISNUMBER(I16),IF(OR(I16<_xlfn.QUARTILE.INC($I$10:$I$30,1)-1.5*(_xlfn.QUARTILE.INC($I$10:I37,3)-_xlfn.QUARTILE.INC($I$10:$I$30,1)),I16>_xlfn.QUARTILE.INC($I$10:$I$30,3)+1.5*(_xlfn.QUARTILE.INC($I$10:$I$30,3)-_xlfn.QUARTILE.INC($I$10:$I$30,1))),"Não","Sim"),"") ->  | N16: =$M$16 ->  | O16: =$M$16 ->  | P16: =$M$16 ->  | Q16: =$M$16 ->  | R16: =$M$16 -> 
I17: =IF(ISBLANK(E17),"",E17*(1+(INDEX('índice de atualização'!B:B,MATCH(G17,'índice de atualização'!B:B,0)+COUNTA('índice de atualização'!B:B)-1)-INDEX('índice de atualização'!B:B,MATCH(TEXT(F17,"MM/AAAA"),'índice de atualização'!A:A,0)))/INDEX('índice de atualização'!B:B,MATCH(TEXT(F17,"MM/AAAA"),'índice de atualização'!A:A,0)))) ->  | M17: =IF(ISNUMBER(I17),IF(OR(I17<_xlfn.QUARTILE.INC($I$10:$I$30,1)-1.5*(_xlfn.QUARTILE.INC($I$10:I40,3)-_xlfn.QUARTILE.INC($I$10:$I$30,1)),I17>_xlfn.QUARTILE.INC($I$10:$I$30,3)+1.5*(_xlfn.QUARTILE.INC($I$10:$I$30,3)-_xlfn.QUARTILE.INC($I$10:$I$30,1))),"Não","Sim"),"") ->  | N17: =$M$17 ->  | O17: =$M$17 ->  | P17: =$M$17 ->  | Q17: =$M$17 ->  | R17: =$M$17 -> 
B18: COTAÇÕES DE MERCADO | M18: Cotações
B19: Empresa | H19: Data | I19: Preço Unitário | J19: Utilizar? (Sim/Não) | M19: Outliers | N19: Grupos - Todos | O19: Grupos - Sem o maior | P19: Grupos - Sem o menor | Q19: Grupos - Sem o maior e sem o menor | R19: Grupos - Sem os dois maiores | S19: Por critério do(a) analista
B20: Agrosolo - Guabi | H20: 2026-02-10 | I20: =93.59/25 -> 3.7436 | J20: =IF(ISNUMBER(I20),IF($J$34=$M$19,M20,IF($J$34=$N$19,N20,IF($J$34=$O$19,O20,IF($J$34=$P$19,P20,IF($J$34=$Q$19,Q20,IF($J$34=$R$19,R20,IF($J$34=$S$19,S20,""))))))),"") -> Sim | M20: =IF(ISNUMBER(I20),IF(OR(I20<_xlfn.QUARTILE.INC($I$10:$I$30,1)-1.5*(_xlfn.QUARTILE.INC($I$10:I41,3)-_xlfn.QUARTILE.INC($I$10:$I$30,1)),I20>_xlfn.QUARTILE.INC($I$10:$I$30,3)+1.5*(_xlfn.QUARTILE.INC($I$10:$I$30,3)-_xlfn.QUARTILE.INC($I$10:$I$30,1))),"Não","Sim"),"") -> Sim | N20: =IF(ISNUMBER(I20),"Sim","") -> Sim | O20: =IF(ISNUMBER(I20),IF(_xlfn.RANK.EQ(I20,$I$20:$I$30)=1,"Não","Sim"),"") -> Sim | P20: =IF(ISNUMBER(I20),IF(_xlfn.RANK.EQ(I20,$I$20:$I$30)=COUNT($I$20:$I$30),"Não","Sim"),"") -> Sim | Q20: =IF(O20="","",IF(AND(O20="Sim",P20="Sim"),"Sim","Não")) -> Sim | R20: =IF(ISNUMBER(I20),IF(_xlfn.RANK.EQ(I20,$I$20:$I$30)<=2,"Não","Sim"),"") -> Sim
B21: Supra - Aqua Line | H21: 2026-02-10 | I21: =199/25 -> 7.96 | J21: Não | M21: =IF(ISNUMBER(I21),IF(OR(I21<_xlfn.QUARTILE.INC($I$10:$I$30,1)-1.5*(_xlfn.QUARTILE.INC($I$10:I41,3)-_xlfn.QUARTILE.INC($I$10:$I$30,1)),I21>_xlfn.QUARTILE.INC($I$10:$I$30,3)+1.5*(_xlfn.QUARTILE.INC($I$10:$I$30,3)-_xlfn.QUARTILE.INC($I$10:$I$30,1))),"Não","Sim"),"") -> Não | N21: =IF(ISNUMBER(I21),"Sim","") -> Sim | O21: Não | P21: Sim | Q21: =IF(O21="","",IF(AND(O21="Sim",P21="Sim"),"Sim","Não")) -> Não | R21: Não
B22: Samaria Rações LTDA | H22: 2026-02-09 | I22: =72/25 -> 2.88 | J22: Sim | M22: =IF(ISNUMBER(I22),IF(OR(I22<_xlfn.QUARTILE.INC($I$10:$I$30,1)-1.5*(_xlfn.QUARTILE.INC($I$10:I41,3)-_xlfn.QUARTILE.INC($I$10:$I$30,1)),I22>_xlfn.QUARTILE.INC($I$10:$I$30,3)+1.5*(_xlfn.QUARTILE.INC($I$10:$I$30,3)-_xlfn.QUARTILE.INC($I$10:$I$30,1))),"Não","Sim"),"") -> Sim | N22: Sim | O22: Sim | P22: Não | Q22: Não | R22: Sim
B23: Integral Mix Agroindustria | H23: 2026-02-07 | I23: =78.78/25 -> 3.1512 | J23: Sim | M23: =IF(ISNUMBER(I23),IF(OR(I23<_xlfn.QUARTILE.INC($I$10:$I$30,1)-1.5*(_xlfn.QUARTILE.INC($I$10:I41,3)-_xlfn.QUARTILE.INC($I$10:$I$30,1)),I23>_xlfn.QUARTILE.INC($I$10:$I$30,3)+1.5*(_xlfn.QUARTILE.INC($I$10:$I$30,3)-_xlfn.QUARTILE.INC($I$10:$I$30,1))),"Não","Sim"),"") -> Sim | N23: Sim | O23: Sim | P23: Sim | Q23: Sim | R23: Sim
B24: Comercial do Carmo ME | H24: 2026-02-12 | I24: =97/25 -> 3.88 | J24: Não | M24: =IF(ISNUMBER(I24),IF(OR(I24<_xlfn.QUARTILE.INC($I$10:$I$30,1)-1.5*(_xlfn.QUARTILE.INC($I$10:I42,3)-_xlfn.QUARTILE.INC($I$10:$I$30,1)),I24>_xlfn.QUARTILE.INC($I$10:$I$30,3)+1.5*(_xlfn.QUARTILE.INC($I$10:$I$30,3)-_xlfn.QUARTILE.INC($I$10:$I$30,1))),"Não","Sim"),"") -> Sim | N24: Sim | O24: Sim | P24: Sim | Q24: Sim | R24: Não
M25: =IF(ISNUMBER(I25),IF(OR(I25<_xlfn.QUARTILE.INC($I$10:$I$30,1)-1.5*(_xlfn.QUARTILE.INC($I$10:I43,3)-_xlfn.QUARTILE.INC($I$10:$I$30,1)),I25>_xlfn.QUARTILE.INC($I$10:$I$30,3)+1.5*(_xlfn.QUARTILE.INC($I$10:$I$30,3)-_xlfn.QUARTILE.INC($I$10:$I$30,1))),"Não","Sim"),"") -> 
M26: =IF(ISNUMBER(I26),IF(OR(I26<_xlfn.QUARTILE.INC($I$10:$I$30,1)-1.5*(_xlfn.QUARTILE.INC($I$10:I41,3)-_xlfn.QUARTILE.INC($I$10:$I$30,1)),I26>_xlfn.QUARTILE.INC($I$10:$I$30,3)+1.5*(_xlfn.QUARTILE.INC($I$10:$I$30,3)-_xlfn.QUARTILE.INC($I$10:$I$30,1))),"Não","Sim"),"") -> 
M27: =IF(ISNUMBER(I27),IF(OR(I27<_xlfn.QUARTILE.INC($I$10:$I$30,1)-1.5*(_xlfn.QUARTILE.INC($I$10:I41,3)-_xlfn.QUARTILE.INC($I$10:$I$30,1)),I27>_xlfn.QUARTILE.INC($I$10:$I$30,3)+1.5*(_xlfn.QUARTILE.INC($I$10:$I$30,3)-_xlfn.QUARTILE.INC($I$10:$I$30,1))),"Não","Sim"),"") -> 
M28: =IF(ISNUMBER(I28),IF(OR(I28<_xlfn.QUARTILE.INC($I$10:$I$30,1)-1.5*(_xlfn.QUARTILE.INC($I$10:I41,3)-_xlfn.QUARTILE.INC($I$10:$I$30,1)),I28>_xlfn.QUARTILE.INC($I$10:$I$30,3)+1.5*(_xlfn.QUARTILE.INC($I$10:$I$30,3)-_xlfn.QUARTILE.INC($I$10:$I$30,1))),"Não","Sim"),"") -> 
M29: =IF(ISNUMBER(I29),IF(OR(I29<_xlfn.QUARTILE.INC($I$10:$I$30,1)-1.5*(_xlfn.QUARTILE.INC($I$10:I41,3)-_xlfn.QUARTILE.INC($I$10:$I$30,1)),I29>_xlfn.QUARTILE.INC($I$10:$I$30,3)+1.5*(_xlfn.QUARTILE.INC($I$10:$I$30,3)-_xlfn.QUARTILE.INC($I$10:$I$30,1))),"Não","Sim"),"") -> 
M30: =IF(ISNUMBER(I30),IF(OR(I30<_xlfn.QUARTILE.INC($I$10:$I$30,1)-1.5*(_xlfn.QUARTILE.INC($I$10:I41,3)-_xlfn.QUARTILE.INC($I$10:$I$30,1)),I30>_xlfn.QUARTILE.INC($I$10:$I$30,3)+1.5*(_xlfn.QUARTILE.INC($I$10:$I$30,3)-_xlfn.QUARTILE.INC($I$10:$I$30,1))),"Não","Sim"),"") -> 
B31: Observações: | I31: CV: | J31: =IF($J$34="","Selecione metodologia para exclusão de preços",IF(COUNTIF($J$10:$J$30,"Sim")<3,"N/D (são necessários pelo menos 3 preços)",_xlfn.STDEV.S(IF($J$10:$J$30="Sim",$I$10:$I$30))/AVERAGE(IF($J$10:$J$30="Sim",$I$10:$I$30)))) -> 0.1286752496 | L31: Média (Cotações) | M31: =IF(COUNTIF(M20:M30,"Sim")<3,"N/D (são necessários pelo menos 3 preços)",AVERAGE(IF(M20:M30="Sim",$I20:$I30))) -> 3.4137 | N31: =IF(COUNTIF(N20:N30,"Sim")<3,"N/D (são necessários pelo menos 3 preços)",AVERAGE(IF(N20:N30="Sim",$I20:$I30))) -> 4.32296 | O31: =IF(COUNTIF(O20:O30,"Sim")<3,"N/D (são necessários pelo menos 3 preços)",AVERAGE(IF(O20:O30="Sim",$I20:$I30))) -> 3.4137 | P31: =IF(COUNTIF(P20:P30,"Sim")<3,"N/D (são necessários pelo menos 3 preços)",AVERAGE(IF(P20:P30="Sim",$I20:$I30))) -> 4.6837 | Q31: =IF(COUNTIF(Q20:Q30,"Sim")<3,"N/D (são necessários pelo menos 3 preços)",AVERAGE(IF(Q20:Q30="Sim",$I20:$I30))) -> 3.5916 | R31: =IF(COUNTIF(R20:R30,"Sim")<3,"N/D (são necessários pelo menos 3 preços)",AVERAGE(IF(R20:R30="Sim",$I20:$I30))) -> 3.258266667 | S31: =IF(COUNTIF(S20:S30,"Sim")<3,"N/D (são necessários pelo menos 3 preços)",AVERAGE(IF(S20:S30="Sim",$I20:$I30))) -> N/D (são necessários pelo menos 3 preços)
I32: Média: | J32: =IF($J$34="","Selecione metodologia para exclusão de preços",AVERAGE(IF($J$10:$J$30="Sim",$I$10:$I$30))) -> 3.262858856 | L32: Mediana (Cotações) | M32: =IF(COUNTIF(M20:M30,"Sim")<3,"N/D (são necessários pelo menos 3 preços)",MEDIAN(IF(M20:M30="Sim",$I20:$I30))) -> 3.4474 | N32: =IF(COUNTIF(N20:N30,"Sim")<3,"N/D (são necessários pelo menos 3 preços)",MEDIAN(IF(N20:N30="Sim",$I20:$I30))) -> 3.7436 | O32: =IF(COUNTIF(O20:O30,"Sim")<3,"N/D (são necessários pelo menos 3 preços)",MEDIAN(IF(O20:O30="Sim",$I20:$I30))) -> 3.4474 | P32: =IF(COUNTIF(P20:P30,"Sim")<3,"N/D (são necessários pelo menos 3 preços)",MEDIAN(IF(P20:P30="Sim",$I20:$I30))) -> 3.8118 | Q32: =IF(COUNTIF(Q20:Q30,"Sim")<3,"N/D (são necessários pelo menos 3 preços)",MEDIAN(IF(Q20:Q30="Sim",$I20:$I30))) -> 3.7436 | R32: =IF(COUNTIF(R20:R30,"Sim")<3,"N/D (são necessários pelo menos 3 preços)",MEDIAN(IF(R20:R30="Sim",$I20:$I30))) -> 3.1512 | S32: =IF(COUNTIF(S20:S30,"Sim")<3,"N/D (são necessários pelo menos 3 preços)",MEDIAN(IF(S20:S30="Sim",$I20:$I30))) -> N/D (são necessários pelo menos 3 preços)
I33: Mediana: | J33: =IF($J$34="","Selecione metodologia para exclusão de preços",MEDIAN(IF($J$10:$J$30="Sim",$I$10:$I$30))) -> 3.276679074 | L33: CV (Cotações) | M33: =IF(COUNTIF(M20:M30,"Sim")<3,"N/D (são necessários pelo menos 3 preços)",_xlfn.STDEV.S(IF(M20:M30="Sim",$I20:$I30))/AVERAGE(IF(M20:M30="Sim",$I20:$I30))) -> 0.139467236 | N33: =IF(COUNTIF(N20:N30,"Sim")<3,"N/D (são necessários pelo menos 3 preços)",_xlfn.STDEV.S(IF(N20:N30="Sim",$I20:$I30))/AVERAGE(IF(N20:N30="Sim",$I20:$I30))) -> 0.4798918706 | O33: =IF(COUNTIF(O20:O30,"Sim")<3,"N/D (são necessários pelo menos 3 preços)",_xlfn.STDEV.S(IF(O20:O30="Sim",$I20:$I30))/AVERAGE(IF(O20:O30="Sim",$I20:$I30))) -> 0.139467236 | P33: =IF(COUNTIF(P20:P30,"Sim")<3,"N/D (são necessários pelo menos 3 preços)",_xlfn.STDEV.S(IF(P20:P30="Sim",$I20:$I30))/AVERAGE(IF(P20:P30="Sim",$I20:$I30))) -> 0.4712066063 | Q33: =IF(COUNTIF(Q20:Q30,"Sim")<3,"N/D (são necessários pelo menos 3 preços)",_xlfn.STDEV.S(IF(Q20:Q30="Sim",$I20:$I30))/AVERAGE(IF(Q20:Q30="Sim",$I20:$I30))) -> 0.1078759425 | R33: =IF(COUNTIF(R20:R30,"Sim")<3,"N/D (são necessários pelo menos 3 preços)",_xlfn.STDEV.S(IF(R20:R30="Sim",$I20:$I30))/AVERAGE(IF(R20:R30="Sim",$I20:$I30))) -> 0.1355454355 | S33: =IF(COUNTIF(S20:S30,"Sim")<3,"N/D (são necessários pelo menos 3 preços)",_xlfn.STDEV.S(IF(S20:S30="Sim",$I20:$I30))/AVERAGE(IF(S20:S30="Sim",$I20:$I30))) -> N/D (são necessários pelo menos 3 preços)
B34: Metodologia de exclusão de preços adotada: | J34: =IF(M39="",INDEX(M19:S19,MATCH(MIN(M36:S36),M36:S36,0)),M39) -> Grupos - Sem os dois maiores | L34: Média | M34: =IF(SUM(COUNTIF($M$10:$M$17,"Sim")) + SUM(COUNTIF(M20:M30,"Sim")) < 3, "N/D (são necessários pelo menos 3 preços)", IFERROR(AVERAGE(_xlfn._xlws.FILTER($I$10:$I$17,$M$10:$M$17="Sim"), _xlfn._xlws.FILTER($I$20:$I$30,M20:M30="Sim")),M31)) -> 3.331430094 | N34: =IF(SUM(COUNTIF($M$10:$M$17,"Sim")) + SUM(COUNTIF(N20:N30,"Sim")) < 3, "N/D (são necessários pelo menos 3 preços)", IFERROR(AVERAGE(_xlfn._xlws.FILTER($I$10:$I$17,$M$10:$M$17="Sim"), _xlfn._xlws.FILTER($I$20:$I$30,N20:N30="Sim")),N31)) -> 3.794287084 | O34: =IF(SUM(COUNTIF($M$10:$M$17,"Sim")) + SUM(COUNTIF(O20:O30,"Sim")) < 3, "N/D (são necessários pelo menos 3 preços)", IFERROR(AVERAGE(_xlfn._xlws.FILTER($I$10:$I$17,$M$10:$M$17="Sim"), _xlfn._xlws.FILTER($I$20:$I$30,O20:O30="Sim")),O31)) -> 3.331430094 | P34: =IF(SUM(COUNTIF($M$10:$M$17,"Sim")) + SUM(COUNTIF(P20:P30,"Sim")) < 3, "N/D (são necessários pelo menos 3 preços)", IFERROR(AVERAGE(_xlfn._xlws.FILTER($I$10:$I$17,$M$10:$M$17="Sim"), _xlfn._xlws.FILTER($I$20:$I$30,P20:P30="Sim")),P31)) -> 3.895874538 | Q34: =IF(SUM(COUNTIF($M$10:$M$17,"Sim")) + SUM(COUNTIF(Q20:Q30,"Sim")) < 3, "N/D (são necessários pelo menos 3 preços)", IFERROR(AVERAGE(_xlfn._xlws.FILTER($I$10:$I$17,$M$10:$M$17="Sim"), _xlfn._xlws.FILTER($I$20:$I$30,Q20:Q30="Sim")),Q31)) -> 3.387858856 | R34: =IF(SUM(COUNTIF($M$10:$M$17,"Sim")) + SUM(COUNTIF(R20:R30,"Sim")) < 3, "N/D (são necessários pelo menos 3 preços)", IFERROR(AVERAGE(_xlfn._xlws.FILTER($I$10:$I$17,$M$10:$M$17="Sim"), _xlfn._xlws.FILTER($I$20:$I$30,R20:R30="Sim")),R31)) -> 3.262858856 | S34: =IF(SUM(COUNTIF($S$10:$S$17,"Sim")) + SUM(COUNTIF(S20:S30,"Sim")) < 3, "N/D (são necessários pelo menos 3 preços)", IFERROR(AVERAGE(_xlfn._xlws.FILTER($I$10:$I$17,$S$10:$S$17="Sim"), _xlfn._xlws.FILTER($I$20:$I$30,S20:S30="Sim")),S31)) -> N/D (são necessários pelo menos 3 preços)
L35: Mediana | M35: =IF(SUM(COUNTIF($M$10:$M$17,"Sim")) + SUM(COUNTIF(M20:M30,"Sim")) < 3, "N/D (são necessários pelo menos 3 preços)", IFERROR(MEDIAN(_xlfn._xlws.FILTER($I$10:$I$17,$M$10:$M$17="Sim"), _xlfn._xlws.FILTER($I$20:$I$30,M20:M30="Sim")),M31)) -> 3.402158148 | N35: =IF(SUM(COUNTIF($M$10:$M$17,"Sim")) + SUM(COUNTIF(N20:N30,"Sim")) < 3, "N/D (são necessários pelo menos 3 preços)", IFERROR(MEDIAN(_xlfn._xlws.FILTER($I$10:$I$17,$M$10:$M$17="Sim"), _xlfn._xlws.FILTER($I$20:$I$30,N20:N30="Sim")),N31)) -> 3.49650645 | O35: =IF(SUM(COUNTIF($M$10:$M$17,"Sim")) + SUM(COUNTIF(O20:O30,"Sim")) < 3, "N/D (são necessários pelo menos 3 preços)", IFERROR(MEDIAN(_xlfn._xlws.FILTER($I$10:$I$17,$M$10:$M$17="Sim"), _xlfn._xlws.FILTER($I$20:$I$30,O20:O30="Sim")),O31)) -> 3.402158148 | P35: =IF(SUM(COUNTIF($M$10:$M$17,"Sim")) + SUM(COUNTIF(P20:P30,"Sim")) < 3, "N/D (são necessários pelo menos 3 preços)", IFERROR(MEDIAN(_xlfn._xlws.FILTER($I$10:$I$17,$M$10:$M$17="Sim"), _xlfn._xlws.FILTER($I$20:$I$30,P20:P30="Sim")),P31)) -> 3.590854753 | Q35: =IF(SUM(COUNTIF($M$10:$M$17,"Sim")) + SUM(COUNTIF(Q20:Q30,"Sim")) < 3, "N/D (são necessários pelo menos 3 preços)", IFERROR(MEDIAN(_xlfn._xlws.FILTER($I$10:$I$17,$M$10:$M$17="Sim"), _xlfn._xlws.FILTER($I$20:$I$30,Q20:Q30="Sim")),Q31)) -> 3.49650645 | R35: =IF(SUM(COUNTIF($M$10:$M$17,"Sim")) + SUM(COUNTIF(R20:R30,"Sim")) < 3, "N/D (são necessários pelo menos 3 preços)", IFERROR(MEDIAN(_xlfn._xlws.FILTER($I$10:$I$17,$M$10:$M$17="Sim"), _xlfn._xlws.FILTER($I$20:$I$30,R20:R30="Sim")),R31)) -> 3.276679074 | S35: =IF(SUM(COUNTIF($S$10:$S$17,"Sim")) + SUM(COUNTIF(S20:S30,"Sim")) < 3, "N/D (são necessários pelo menos 3 preços)", IFERROR(MEDIAN(_xlfn._xlws.FILTER($I$10:$I$17,$S$10:$S$17="Sim"), _xlfn._xlws.FILTER($I$20:$I$30,S20:S30="Sim")),S31)) -> N/D (são necessários pelo menos 3 preços)
L36: CV | M36: =IF(SUM(COUNTIF($M$10:$M$17,"Sim")) + SUM(COUNTIF(M20:M30,"Sim")) < 3, "N/D (são necessários pelo menos 3 preços)", IFERROR(ROUND(_xlfn.STDEV.S(_xlfn._xlws.FILTER($I$10:$I$17,$M$10:$M$17="Sim"), _xlfn._xlws.FILTER($I$20:$I$30,M20:M30="Sim")) / AVERAGE(_xlfn._xlws.FILTER($I$10:$I$17,$M$10:$M$17="Sim"), _xlfn._xlws.FILTER($I$20:$I$30,M20:M30="Sim")),4),M33) ) -> 0.1331 | N36: =IF(SUM(COUNTIF($M$10:$M$17,"Sim")) + SUM(COUNTIF(N20:N30,"Sim")) < 3, "N/D (são necessários pelo menos 3 preços)", IFERROR(ROUND(_xlfn.STDEV.S(_xlfn._xlws.FILTER($I$10:$I$17,$M$10:$M$17="Sim"), _xlfn._xlws.FILTER($I$20:$I$30,N20:N30="Sim")) / AVERAGE(_xlfn._xlws.FILTER($I$10:$I$17,$M$10:$M$17="Sim"), _xlfn._xlws.FILTER($I$20:$I$30,N20:N30="Sim")),4),N33) ) -> 0.4012 | O36: =IF(SUM(COUNTIF($M$10:$M$17,"Sim")) + SUM(COUNTIF(O20:O30,"Sim")) < 3, "N/D (são necessários pelo menos 3 preços)", IFERROR(ROUND(_xlfn.STDEV.S(_xlfn._xlws.FILTER($I$10:$I$17,$M$10:$M$17="Sim"), _xlfn._xlws.FILTER($I$20:$I$30,O20:O30="Sim")) / AVERAGE(_xlfn._xlws.FILTER($I$10:$I$17,$M$10:$M$17="Sim"), _xlfn._xlws.FILTER($I$20:$I$30,O20:O30="Sim")),4),O33) ) -> 0.1331 | P36: =IF(SUM(COUNTIF($M$10:$M$17,"Sim")) + SUM(COUNTIF(P20:P30,"Sim")) < 3, "N/D (são necessários pelo menos 3 preços)", IFERROR(ROUND(_xlfn.STDEV.S(_xlfn._xlws.FILTER($I$10:$I$17,$M$10:$M$17="Sim"), _xlfn._xlws.FILTER($I$20:$I$30,P20:P30="Sim")) / AVERAGE(_xlfn._xlws.FILTER($I$10:$I$17,$M$10:$M$17="Sim"), _xlfn._xlws.FILTER($I$20:$I$30,P20:P30="Sim")),4),P33) ) -> 0.4051 | Q36: =IF(SUM(COUNTIF($M$10:$M$17,"Sim")) + SUM(COUNTIF(Q20:Q30,"Sim")) < 3, "N/D (são necessários pelo menos 3 preços)", IFERROR(ROUND(_xlfn.STDEV.S(_xlfn._xlws.FILTER($I$10:$I$17,$M$10:$M$17="Sim"), _xlfn._xlws.FILTER($I$20:$I$30,Q20:Q30="Sim")) / AVERAGE(_xlfn._xlws.FILTER($I$10:$I$17,$M$10:$M$17="Sim"), _xlfn._xlws.FILTER($I$20:$I$30,Q20:Q30="Sim")),4),Q33) ) -> 0.1293 | R36: =IF(SUM(COUNTIF($M$10:$M$17,"Sim")) + SUM(COUNTIF(R20:R30,"Sim")) < 3, "N/D (são necessários pelo menos 3 preços)", IFERROR(ROUND(_xlfn.STDEV.S(_xlfn._xlws.FILTER($I$10:$I$17,$M$10:$M$17="Sim"), _xlfn._xlws.FILTER($I$20:$I$30,R20:R30="Sim")) / AVERAGE(_xlfn._xlws.FILTER($I$10:$I$17,$M$10:$M$17="Sim"), _xlfn._xlws.FILTER($I$20:$I$30,R20:R30="Sim")),4),R33) ) -> 0.1287 | S36: =IF(SUM(COUNTIF($S$10:$S$17,"Sim")) + SUM(COUNTIF(S20:S30,"Sim")) < 3, "N/D (são necessários pelo menos 3 preços)", IFERROR(_xlfn.STDEV.S(_xlfn._xlws.FILTER($I$10:$I$17,$S$10:$S$17="Sim"), _xlfn._xlws.FILTER($I$20:$I$30,S20:S30="Sim")) / AVERAGE(_xlfn._xlws.FILTER($I$10:$I$17,$S$10:$S$17="Sim"), _xlfn._xlws.FILTER($I$20:$I$30,S20:S30="Sim")),S33) ) -> N/D (são necessários pelo menos 3 preços)
B37: PREÇO UNITÁRIO ESTIMADO ADOTADO: | J37: =IF($J$34="","Selecione metodologia para exclusão de preços",MIN(J32:J33)) -> 3.262858856 | L37: Metodologia sugerida: | M37: =IF($M$36=MIN($M$36,$N$36:$R$36),M8,"Grupos - "&INDEX({"Todos";"Sem o maior";"Sem o menor";"Sem o maior e Sem o menor";"Sem os dois maiores"},MATCH(MIN($N$36:$R$36),$N$36:$R$36,0))) -> Grupos - Sem os dois maiores
L38: Preço estimado sugerido: | M38: =IF($M$37=M8,SMALL($M$34:$M$35,1),MIN(INDEX($N$35:$R$35, MATCH(MIN($N$36:$R$36), $N$36:$R$36, 0)),INDEX($N$34:$R$34, MATCH(MIN($N$36:$R$36), $N$36:$R$36, 0)))) -> 3.262858856
L39: Metodologia a adotar: | M39: =IF(INDEX(L19:S19,N39)=0,"",INDEX(L19:S19,N39)) ->  | N39: 1

Sheet Camarão 40% 700 a 1000
B2: Processo | C2: ='Peixe 50% PB Farelo'!C2 -> 59511.000102/2026-55
B3: Responsável | C3: ='Peixe 50% PB Farelo'!C3 -> JHONES DE LIMA VIEIRA
B4: Área de Origem | C4: ='Peixe 50% PB Farelo'!C4 -> 14ª GTR
B5: Data da pesquisa | C5: ='Peixe 50% PB Farelo'!C5 -> Janeiro/2026 - Fevereiro/2026
B7: ITEM: | C7: Ração micro extrusada para camarão 40% PB – Proteína Bruta Mín.: 40%, 700 a 1000 micras Data de validade não inferior a 3 meses. | G7: UNIDADE DE MEDIDA: | H7: Kg | I7: QUANTIDADE: | J7: 21000 | M7: Tabela auxiliar de metodologias para exclusão de preços | U7: Automática (menor CV)
B8: LICITAÇÕES ANTERIORES | M8: Licitações Anteriores - Outliers | U8: =M19 -> Outliers
B9: Órgão | C9: Edital/Ano - Nº do Lote / Item | D9: Quantidade | E9: Valor Unitário | F9: Data | G9: índice de atualização (nome) | H9: Variação acumulada do índice (%) | I9: Preço unitário atualizado | J9: Utilizar? (Sim/Não) | M9: Utilizar? | S9: Por critério do(a) analista | U9: =N19 -> Grupos - Todos
B10: 14ª SR - Fortaleza/CE | C10: Edital 90007/2024 - Item 17 | D10: 4920 | E10: 5.8 | F10: 2025-01-02 | G10: IPA-EP-DI Suprimentos agropecuários | H10: =(I10/E10)-1 -> 0.01654095744 | I10: =IF(ISBLANK(E10),"",E10*(1+(INDEX('índice de atualização'!B:B,MATCH(G10,'índice de atualização'!B:B,0)+COUNTA('índice de atualização'!B:B)-1)-INDEX('índice de atualização'!B:B,MATCH(TEXT(F10,"MM/AAAA"),'índice de atualização'!A:A,0)))/INDEX('índice de atualização'!B:B,MATCH(TEXT(F10,"MM/AAAA"),'índice de atualização'!A:A,0)))) -> 5.895937553 | J10: =IF(ISNUMBER(I10),IF($J$34<>$S$9,M10,S10),"") -> Sim | M10: =IF(ISNUMBER(I10),IF(OR(I10<_xlfn.QUARTILE.INC($I$10:$I$30,1)-1.5*(_xlfn.QUARTILE.INC($I$10:I30,3)-_xlfn.QUARTILE.INC($I$10:$I$30,1)),I10>_xlfn.QUARTILE.INC($I$10:$I$30,3)+1.5*(_xlfn.QUARTILE.INC($I$10:$I$30,3)-_xlfn.QUARTILE.INC($I$10:$I$30,1))),"Não","Sim"),"") -> Sim | U10: =O19 -> Grupos - Sem o maior
B11: 14ª SR - Fortaleza/CE | C11: Edital 90007/2024 - Item 20 | D11: 210 | E11: 6.35 | F11: 2025-02-18 | G11: IPA-EP-DI Suprimentos agropecuários | H11: 0.0004507242601 | I11: =IF(ISBLANK(E11),"",E11*(1+(INDEX('índice de atualização'!B:B,MATCH(G11,'índice de atualização'!B:B,0)+COUNTA('índice de atualização'!B:B)-1)-INDEX('índice de atualização'!B:B,MATCH(TEXT(F11,"MM/AAAA"),'índice de atualização'!A:A,0)))/INDEX('índice de atualização'!B:B,MATCH(TEXT(F11,"MM/AAAA"),'índice de atualização'!A:A,0)))) -> 6.352862099 | J11: =IF(ISNUMBER(I11),IF($J$34<>$S$8,M11,S11),"") -> Sim | M11: =IF(ISNUMBER(I11),IF(OR(I11<_xlfn.QUARTILE.INC($I$10:$I$30,1)-1.5*(_xlfn.QUARTILE.INC($I$10:I31,3)-_xlfn.QUARTILE.INC($I$10:$I$30,1)),I11>_xlfn.QUARTILE.INC($I$10:$I$30,3)+1.5*(_xlfn.QUARTILE.INC($I$10:$I$30,3)-_xlfn.QUARTILE.INC($I$10:$I$30,1))),"Não","Sim"),"") -> Sim | U11: =P19 -> Grupos - Sem o menor
I12: =IF(ISBLANK(E12),"",E12*(1+(INDEX('índice de atualização'!B:B,MATCH(G12,'índice de atualização'!B:B,0)+COUNTA('índice de atualização'!B:B)-1)-INDEX('índice de atualização'!B:B,MATCH(TEXT(F12,"MM/AAAA"),'índice de atualização'!A:A,0)))/INDEX('índice de atualização'!B:B,MATCH(TEXT(F12,"MM/AAAA"),'índice de atualização'!A:A,0)))) ->  | M12: =IF(ISNUMBER(I12),IF(OR(I12<_xlfn.QUARTILE.INC($I$10:$I$30,1)-1.5*(_xlfn.QUARTILE.INC($I$10:I32,3)-_xlfn.QUARTILE.INC($I$10:$I$30,1)),I12>_xlfn.QUARTILE.INC($I$10:$I$30,3)+1.5*(_xlfn.QUARTILE.INC($I$10:$I$30,3)-_xlfn.QUARTILE.INC($I$10:$I$30,1))),"Não","Sim"),"") ->  | N12: =$M$12 ->  | O12: =$M$12 ->  | P12: =$M$12 ->  | Q12: =$M$12 ->  | R12: =$M$12 ->  | U12: =Q19 -> Grupos - Sem o maior e sem o menor
I13: =IF(ISBLANK(E13),"",E13*(1+(INDEX('índice de atualização'!B:B,MATCH(G13,'índice de atualização'!B:B,0)+COUNTA('índice de atualização'!B:B)-1)-INDEX('índice de atualização'!B:B,MATCH(TEXT(F13,"MM/AAAA"),'índice de atualização'!A:A,0)))/INDEX('índice de atualização'!B:B,MATCH(TEXT(F13,"MM/AAAA"),'índice de atualização'!A:A,0)))) ->  | M13: =IF(ISNUMBER(I13),IF(OR(I13<_xlfn.QUARTILE.INC($I$10:$I$30,1)-1.5*(_xlfn.QUARTILE.INC($I$10:I33,3)-_xlfn.QUARTILE.INC($I$10:$I$30,1)),I13>_xlfn.QUARTILE.INC($I$10:$I$30,3)+1.5*(_xlfn.QUARTILE.INC($I$10:$I$30,3)-_xlfn.QUARTILE.INC($I$10:$I$30,1))),"Não","Sim"),"") ->  | N13: =$M$13 ->  | O13: =$M$13 ->  | P13: =$M$13 ->  | Q13: =$M$13 ->  | R13: =$M$13 ->  | U13: =R19 -> Grupos - Sem os dois maiores
I14: =IF(ISBLANK(E14),"",E14*(1+(INDEX('índice de atualização'!B:B,MATCH(G14,'índice de atualização'!B:B,0)+COUNTA('índice de atualização'!B:B)-1)-INDEX('índice de atualização'!B:B,MATCH(TEXT(F14,"MM/AAAA"),'índice de atualização'!A:A,0)))/INDEX('índice de atualização'!B:B,MATCH(TEXT(F14,"MM/AAAA"),'índice de atualização'!A:A,0)))) ->  | M14: =IF(ISNUMBER(I14),IF(OR(I14<_xlfn.QUARTILE.INC($I$10:$I$30,1)-1.5*(_xlfn.QUARTILE.INC($I$10:I34,3)-_xlfn.QUARTILE.INC($I$10:$I$30,1)),I14>_xlfn.QUARTILE.INC($I$10:$I$30,3)+1.5*(_xlfn.QUARTILE.INC($I$10:$I$30,3)-_xlfn.QUARTILE.INC($I$10:$I$30,1))),"Não","Sim"),"") ->  | N14: =$M$14 ->  | U14: =S19 -> Por critério do(a) analista
I15: =IF(ISBLANK(E15),"",E15*(1+(INDEX('índice de atualização'!B:B,MATCH(G15,'índice de atualização'!B:B,0)+COUNTA('índice de atualização'!B:B)-1)-INDEX('índice de atualização'!B:B,MATCH(TEXT(F15,"MM/AAAA"),'índice de atualização'!A:A,0)))/INDEX('índice de atualização'!B:B,MATCH(TEXT(F15,"MM/AAAA"),'índice de atualização'!A:A,0)))) ->  | M15: =IF(ISNUMBER(I15),IF(OR(I15<_xlfn.QUARTILE.INC($I$10:$I$30,1)-1.5*(_xlfn.QUARTILE.INC($I$10:I35,3)-_xlfn.QUARTILE.INC($I$10:$I$30,1)),I15>_xlfn.QUARTILE.INC($I$10:$I$30,3)+1.5*(_xlfn.QUARTILE.INC($I$10:$I$30,3)-_xlfn.QUARTILE.INC($I$10:$I$30,1))),"Não","Sim"),"") -> 
I16: =IF(ISBLANK(E16),"",E16*(1+(INDEX('índice de atualização'!B:B,MATCH(G16,'índice de atualização'!B:B,0)+COUNTA('índice de atualização'!B:B)-1)-INDEX('índice de atualização'!B:B,MATCH(TEXT(F16,"MM/AAAA"),'índice de atualização'!A:A,0)))/INDEX('índice de atualização'!B:B,MATCH(TEXT(F16,"MM/AAAA"),'índice de atualização'!A:A,0)))) ->  | M16: =IF(ISNUMBER(I16),IF(OR(I16<_xlfn.QUARTILE.INC($I$10:$I$30,1)-1.5*(_xlfn.QUARTILE.INC($I$10:I37,3)-_xlfn.QUARTILE.INC($I$10:$I$30,1)),I16>_xlfn.QUARTILE.INC($I$10:$I$30,3)+1.5*(_xlfn.QUARTILE.INC($I$10:$I$30,3)-_xlfn.QUARTILE.INC($I$10:$I$30,1))),"Não","Sim"),"") ->  | N16: =$M$16 ->  | O16: =$M$16 ->  | P16: =$M$16 ->  | Q16: =$M$16 ->  | R16: =$M$16 -> 
I17: =IF(ISBLANK(E17),"",E17*(1+(INDEX('índice de atualização'!B:B,MATCH(G17,'índice de atualização'!B:B,0)+COUNTA('índice de atualização'!B:B)-1)-INDEX('índice de atualização'!B:B,MATCH(TEXT(F17,"MM/AAAA"),'índice de atualização'!A:A,0)))/INDEX('índice de atualização'!B:B,MATCH(TEXT(F17,"MM/AAAA"),'índice de atualização'!A:A,0)))) ->  | M17: =IF(ISNUMBER(I17),IF(OR(I17<_xlfn.QUARTILE.INC($I$10:$I$30,1)-1.5*(_xlfn.QUARTILE.INC($I$10:I40,3)-_xlfn.QUARTILE.INC($I$10:$I$30,1)),I17>_xlfn.QUARTILE.INC($I$10:$I$30,3)+1.5*(_xlfn.QUARTILE.INC($I$10:$I$30,3)-_xlfn.QUARTILE.INC($I$10:$I$30,1))),"Não","Sim"),"") ->  | N17: =$M$17 ->  | O17: =$M$17 ->  | P17: =$M$17 ->  | Q17: =$M$17 ->  | R17: =$M$17 -> 
B18: COTAÇÕES DE MERCADO | M18: Cotações
B19: Empresa | H19: Data | I19: Preço Unitário | J19: Utilizar? (Sim/Não) | M19: Outliers | N19: Grupos - Todos | O19: Grupos - Sem o maior | P19: Grupos - Sem o menor | Q19: Grupos - Sem o maior e sem o menor | R19: Grupos - Sem os dois maiores | S19: Por critério do(a) analista
B20: Samaria Rações LTDA | H20: 2026-02-09 | I20: =174/30 -> 5.8 | J20: =IF(ISNUMBER(I20),IF($J$34=$M$19,M20,IF($J$34=$N$19,N20,IF($J$34=$O$19,O20,IF($J$34=$P$19,P20,IF($J$34=$Q$19,Q20,IF($J$34=$R$19,R20,IF($J$34=$S$19,S20,""))))))),"") -> Sim | M20: =IF(ISNUMBER(I20),IF(OR(I20<_xlfn.QUARTILE.INC($I$10:$I$30,1)-1.5*(_xlfn.QUARTILE.INC($I$10:I41,3)-_xlfn.QUARTILE.INC($I$10:$I$30,1)),I20>_xlfn.QUARTILE.INC($I$10:$I$30,3)+1.5*(_xlfn.QUARTILE.INC($I$10:$I$30,3)-_xlfn.QUARTILE.INC($I$10:$I$30,1))),"Não","Sim"),"") -> Sim | N20: =IF(ISNUMBER(I20),"Sim","") -> Sim | O20: =IF(ISNUMBER(I20),IF(_xlfn.RANK.EQ(I20,$I$20:$I$30)=1,"Não","Sim"),"") -> Sim | P20: =IF(ISNUMBER(I20),IF(_xlfn.RANK.EQ(I20,$I$20:$I$30)=COUNT($I$20:$I$30),"Não","Sim"),"") -> Não | Q20: =IF(O20="","",IF(AND(O20="Sim",P20="Sim"),"Sim","Não")) -> Não | R20: =IF(ISNUMBER(I20),IF(_xlfn.RANK.EQ(I20,$I$20:$I$30)<=2,"Não","Sim"),"") -> Não
B21: Comercial do Carmo ME | H21: 2026-02-12 | I21: =235/30 -> 7.833333333 | J21: Não | M21: =IF(ISNUMBER(I21),IF(OR(I21<_xlfn.QUARTILE.INC($I$10:$I$30,1)-1.5*(_xlfn.QUARTILE.INC($I$10:I41,3)-_xlfn.QUARTILE.INC($I$10:$I$30,1)),I21>_xlfn.QUARTILE.INC($I$10:$I$30,3)+1.5*(_xlfn.QUARTILE.INC($I$10:$I$30,3)-_xlfn.QUARTILE.INC($I$10:$I$30,1))),"Não","Sim"),"") -> Sim | N21: Sim | O21: Não | P21: Sim | Q21: =IF(O21="","",IF(AND(O21="Sim",P21="Sim"),"Sim","Não")) -> Não | R21: Não
M22: =IF(ISNUMBER(I22),IF(OR(I22<_xlfn.QUARTILE.INC($I$10:$I$30,1)-1.5*(_xlfn.QUARTILE.INC($I$10:I41,3)-_xlfn.QUARTILE.INC($I$10:$I$30,1)),I22>_xlfn.QUARTILE.INC($I$10:$I$30,3)+1.5*(_xlfn.QUARTILE.INC($I$10:$I$30,3)-_xlfn.QUARTILE.INC($I$10:$I$30,1))),"Não","Sim"),"") -> 
M23: =IF(ISNUMBER(I23),IF(OR(I23<_xlfn.QUARTILE.INC($I$10:$I$30,1)-1.5*(_xlfn.QUARTILE.INC($I$10:I41,3)-_xlfn.QUARTILE.INC($I$10:$I$30,1)),I23>_xlfn.QUARTILE.INC($I$10:$I$30,3)+1.5*(_xlfn.QUARTILE.INC($I$10:$I$30,3)-_xlfn.QUARTILE.INC($I$10:$I$30,1))),"Não","Sim"),"") -> 
M24: =IF(ISNUMBER(I24),IF(OR(I24<_xlfn.QUARTILE.INC($I$10:$I$30,1)-1.5*(_xlfn.QUARTILE.INC($I$10:I42,3)-_xlfn.QUARTILE.INC($I$10:$I$30,1)),I24>_xlfn.QUARTILE.INC($I$10:$I$30,3)+1.5*(_xlfn.QUARTILE.INC($I$10:$I$30,3)-_xlfn.QUARTILE.INC($I$10:$I$30,1))),"Não","Sim"),"") -> 
M25: =IF(ISNUMBER(I25),IF(OR(I25<_xlfn.QUARTILE.INC($I$10:$I$30,1)-1.5*(_xlfn.QUARTILE.INC($I$10:I43,3)-_xlfn.QUARTILE.INC($I$10:$I$30,1)),I25>_xlfn.QUARTILE.INC($I$10:$I$30,3)+1.5*(_xlfn.QUARTILE.INC($I$10:$I$30,3)-_xlfn.QUARTILE.INC($I$10:$I$30,1))),"Não","Sim"),"") -> 
M26: =IF(ISNUMBER(I26),IF(OR(I26<_xlfn.QUARTILE.INC($I$10:$I$30,1)-1.5*(_xlfn.QUARTILE.INC($I$10:I41,3)-_xlfn.QUARTILE.INC($I$10:$I$30,1)),I26>_xlfn.QUARTILE.INC($I$10:$I$30,3)+1.5*(_xlfn.QUARTILE.INC($I$10:$I$30,3)-_xlfn.QUARTILE.INC($I$10:$I$30,1))),"Não","Sim"),"") -> 
M27: =IF(ISNUMBER(I27),IF(OR(I27<_xlfn.QUARTILE.INC($I$10:$I$30,1)-1.5*(_xlfn.QUARTILE.INC($I$10:I41,3)-_xlfn.QUARTILE.INC($I$10:$I$30,1)),I27>_xlfn.QUARTILE.INC($I$10:$I$30,3)+1.5*(_xlfn.QUARTILE.INC($I$10:$I$30,3)-_xlfn.QUARTILE.INC($I$10:$I$30,1))),"Não","Sim"),"") -> 
M28: =IF(ISNUMBER(I28),IF(OR(I28<_xlfn.QUARTILE.INC($I$10:$I$30,1)-1.5*(_xlfn.QUARTILE.INC($I$10:I41,3)-_xlfn.QUARTILE.INC($I$10:$I$30,1)),I28>_xlfn.QUARTILE.INC($I$10:$I$30,3)+1.5*(_xlfn.QUARTILE.INC($I$10:$I$30,3)-_xlfn.QUARTILE.INC($I$10:$I$30,1))),"Não","Sim"),"") -> 
M29: =IF(ISNUMBER(I29),IF(OR(I29<_xlfn.QUARTILE.INC($I$10:$I$30,1)-1.5*(_xlfn.QUARTILE.INC($I$10:I41,3)-_xlfn.QUARTILE.INC($I$10:$I$30,1)),I29>_xlfn.QUARTILE.INC($I$10:$I$30,3)+1.5*(_xlfn.QUARTILE.INC($I$10:$I$30,3)-_xlfn.QUARTILE.INC($I$10:$I$30,1))),"Não","Sim"),"") -> 
M30: =IF(ISNUMBER(I30),IF(OR(I30<_xlfn.QUARTILE.INC($I$10:$I$30,1)-1.5*(_xlfn.QUARTILE.INC($I$10:I41,3)-_xlfn.QUARTILE.INC($I$10:$I$30,1)),I30>_xlfn.QUARTILE.INC($I$10:$I$30,3)+1.5*(_xlfn.QUARTILE.INC($I$10:$I$30,3)-_xlfn.QUARTILE.INC($I$10:$I$30,1))),"Não","Sim"),"") -> 
B31: Observações: | I31: CV: | J31: =IF($J$34="","Selecione metodologia para exclusão de preços",IF(COUNTIF($J$10:$J$30,"Sim")<3,"N/D (são necessários pelo menos 3 preços)",_xlfn.STDEV.S(IF($J$10:$J$30="Sim",$I$10:$I$30))/AVERAGE(IF($J$10:$J$30="Sim",$I$10:$I$30)))) -> 0.04910366891 | L31: Média (Cotações) | M31: =IF(COUNTIF(M20:M30,"Sim")<3,"N/D (são necessários pelo menos 3 preços)",AVERAGE(IF(M20:M30="Sim",$I20:$I30))) -> N/D (são necessários pelo menos 3 preços) | N31: =IF(COUNTIF(N20:N30,"Sim")<3,"N/D (são necessários pelo menos 3 preços)",AVERAGE(IF(N20:N30="Sim",$I20:$I30))) -> N/D (são necessários pelo menos 3 preços) | O31: =IF(COUNTIF(O20:O30,"Sim")<3,"N/D (são necessários pelo menos 3 preços)",AVERAGE(IF(O20:O30="Sim",$I20:$I30))) -> N/D (são necessários pelo menos 3 preços) | P31: =IF(COUNTIF(P20:P30,"Sim")<3,"N/D (são necessários pelo menos 3 preços)",AVERAGE(IF(P20:P30="Sim",$I20:$I30))) -> N/D (são necessários pelo menos 3 preços) | Q31: =IF(COUNTIF(Q20:Q30,"Sim")<3,"N/D (são necessários pelo menos 3 preços)",AVERAGE(IF(Q20:Q30="Sim",$I20:$I30))) -> N/D (são necessários pelo menos 3 preços) | R31: =IF(COUNTIF(R20:R30,"Sim")<3,"N/D (são necessários pelo menos 3 preços)",AVERAGE(IF(R20:R30="Sim",$I20:$I30))) -> N/D (são necessários pelo menos 3 preços) | S31: =IF(COUNTIF(S20:S30,"Sim")<3,"N/D (são necessários pelo menos 3 preços)",AVERAGE(IF(S20:S30="Sim",$I20:$I30))) -> N/D (são necessários pelo menos 3 preços)
I32: Média: | J32: =IF($J$34="","Selecione metodologia para exclusão de preços",AVERAGE(IF($J$10:$J$30="Sim",$I$10:$I$30))) -> 6.016266551 | L32: Mediana (Cotações) | M32: =IF(COUNTIF(M20:M30,"Sim")<3,"N/D (são necessários pelo menos 3 preços)",MEDIAN(IF(M20:M30="Sim",$I20:$I30))) -> N/D (são necessários pelo menos 3 preços) | N32: =IF(COUNTIF(N20:N30,"Sim")<3,"N/D (são necessários pelo menos 3 preços)",MEDIAN(IF(N20:N30="Sim",$I20:$I30))) -> N/D (são necessários pelo menos 3 preços) | O32: =IF(COUNTIF(O20:O30,"Sim")<3,"N/D (são necessários pelo menos 3 preços)",MEDIAN(IF(O20:O30="Sim",$I20:$I30))) -> N/D (são necessários pelo menos 3 preços) | P32: =IF(COUNTIF(P20:P30,"Sim")<3,"N/D (são necessários pelo menos 3 preços)",MEDIAN(IF(P20:P30="Sim",$I20:$I30))) -> N/D (são necessários pelo menos 3 preços) | Q32: =IF(COUNTIF(Q20:Q30,"Sim")<3,"N/D (são necessários pelo menos 3 preços)",MEDIAN(IF(Q20:Q30="Sim",$I20:$I30))) -> N/D (são necessários pelo menos 3 preços) | R32: =IF(COUNTIF(R20:R30,"Sim")<3,"N/D (são necessários pelo menos 3 preços)",MEDIAN(IF(R20:R30="Sim",$I20:$I30))) -> N/D (são necessários pelo menos 3 preços) | S32: =IF(COUNTIF(S20:S30,"Sim")<3,"N/D (são necessários pelo menos 3 preços)",MEDIAN(IF(S20:S30="Sim",$I20:$I30))) -> N/D (são necessários pelo menos 3 preços)
I33: Mediana: | J33: =IF($J$34="","Selecione metodologia para exclusão de preços",MEDIAN(IF($J$10:$J$30="Sim",$I$10:$I$30))) -> 5.895937553 | L33: CV (Cotações) | M33: =IF(COUNTIF(M20:M30,"Sim")<3,"N/D (são necessários pelo menos 3 preços)",_xlfn.STDEV.S(IF(M20:M30="Sim",$I20:$I30))/AVERAGE(IF(M20:M30="Sim",$I20:$I30))) -> N/D (são necessários pelo menos 3 preços) | N33: =IF(COUNTIF(N20:N30,"Sim")<3,"N/D (são necessários pelo menos 3 preços)",_xlfn.STDEV.S(IF(N20:N30="Sim",$I20:$I30))/AVERAGE(IF(N20:N30="Sim",$I20:$I30))) -> N/D (são necessários pelo menos 3 preços) | O33: =IF(COUNTIF(O20:O30,"Sim")<3,"N/D (são necessários pelo menos 3 preços)",_xlfn.STDEV.S(IF(O20:O30="Sim",$I20:$I30))/AVERAGE(IF(O20:O30="Sim",$I20:$I30))) -> N/D (são necessários pelo menos 3 preços) | P33: =IF(COUNTIF(P20:P30,"Sim")<3,"N/D (são necessários pelo menos 3 preços)",_xlfn.STDEV.S(IF(P20:P30="Sim",$I20:$I30))/AVERAGE(IF(P20:P30="Sim",$I20:$I30))) -> N/D (são necessários pelo menos 3 preços) | Q33: =IF(COUNTIF(Q20:Q30,"Sim")<3,"N/D (são necessários pelo menos 3 preços)",_xlfn.STDEV.S(IF(Q20:Q30="Sim",$I20:$I30))/AVERAGE(IF(Q20:Q30="Sim",$I20:$I30))) -> N/D (são necessários pelo menos 3 preços) | R33: =IF(COUNTIF(R20:R30,"Sim")<3,"N/D (são necessários pelo menos 3 preços)",_xlfn.STDEV.S(IF(R20:R30="Sim",$I20:$I30))/AVERAGE(IF(R20:R30="Sim",$I20:$I30))) -> N/D (são necessários pelo menos 3 preços) | S33: =IF(COUNTIF(S20:S30,"Sim")<3,"N/D (são necessários pelo menos 3 preços)",_xlfn.STDEV.S(IF(S20:S30="Sim",$I20:$I30))/AVERAGE(IF(S20:S30="Sim",$I20:$I30))) -> N/D (são necessários pelo menos 3 preços)
B34: Metodologia de exclusão de preços adotada: | J34: =IF(M39="",INDEX(M19:S19,MATCH(MIN(M36:S36),M36:S36,0)),M39) -> Grupos - Sem o maior | L34: Média | M34: =IF(SUM(COUNTIF($M$10:$M$17,"Sim")) + SUM(COUNTIF(M20:M30,"Sim")) < 3, "N/D (são necessários pelo menos 3 preços)", IFERROR(AVERAGE(_xlfn._xlws.FILTER($I$10:$I$17,$M$10:$M$17="Sim"), _xlfn._xlws.FILTER($I$20:$I$30,M20:M30="Sim")),M31)) -> 6.470533246 | N34: =IF(SUM(COUNTIF($M$10:$M$17,"Sim")) + SUM(COUNTIF(N20:N30,"Sim")) < 3, "N/D (são necessários pelo menos 3 preços)", IFERROR(AVERAGE(_xlfn._xlws.FILTER($I$10:$I$17,$M$10:$M$17="Sim"), _xlfn._xlws.FILTER($I$20:$I$30,N20:N30="Sim")),N31)) -> 6.470533246 | O34: =IF(SUM(COUNTIF($M$10:$M$17,"Sim")) + SUM(COUNTIF(O20:O30,"Sim")) < 3, "N/D (são necessários pelo menos 3 preços)", IFERROR(AVERAGE(_xlfn._xlws.FILTER($I$10:$I$17,$M$10:$M$17="Sim"), _xlfn._xlws.FILTER($I$20:$I$30,O20:O30="Sim")),O31)) -> 6.016266551 | P34: =IF(SUM(COUNTIF($M$10:$M$17,"Sim")) + SUM(COUNTIF(P20:P30,"Sim")) < 3, "N/D (são necessários pelo menos 3 preços)", IFERROR(AVERAGE(_xlfn._xlws.FILTER($I$10:$I$17,$M$10:$M$17="Sim"), _xlfn._xlws.FILTER($I$20:$I$30,P20:P30="Sim")),P31)) -> 6.694044329 | Q34: =IF(SUM(COUNTIF($M$10:$M$17,"Sim")) + SUM(COUNTIF(Q20:Q30,"Sim")) < 3, "N/D (são necessários pelo menos 3 preços)", IFERROR(AVERAGE(_xlfn._xlws.FILTER($I$10:$I$17,$M$10:$M$17="Sim"), _xlfn._xlws.FILTER($I$20:$I$30,Q20:Q30="Sim")),Q31)) -> N/D (são necessários pelo menos 3 preços) | R34: =IF(SUM(COUNTIF($M$10:$M$17,"Sim")) + SUM(COUNTIF(R20:R30,"Sim")) < 3, "N/D (são necessários pelo menos 3 preços)", IFERROR(AVERAGE(_xlfn._xlws.FILTER($I$10:$I$17,$M$10:$M$17="Sim"), _xlfn._xlws.FILTER($I$20:$I$30,R20:R30="Sim")),R31)) -> N/D (são necessários pelo menos 3 preços) | S34: =IF(SUM(COUNTIF($S$10:$S$17,"Sim")) + SUM(COUNTIF(S20:S30,"Sim")) < 3, "N/D (são necessários pelo menos 3 preços)", IFERROR(AVERAGE(_xlfn._xlws.FILTER($I$10:$I$17,$S$10:$S$17="Sim"), _xlfn._xlws.FILTER($I$20:$I$30,S20:S30="Sim")),S31)) -> N/D (são necessários pelo menos 3 preços)
L35: Mediana | M35: =IF(SUM(COUNTIF($M$10:$M$17,"Sim")) + SUM(COUNTIF(M20:M30,"Sim")) < 3, "N/D (são necessários pelo menos 3 preços)", IFERROR(MEDIAN(_xlfn._xlws.FILTER($I$10:$I$17,$M$10:$M$17="Sim"), _xlfn._xlws.FILTER($I$20:$I$30,M20:M30="Sim")),M31)) -> 6.124399826 | N35: =IF(SUM(COUNTIF($M$10:$M$17,"Sim")) + SUM(COUNTIF(N20:N30,"Sim")) < 3, "N/D (são necessários pelo menos 3 preços)", IFERROR(MEDIAN(_xlfn._xlws.FILTER($I$10:$I$17,$M$10:$M$17="Sim"), _xlfn._xlws.FILTER($I$20:$I$30,N20:N30="Sim")),N31)) -> 6.124399826 | O35: =IF(SUM(COUNTIF($M$10:$M$17,"Sim")) + SUM(COUNTIF(O20:O30,"Sim")) < 3, "N/D (são necessários pelo menos 3 preços)", IFERROR(MEDIAN(_xlfn._xlws.FILTER($I$10:$I$17,$M$10:$M$17="Sim"), _xlfn._xlws.FILTER($I$20:$I$30,O20:O30="Sim")),O31)) -> 5.895937553 | P35: =IF(SUM(COUNTIF($M$10:$M$17,"Sim")) + SUM(COUNTIF(P20:P30,"Sim")) < 3, "N/D (são necessários pelo menos 3 preços)", IFERROR(MEDIAN(_xlfn._xlws.FILTER($I$10:$I$17,$M$10:$M$17="Sim"), _xlfn._xlws.FILTER($I$20:$I$30,P20:P30="Sim")),P31)) -> 6.352862099 | Q35: =IF(SUM(COUNTIF($M$10:$M$17,"Sim")) + SUM(COUNTIF(Q20:Q30,"Sim")) < 3, "N/D (são necessários pelo menos 3 preços)", IFERROR(MEDIAN(_xlfn._xlws.FILTER($I$10:$I$17,$M$10:$M$17="Sim"), _xlfn._xlws.FILTER($I$20:$I$30,Q20:Q30="Sim")),Q31)) -> N/D (são necessários pelo menos 3 preços) | R35: =IF(SUM(COUNTIF($M$10:$M$17,"Sim")) + SUM(COUNTIF(R20:R30,"Sim")) < 3, "N/D (são necessários pelo menos 3 preços)", IFERROR(MEDIAN(_xlfn._xlws.FILTER($I$10:$I$17,$M$10:$M$17="Sim"), _xlfn._xlws.FILTER($I$20:$I$30,R20:R30="Sim")),R31)) -> N/D (são necessários pelo menos 3 preços) | S35: =IF(SUM(COUNTIF($S$10:$S$17,"Sim")) + SUM(COUNTIF(S20:S30,"Sim")) < 3, "N/D (são necessários pelo menos 3 preços)", IFERROR(MEDIAN(_xlfn._xlws.FILTER($I$10:$I$17,$S$10:$S$17="Sim"), _xlfn._xlws.FILTER($I$20:$I$30,S20:S30="Sim")),S31)) -> N/D (são necessários pelo menos 3 preços)
L36: CV | M36: =IF(SUM(COUNTIF($M$10:$M$17,"Sim")) + SUM(COUNTIF(M20:M30,"Sim")) < 3, "N/D (são necessários pelo menos 3 preços)", IFERROR(ROUND(_xlfn.STDEV.S(_xlfn._xlws.FILTER($I$10:$I$17,$M$10:$M$17="Sim"), _xlfn._xlws.FILTER($I$20:$I$30,M20:M30="Sim")) / AVERAGE(_xlfn._xlws.FILTER($I$10:$I$17,$M$10:$M$17="Sim"), _xlfn._xlws.FILTER($I$20:$I$30,M20:M30="Sim")),4),M33) ) -> 0.1453 | N36: =IF(SUM(COUNTIF($M$10:$M$17,"Sim")) + SUM(COUNTIF(N20:N30,"Sim")) < 3, "N/D (são necessários pelo menos 3 preços)", IFERROR(ROUND(_xlfn.STDEV.S(_xlfn._xlws.FILTER($I$10:$I$17,$M$10:$M$17="Sim"), _xlfn._xlws.FILTER($I$20:$I$30,N20:N30="Sim")) / AVERAGE(_xlfn._xlws.FILTER($I$10:$I$17,$M$10:$M$17="Sim"), _xlfn._xlws.FILTER($I$20:$I$30,N20:N30="Sim")),4),N33) ) -> 0.1453 | O36: =IF(SUM(COUNTIF($M$10:$M$17,"Sim")) + SUM(COUNTIF(O20:O30,"Sim")) < 3, "N/D (são necessários pelo menos 3 preços)", IFERROR(ROUND(_xlfn.STDEV.S(_xlfn._xlws.FILTER($I$10:$I$17,$M$10:$M$17="Sim"), _xlfn._xlws.FILTER($I$20:$I$30,O20:O30="Sim")) / AVERAGE(_xlfn._xlws.FILTER($I$10:$I$17,$M$10:$M$17="Sim"), _xlfn._xlws.FILTER($I$20:$I$30,O20:O30="Sim")),4),O33) ) -> 0.0491 | P36: =IF(SUM(COUNTIF($M$10:$M$17,"Sim")) + SUM(COUNTIF(P20:P30,"Sim")) < 3, "N/D (são necessários pelo menos 3 preços)", IFERROR(ROUND(_xlfn.STDEV.S(_xlfn._xlws.FILTER($I$10:$I$17,$M$10:$M$17="Sim"), _xlfn._xlws.FILTER($I$20:$I$30,P20:P30="Sim")) / AVERAGE(_xlfn._xlws.FILTER($I$10:$I$17,$M$10:$M$17="Sim"), _xlfn._xlws.FILTER($I$20:$I$30,P20:P30="Sim")),4),P33) ) -> 0.1513 | Q36: =IF(SUM(COUNTIF($M$10:$M$17,"Sim")) + SUM(COUNTIF(Q20:Q30,"Sim")) < 3, "N/D (são necessários pelo menos 3 preços)", IFERROR(ROUND(_xlfn.STDEV.S(_xlfn._xlws.FILTER($I$10:$I$17,$M$10:$M$17="Sim"), _xlfn._xlws.FILTER($I$20:$I$30,Q20:Q30="Sim")) / AVERAGE(_xlfn._xlws.FILTER($I$10:$I$17,$M$10:$M$17="Sim"), _xlfn._xlws.FILTER($I$20:$I$30,Q20:Q30="Sim")),4),Q33) ) -> N/D (são necessários pelo menos 3 preços) | R36: =IF(SUM(COUNTIF($M$10:$M$17,"Sim")) + SUM(COUNTIF(R20:R30,"Sim")) < 3, "N/D (são necessários pelo menos 3 preços)", IFERROR(ROUND(_xlfn.STDEV.S(_xlfn._xlws.FILTER($I$10:$I$17,$M$10:$M$17="Sim"), _xlfn._xlws.FILTER($I$20:$I$30,R20:R30="Sim")) / AVERAGE(_xlfn._xlws.FILTER($I$10:$I$17,$M$10:$M$17="Sim"), _xlfn._xlws.FILTER($I$20:$I$30,R20:R30="Sim")),4),R33) ) -> N/D (são necessários pelo menos 3 preços) | S36: =IF(SUM(COUNTIF($S$10:$S$17,"Sim")) + SUM(COUNTIF(S20:S30,"Sim")) < 3, "N/D (são necessários pelo menos 3 preços)", IFERROR(_xlfn.STDEV.S(_xlfn._xlws.FILTER($I$10:$I$17,$S$10:$S$17="Sim"), _xlfn._xlws.FILTER($I$20:$I$30,S20:S30="Sim")) / AVERAGE(_xlfn._xlws.FILTER($I$10:$I$17,$S$10:$S$17="Sim"), _xlfn._xlws.FILTER($I$20:$I$30,S20:S30="Sim")),S33) ) -> N/D (são necessários pelo menos 3 preços)
B37: PREÇO UNITÁRIO ESTIMADO ADOTADO: | J37: =IF($J$34="","Selecione metodologia para exclusão de preços",MIN(J32:J33)) -> 5.895937553 | L37: Metodologia sugerida: | M37: =IF($M$36=MIN($M$36,$N$36:$R$36),M8,"Grupos - "&INDEX({"Todos";"Sem o maior";"Sem o menor";"Sem o maior e Sem o menor";"Sem os dois maiores"},MATCH(MIN($N$36:$R$36),$N$36:$R$36,0))) -> Grupos - Sem o maior
L38: Preço estimado sugerido: | M38: =IF($M$37=M8,SMALL($M$34:$M$35,1),MIN(INDEX($N$35:$R$35, MATCH(MIN($N$36:$R$36), $N$36:$R$36, 0)),INDEX($N$34:$R$34, MATCH(MIN($N$36:$R$36), $N$36:$R$36, 0)))) -> 5.895937553
L39: Metodologia a adotar: | M39: =IF(INDEX(L19:S19,N39)=0,"",INDEX(L19:S19,N39)) ->  | N39: 1

Sheet Camarão 40% 900 a 1300
B2: Processo | C2: ='Peixe 50% PB Farelo'!C2 -> 59511.000102/2026-55
B3: Responsável | C3: ='Peixe 50% PB Farelo'!C3 -> JHONES DE LIMA VIEIRA
B4: Área de Origem | C4: ='Peixe 50% PB Farelo'!C4 -> 14ª GTR
B5: Data da pesquisa | C5: ='Peixe 50% PB Farelo'!C5 -> Janeiro/2026 - Fevereiro/2026
B7: ITEM: | C7: Ração micro extrusada para camarão 40% PB – Proteína Bruta Mín.: 40%, 900 a 1300 micras. Data de validade não inferior a 3 meses. | G7: UNIDADE DE MEDIDA: | H7: Kg | I7: QUANTIDADE: | J7: 105000 | M7: Tabela auxiliar de metodologias para exclusão de preços | U7: Automática (menor CV)
B8: LICITAÇÕES ANTERIORES | M8: Licitações Anteriores - Outliers | U8: =M19 -> Outliers
B9: Órgão | C9: Edital/Ano - Nº do Lote / Item | D9: Quantidade | E9: Valor Unitário | F9: Data | G9: índice de atualização (nome) | H9: Variação acumulada do índice (%) | I9: Preço unitário atualizado | J9: Utilizar? (Sim/Não) | M9: Utilizar? | S9: Por critério do(a) analista | U9: =N19 -> Grupos - Todos
B10: 14ª SR - Fortaleza/CE | C10: Edital 90007/2024 - Item 18 | D10: 49260 | E10: 5.51 | F10: 2025-01-02 | G10: IPA-EP-DI Suprimentos agropecuários | H10: =(I10/E10)-1 -> 0.01654095744 | I10: =IF(ISBLANK(E10),"",E10*(1+(INDEX('índice de atualização'!B:B,MATCH(G10,'índice de atualização'!B:B,0)+COUNTA('índice de atualização'!B:B)-1)-INDEX('índice de atualização'!B:B,MATCH(TEXT(F10,"MM/AAAA"),'índice de atualização'!A:A,0)))/INDEX('índice de atualização'!B:B,MATCH(TEXT(F10,"MM/AAAA"),'índice de atualização'!A:A,0)))) -> 5.601140676 | J10: =IF(ISNUMBER(I10),IF($J$34<>$S$9,M10,S10),"") -> Sim | M10: =IF(ISNUMBER(I10),IF(OR(I10<_xlfn.QUARTILE.INC($I$10:$I$30,1)-1.5*(_xlfn.QUARTILE.INC($I$10:I30,3)-_xlfn.QUARTILE.INC($I$10:$I$30,1)),I10>_xlfn.QUARTILE.INC($I$10:$I$30,3)+1.5*(_xlfn.QUARTILE.INC($I$10:$I$30,3)-_xlfn.QUARTILE.INC($I$10:$I$30,1))),"Não","Sim"),"") -> Sim | U10: =O19 -> Grupos - Sem o maior
B11: 14ª SR - Fortaleza/CE | C11: Edital 90007/2024 - Item 21 | D11: 2040 | E11: 6.35 | F11: 2025-02-18 | G11: IPA-EP-DI Suprimentos agropecuários | H11: =(I11/E11)-1 -> 0.0004507242601 | I11: =IF(ISBLANK(E11),"",E11*(1+(INDEX('índice de atualização'!B:B,MATCH(G11,'índice de atualização'!B:B,0)+COUNTA('índice de atualização'!B:B)-1)-INDEX('índice de atualização'!B:B,MATCH(TEXT(F11,"MM/AAAA"),'índice de atualização'!A:A,0)))/INDEX('índice de atualização'!B:B,MATCH(TEXT(F11,"MM/AAAA"),'índice de atualização'!A:A,0)))) -> 6.352862099 | J11: =IF(ISNUMBER(I11),IF($J$34<>$S$8,M11,S11),"") -> Sim | M11: =IF(ISNUMBER(I11),IF(OR(I11<_xlfn.QUARTILE.INC($I$10:$I$30,1)-1.5*(_xlfn.QUARTILE.INC($I$10:I31,3)-_xlfn.QUARTILE.INC($I$10:$I$30,1)),I11>_xlfn.QUARTILE.INC($I$10:$I$30,3)+1.5*(_xlfn.QUARTILE.INC($I$10:$I$30,3)-_xlfn.QUARTILE.INC($I$10:$I$30,1))),"Não","Sim"),"") -> Sim | U11: =P19 -> Grupos - Sem o menor
I12: =IF(ISBLANK(E12),"",E12*(1+(INDEX('índice de atualização'!B:B,MATCH(G12,'índice de atualização'!B:B,0)+COUNTA('índice de atualização'!B:B)-1)-INDEX('índice de atualização'!B:B,MATCH(TEXT(F12,"MM/AAAA"),'índice de atualização'!A:A,0)))/INDEX('índice de atualização'!B:B,MATCH(TEXT(F12,"MM/AAAA"),'índice de atualização'!A:A,0)))) ->  | M12: =IF(ISNUMBER(I12),IF(OR(I12<_xlfn.QUARTILE.INC($I$10:$I$30,1)-1.5*(_xlfn.QUARTILE.INC($I$10:I32,3)-_xlfn.QUARTILE.INC($I$10:$I$30,1)),I12>_xlfn.QUARTILE.INC($I$10:$I$30,3)+1.5*(_xlfn.QUARTILE.INC($I$10:$I$30,3)-_xlfn.QUARTILE.INC($I$10:$I$30,1))),"Não","Sim"),"") ->  | N12: =$M$12 ->  | O12: =$M$12 ->  | P12: =$M$12 ->  | Q12: =$M$12 ->  | R12: =$M$12 ->  | U12: =Q19 -> Grupos - Sem o maior e sem o menor
I13: =IF(ISBLANK(E13),"",E13*(1+(INDEX('índice de atualização'!B:B,MATCH(G13,'índice de atualização'!B:B,0)+COUNTA('índice de atualização'!B:B)-1)-INDEX('índice de atualização'!B:B,MATCH(TEXT(F13,"MM/AAAA"),'índice de atualização'!A:A,0)))/INDEX('índice de atualização'!B:B,MATCH(TEXT(F13,"MM/AAAA"),'índice de atualização'!A:A,0)))) ->  | M13: =IF(ISNUMBER(I13),IF(OR(I13<_xlfn.QUARTILE.INC($I$10:$I$30,1)-1.5*(_xlfn.QUARTILE.INC($I$10:I33,3)-_xlfn.QUARTILE.INC($I$10:$I$30,1)),I13>_xlfn.QUARTILE.INC($I$10:$I$30,3)+1.5*(_xlfn.QUARTILE.INC($I$10:$I$30,3)-_xlfn.QUARTILE.INC($I$10:$I$30,1))),"Não","Sim"),"") ->  | N13: =$M$13 ->  | O13: =$M$13 ->  | P13: =$M$13 ->  | Q13: =$M$13 ->  | R13: =$M$13 ->  | U13: =R19 -> Grupos - Sem os dois maiores
I14: =IF(ISBLANK(E14),"",E14*(1+(INDEX('índice de atualização'!B:B,MATCH(G14,'índice de atualização'!B:B,0)+COUNTA('índice de atualização'!B:B)-1)-INDEX('índice de atualização'!B:B,MATCH(TEXT(F14,"MM/AAAA"),'índice de atualização'!A:A,0)))/INDEX('índice de atualização'!B:B,MATCH(TEXT(F14,"MM/AAAA"),'índice de atualização'!A:A,0)))) ->  | M14: =IF(ISNUMBER(I14),IF(OR(I14<_xlfn.QUARTILE.INC($I$10:$I$30,1)-1.5*(_xlfn.QUARTILE.INC($I$10:I34,3)-_xlfn.QUARTILE.INC($I$10:$I$30,1)),I14>_xlfn.QUARTILE.INC($I$10:$I$30,3)+1.5*(_xlfn.QUARTILE.INC($I$10:$I$30,3)-_xlfn.QUARTILE.INC($I$10:$I$30,1))),"Não","Sim"),"") ->  | N14: =$M$14 ->  | U14: =S19 -> Por critério do(a) analista
I15: =IF(ISBLANK(E15),"",E15*(1+(INDEX('índice de atualização'!B:B,MATCH(G15,'índice de atualização'!B:B,0)+COUNTA('índice de atualização'!B:B)-1)-INDEX('índice de atualização'!B:B,MATCH(TEXT(F15,"MM/AAAA"),'índice de atualização'!A:A,0)))/INDEX('índice de atualização'!B:B,MATCH(TEXT(F15,"MM/AAAA"),'índice de atualização'!A:A,0)))) ->  | M15: =IF(ISNUMBER(I15),IF(OR(I15<_xlfn.QUARTILE.INC($I$10:$I$30,1)-1.5*(_xlfn.QUARTILE.INC($I$10:I35,3)-_xlfn.QUARTILE.INC($I$10:$I$30,1)),I15>_xlfn.QUARTILE.INC($I$10:$I$30,3)+1.5*(_xlfn.QUARTILE.INC($I$10:$I$30,3)-_xlfn.QUARTILE.INC($I$10:$I$30,1))),"Não","Sim"),"") -> 
I16: =IF(ISBLANK(E16),"",E16*(1+(INDEX('índice de atualização'!B:B,MATCH(G16,'índice de atualização'!B:B,0)+COUNTA('índice de atualização'!B:B)-1)-INDEX('índice de atualização'!B:B,MATCH(TEXT(F16,"MM/AAAA"),'índice de atualização'!A:A,0)))/INDEX('índice de atualização'!B:B,MATCH(TEXT(F16,"MM/AAAA"),'índice de atualização'!A:A,0)))) ->  | M16: =IF(ISNUMBER(I16),IF(OR(I16<_xlfn.QUARTILE.INC($I$10:$I$30,1)-1.5*(_xlfn.QUARTILE.INC($I$10:I37,3)-_xlfn.QUARTILE.INC($I$10:$I$30,1)),I16>_xlfn.QUARTILE.INC($I$10:$I$30,3)+1.5*(_xlfn.QUARTILE.INC($I$10:$I$30,3)-_xlfn.QUARTILE.INC($I$10:$I$30,1))),"Não","Sim"),"") ->  | N16: =$M$16 ->  | O16: =$M$16 ->  | P16: =$M$16 ->  | Q16: =$M$16 ->  | R16: =$M$16 -> 
I17: =IF(ISBLANK(E17),"",E17*(1+(INDEX('índice de atualização'!B:B,MATCH(G17,'índice de atualização'!B:B,0)+COUNTA('índice de atualização'!B:B)-1)-INDEX('índice de atualização'!B:B,MATCH(TEXT(F17,"MM/AAAA"),'índice de atualização'!A:A,0)))/INDEX('índice de atualização'!B:B,MATCH(TEXT(F17,"MM/AAAA"),'índice de atualização'!A:A,0)))) ->  | M17: =IF(ISNUMBER(I17),IF(OR(I17<_xlfn.QUARTILE.INC($I$10:$I$30,1)-1.5*(_xlfn.QUARTILE.INC($I$10:I40,3)-_xlfn.QUARTILE.INC($I$10:$I$30,1)),I17>_xlfn.QUARTILE.INC($I$10:$I$30,3)+1.5*(_xlfn.QUARTILE.INC($I$10:$I$30,3)-_xlfn.QUARTILE.INC($I$10:$I$30,1))),"Não","Sim"),"") ->  | N17: =$M$17 ->  | O17: =$M$17 ->  | P17: =$M$17 ->  | Q17: =$M$17 ->  | R17: =$M$17 -> 
B18: COTAÇÕES DE MERCADO | M18: Cotações
B19: Empresa | H19: Data | I19: Preço Unitário | J19: Utilizar? (Sim/Não) | M19: Outliers | N19: Grupos - Todos | O19: Grupos - Sem o maior | P19: Grupos - Sem o menor | Q19: Grupos - Sem o maior e sem o menor | R19: Grupos - Sem os dois maiores | S19: Por critério do(a) analista
B20: Samaria Rações LTDA | H20: 2026-02-09 | I20: =165.3/30 -> 5.51 | J20: =IF(ISNUMBER(I20),IF($J$34=$M$19,M20,IF($J$34=$N$19,N20,IF($J$34=$O$19,O20,IF($J$34=$P$19,P20,IF($J$34=$Q$19,Q20,IF($J$34=$R$19,R20,IF($J$34=$S$19,S20,""))))))),"") -> Sim | M20: =IF(ISNUMBER(I20),IF(OR(I20<_xlfn.QUARTILE.INC($I$10:$I$30,1)-1.5*(_xlfn.QUARTILE.INC($I$10:I41,3)-_xlfn.QUARTILE.INC($I$10:$I$30,1)),I20>_xlfn.QUARTILE.INC($I$10:$I$30,3)+1.5*(_xlfn.QUARTILE.INC($I$10:$I$30,3)-_xlfn.QUARTILE.INC($I$10:$I$30,1))),"Não","Sim"),"") -> Sim | N20: =IF(ISNUMBER(I20),"Sim","") -> Sim | O20: =IF(ISNUMBER(I20),IF(_xlfn.RANK.EQ(I20,$I$20:$I$30)=1,"Não","Sim"),"") -> Sim | P20: =IF(ISNUMBER(I20),IF(_xlfn.RANK.EQ(I20,$I$20:$I$30)=COUNT($I$20:$I$30),"Não","Sim"),"") -> Não | Q20: =IF(O20="","",IF(AND(O20="Sim",P20="Sim"),"Sim","Não")) -> Não | R20: =IF(ISNUMBER(I20),IF(_xlfn.RANK.EQ(I20,$I$20:$I$30)<=2,"Não","Sim"),"") -> Não
B21: Comercial do Carmo ME | H21: 2026-02-12 | I21: =223/30 -> 7.433333333 | J21: Não | M21: =IF(ISNUMBER(I21),IF(OR(I21<_xlfn.QUARTILE.INC($I$10:$I$30,1)-1.5*(_xlfn.QUARTILE.INC($I$10:I41,3)-_xlfn.QUARTILE.INC($I$10:$I$30,1)),I21>_xlfn.QUARTILE.INC($I$10:$I$30,3)+1.5*(_xlfn.QUARTILE.INC($I$10:$I$30,3)-_xlfn.QUARTILE.INC($I$10:$I$30,1))),"Não","Sim"),"") -> Sim | N21: =IF(ISNUMBER(I21),"Sim","") -> Sim | O21: Não | P21: Sim | Q21: =IF(O21="","",IF(AND(O21="Sim",P21="Sim"),"Sim","Não")) -> Não | R21: Não
M22: =IF(ISNUMBER(I22),IF(OR(I22<_xlfn.QUARTILE.INC($I$10:$I$30,1)-1.5*(_xlfn.QUARTILE.INC($I$10:I41,3)-_xlfn.QUARTILE.INC($I$10:$I$30,1)),I22>_xlfn.QUARTILE.INC($I$10:$I$30,3)+1.5*(_xlfn.QUARTILE.INC($I$10:$I$30,3)-_xlfn.QUARTILE.INC($I$10:$I$30,1))),"Não","Sim"),"") -> 
M23: =IF(ISNUMBER(I23),IF(OR(I23<_xlfn.QUARTILE.INC($I$10:$I$30,1)-1.5*(_xlfn.QUARTILE.INC($I$10:I41,3)-_xlfn.QUARTILE.INC($I$10:$I$30,1)),I23>_xlfn.QUARTILE.INC($I$10:$I$30,3)+1.5*(_xlfn.QUARTILE.INC($I$10:$I$30,3)-_xlfn.QUARTILE.INC($I$10:$I$30,1))),"Não","Sim"),"") -> 
M24: =IF(ISNUMBER(I24),IF(OR(I24<_xlfn.QUARTILE.INC($I$10:$I$30,1)-1.5*(_xlfn.QUARTILE.INC($I$10:I42,3)-_xlfn.QUARTILE.INC($I$10:$I$30,1)),I24>_xlfn.QUARTILE.INC($I$10:$I$30,3)+1.5*(_xlfn.QUARTILE.INC($I$10:$I$30,3)-_xlfn.QUARTILE.INC($I$10:$I$30,1))),"Não","Sim"),"") -> 
M25: =IF(ISNUMBER(I25),IF(OR(I25<_xlfn.QUARTILE.INC($I$10:$I$30,1)-1.5*(_xlfn.QUARTILE.INC($I$10:I43,3)-_xlfn.QUARTILE.INC($I$10:$I$30,1)),I25>_xlfn.QUARTILE.INC($I$10:$I$30,3)+1.5*(_xlfn.QUARTILE.INC($I$10:$I$30,3)-_xlfn.QUARTILE.INC($I$10:$I$30,1))),"Não","Sim"),"") -> 
M26: =IF(ISNUMBER(I26),IF(OR(I26<_xlfn.QUARTILE.INC($I$10:$I$30,1)-1.5*(_xlfn.QUARTILE.INC($I$10:I41,3)-_xlfn.QUARTILE.INC($I$10:$I$30,1)),I26>_xlfn.QUARTILE.INC($I$10:$I$30,3)+1.5*(_xlfn.QUARTILE.INC($I$10:$I$30,3)-_xlfn.QUARTILE.INC($I$10:$I$30,1))),"Não","Sim"),"") -> 
M27: =IF(ISNUMBER(I27),IF(OR(I27<_xlfn.QUARTILE.INC($I$10:$I$30,1)-1.5*(_xlfn.QUARTILE.INC($I$10:I41,3)-_xlfn.QUARTILE.INC($I$10:$I$30,1)),I27>_xlfn.QUARTILE.INC($I$10:$I$30,3)+1.5*(_xlfn.QUARTILE.INC($I$10:$I$30,3)-_xlfn.QUARTILE.INC($I$10:$I$30,1))),"Não","Sim"),"") -> 
M28: =IF(ISNUMBER(I28),IF(OR(I28<_xlfn.QUARTILE.INC($I$10:$I$30,1)-1.5*(_xlfn.QUARTILE.INC($I$10:I41,3)-_xlfn.QUARTILE.INC($I$10:$I$30,1)),I28>_xlfn.QUARTILE.INC($I$10:$I$30,3)+1.5*(_xlfn.QUARTILE.INC($I$10:$I$30,3)-_xlfn.QUARTILE.INC($I$10:$I$30,1))),"Não","Sim"),"") -> 
M29: =IF(ISNUMBER(I29),IF(OR(I29<_xlfn.QUARTILE.INC($I$10:$I$30,1)-1.5*(_xlfn.QUARTILE.INC($I$10:I41,3)-_xlfn.QUARTILE.INC($I$10:$I$30,1)),I29>_xlfn.QUARTILE.INC($I$10:$I$30,3)+1.5*(_xlfn.QUARTILE.INC($I$10:$I$30,3)-_xlfn.QUARTILE.INC($I$10:$I$30,1))),"Não","Sim"),"") -> 
M30: =IF(ISNUMBER(I30),IF(OR(I30<_xlfn.QUARTILE.INC($I$10:$I$30,1)-1.5*(_xlfn.QUARTILE.INC($I$10:I41,3)-_xlfn.QUARTILE.INC($I$10:$I$30,1)),I30>_xlfn.QUARTILE.INC($I$10:$I$30,3)+1.5*(_xlfn.QUARTILE.INC($I$10:$I$30,3)-_xlfn.QUARTILE.INC($I$10:$I$30,1))),"Não","Sim"),"") -> 
B31: Observações: | I31: CV: | J31: =IF($J$34="","Selecione metodologia para exclusão de preços",IF(COUNTIF($J$10:$J$30,"Sim")<3,"N/D (são necessários pelo menos 3 preços)",_xlfn.STDEV.S(IF($J$10:$J$30="Sim",$I$10:$I$30))/AVERAGE(IF($J$10:$J$30="Sim",$I$10:$I$30)))) -> 0.0794606141 | L31: Média (Cotações) | M31: =IF(COUNTIF(M20:M30,"Sim")<3,"N/D (são necessários pelo menos 3 preços)",AVERAGE(IF(M20:M30="Sim",$I20:$I30))) -> N/D (são necessários pelo menos 3 preços) | N31: =IF(COUNTIF(N20:N30,"Sim")<3,"N/D (são necessários pelo menos 3 preços)",AVERAGE(IF(N20:N30="Sim",$I20:$I30))) -> N/D (são necessários pelo menos 3 preços) | O31: =IF(COUNTIF(O20:O30,"Sim")<3,"N/D (são necessários pelo menos 3 preços)",AVERAGE(IF(O20:O30="Sim",$I20:$I30))) -> N/D (são necessários pelo menos 3 preços) | P31: =IF(COUNTIF(P20:P30,"Sim")<3,"N/D (são necessários pelo menos 3 preços)",AVERAGE(IF(P20:P30="Sim",$I20:$I30))) -> N/D (são necessários pelo menos 3 preços) | Q31: =IF(COUNTIF(Q20:Q30,"Sim")<3,"N/D (são necessários pelo menos 3 preços)",AVERAGE(IF(Q20:Q30="Sim",$I20:$I30))) -> N/D (são necessários pelo menos 3 preços) | R31: =IF(COUNTIF(R20:R30,"Sim")<3,"N/D (são necessários pelo menos 3 preços)",AVERAGE(IF(R20:R30="Sim",$I20:$I30))) -> N/D (são necessários pelo menos 3 preços) | S31: =IF(COUNTIF(S20:S30,"Sim")<3,"N/D (são necessários pelo menos 3 preços)",AVERAGE(IF(S20:S30="Sim",$I20:$I30))) -> N/D (são necessários pelo menos 3 preços)
I32: Média: | J32: =IF($J$34="","Selecione metodologia para exclusão de preços",AVERAGE(IF($J$10:$J$30="Sim",$I$10:$I$30))) -> 5.821334258 | L32: Mediana (Cotações) | M32: =IF(COUNTIF(M20:M30,"Sim")<3,"N/D (são necessários pelo menos 3 preços)",MEDIAN(IF(M20:M30="Sim",$I20:$I30))) -> N/D (são necessários pelo menos 3 preços) | N32: =IF(COUNTIF(N20:N30,"Sim")<3,"N/D (são necessários pelo menos 3 preços)",MEDIAN(IF(N20:N30="Sim",$I20:$I30))) -> N/D (são necessários pelo menos 3 preços) | O32: =IF(COUNTIF(O20:O30,"Sim")<3,"N/D (são necessários pelo menos 3 preços)",MEDIAN(IF(O20:O30="Sim",$I20:$I30))) -> N/D (são necessários pelo menos 3 preços) | P32: =IF(COUNTIF(P20:P30,"Sim")<3,"N/D (são necessários pelo menos 3 preços)",MEDIAN(IF(P20:P30="Sim",$I20:$I30))) -> N/D (são necessários pelo menos 3 preços) | Q32: =IF(COUNTIF(Q20:Q30,"Sim")<3,"N/D (são necessários pelo menos 3 preços)",MEDIAN(IF(Q20:Q30="Sim",$I20:$I30))) -> N/D (são necessários pelo menos 3 preços) | R32: =IF(COUNTIF(R20:R30,"Sim")<3,"N/D (são necessários pelo menos 3 preços)",MEDIAN(IF(R20:R30="Sim",$I20:$I30))) -> N/D (são necessários pelo menos 3 preços) | S32: =IF(COUNTIF(S20:S30,"Sim")<3,"N/D (são necessários pelo menos 3 preços)",MEDIAN(IF(S20:S30="Sim",$I20:$I30))) -> N/D (são necessários pelo menos 3 preços)
I33: Mediana: | J33: =IF($J$34="","Selecione metodologia para exclusão de preços",MEDIAN(IF($J$10:$J$30="Sim",$I$10:$I$30))) -> 5.601140676 | L33: CV (Cotações) | M33: =IF(COUNTIF(M20:M30,"Sim")<3,"N/D (são necessários pelo menos 3 preços)",_xlfn.STDEV.S(IF(M20:M30="Sim",$I20:$I30))/AVERAGE(IF(M20:M30="Sim",$I20:$I30))) -> N/D (são necessários pelo menos 3 preços) | N33: =IF(COUNTIF(N20:N30,"Sim")<3,"N/D (são necessários pelo menos 3 preços)",_xlfn.STDEV.S(IF(N20:N30="Sim",$I20:$I30))/AVERAGE(IF(N20:N30="Sim",$I20:$I30))) -> N/D (são necessários pelo menos 3 preços) | O33: =IF(COUNTIF(O20:O30,"Sim")<3,"N/D (são necessários pelo menos 3 preços)",_xlfn.STDEV.S(IF(O20:O30="Sim",$I20:$I30))/AVERAGE(IF(O20:O30="Sim",$I20:$I30))) -> N/D (são necessários pelo menos 3 preços) | P33: =IF(COUNTIF(P20:P30,"Sim")<3,"N/D (são necessários pelo menos 3 preços)",_xlfn.STDEV.S(IF(P20:P30="Sim",$I20:$I30))/AVERAGE(IF(P20:P30="Sim",$I20:$I30))) -> N/D (são necessários pelo menos 3 preços) | Q33: =IF(COUNTIF(Q20:Q30,"Sim")<3,"N/D (são necessários pelo menos 3 preços)",_xlfn.STDEV.S(IF(Q20:Q30="Sim",$I20:$I30))/AVERAGE(IF(Q20:Q30="Sim",$I20:$I30))) -> N/D (são necessários pelo menos 3 preços) | R33: =IF(COUNTIF(R20:R30,"Sim")<3,"N/D (são necessários pelo menos 3 preços)",_xlfn.STDEV.S(IF(R20:R30="Sim",$I20:$I30))/AVERAGE(IF(R20:R30="Sim",$I20:$I30))) -> N/D (são necessários pelo menos 3 preços) | S33: =IF(COUNTIF(S20:S30,"Sim")<3,"N/D (são necessários pelo menos 3 preços)",_xlfn.STDEV.S(IF(S20:S30="Sim",$I20:$I30))/AVERAGE(IF(S20:S30="Sim",$I20:$I30))) -> N/D (são necessários pelo menos 3 preços)
B34: Metodologia de exclusão de preços adotada: | J34: =IF(M39="",INDEX(M19:S19,MATCH(MIN(M36:S36),M36:S36,0)),M39) -> Grupos - Sem o maior | L34: Média | M34: =IF(SUM(COUNTIF($M$10:$M$17,"Sim")) + SUM(COUNTIF(M20:M30,"Sim")) < 3, "N/D (são necessários pelo menos 3 preços)", IFERROR(AVERAGE(_xlfn._xlws.FILTER($I$10:$I$17,$M$10:$M$17="Sim"), _xlfn._xlws.FILTER($I$20:$I$30,M20:M30="Sim")),M31)) -> 6.224334027 | N34: =IF(SUM(COUNTIF($M$10:$M$17,"Sim")) + SUM(COUNTIF(N20:N30,"Sim")) < 3, "N/D (são necessários pelo menos 3 preços)", IFERROR(AVERAGE(_xlfn._xlws.FILTER($I$10:$I$17,$M$10:$M$17="Sim"), _xlfn._xlws.FILTER($I$20:$I$30,N20:N30="Sim")),N31)) -> 6.224334027 | O34: =IF(SUM(COUNTIF($M$10:$M$17,"Sim")) + SUM(COUNTIF(O20:O30,"Sim")) < 3, "N/D (são necessários pelo menos 3 preços)", IFERROR(AVERAGE(_xlfn._xlws.FILTER($I$10:$I$17,$M$10:$M$17="Sim"), _xlfn._xlws.FILTER($I$20:$I$30,O20:O30="Sim")),O31)) -> 5.821334258 | P34: =IF(SUM(COUNTIF($M$10:$M$17,"Sim")) + SUM(COUNTIF(P20:P30,"Sim")) < 3, "N/D (são necessários pelo menos 3 preços)", IFERROR(AVERAGE(_xlfn._xlws.FILTER($I$10:$I$17,$M$10:$M$17="Sim"), _xlfn._xlws.FILTER($I$20:$I$30,P20:P30="Sim")),P31)) -> 6.462445369 | Q34: =IF(SUM(COUNTIF($M$10:$M$17,"Sim")) + SUM(COUNTIF(Q20:Q30,"Sim")) < 3, "N/D (são necessários pelo menos 3 preços)", IFERROR(AVERAGE(_xlfn._xlws.FILTER($I$10:$I$17,$M$10:$M$17="Sim"), _xlfn._xlws.FILTER($I$20:$I$30,Q20:Q30="Sim")),Q31)) -> N/D (são necessários pelo menos 3 preços) | R34: =IF(SUM(COUNTIF($M$10:$M$17,"Sim")) + SUM(COUNTIF(R20:R30,"Sim")) < 3, "N/D (são necessários pelo menos 3 preços)", IFERROR(AVERAGE(_xlfn._xlws.FILTER($I$10:$I$17,$M$10:$M$17="Sim"), _xlfn._xlws.FILTER($I$20:$I$30,R20:R30="Sim")),R31)) -> N/D (são necessários pelo menos 3 preços) | S34: =IF(SUM(COUNTIF($S$10:$S$17,"Sim")) + SUM(COUNTIF(S20:S30,"Sim")) < 3, "N/D (são necessários pelo menos 3 preços)", IFERROR(AVERAGE(_xlfn._xlws.FILTER($I$10:$I$17,$S$10:$S$17="Sim"), _xlfn._xlws.FILTER($I$20:$I$30,S20:S30="Sim")),S31)) -> N/D (são necessários pelo menos 3 preços)
L35: Mediana | M35: =IF(SUM(COUNTIF($M$10:$M$17,"Sim")) + SUM(COUNTIF(M20:M30,"Sim")) < 3, "N/D (são necessários pelo menos 3 preços)", IFERROR(MEDIAN(_xlfn._xlws.FILTER($I$10:$I$17,$M$10:$M$17="Sim"), _xlfn._xlws.FILTER($I$20:$I$30,M20:M30="Sim")),M31)) -> 5.977001387 | N35: =IF(SUM(COUNTIF($M$10:$M$17,"Sim")) + SUM(COUNTIF(N20:N30,"Sim")) < 3, "N/D (são necessários pelo menos 3 preços)", IFERROR(MEDIAN(_xlfn._xlws.FILTER($I$10:$I$17,$M$10:$M$17="Sim"), _xlfn._xlws.FILTER($I$20:$I$30,N20:N30="Sim")),N31)) -> 5.977001387 | O35: =IF(SUM(COUNTIF($M$10:$M$17,"Sim")) + SUM(COUNTIF(O20:O30,"Sim")) < 3, "N/D (são necessários pelo menos 3 preços)", IFERROR(MEDIAN(_xlfn._xlws.FILTER($I$10:$I$17,$M$10:$M$17="Sim"), _xlfn._xlws.FILTER($I$20:$I$30,O20:O30="Sim")),O31)) -> 5.601140676 | P35: =IF(SUM(COUNTIF($M$10:$M$17,"Sim")) + SUM(COUNTIF(P20:P30,"Sim")) < 3, "N/D (são necessários pelo menos 3 preços)", IFERROR(MEDIAN(_xlfn._xlws.FILTER($I$10:$I$17,$M$10:$M$17="Sim"), _xlfn._xlws.FILTER($I$20:$I$30,P20:P30="Sim")),P31)) -> 6.352862099 | Q35: =IF(SUM(COUNTIF($M$10:$M$17,"Sim")) + SUM(COUNTIF(Q20:Q30,"Sim")) < 3, "N/D (são necessários pelo menos 3 preços)", IFERROR(MEDIAN(_xlfn._xlws.FILTER($I$10:$I$17,$M$10:$M$17="Sim"), _xlfn._xlws.FILTER($I$20:$I$30,Q20:Q30="Sim")),Q31)) -> N/D (são necessários pelo menos 3 preços) | R35: =IF(SUM(COUNTIF($M$10:$M$17,"Sim")) + SUM(COUNTIF(R20:R30,"Sim")) < 3, "N/D (são necessários pelo menos 3 preços)", IFERROR(MEDIAN(_xlfn._xlws.FILTER($I$10:$I$17,$M$10:$M$17="Sim"), _xlfn._xlws.FILTER($I$20:$I$30,R20:R30="Sim")),R31)) -> N/D (são necessários pelo menos 3 preços) | S35: =IF(SUM(COUNTIF($S$10:$S$17,"Sim")) + SUM(COUNTIF(S20:S30,"Sim")) < 3, "N/D (são necessários pelo menos 3 preços)", IFERROR(MEDIAN(_xlfn._xlws.FILTER($I$10:$I$17,$S$10:$S$17="Sim"), _xlfn._xlws.FILTER($I$20:$I$30,S20:S30="Sim")),S31)) -> N/D (são necessários pelo menos 3 preços)
L36: CV | M36: =IF(SUM(COUNTIF($M$10:$M$17,"Sim")) + SUM(COUNTIF(M20:M30,"Sim")) < 3, "N/D (são necessários pelo menos 3 preços)", IFERROR(ROUND(_xlfn.STDEV.S(_xlfn._xlws.FILTER($I$10:$I$17,$M$10:$M$17="Sim"), _xlfn._xlws.FILTER($I$20:$I$30,M20:M30="Sim")) / AVERAGE(_xlfn._xlws.FILTER($I$10:$I$17,$M$10:$M$17="Sim"), _xlfn._xlws.FILTER($I$20:$I$30,M20:M30="Sim")),4),M33) ) -> 0.143 | N36: =IF(SUM(COUNTIF($M$10:$M$17,"Sim")) + SUM(COUNTIF(N20:N30,"Sim")) < 3, "N/D (são necessários pelo menos 3 preços)", IFERROR(ROUND(_xlfn.STDEV.S(_xlfn._xlws.FILTER($I$10:$I$17,$M$10:$M$17="Sim"), _xlfn._xlws.FILTER($I$20:$I$30,N20:N30="Sim")) / AVERAGE(_xlfn._xlws.FILTER($I$10:$I$17,$M$10:$M$17="Sim"), _xlfn._xlws.FILTER($I$20:$I$30,N20:N30="Sim")),4),N33) ) -> 0.143 | O36: =IF(SUM(COUNTIF($M$10:$M$17,"Sim")) + SUM(COUNTIF(O20:O30,"Sim")) < 3, "N/D (são necessários pelo menos 3 preços)", IFERROR(ROUND(_xlfn.STDEV.S(_xlfn._xlws.FILTER($I$10:$I$17,$M$10:$M$17="Sim"), _xlfn._xlws.FILTER($I$20:$I$30,O20:O30="Sim")) / AVERAGE(_xlfn._xlws.FILTER($I$10:$I$17,$M$10:$M$17="Sim"), _xlfn._xlws.FILTER($I$20:$I$30,O20:O30="Sim")),4),O33) ) -> 0.0795 | P36: =IF(SUM(COUNTIF($M$10:$M$17,"Sim")) + SUM(COUNTIF(P20:P30,"Sim")) < 3, "N/D (são necessários pelo menos 3 preços)", IFERROR(ROUND(_xlfn.STDEV.S(_xlfn._xlws.FILTER($I$10:$I$17,$M$10:$M$17="Sim"), _xlfn._xlws.FILTER($I$20:$I$30,P20:P30="Sim")) / AVERAGE(_xlfn._xlws.FILTER($I$10:$I$17,$M$10:$M$17="Sim"), _xlfn._xlws.FILTER($I$20:$I$30,P20:P30="Sim")),4),P33) ) -> 0.1425 | Q36: =IF(SUM(COUNTIF($M$10:$M$17,"Sim")) + SUM(COUNTIF(Q20:Q30,"Sim")) < 3, "N/D (são necessários pelo menos 3 preços)", IFERROR(ROUND(_xlfn.STDEV.S(_xlfn._xlws.FILTER($I$10:$I$17,$M$10:$M$17="Sim"), _xlfn._xlws.FILTER($I$20:$I$30,Q20:Q30="Sim")) / AVERAGE(_xlfn._xlws.FILTER($I$10:$I$17,$M$10:$M$17="Sim"), _xlfn._xlws.FILTER($I$20:$I$30,Q20:Q30="Sim")),4),Q33) ) -> N/D (são necessários pelo menos 3 preços) | R36: =IF(SUM(COUNTIF($M$10:$M$17,"Sim")) + SUM(COUNTIF(R20:R30,"Sim")) < 3, "N/D (são necessários pelo menos 3 preços)", IFERROR(ROUND(_xlfn.STDEV.S(_xlfn._xlws.FILTER($I$10:$I$17,$M$10:$M$17="Sim"), _xlfn._xlws.FILTER($I$20:$I$30,R20:R30="Sim")) / AVERAGE(_xlfn._xlws.FILTER($I$10:$I$17,$M$10:$M$17="Sim"), _xlfn._xlws.FILTER($I$20:$I$30,R20:R30="Sim")),4),R33) ) -> N/D (são necessários pelo menos 3 preços) | S36: =IF(SUM(COUNTIF($S$10:$S$17,"Sim")) + SUM(COUNTIF(S20:S30,"Sim")) < 3, "N/D (são necessários pelo menos 3 preços)", IFERROR(_xlfn.STDEV.S(_xlfn._xlws.FILTER($I$10:$I$17,$S$10:$S$17="Sim"), _xlfn._xlws.FILTER($I$20:$I$30,S20:S30="Sim")) / AVERAGE(_xlfn._xlws.FILTER($I$10:$I$17,$S$10:$S$17="Sim"), _xlfn._xlws.FILTER($I$20:$I$30,S20:S30="Sim")),S33) ) -> N/D (são necessários pelo menos 3 preços)
B37: PREÇO UNITÁRIO ESTIMADO ADOTADO: | J37: =IF($J$34="","Selecione metodologia para exclusão de preços",MIN(J32:J33)) -> 5.601140676 | L37: Metodologia sugerida: | M37: =IF($M$36=MIN($M$36,$N$36:$R$36),M8,"Grupos - "&INDEX({"Todos";"Sem o maior";"Sem o menor";"Sem o maior e Sem o menor";"Sem os dois maiores"},MATCH(MIN($N$36:$R$36),$N$36:$R$36,0))) -> Grupos - Sem o maior
L38: Preço estimado sugerido: | M38: =IF($M$37=M8,SMALL($M$34:$M$35,1),MIN(INDEX($N$35:$R$35, MATCH(MIN($N$36:$R$36), $N$36:$R$36, 0)),INDEX($N$34:$R$34, MATCH(MIN($N$36:$R$36), $N$36:$R$36, 0)))) -> 5.601140676
L39: Metodologia a adotar: | M39: =IF(INDEX(L19:S19,N39)=0,"",INDEX(L19:S19,N39)) ->  | N39: 1

Sheet Camarão 35% 1,8 mm
B2: Processo | C2: ='Peixe 50% PB Farelo'!C2 -> 59511.000102/2026-55
B3: Responsável | C3: ='Peixe 50% PB Farelo'!C3 -> JHONES DE LIMA VIEIRA
B4: Área de Origem | C4: ='Peixe 50% PB Farelo'!C4 -> 14ª GTR
B5: Data da pesquisa | C5: ='Peixe 50% PB Farelo'!C5 -> Janeiro/2026 - Fevereiro/2026
B7: ITEM: | C7: Ração peletizada adicionadas de sais para camarão 35% PB – Proteína Bruta Mín.: 35%, 1.8 mm, Data de validade não inferior a 3 meses. | G7: UNIDADE DE MEDIDA: | H7: Kg | I7: QUANTIDADE: | J7: 567000 | M7: Tabela auxiliar de metodologias para exclusão de preços | U7: Automática (menor CV)
B8: LICITAÇÕES ANTERIORES | M8: Licitações Anteriores - Outliers | U8: =M19 -> Outliers
B9: Órgão | C9: Edital/Ano - Nº do Lote / Item | D9: Quantidade | E9: Valor Unitário | F9: Data | G9: índice de atualização (nome) | H9: Variação acumulada do índice (%) | I9: Preço unitário atualizado | J9: Utilizar? (Sim/Não) | M9: Utilizar? | S9: Por critério do(a) analista | U9: =N19 -> Grupos - Todos
B10: 14ª SR - Fortaleza/CE | C10: Edital 90007/2024 - Item 19 | D10: 145710 | E10: 4.1 | F10: 2025-01-02 | G10: IPA-EP-DI Suprimentos agropecuários | H10: =(I10/E10)-1 -> 0.01654095744 | I10: =IF(ISBLANK(E10),"",E10*(1+(INDEX('índice de atualização'!B:B,MATCH(G10,'índice de atualização'!B:B,0)+COUNTA('índice de atualização'!B:B)-1)-INDEX('índice de atualização'!B:B,MATCH(TEXT(F10,"MM/AAAA"),'índice de atualização'!A:A,0)))/INDEX('índice de atualização'!B:B,MATCH(TEXT(F10,"MM/AAAA"),'índice de atualização'!A:A,0)))) -> 4.167817926 | J10: =IF(ISNUMBER(I10),IF($J$34<>$S$9,M10,S10),"") -> Sim | M10: =IF(ISNUMBER(I10),IF(OR(I10<_xlfn.QUARTILE.INC($I$10:$I$30,1)-1.5*(_xlfn.QUARTILE.INC($I$10:I30,3)-_xlfn.QUARTILE.INC($I$10:$I$30,1)),I10>_xlfn.QUARTILE.INC($I$10:$I$30,3)+1.5*(_xlfn.QUARTILE.INC($I$10:$I$30,3)-_xlfn.QUARTILE.INC($I$10:$I$30,1))),"Não","Sim"),"") -> Sim | U10: =O19 -> Grupos - Sem o maior
B11: 14ª SR - Fortaleza/CE | C11: Edital 90007/2024 - Item 22 | D11: 97110 | E11: 4.29 | F11: 2025-02-18 | G11: IPA-EP-DI Suprimentos agropecuários | H11: =(I11/E11)-1 -> 0.0004507242601 | I11: =IF(ISBLANK(E11),"",E11*(1+(INDEX('índice de atualização'!B:B,MATCH(G11,'índice de atualização'!B:B,0)+COUNTA('índice de atualização'!B:B)-1)-INDEX('índice de atualização'!B:B,MATCH(TEXT(F11,"MM/AAAA"),'índice de atualização'!A:A,0)))/INDEX('índice de atualização'!B:B,MATCH(TEXT(F11,"MM/AAAA"),'índice de atualização'!A:A,0)))) -> 4.291933607 | J11: =IF(ISNUMBER(I11),IF($J$34<>$S$8,M11,S11),"") -> Sim | M11: =IF(ISNUMBER(I11),IF(OR(I11<_xlfn.QUARTILE.INC($I$10:$I$30,1)-1.5*(_xlfn.QUARTILE.INC($I$10:I31,3)-_xlfn.QUARTILE.INC($I$10:$I$30,1)),I11>_xlfn.QUARTILE.INC($I$10:$I$30,3)+1.5*(_xlfn.QUARTILE.INC($I$10:$I$30,3)-_xlfn.QUARTILE.INC($I$10:$I$30,1))),"Não","Sim"),"") -> Sim | U11: =P19 -> Grupos - Sem o menor
I12: =IF(ISBLANK(E12),"",E12*(1+(INDEX('índice de atualização'!B:B,MATCH(G12,'índice de atualização'!B:B,0)+COUNTA('índice de atualização'!B:B)-1)-INDEX('índice de atualização'!B:B,MATCH(TEXT(F12,"MM/AAAA"),'índice de atualização'!A:A,0)))/INDEX('índice de atualização'!B:B,MATCH(TEXT(F12,"MM/AAAA"),'índice de atualização'!A:A,0)))) ->  | M12: =IF(ISNUMBER(I12),IF(OR(I12<_xlfn.QUARTILE.INC($I$10:$I$30,1)-1.5*(_xlfn.QUARTILE.INC($I$10:I32,3)-_xlfn.QUARTILE.INC($I$10:$I$30,1)),I12>_xlfn.QUARTILE.INC($I$10:$I$30,3)+1.5*(_xlfn.QUARTILE.INC($I$10:$I$30,3)-_xlfn.QUARTILE.INC($I$10:$I$30,1))),"Não","Sim"),"") ->  | N12: =$M$12 ->  | O12: =$M$12 ->  | P12: =$M$12 ->  | Q12: =$M$12 ->  | R12: =$M$12 ->  | U12: =Q19 -> Grupos - Sem o maior e sem o menor
I13: =IF(ISBLANK(E13),"",E13*(1+(INDEX('índice de atualização'!B:B,MATCH(G13,'índice de atualização'!B:B,0)+COUNTA('índice de atualização'!B:B)-1)-INDEX('índice de atualização'!B:B,MATCH(TEXT(F13,"MM/AAAA"),'índice de atualização'!A:A,0)))/INDEX('índice de atualização'!B:B,MATCH(TEXT(F13,"MM/AAAA"),'índice de atualização'!A:A,0)))) ->  | M13: =IF(ISNUMBER(I13),IF(OR(I13<_xlfn.QUARTILE.INC($I$10:$I$30,1)-1.5*(_xlfn.QUARTILE.INC($I$10:I33,3)-_xlfn.QUARTILE.INC($I$10:$I$30,1)),I13>_xlfn.QUARTILE.INC($I$10:$I$30,3)+1.5*(_xlfn.QUARTILE.INC($I$10:$I$30,3)-_xlfn.QUARTILE.INC($I$10:$I$30,1))),"Não","Sim"),"") ->  | N13: =$M$13 ->  | O13: =$M$13 ->  | P13: =$M$13 ->  | Q13: =$M$13 ->  | R13: =$M$13 ->  | U13: =R19 -> Grupos - Sem os dois maiores
I14: =IF(ISBLANK(E14),"",E14*(1+(INDEX('índice de atualização'!B:B,MATCH(G14,'índice de atualização'!B:B,0)+COUNTA('índice de atualização'!B:B)-1)-INDEX('índice de atualização'!B:B,MATCH(TEXT(F14,"MM/AAAA"),'índice de atualização'!A:A,0)))/INDEX('índice de atualização'!B:B,MATCH(TEXT(F14,"MM/AAAA"),'índice de atualização'!A:A,0)))) ->  | M14: =IF(ISNUMBER(I14),IF(OR(I14<_xlfn.QUARTILE.INC($I$10:$I$30,1)-1.5*(_xlfn.QUARTILE.INC($I$10:I34,3)-_xlfn.QUARTILE.INC($I$10:$I$30,1)),I14>_xlfn.QUARTILE.INC($I$10:$I$30,3)+1.5*(_xlfn.QUARTILE.INC($I$10:$I$30,3)-_xlfn.QUARTILE.INC($I$10:$I$30,1))),"Não","Sim"),"") ->  | N14: =$M$14 ->  | U14: =S19 -> Por critério do(a) analista
I15: =IF(ISBLANK(E15),"",E15*(1+(INDEX('índice de atualização'!B:B,MATCH(G15,'índice de atualização'!B:B,0)+COUNTA('índice de atualização'!B:B)-1)-INDEX('índice de atualização'!B:B,MATCH(TEXT(F15,"MM/AAAA"),'índice de atualização'!A:A,0)))/INDEX('índice de atualização'!B:B,MATCH(TEXT(F15,"MM/AAAA"),'índice de atualização'!A:A,0)))) ->  | M15: =IF(ISNUMBER(I15),IF(OR(I15<_xlfn.QUARTILE.INC($I$10:$I$30,1)-1.5*(_xlfn.QUARTILE.INC($I$10:I35,3)-_xlfn.QUARTILE.INC($I$10:$I$30,1)),I15>_xlfn.QUARTILE.INC($I$10:$I$30,3)+1.5*(_xlfn.QUARTILE.INC($I$10:$I$30,3)-_xlfn.QUARTILE.INC($I$10:$I$30,1))),"Não","Sim"),"") -> 
I16: =IF(ISBLANK(E16),"",E16*(1+(INDEX('índice de atualização'!B:B,MATCH(G16,'índice de atualização'!B:B,0)+COUNTA('índice de atualização'!B:B)-1)-INDEX('índice de atualização'!B:B,MATCH(TEXT(F16,"MM/AAAA"),'índice de atualização'!A:A,0)))/INDEX('índice de atualização'!B:B,MATCH(TEXT(F16,"MM/AAAA"),'índice de atualização'!A:A,0)))) ->  | M16: =IF(ISNUMBER(I16),IF(OR(I16<_xlfn.QUARTILE.INC($I$10:$I$30,1)-1.5*(_xlfn.QUARTILE.INC($I$10:I37,3)-_xlfn.QUARTILE.INC($I$10:$I$30,1)),I16>_xlfn.QUARTILE.INC($I$10:$I$30,3)+1.5*(_xlfn.QUARTILE.INC($I$10:$I$30,3)-_xlfn.QUARTILE.INC($I$10:$I$30,1))),"Não","Sim"),"") ->  | N16: =$M$16 ->  | O16: =$M$16 ->  | P16: =$M$16 ->  | Q16: =$M$16 ->  | R16: =$M$16 -> 
I17: =IF(ISBLANK(E17),"",E17*(1+(INDEX('índice de atualização'!B:B,MATCH(G17,'índice de atualização'!B:B,0)+COUNTA('índice de atualização'!B:B)-1)-INDEX('índice de atualização'!B:B,MATCH(TEXT(F17,"MM/AAAA"),'índice de atualização'!A:A,0)))/INDEX('índice de atualização'!B:B,MATCH(TEXT(F17,"MM/AAAA"),'índice de atualização'!A:A,0)))) ->  | M17: =IF(ISNUMBER(I17),IF(OR(I17<_xlfn.QUARTILE.INC($I$10:$I$30,1)-1.5*(_xlfn.QUARTILE.INC($I$10:I40,3)-_xlfn.QUARTILE.INC($I$10:$I$30,1)),I17>_xlfn.QUARTILE.INC($I$10:$I$30,3)+1.5*(_xlfn.QUARTILE.INC($I$10:$I$30,3)-_xlfn.QUARTILE.INC($I$10:$I$30,1))),"Não","Sim"),"") ->  | N17: =$M$17 ->  | O17: =$M$17 ->  | P17: =$M$17 ->  | Q17: =$M$17 ->  | R17: =$M$17 -> 
B18: COTAÇÕES DE MERCADO | M18: Cotações
B19: Empresa | H19: Data | I19: Preço Unitário | J19: Utilizar? (Sim/Não) | M19: Outliers | N19: Grupos - Todos | O19: Grupos - Sem o maior | P19: Grupos - Sem o menor | Q19: Grupos - Sem o maior e sem o menor | R19: Grupos - Sem os dois maiores | S19: Por critério do(a) analista
B20: Samaria Rações LTDA | H20: 2026-02-09 | I20: =123/30 -> 4.1 | J20: =IF(ISNUMBER(I20),IF($J$34=$M$19,M20,IF($J$34=$N$19,N20,IF($J$34=$O$19,O20,IF($J$34=$P$19,P20,IF($J$34=$Q$19,Q20,IF($J$34=$R$19,R20,IF($J$34=$S$19,S20,""))))))),"") -> Não | M20: =IF(ISNUMBER(I20),IF(OR(I20<_xlfn.QUARTILE.INC($I$10:$I$30,1)-1.5*(_xlfn.QUARTILE.INC($I$10:I41,3)-_xlfn.QUARTILE.INC($I$10:$I$30,1)),I20>_xlfn.QUARTILE.INC($I$10:$I$30,3)+1.5*(_xlfn.QUARTILE.INC($I$10:$I$30,3)-_xlfn.QUARTILE.INC($I$10:$I$30,1))),"Não","Sim"),"") -> Sim | N20: =IF(ISNUMBER(I20),"Sim","") -> Sim | O20: =IF(ISNUMBER(I20),IF(_xlfn.RANK.EQ(I20,$I$20:$I$30)=1,"Não","Sim"),"") -> Sim | P20: =IF(ISNUMBER(I20),IF(_xlfn.RANK.EQ(I20,$I$20:$I$30)=COUNT($I$20:$I$30),"Não","Sim"),"") -> Não | Q20: =IF(O20="","",IF(AND(O20="Sim",P20="Sim"),"Sim","Não")) -> Não | R20: =IF(ISNUMBER(I20),IF(_xlfn.RANK.EQ(I20,$I$20:$I$30)<=2,"Não","Sim"),"") -> Sim
B21: Integral Mix Agroindustria | H21: 2026-02-07 | I21: =124.48/30 -> 4.149333333 | J21: =IF(ISNUMBER(I21),IF($J$34=$M$19,M21,IF($J$34=$N$19,N21,IF($J$34=$O$19,O21,IF($J$34=$P$19,P21,IF($J$34=$Q$19,Q21,IF($J$34=$R$19,R21,IF($J$34=$S$19,S21,""))))))),"") -> Sim | M21: =IF(ISNUMBER(I21),IF(OR(I21<_xlfn.QUARTILE.INC($I$10:$I$30,1)-1.5*(_xlfn.QUARTILE.INC($I$10:I41,3)-_xlfn.QUARTILE.INC($I$10:$I$30,1)),I21>_xlfn.QUARTILE.INC($I$10:$I$30,3)+1.5*(_xlfn.QUARTILE.INC($I$10:$I$30,3)-_xlfn.QUARTILE.INC($I$10:$I$30,1))),"Não","Sim"),"") -> Sim | N21: =IF(ISNUMBER(I21),"Sim","") -> Sim | O21: =IF(ISNUMBER(I21),IF(_xlfn.RANK.EQ(I21,$I$20:$I$30)=1,"Não","Sim"),"") -> Sim | P21: =IF(ISNUMBER(I21),IF(_xlfn.RANK.EQ(I21,$I$20:$I$30)=COUNT($I$20:$I$30),"Não","Sim"),"") -> Sim | Q21: =IF(O21="","",IF(AND(O21="Sim",P21="Sim"),"Sim","Não")) -> Sim | R21: =IF(ISNUMBER(I21),IF(_xlfn.RANK.EQ(I21,$I$20:$I$30)<=2,"Não","Sim"),"") -> Não
B22: Comercial do Carmo ME | H22: 2026-02-12 | I22: =167/30 -> 5.566666667 | J22: Não | M22: =IF(ISNUMBER(I22),IF(OR(I22<_xlfn.QUARTILE.INC($I$10:$I$30,1)-1.5*(_xlfn.QUARTILE.INC($I$10:I41,3)-_xlfn.QUARTILE.INC($I$10:$I$30,1)),I22>_xlfn.QUARTILE.INC($I$10:$I$30,3)+1.5*(_xlfn.QUARTILE.INC($I$10:$I$30,3)-_xlfn.QUARTILE.INC($I$10:$I$30,1))),"Não","Sim"),"") -> Não | N22: =IF(ISNUMBER(I22),"Sim","") -> Sim | O22: Não | P22: Sim | Q22: Não | R22: Não
M23: =IF(ISNUMBER(I23),IF(OR(I23<_xlfn.QUARTILE.INC($I$10:$I$30,1)-1.5*(_xlfn.QUARTILE.INC($I$10:I41,3)-_xlfn.QUARTILE.INC($I$10:$I$30,1)),I23>_xlfn.QUARTILE.INC($I$10:$I$30,3)+1.5*(_xlfn.QUARTILE.INC($I$10:$I$30,3)-_xlfn.QUARTILE.INC($I$10:$I$30,1))),"Não","Sim"),"") -> 
M24: =IF(ISNUMBER(I24),IF(OR(I24<_xlfn.QUARTILE.INC($I$10:$I$30,1)-1.5*(_xlfn.QUARTILE.INC($I$10:I42,3)-_xlfn.QUARTILE.INC($I$10:$I$30,1)),I24>_xlfn.QUARTILE.INC($I$10:$I$30,3)+1.5*(_xlfn.QUARTILE.INC($I$10:$I$30,3)-_xlfn.QUARTILE.INC($I$10:$I$30,1))),"Não","Sim"),"") -> 
M25: =IF(ISNUMBER(I25),IF(OR(I25<_xlfn.QUARTILE.INC($I$10:$I$30,1)-1.5*(_xlfn.QUARTILE.INC($I$10:I43,3)-_xlfn.QUARTILE.INC($I$10:$I$30,1)),I25>_xlfn.QUARTILE.INC($I$10:$I$30,3)+1.5*(_xlfn.QUARTILE.INC($I$10:$I$30,3)-_xlfn.QUARTILE.INC($I$10:$I$30,1))),"Não","Sim"),"") -> 
M26: =IF(ISNUMBER(I26),IF(OR(I26<_xlfn.QUARTILE.INC($I$10:$I$30,1)-1.5*(_xlfn.QUARTILE.INC($I$10:I41,3)-_xlfn.QUARTILE.INC($I$10:$I$30,1)),I26>_xlfn.QUARTILE.INC($I$10:$I$30,3)+1.5*(_xlfn.QUARTILE.INC($I$10:$I$30,3)-_xlfn.QUARTILE.INC($I$10:$I$30,1))),"Não","Sim"),"") -> 
M27: =IF(ISNUMBER(I27),IF(OR(I27<_xlfn.QUARTILE.INC($I$10:$I$30,1)-1.5*(_xlfn.QUARTILE.INC($I$10:I41,3)-_xlfn.QUARTILE.INC($I$10:$I$30,1)),I27>_xlfn.QUARTILE.INC($I$10:$I$30,3)+1.5*(_xlfn.QUARTILE.INC($I$10:$I$30,3)-_xlfn.QUARTILE.INC($I$10:$I$30,1))),"Não","Sim"),"") -> 
M28: =IF(ISNUMBER(I28),IF(OR(I28<_xlfn.QUARTILE.INC($I$10:$I$30,1)-1.5*(_xlfn.QUARTILE.INC($I$10:I41,3)-_xlfn.QUARTILE.INC($I$10:$I$30,1)),I28>_xlfn.QUARTILE.INC($I$10:$I$30,3)+1.5*(_xlfn.QUARTILE.INC($I$10:$I$30,3)-_xlfn.QUARTILE.INC($I$10:$I$30,1))),"Não","Sim"),"") -> 
M29: =IF(ISNUMBER(I29),IF(OR(I29<_xlfn.QUARTILE.INC($I$10:$I$30,1)-1.5*(_xlfn.QUARTILE.INC($I$10:I41,3)-_xlfn.QUARTILE.INC($I$10:$I$30,1)),I29>_xlfn.QUARTILE.INC($I$10:$I$30,3)+1.5*(_xlfn.QUARTILE.INC($I$10:$I$30,3)-_xlfn.QUARTILE.INC($I$10:$I$30,1))),"Não","Sim"),"") -> 
M30: =IF(ISNUMBER(I30),IF(OR(I30<_xlfn.QUARTILE.INC($I$10:$I$30,1)-1.5*(_xlfn.QUARTILE.INC($I$10:I41,3)-_xlfn.QUARTILE.INC($I$10:$I$30,1)),I30>_xlfn.QUARTILE.INC($I$10:$I$30,3)+1.5*(_xlfn.QUARTILE.INC($I$10:$I$30,3)-_xlfn.QUARTILE.INC($I$10:$I$30,1))),"Não","Sim"),"") -> 
B31: Observações: | I31: CV: | J31: =IF($J$34="","Selecione metodologia para exclusão de preços",IF(COUNTIF($J$10:$J$30,"Sim")<3,"N/D (são necessários pelo menos 3 preços)",_xlfn.STDEV.S(IF($J$10:$J$30="Sim",$I$10:$I$30))/AVERAGE(IF($J$10:$J$30="Sim",$I$10:$I$30)))) -> 0.01845026772 | L31: Média (Cotações) | M31: =IF(COUNTIF(M20:M30,"Sim")<3,"N/D (são necessários pelo menos 3 preços)",AVERAGE(IF(M20:M30="Sim",$I20:$I30))) -> N/D (são necessários pelo menos 3 preços) | N31: =IF(COUNTIF(N20:N30,"Sim")<3,"N/D (são necessários pelo menos 3 preços)",AVERAGE(IF(N20:N30="Sim",$I20:$I30))) -> 4.605333333 | O31: =IF(COUNTIF(O20:O30,"Sim")<3,"N/D (são necessários pelo menos 3 preços)",AVERAGE(IF(O20:O30="Sim",$I20:$I30))) -> N/D (são necessários pelo menos 3 preços) | P31: =IF(COUNTIF(P20:P30,"Sim")<3,"N/D (são necessários pelo menos 3 preços)",AVERAGE(IF(P20:P30="Sim",$I20:$I30))) -> N/D (são necessários pelo menos 3 preços) | Q31: =IF(COUNTIF(Q20:Q30,"Sim")<3,"N/D (são necessários pelo menos 3 preços)",AVERAGE(IF(Q20:Q30="Sim",$I20:$I30))) -> N/D (são necessários pelo menos 3 preços) | R31: =IF(COUNTIF(R20:R30,"Sim")<3,"N/D (são necessários pelo menos 3 preços)",AVERAGE(IF(R20:R30="Sim",$I20:$I30))) -> N/D (são necessários pelo menos 3 preços) | S31: =IF(COUNTIF(S20:S30,"Sim")<3,"N/D (são necessários pelo menos 3 preços)",AVERAGE(IF(S20:S30="Sim",$I20:$I30))) -> N/D (são necessários pelo menos 3 preços)
I32: Média: | J32: =IF($J$34="","Selecione metodologia para exclusão de preços",AVERAGE(IF($J$10:$J$30="Sim",$I$10:$I$30))) -> 4.203028289 | L32: Mediana (Cotações) | M32: =IF(COUNTIF(M20:M30,"Sim")<3,"N/D (são necessários pelo menos 3 preços)",MEDIAN(IF(M20:M30="Sim",$I20:$I30))) -> N/D (são necessários pelo menos 3 preços) | N32: =IF(COUNTIF(N20:N30,"Sim")<3,"N/D (são necessários pelo menos 3 preços)",MEDIAN(IF(N20:N30="Sim",$I20:$I30))) -> 4.149333333 | O32: =IF(COUNTIF(O20:O30,"Sim")<3,"N/D (são necessários pelo menos 3 preços)",MEDIAN(IF(O20:O30="Sim",$I20:$I30))) -> N/D (são necessários pelo menos 3 preços) | P32: =IF(COUNTIF(P20:P30,"Sim")<3,"N/D (são necessários pelo menos 3 preços)",MEDIAN(IF(P20:P30="Sim",$I20:$I30))) -> N/D (são necessários pelo menos 3 preços) | Q32: =IF(COUNTIF(Q20:Q30,"Sim")<3,"N/D (são necessários pelo menos 3 preços)",MEDIAN(IF(Q20:Q30="Sim",$I20:$I30))) -> N/D (são necessários pelo menos 3 preços) | R32: =IF(COUNTIF(R20:R30,"Sim")<3,"N/D (são necessários pelo menos 3 preços)",MEDIAN(IF(R20:R30="Sim",$I20:$I30))) -> N/D (são necessários pelo menos 3 preços) | S32: =IF(COUNTIF(S20:S30,"Sim")<3,"N/D (são necessários pelo menos 3 preços)",MEDIAN(IF(S20:S30="Sim",$I20:$I30))) -> N/D (são necessários pelo menos 3 preços)
I33: Mediana: | J33: =IF($J$34="","Selecione metodologia para exclusão de preços",MEDIAN(IF($J$10:$J$30="Sim",$I$10:$I$30))) -> 4.167817926 | L33: CV (Cotações) | M33: =IF(COUNTIF(M20:M30,"Sim")<3,"N/D (são necessários pelo menos 3 preços)",_xlfn.STDEV.S(IF(M20:M30="Sim",$I20:$I30))/AVERAGE(IF(M20:M30="Sim",$I20:$I30))) -> N/D (são necessários pelo menos 3 preços) | N33: =IF(COUNTIF(N20:N30,"Sim")<3,"N/D (são necessários pelo menos 3 preços)",_xlfn.STDEV.S(IF(N20:N30="Sim",$I20:$I30))/AVERAGE(IF(N20:N30="Sim",$I20:$I30))) -> 0.1808564902 | O33: =IF(COUNTIF(O20:O30,"Sim")<3,"N/D (são necessários pelo menos 3 preços)",_xlfn.STDEV.S(IF(O20:O30="Sim",$I20:$I30))/AVERAGE(IF(O20:O30="Sim",$I20:$I30))) -> N/D (são necessários pelo menos 3 preços) | P33: =IF(COUNTIF(P20:P30,"Sim")<3,"N/D (são necessários pelo menos 3 preços)",_xlfn.STDEV.S(IF(P20:P30="Sim",$I20:$I30))/AVERAGE(IF(P20:P30="Sim",$I20:$I30))) -> N/D (são necessários pelo menos 3 preços) | Q33: =IF(COUNTIF(Q20:Q30,"Sim")<3,"N/D (são necessários pelo menos 3 preços)",_xlfn.STDEV.S(IF(Q20:Q30="Sim",$I20:$I30))/AVERAGE(IF(Q20:Q30="Sim",$I20:$I30))) -> N/D (são necessários pelo menos 3 preços) | R33: =IF(COUNTIF(R20:R30,"Sim")<3,"N/D (são necessários pelo menos 3 preços)",_xlfn.STDEV.S(IF(R20:R30="Sim",$I20:$I30))/AVERAGE(IF(R20:R30="Sim",$I20:$I30))) -> N/D (são necessários pelo menos 3 preços) | S33: =IF(COUNTIF(S20:S30,"Sim")<3,"N/D (são necessários pelo menos 3 preços)",_xlfn.STDEV.S(IF(S20:S30="Sim",$I20:$I30))/AVERAGE(IF(S20:S30="Sim",$I20:$I30))) -> N/D (são necessários pelo menos 3 preços)
B34: Metodologia de exclusão de preços adotada: | J34: =IF(M39="",INDEX(M19:S19,MATCH(MIN(M36:S36),M36:S36,0)),M39) -> Grupos - Sem o maior e sem o menor | L34: Média | M34: =IF(SUM(COUNTIF($M$10:$M$17,"Sim")) + SUM(COUNTIF(M20:M30,"Sim")) < 3, "N/D (são necessários pelo menos 3 preços)", IFERROR(AVERAGE(_xlfn._xlws.FILTER($I$10:$I$17,$M$10:$M$17="Sim"), _xlfn._xlws.FILTER($I$20:$I$30,M20:M30="Sim")),M31)) -> 4.177271216 | N34: =IF(SUM(COUNTIF($M$10:$M$17,"Sim")) + SUM(COUNTIF(N20:N30,"Sim")) < 3, "N/D (são necessários pelo menos 3 preços)", IFERROR(AVERAGE(_xlfn._xlws.FILTER($I$10:$I$17,$M$10:$M$17="Sim"), _xlfn._xlws.FILTER($I$20:$I$30,N20:N30="Sim")),N31)) -> 4.455150307 | O34: =IF(SUM(COUNTIF($M$10:$M$17,"Sim")) + SUM(COUNTIF(O20:O30,"Sim")) < 3, "N/D (são necessários pelo menos 3 preços)", IFERROR(AVERAGE(_xlfn._xlws.FILTER($I$10:$I$17,$M$10:$M$17="Sim"), _xlfn._xlws.FILTER($I$20:$I$30,O20:O30="Sim")),O31)) -> 4.177271216 | P34: =IF(SUM(COUNTIF($M$10:$M$17,"Sim")) + SUM(COUNTIF(P20:P30,"Sim")) < 3, "N/D (são necessários pelo menos 3 preços)", IFERROR(AVERAGE(_xlfn._xlws.FILTER($I$10:$I$17,$M$10:$M$17="Sim"), _xlfn._xlws.FILTER($I$20:$I$30,P20:P30="Sim")),P31)) -> 4.543937883 | Q34: =IF(SUM(COUNTIF($M$10:$M$17,"Sim")) + SUM(COUNTIF(Q20:Q30,"Sim")) < 3, "N/D (são necessários pelo menos 3 preços)", IFERROR(AVERAGE(_xlfn._xlws.FILTER($I$10:$I$17,$M$10:$M$17="Sim"), _xlfn._xlws.FILTER($I$20:$I$30,Q20:Q30="Sim")),Q31)) -> 4.203028289 | R34: =IF(SUM(COUNTIF($M$10:$M$17,"Sim")) + SUM(COUNTIF(R20:R30,"Sim")) < 3, "N/D (são necessários pelo menos 3 preços)", IFERROR(AVERAGE(_xlfn._xlws.FILTER($I$10:$I$17,$M$10:$M$17="Sim"), _xlfn._xlws.FILTER($I$20:$I$30,R20:R30="Sim")),R31)) -> 4.186583844 | S34: =IF(SUM(COUNTIF($S$10:$S$17,"Sim")) + SUM(COUNTIF(S20:S30,"Sim")) < 3, "N/D (são necessários pelo menos 3 preços)", IFERROR(AVERAGE(_xlfn._xlws.FILTER($I$10:$I$17,$S$10:$S$17="Sim"), _xlfn._xlws.FILTER($I$20:$I$30,S20:S30="Sim")),S31)) -> N/D (são necessários pelo menos 3 preços)
L35: Mediana | M35: =IF(SUM(COUNTIF($M$10:$M$17,"Sim")) + SUM(COUNTIF(M20:M30,"Sim")) < 3, "N/D (são necessários pelo menos 3 preços)", IFERROR(MEDIAN(_xlfn._xlws.FILTER($I$10:$I$17,$M$10:$M$17="Sim"), _xlfn._xlws.FILTER($I$20:$I$30,M20:M30="Sim")),M31)) -> 4.158575629 | N35: =IF(SUM(COUNTIF($M$10:$M$17,"Sim")) + SUM(COUNTIF(N20:N30,"Sim")) < 3, "N/D (são necessários pelo menos 3 preços)", IFERROR(MEDIAN(_xlfn._xlws.FILTER($I$10:$I$17,$M$10:$M$17="Sim"), _xlfn._xlws.FILTER($I$20:$I$30,N20:N30="Sim")),N31)) -> 4.167817926 | O35: =IF(SUM(COUNTIF($M$10:$M$17,"Sim")) + SUM(COUNTIF(O20:O30,"Sim")) < 3, "N/D (são necessários pelo menos 3 preços)", IFERROR(MEDIAN(_xlfn._xlws.FILTER($I$10:$I$17,$M$10:$M$17="Sim"), _xlfn._xlws.FILTER($I$20:$I$30,O20:O30="Sim")),O31)) -> 4.158575629 | P35: =IF(SUM(COUNTIF($M$10:$M$17,"Sim")) + SUM(COUNTIF(P20:P30,"Sim")) < 3, "N/D (são necessários pelo menos 3 preços)", IFERROR(MEDIAN(_xlfn._xlws.FILTER($I$10:$I$17,$M$10:$M$17="Sim"), _xlfn._xlws.FILTER($I$20:$I$30,P20:P30="Sim")),P31)) -> 4.229875766 | Q35: =IF(SUM(COUNTIF($M$10:$M$17,"Sim")) + SUM(COUNTIF(Q20:Q30,"Sim")) < 3, "N/D (são necessários pelo menos 3 preços)", IFERROR(MEDIAN(_xlfn._xlws.FILTER($I$10:$I$17,$M$10:$M$17="Sim"), _xlfn._xlws.FILTER($I$20:$I$30,Q20:Q30="Sim")),Q31)) -> 4.167817926 | R35: =IF(SUM(COUNTIF($M$10:$M$17,"Sim")) + SUM(COUNTIF(R20:R30,"Sim")) < 3, "N/D (são necessários pelo menos 3 preços)", IFERROR(MEDIAN(_xlfn._xlws.FILTER($I$10:$I$17,$M$10:$M$17="Sim"), _xlfn._xlws.FILTER($I$20:$I$30,R20:R30="Sim")),R31)) -> 4.167817926 | S35: =IF(SUM(COUNTIF($S$10:$S$17,"Sim")) + SUM(COUNTIF(S20:S30,"Sim")) < 3, "N/D (são necessários pelo menos 3 preços)", IFERROR(MEDIAN(_xlfn._xlws.FILTER($I$10:$I$17,$S$10:$S$17="Sim"), _xlfn._xlws.FILTER($I$20:$I$30,S20:S30="Sim")),S31)) -> N/D (são necessários pelo menos 3 preços)
L36: CV | M36: =IF(SUM(COUNTIF($M$10:$M$17,"Sim")) + SUM(COUNTIF(M20:M30,"Sim")) < 3, "N/D (são necessários pelo menos 3 preços)", IFERROR(ROUND(_xlfn.STDEV.S(_xlfn._xlws.FILTER($I$10:$I$17,$M$10:$M$17="Sim"), _xlfn._xlws.FILTER($I$20:$I$30,M20:M30="Sim")) / AVERAGE(_xlfn._xlws.FILTER($I$10:$I$17,$M$10:$M$17="Sim"), _xlfn._xlws.FILTER($I$20:$I$30,M20:M30="Sim")),4),M33) ) -> 0.0195 | N36: =IF(SUM(COUNTIF($M$10:$M$17,"Sim")) + SUM(COUNTIF(N20:N30,"Sim")) < 3, "N/D (são necessários pelo menos 3 preços)", IFERROR(ROUND(_xlfn.STDEV.S(_xlfn._xlws.FILTER($I$10:$I$17,$M$10:$M$17="Sim"), _xlfn._xlws.FILTER($I$20:$I$30,N20:N30="Sim")) / AVERAGE(_xlfn._xlws.FILTER($I$10:$I$17,$M$10:$M$17="Sim"), _xlfn._xlws.FILTER($I$20:$I$30,N20:N30="Sim")),4),N33) ) -> 0.1404 | O36: =IF(SUM(COUNTIF($M$10:$M$17,"Sim")) + SUM(COUNTIF(O20:O30,"Sim")) < 3, "N/D (são necessários pelo menos 3 preços)", IFERROR(ROUND(_xlfn.STDEV.S(_xlfn._xlws.FILTER($I$10:$I$17,$M$10:$M$17="Sim"), _xlfn._xlws.FILTER($I$20:$I$30,O20:O30="Sim")) / AVERAGE(_xlfn._xlws.FILTER($I$10:$I$17,$M$10:$M$17="Sim"), _xlfn._xlws.FILTER($I$20:$I$30,O20:O30="Sim")),4),O33) ) -> 0.0195 | P36: =IF(SUM(COUNTIF($M$10:$M$17,"Sim")) + SUM(COUNTIF(P20:P30,"Sim")) < 3, "N/D (são necessários pelo menos 3 preços)", IFERROR(ROUND(_xlfn.STDEV.S(_xlfn._xlws.FILTER($I$10:$I$17,$M$10:$M$17="Sim"), _xlfn._xlws.FILTER($I$20:$I$30,P20:P30="Sim")) / AVERAGE(_xlfn._xlws.FILTER($I$10:$I$17,$M$10:$M$17="Sim"), _xlfn._xlws.FILTER($I$20:$I$30,P20:P30="Sim")),4),P33) ) -> 0.1507 | Q36: =IF(SUM(COUNTIF($M$10:$M$17,"Sim")) + SUM(COUNTIF(Q20:Q30,"Sim")) < 3, "N/D (são necessários pelo menos 3 preços)", IFERROR(ROUND(_xlfn.STDEV.S(_xlfn._xlws.FILTER($I$10:$I$17,$M$10:$M$17="Sim"), _xlfn._xlws.FILTER($I$20:$I$30,Q20:Q30="Sim")) / AVERAGE(_xlfn._xlws.FILTER($I$10:$I$17,$M$10:$M$17="Sim"), _xlfn._xlws.FILTER($I$20:$I$30,Q20:Q30="Sim")),4),Q33) ) -> 0.0185 | R36: =IF(SUM(COUNTIF($M$10:$M$17,"Sim")) + SUM(COUNTIF(R20:R30,"Sim")) < 3, "N/D (são necessários pelo menos 3 preços)", IFERROR(ROUND(_xlfn.STDEV.S(_xlfn._xlws.FILTER($I$10:$I$17,$M$10:$M$17="Sim"), _xlfn._xlws.FILTER($I$20:$I$30,R20:R30="Sim")) / AVERAGE(_xlfn._xlws.FILTER($I$10:$I$17,$M$10:$M$17="Sim"), _xlfn._xlws.FILTER($I$20:$I$30,R20:R30="Sim")),4),R33) ) -> 0.0232 | S36: =IF(SUM(COUNTIF($S$10:$S$17,"Sim")) + SUM(COUNTIF(S20:S30,"Sim")) < 3, "N/D (são necessários pelo menos 3 preços)", IFERROR(_xlfn.STDEV.S(_xlfn._xlws.FILTER($I$10:$I$17,$S$10:$S$17="Sim"), _xlfn._xlws.FILTER($I$20:$I$30,S20:S30="Sim")) / AVERAGE(_xlfn._xlws.FILTER($I$10:$I$17,$S$10:$S$17="Sim"), _xlfn._xlws.FILTER($I$20:$I$30,S20:S30="Sim")),S33) ) -> N/D (são necessários pelo menos 3 preços)
B37: PREÇO UNITÁRIO ESTIMADO ADOTADO: | J37: =IF($J$34="","Selecione metodologia para exclusão de preços",MIN(J32:J33)) -> 4.167817926 | L37: Metodologia sugerida: | M37: =IF($M$36=MIN($M$36,$N$36:$R$36),M8,"Grupos - "&INDEX({"Todos";"Sem o maior";"Sem o menor";"Sem o maior e Sem o menor";"Sem os dois maiores"},MATCH(MIN($N$36:$R$36),$N$36:$R$36,0))) -> Grupos - Sem o maior e Sem o menor
L38: Preço estimado sugerido: | M38: =IF($M$37=M8,SMALL($M$34:$M$35,1),MIN(INDEX($N$35:$R$35, MATCH(MIN($N$36:$R$36), $N$36:$R$36, 0)),INDEX($N$34:$R$34, MATCH(MIN($N$36:$R$36), $N$36:$R$36, 0)))) -> 4.167817926
L39: Metodologia a adotar: | M39: =IF(INDEX(L19:S19,N39)=0,"",INDEX(L19:S19,N39)) ->  | N39: 1

Sheet ORIENTAÇÕES E ADVERTÊNCIAS
A1: A Norma N-440 estabelece critérios objetivos para pesquisa e análise crítica de preços de referência para aquisição de bens e contratação de serviços em geral.
A3: Esta planilha possui caráter unicamente sugestivo e foi elaborada visando melhorar a transparência dos processos de pesquisa de preços efetivados no âmbito da Codevasf, em suporte à aplicação da Norma N-440.
A5: O uso desta planilha é responsabilidade exclusiva do(a) analista que efetuar a pesquisa de preços, que deve conferir os dados inseridos e cálculos realizados para a obtenção do preço estimado.
A7: A N-440 apresenta os parâmetros para a aplicação de metodologia(s) de exclusão de preços inexequíveis, inconsistentes ou excessivamente elevados.
A9: Etapas de preenchimento da planilha e orientações:
A10: Etapa | B10: Células Referenciadas | C10: Descrição
A11: 1 | B11: C2 a C5 | C11: Insira as informações de processo, responsável e data referentes à pesquisa de preços.
A12: 2 | B12: C7 | C12: Insira a descrição do item submetido à pesquisa de preços.
A13: 3 | B13: H7 | C13: Insira a unidade de medida do item (unidade, comprimento, volume, etc).
A14: 4 | B14: J7 | C14: Insira a quantidade pesquisada para contratação.
A15: 5 | B15: B7 a I16 | C15: Insira as informações pertinentes às licitações e contratações realizadas pela Administração Pública, se houver.
A16: 6 | B16: G10 a H16 | C16: Informe o índice de atualização de preços, se for o caso, e a variação acumulada.
A17: 7 | B17: I10 a I16 | C17: Insira o preço unitário atualizado de licitações e contratações realizadas pela Administração Pública, se houver.
A18: 8 | B18: B19 a I29 | C18: Insira as informações obtidas em pesquisa direta de mercado (cotações), se houver.
A19: 9 | B19: M38 | C19: Selecione a opção "Automática (menor CV)".
A20: 10 | B20: J10 a J38 | C20: Automaticamente, com base nas metodologias de exclusão de preços exibidas na Tabela Auxiliar, será indicada a metodologia com o menor Coeficiente de Variação (CV) entre os preços informados e se cada um será utilizado ou não no cálculo do preço estimado.
A21: 11 | B21: M38 | C21: O(a) analista deve avaliar se aplicará a metodologia e o preço estimado sugeridos automaticamente ou se modificará a metodologia manualmente na lista suspensa existente na célula M38.
A22: 12 | B22: S10 a S29 | C22: Caso o(a) analista selecione a opção de metodologia de exclusão de preços "Por critério do(a) analista", deverá preencher manualmente com "Sim" ou "Não", nas células S10 a S29, quais preços serão utilizados no cálculo do preço estimado.
A23: 13 | B23: J33 | C23: Automaticamente, a célula J33 informa qual foi a metodologia de exclusão de preços adotada pelo(a) analista.
A24: 14 | B24: J38 | C24: Automaticamente, a célula J38 informa o preço estimado calculado com base nas informações e seleções efetivadas pelo(a) analista.
A25: 15 | B25: L7 a S37 | C25: Contém a Tabela Auxiliar pertinente às metodologias de exclusão de preços inexequíveis, inconsistentes ou excessivamente elevados. Apenas as células S10 a S29 são passíveis de preenchimento e se aplicam caso seja selecionada a metodologia de exclusão de preços "Por critério do(a) analista".
A26: 16 | C26: Replique as etapas acima em planilhas/abas individuais para cada item pesquisado. Para isso, crie cópia(s) das planilhas/abas pré-existentes.
A28: Existem células bloqueadas na planilha, caso apresentem divergências contate a AG/GCT.

Sheet Classes e CVs de referência

Sheet índice de atualização
A1: \\drive2\Boletim_de_Indices\
B4: IPA-EP-DI Suprimentos agropecuários | C4: IPA-EP-DI Máquinas, aparelhos e equipamentos - Nro. Índice
B5: 1417005 | C5: 1416650
A6: Data | B6: 11 | C6: 11
A7: 02/2010 | B7: 463.501 | C7: 332.844
A8: 03/2010 | B8: 461.826 | C8: 332.691
A9: 04/2010 | B9: 460.604 | C9: 334.238
A10: 05/2010 | B10: 460.173 | C10: 335.238
A11: 06/2010 | B11: 456.045 | C11: 338.301
A12: 07/2010 | B12: 457.025 | C12: 338.418
A13: 08/2010 | B13: 462.533 | C13: 339.956
A14: 09/2010 | B14: 467.074 | C14: 339.887
A15: 10/2010 | B15: 477.097 | C15: 340.593
A16: 11/2010 | B16: 488.929 | C16: 340.788
A17: 12/2010 | B17: 496.953 | C17: 341.369
A18: 01/2011 | B18: 503.991 | C18: 343.227
A19: 02/2011 | B19: 508.271 | C19: 344.923
A20: 03/2011 | B20: 512.761 | C20: 346.239
A21: 04/2011 | B21: 511.202 | C21: 345.79
A22: 05/2011 | B22: 506.77 | C22: 346.506
A23: 06/2011 | B23: 518.513 | C23: 346.195
A24: 07/2011 | B24: 531.692 | C24: 346.215
A25: 08/2011 | B25: 530.031 | C25: 347.32
A26: 09/2011 | B26: 543.986 | C26: 346.749
A27: 10/2011 | B27: 565.975 | C27: 346.448
A28: 11/2011 | B28: 562.181 | C28: 346.759
A29: 12/2011 | B29: 558.758 | C29: 347.137
A30: 01/2012 | B30: 544.127 | C30: 348.034
A31: 02/2012 | B31: 539.353 | C31: 348.812
A32: 03/2012 | B32: 544.277 | C32: 348.291
A33: 04/2012 | B33: 556.62 | C33: 349.043
A34: 05/2012 | B34: 579.248 | C34: 349.904
A35: 06/2012 | B35: 591.562 | C35: 350.983
A36: 07/2012 | B36: 589.235 | C36: 352.249
A37: 08/2012 | B37: 598.995 | C37: 353.8
A38: 09/2012 | B38: 607.536 | C38: 355.019
A39: 10/2012 | B39: 607.314 | C39: 354.596
A40: 11/2012 | B40: 605.725 | C40: 355.689
A41: 12/2012 | B41: 603.749 | C41: 356.461
A42: 01/2013 | B42: 596.419 | C42: 359.406
A43: 02/2013 | B43: 588.108 | C43: 361.062
A44: 03/2013 | B44: 587.312 | C44: 362.932
A45: 04/2013 | B45: 578.532 | C45: 363.42
A46: 05/2013 | B46: 575.234 | C46: 364.3
A47: 06/2013 | B47: 585.909 | C47: 364.885
A48: 07/2013 | B48: 594.867 | C48: 367.623
A49: 08/2013 | B49: 595.87 | C49: 370.235
A50: 09/2013 | B50: 592.082 | C50: 371.307
A51: 10/2013 | B51: 580.961 | C51: 372.382
A52: 11/2013 | B52: 579.402 | C52: 374.559
A53: 12/2013 | B53: 585.85 | C53: 375.671
A54: 01/2014 | B54: 593.121 | C54: 379.784
A55: 02/2014 | B55: 602.246 | C55: 381.336
A56: 03/2014 | B56: 605.195 | C56: 382.902
A57: 04/2014 | B57: 601.161 | C57: 384.697
A58: 05/2014 | B58: 594.251 | C58: 385.215
A59: 06/2014 | B59: 594.318 | C59: 386.327
A60: 07/2014 | B60: 598.597 | C60: 387.357
A61: 08/2014 | B61: 608.887 | C61: 388.473
A62: 09/2014 | B62: 610.887 | C62: 389.49
A63: 10/2014 | B63: 616.848 | C63: 390.425
A64: 11/2014 | B64: 627.394 | C64: 392.009
A65: 12/2014 | B65: 632.28 | C65: 393.359
A66: 01/2015 | B66: 637.459 | C66: 398.097
A67: 02/2015 | B67: 650.083 | C67: 403.117
A68: 03/2015 | B68: 681.661 | C68: 405.789
A69: 04/2015 | B69: 689.477 | C69: 410.101
A70: 05/2015 | B70: 686.27 | C70: 414.34
A71: 06/2015 | B71: 700.106 | C71: 415.89
A72: 07/2015 | B72: 710.529 | C72: 419.707
A73: 08/2015 | B73: 727.543 | C73: 422.14
A74: 09/2015 | B74: 758.66 | C74: 427.284
A75: 10/2015 | B75: 756.811 | C75: 431.71
A76: 11/2015 | B76: 759.365 | C76: 432.995
A77: 12/2015 | B77: 763.018 | C77: 436.406
A78: 01/2016 | B78: 768.009 | C78: 441.489
A79: 02/2016 | B79: 759.113 | C79: 443.272
A80: 03/2016 | B80: 757.276 | C80: 444.563
A81: 04/2016 | B81: 751.923 | C81: 447.388
A82: 05/2016 | B82: 747.039 | C82: 446.243
A83: 06/2016 | B83: 749.822 | C83: 446.819
A84: 07/2016 | B84: 751.719 | C84: 449.046
A85: 08/2016 | B85: 747.631 | C85: 449.04
A86: 09/2016 | B86: 746.939 | C86: 449.697
A87: 10/2016 | B87: 738.157 | C87: 449.901
A88: 11/2016 | B88: 752.724 | C88: 450.892
A89: 12/2016 | B89: 758.089 | C89: 450.496
A90: 01/2017 | B90: 755.293 | C90: 453.408
A91: 02/2017 | B91: 747.668 | C91: 457.566
A92: 03/2017 | B92: 742.882 | C92: 459.789
A93: 04/2017 | B93: 729.767 | C93: 461.874
A94: 05/2017 | B94: 726.079 | C94: 462.807
A95: 06/2017 | B95: 720.874 | C95: 461.833
A96: 07/2017 | B96: 711.662 | C96: 462.925
A97: 08/2017 | B97: 706.566 | C97: 463.043
A98: 09/2017 | B98: 706.508 | C98: 464.047
A99: 10/2017 | B99: 724.71 | C99: 464.728
A100: 11/2017 | B100: 733.79 | C100: 464.375
A101: 12/2017 | B101: 744.581 | C101: 466.576
A102: 01/2018 | B102: 760.995 | C102: 470.926
A103: 02/2018 | B103: 750.803 | C103: 473.36
A104: 03/2018 | B104: 754.246 | C104: 475.148
A105: 04/2018 | B105: 768.1 | C105: 476.925
A106: 05/2018 | B106: 800.972 | C106: 480.435
A107: 06/2018 | B107: 828.273 | C107: 483.537
A108: 07/2018 | B108: 859.999 | C108: 486.996
A109: 08/2018 | B109: 889.369 | C109: 489.681
A110: 09/2018 | B110: 919.592 | C110: 495.76
A111: 10/2018 | B111: 895.67 | C111: 500.629
A112: 11/2018 | B112: 883.899 | C112: 505.095
A113: 12/2018 | B113: 889.785 | C113: 505.584
A114: 01/2019 | B114: 888.036 | C114: 510.684
A115: 02/2019 | B115: 875.874 | C115: 512.649
A116: 03/2019 | B116: 876.106 | C116: 514.674
A117: 04/2019 | B117: 879.552 | C117: 516.858
A118: 05/2019 | B118: 890.637 | C118: 518.526
A119: 06/2019 | B119: 882.585 | C119: 518.681
A120: 07/2019 | B120: 873.49 | C120: 518.218
A121: 08/2019 | B121: 878.201 | C121: 519.286
A122: 09/2019 | B122: 881.047 | C122: 521.225
A123: 10/2019 | B123: 874.106 | C123: 521.293
A124: 11/2019 | B124: 867.876 | C124: 524.094
A125: 12/2019 | B125: 867.548 | C125: 523.073
A126: 01/2020 | B126: 851.35 | C126: 525.936
A127: 02/2020 | B127: 857.921 | C127: 530.412
A128: 03/2020 | B128: 898.557 | C128: 535.325
A129: 04/2020 | B129: 922.476 | C129: 544.906
A130: 05/2020 | B130: 936.921 | C130: 550.78
A131: 06/2020 | B131: 943.353 | C131: 556.323
A132: 07/2020 | B132: 946.24 | C132: 560.9
A133: 08/2020 | B133: 955.095 | C133: 564.544
A134: 09/2020 | B134: 978.827 | C134: 573.711
A135: 10/2020 | B135: 1008.656 | C135: 585.38
A136: 11/2020 | B136: 1022.901 | C136: 598.009
A137: 12/2020 | B137: 1025.882 | C137: 603.183
A138: 01/2021 | B138: 1065.74 | C138: 621.251
A139: 02/2021 | B139: 1165.155 | C139: 642.767
A140: 03/2021 | B140: 1227.715 | C140: 659.808
A141: 04/2021 | B141: 1256.093 | C141: 671.704
A142: 05/2021 | B142: 1265.888 | C142: 686.157
A143: 06/2021 | B143: 1329.715 | C143: 700.002
A144: 07/2021 | B144: 1429.476 | C144: 709.427
A145: 08/2021 | B145: 1483.486 | C145: 718.527
A146: 09/2021 | B146: 1528.736 | C146: 728.045
A147: 10/2021 | B147: 1632.133 | C147: 736.669
A148: 11/2021 | B148: 1720.012 | C148: 749.652
A149: 12/2021 | B149: 1725.99 | C149: 752.905
A150: 01/2022 | B150: 1800.18 | C150: 763.294
A151: 02/2022 | B151: 1746.436 | C151: 776.901
A152: 03/2022 | B152: 1860.583 | C152: 783.932
A153: 04/2022 | B153: 1901.419 | C153: 792.143
A154: 05/2022 | B154: 1955.331 | C154: 802.961
A155: 06/2022 | B155: 1903.524 | C155: 810.926
A156: 07/2022 | B156: 1900.192 | C156: 819.779
A157: 08/2022 | B157: 1867.569 | C157: 823.767
A158: 09/2022 | B158: 1857.619 | C158: 827.422
A159: 10/2022 | B159: 1764.277 | C159: 830.902
A160: 11/2022 | B160: 1694.635 | C160: 830.752
A161: 12/2022 | B161: 1646.527 | C161: 830.603
A162: 01/2023 | B162: 1587.349 | C162: 834.798
A163: 02/2023 | B163: 1564.473 | C163: 836.41
A164: 03/2023 | B164: 1524.019 | C164: 836.402
A165: 04/2023 | B165: 1496.835 | C165: 837.801
A166: 05/2023 | B166: 1421.002 | C166: 842.52
A167: 06/2023 | B167: 1378.189 | C167: 844.543
A168: 07/2023 | B168: 1373.905 | C168: 844.083
A169: 08/2023 | B169: 1355.202 | C169: 842.766
A170: 09/2023 | B170: 1367.078 | C170: 844.898
A171: 10/2023 | B171: 1359.292 | C171: 845.104
A172: 11/2023 | B172: 1362.936 | C172: 844.32
A173: 12/2023 | B173: 1359.386 | C173: 848.141
A174: 01/2024 | B174: 1313.654 | C174: 851.537
A175: 02/2024 | B175: 1313.031 | C175: 854.124
A176: 03/2024 | B176: 1329.768 | C176: 855.995
A177: 04/2024 | B177: 1322.297 | C177: 856.513
A178: 05/2024 | B178: 1326.493 | C178: 857.985
A179: 06/2024 | B179: 1353.284 | C179: 860.19
A180: 07/2024 | B180: 1378.021 | C180: 864.23
A181: 08/2024 | B181: 1386.476 | C181: 867.372
A182: 09/2024 | B182: 1399.42 | C182: 869.083
A183: 10/2024 | B183: 1389.399 | C183: 871.587
A184: 11/2024 | B184: 1404.563 | C184: 874.6
A185: 12/2024 | B185: 1426.838 | C185: 878.596
A186: 01/2025 | B186: 1428.031 | C186: 887.958
A187: 02/2025 | B187: 1450.998 | C187: 887.561
A188: 03/2025 | B188: 1462.347 | C188: 889.001
A189: 04/2025 | B189: 1494.053 | C189: 891.568
A190: 05/2025 | B190: 1511.946 | C190: 891.941
A191: 06/2025 | B191: 1501.536 | C191: 893.856
A192: 07/2025 | B192: 1484.866 | C192: 899.408
A193: 08/2025 | B193: 1474.08 | C193: 901.393
A194: 09/2025 | B194: 1455.237 | C194: 899.656
A195: 10/2025 | B195: 1453.569
A196: 11/2025 | B196: 1447.104
A197: 12/2025 | B197: 1451.652
